Workbook

Sheet invullijst
A1: 1 | B1: Sint Ambrosius Baardwijk | C1: Baardwijk | F1: Organistatie | H1: jaar | K1: nr
A2: 2 | B2: St. Crispinus & Crispinianus Besoijen | C2: Besoijen | H2: 2025 - 2026 | K2: 1
A3: 3 | B3: O.L.V. Schuts Elshout | C3: Elshout | F3: =IF(VLOOKUP($K2,invullijst!$A$1:$C$6,2,FALSE)="","",VLOOKUP($K2,invullijst!$A$1:$C$6,2,FALSE)) -> Sint Ambrosius Baardwijk
A4: 4 | B4: Sint Ambrosius Haarsteeg | C4: Haarsteeg | J4: versie 2020-1
A5: 5 | B5: Sint Jan Baptist Kaatsheuvel | C5: Kaatsheuvel
A8: NR | B8: NAAM | C8: PLAATS | D8: dis. | E8: € | F8: W 1 | G8: W 2 | H8: W 3 | I8: W 4 | J8: W 5 | K8: kampk
A10: 0 | B10: 0 | C10: 0 | D10: 0 | E10: 0 | F10: 0 | G10: 0 | H10: 0 | I10: 0 | J10: 0 | K10: 0
A11: 0 | B11: 0 | C11: 0 | D11: 0 | E11: 0.00 | F11: 0 | G11: 0 | H11: 0 | I11: 0 | J11: 0 | K11: 0
A12: 101 | B12: Antwan van Buul | C12: Baardwijk | D12: vr | F12: 53 | G12: x | H12: x | J12: x
A13: 102 | B13: John de Jong (disp) | C13: Baardwijk | D13: 65+ | F13: 90 | G13: 84 | H13: 82 | J13: x
A14: 104 | B14: Peter Brekelmans | C14: Baardwijk | D14: 65+ | F14: 75 | G14: 82 | H14: x | J14: x
A15: 105 | B15: René Klijn | C15: Baardwijk | D15: vr | F15: 86 | G15: 81 | H15: 84 | J15: x
A16: 106 | B16: René Pullens | C16: Baardwijk | D16: vr | F16: 82 | G16: 66 | H16: 83 | J16: x
A17: 107 | B17: Cees Coppens | C17: Baardwijk | D17: 65+ | F17: 86 | G17: x | H17: 83 | J17: x
A18: 108 | B18: Bram Pullens | C18: Baardwijk | D18: vr | F18: 80 | G18: 78 | H18: 78 | J18: x
A19: 109 | B19: Gijs Pullens | C19: Baardwijk | D19: vr | F19: 71 | G19: 84 | H19: 76 | J19: x
A20: 112 | B20: Toon van Buul | C20: Baardwijk | D20: 65+ | F20: 54 | G20: x | H20: x | J20: x
A21: 203 | B21: Frank van den Houdt | C21: Besoijen | D21: vr | F21: 87 | G21: 84 | H21: 73 | I21: x | K21: 39
A22: 204 | B22: Harry de Louw | C22: Besoijen | D22: vr | F22: 84 | G22: 80 | H22: 83 | I22: x | K22: 33
A23: 205 | B23: Jos v/d Snepscheut | C23: Besoijen | D23: vr | F23: 70 | G23: x | H23: 76 | I23: x | K23: 39
A24: 206 | B24: Kees van Hulten | C24: Besoijen | D24: vr | F24: 77 | G24: x | H24: x | I24: x
A25: 208 | B25: Erin van Hulten | C25: Besoijen | D25: vr | F25: 83 | G25: 82 | H25: x | I25: x
A26: 209 | B26: René van Kuijk | C26: Besoijen | D26: vr | F26: 76 | G26: 83 | H26: 84 | I26: x | K26: 33
A27: 210 | B27: Sander Oome | C27: Besoijen | D27: vr | F27: 83 | G27: 91 | H27: 93 | I27: x | K27: 40
A28: 211 | B28: Ad van den houdt | C28: Besoijen | D28: 65+ | F28: 88 | G28: x | H28: 89 | I28: x | K28: 41
A29: 212 | B29: René Duquesnoy | C29: Besoijen | D29: 65+ | F29: 88 | G29: 85 | H29: 90 | I29: x | K29: 37
A30: 213 | B30: Roland van Delft | C30: Besoijen | D30: vr | F30: 52 | G30: 75 | H30: 62 | I30: x | K30: 36
A31: 214 | B31: Andre de Vaan | C31: Besoijen | D31: 65+ | F31: 92 | G31: 93 | H31: 90 | I31: x | K31: 44
A32: 216 | B32: Pieter Laghuwitz | C32: Besoijen | D32: vr | F32: 92 | G32: 92 | H32: 86 | I32: x | K32: 44
A33: 217 | B33: Hans Laghuwitz | C33: Besoijen | D33: vr | F33: 76 | G33: 80 | H33: 83 | I33: x | K33: 37
A34: 218 | B34: Jacob van de Werken | C34: Besoijen | D34: 65+ | F34: 95 | G34: 96 | H34: 96 | I34: x | K34: 48
A35: 219 | B35: Frans de Bont | C35: Besoijen | D35: 65+ | F35: 93 | G35: 96 | H35: 97 | I35: x | K35: 48
A36: 220 | B36: Kees Vos | C36: Besoijen | D36: 65+ | F36: 88 | G36: 94 | H36: 93 | I36: x | K36: 48
A37: 221 | B37: Mees Huijben | C37: Besoijen | D37: J | F37: 86 | G37: 83 | H37: 89 | I37: x | K37: 43
A38: 222 | B38: Nick de Vaan | C38: Besoijen | D38: vr | F38: 80 | G38: x | H38: 74 | I38: x | K38: 29
A39: 223 | B39: Jänis Jakobsons | C39: Besoijen | D39: vr | F39: 80 | G39: 74 | H39: 70 | I39: x | K39: 12
A40: 301 | B40: Arjen van Assem (disp) | C40: Elshout | D40: 65+ | F40: x | G40: 84 | H40: 88
A41: 302 | B41: Freek de Jong | C41: Elshout | D41: vr | F41: x | G41: 90 | H41: 88
A42: 303 | B42: Hans van de Wiel | C42: Elshout | D42: 65+ | F42: x | G42: 96 | H42: x
A43: 304 | B43: Henk Bruurmijn | C43: Elshout | D43: vr | F43: x | G43: 76 | H43: 74
A44: 305 | B44: Johan Klerx | C44: Elshout | D44: vr | F44: x | G44: 88 | H44: 82
A45: 306 | B45: Ron Groot | C45: Elshout | D45: vr | F45: x | G45: 92 | H45: 87
A46: 307 | B46: Bert van Engelen | C46: Elshout | D46: 65+ | F46: x | G46: 93 | H46: 94
A47: 309 | B47: René de Jong | C47: Elshout | D47: 65+ | F47: x | G47: 88 | H47: x
A48: 310 | B48: Tiny Boom | C48: Elshout | D48: 65+ | F48: x | G48: 92 | H48: 94
A49: 312 | B49: Floor de Jong | C49: Elshout | D49: J | F49: x | G49: 90 | H49: 97
A50: 401 | B50: Frans van Beurden | C50: Haarsteeg | D50: 65+ | F50: 96 | G50: x | H50: 96
A51: 402 | B51: Daniëlle v/d Lee | C51: Haarsteeg | D51: vr | F51: 81 | G51: x | H51: 80
A52: 403 | B52: Dorien de Kort | C52: Haarsteeg | D52: 65+ | F52: 91 | G52: x | H52: 96
A53: 404 | B53: Gerard van Beurden | C53: Haarsteeg | D53: 65+ | F53: 92 | G53: x | H53: 98
A54: 405 | B54: Jan de Vaan | C54: Haarsteeg | D54: 65+ | F54: 95 | G54: x | H54: 96
A55: 406 | B55: Jeroen van Oss | C55: Haarsteeg | D55: vr | F55: 77 | G55: x | H55: 84
A56: 408 | B56: Rudy van Falier | C56: Haarsteeg | D56: vr | F56: 80 | G56: x | H56: 80
A57: 409 | B57: Thijs Koks | C57: Haarsteeg | D57: vr | F57: 84 | G57: x | H57: 86
A58: 410 | B58: Tonnie Koks | C58: Haarsteeg | D58: vr | F58: 79 | G58: x | H58: 78
A59: 411 | B59: Wilma v/d Lee | C59: Haarsteeg | D59: vr | F59: 78 | G59: x | H59: 72
A60: 412 | B60: Francien v/d Wiel | C60: Haarsteeg | D60: 65+ | F60: 87 | G60: x | H60: 95
A61: 413 | B61: Frans Mommersteeg | C61: Haarsteeg | D61: 65+ | F61: 93 | G61: x | H61: 97
A62: 414 | B62: Alex Hus | C62: Haarsteeg | D62: 65+ | F62: 73 | G62: x | H62: 90
A63: 415 | B63: Wim de Gouw | C63: Haarsteeg | D63: 65+ | F63: 96 | G63: x | H63: 97
A64: 501 | B64: Annette Vos | C64: Kaatsheuvel | D64: vr | F64: 81 | G64: 77 | H64: x
A65: 502 | B65: Djody Wagemakers | C65: Kaatsheuvel | D65: J | F65: 93 | G65: 91 | H65: x
A66: 503 | B66: Kees Vos (disp) | C66: Kaatsheuvel | D66: 65+ | F66: 87 | G66: 82 | H66: x
A67: 504 | B67: Koen v/d Ven | C67: Kaatsheuvel | D67: vr | F67: 87 | G67: 83 | H67: x
A68: 506 | B68: Maikel Monden | C68: Kaatsheuvel | D68: vr | F68: 81 | G68: x | H68: x
A69: 507 | B69: Michael Blaauwbroek | C69: Kaatsheuvel | D69: vr | F69: 76 | G69: 74 | H69: x
A70: 508 | B70: Rowan Dobbelsteen | C70: Kaatsheuvel | D70: vr | F70: 80 | G70: 81 | H70: x
A71: 509 | B71: Adwan de Pinth | C71: Kaatsheuvel | D71: 65+ | F71: 96 | G71: 96 | H71: x
A72: 512 | B72: Hans Bergakker | C72: Kaatsheuvel | D72: vr | F72: 72 | G72: 75 | H72: x
A73: 513 | B73: Mark van Delft | C73: Kaatsheuvel | D73: vr | F73: 82 | G73: 83 | H73: x
A74: 515 | B74: Ilona Bergakker (disp) | C74: Kaatsheuvel | D74: 65+ | F74: 89 | G74: 87 | H74: x
A75: 516 | B75: Henry Bergakker (disp) | C75: Kaatsheuvel | D75: 65+ | F75: 93 | G75: 81 | H75: x
A76: 517 | B76: Diny Vos (disp) | C76: Kaatsheuvel | D76: 65+ | F76: 90 | G76: 95 | H76: x
A77: 518 | B77: Ton Stanz | C77: Kaatsheuvel | D77: 65+ | F77: 80 | G77: 88 | H77: x
E89: te betalen
B90: aantal schutters Baardwijk | C90: 9 | E90: 9 | F90: x | G90: 3.00 | H90: = | I90: =E90*G90 -> € 27.00 | J90: ontvangen
A91: 1J | B91: aantal schutters Besoijen | C91: 19 | E91: 18 | F91: x | G91: 3.00 | H91: = | I91: =E91*G91 -> € 54.00 | J91: ontvangen
A92: 1J | B92: aantal schutters Elshout | C92: 10 | E92: 10 | F92: x | G92: 3.00 | H92: = | I92: =E92*G92 -> € 30.00 | J92: ontvangen
B93: aantal schutters Haarsteeg | C93: 14 | E93: 15 | F93: x | G93: 3.00 | H93: = | I93: =E93*G93 -> € 45.00 | J93: ontvangen
A94: 1J | B94: aantal schutters Kaatsheuvel | C94: 14 | E94: 16 | F94: x | G94: 3.00 | H94: = | I94: =E94*G94 -> € 48.00 | J94: ontvangen
B95: aantal schutters totaal | C95: =SUM(C90:C94) -> 66 | E95: 66 | F95: x | G95: 3.00 | H95: = | I95: =PRODUCT(E95:G95) -> € 198.00 | J95: betaald | K95: =SUM(K90:K94) -> € 0.00
B97: Jeugd gratis (<16 jaar) | C97: 3

Sheet Personeel
A1: PERSONEEL | G1: =invullijst!F1 -> Organistatie | K1: =invullijst!H2 -> 2025 - 2026
G2: =invullijst!F3 -> Sint Ambrosius Baardwijk
A3: alleen in de gele kolom nummer schutter invullen | G3: wedstrijd | M3: KAMP-
A4: KL. | C4: schutter | E4: NAAM | F4: PLAATS | G4: 1 | H4: 2 | I4: 3 | J4: 4 | K4: 5 | L4: TOTAAL | M4: KAART
A5: A | B5: 1 | C5: 101 | D5: =IF(VLOOKUP($C5,invullijst!$A$11:$M$196,4,FALSE)="","",VLOOKUP($C5,invullijst!$A$11:$M$196,4,FALSE)) -> vr | E5: =IF(VLOOKUP($C5,invullijst!$A$11:$M$196,2,FALSE)="","",VLOOKUP($C5,invullijst!$A$11:$M$196,2,FALSE)) -> Antwan van Buul | F5: =IF(VLOOKUP($C5,invullijst!$A$11:$M$196,3,FALSE)="","",VLOOKUP($C5,invullijst!$A$11:$M$196,3,FALSE)) -> Baardwijk | G5: =IF(VLOOKUP(C5,invullijst!$A$11:$M$196,6,FALSE)="","",VLOOKUP(C5,invullijst!$A$11:$M$196,6,FALSE)) -> 53 | H5: =IF(VLOOKUP($C5,invullijst!$A$11:$M$196,7,FALSE)="","",VLOOKUP($C5,invullijst!$A$11:$M$196,7,FALSE)) -> x | I5: =IF(VLOOKUP($C5,invullijst!$A$11:$M$196,8,FALSE)="","",VLOOKUP($C5,invullijst!$A$11:$M$196,8,FALSE)) -> x | J5: =IF(VLOOKUP($C5,invullijst!$A$11:$M$196,9,FALSE)="","",VLOOKUP($C5,invullijst!$A$11:$M$196,9,FALSE)) ->  | K5: =IF(VLOOKUP($C5,invullijst!$A$11:$M$196,10,FALSE)="","",VLOOKUP($C5,invullijst!$A$11:$M$196,10,FALSE)) -> x | L5: =SUM(G5:K5) -> 53 | M5: =IF(VLOOKUP($C5,invullijst!$A$11:$M$196,11,FALSE)="","",VLOOKUP($C5,invullijst!$A$11:$M$196,11,FALSE)) -> 
B6: 2 | C6: 105 | D6: =IF(VLOOKUP($C6,invullijst!$A$11:$M$196,4,FALSE)="","",VLOOKUP($C6,invullijst!$A$11:$M$196,4,FALSE)) -> vr | E6: =IF(VLOOKUP($C6,invullijst!$A$11:$M$196,2,FALSE)="","",VLOOKUP($C6,invullijst!$A$11:$M$196,2,FALSE)) -> René Klijn | F6: =IF(VLOOKUP($C6,invullijst!$A$11:$M$196,3,FALSE)="","",VLOOKUP($C6,invullijst!$A$11:$M$196,3,FALSE)) -> Baardwijk | G6: =IF(VLOOKUP(C6,invullijst!$A$11:$M$196,6,FALSE)="","",VLOOKUP(C6,invullijst!$A$11:$M$196,6,FALSE)) -> 86 | H6: =IF(VLOOKUP($C6,invullijst!$A$11:$M$196,7,FALSE)="","",VLOOKUP($C6,invullijst!$A$11:$M$196,7,FALSE)) -> 81 | I6: =IF(VLOOKUP($C6,invullijst!$A$11:$M$196,8,FALSE)="","",VLOOKUP($C6,invullijst!$A$11:$M$196,8,FALSE)) -> 84 | J6: =IF(VLOOKUP($C6,invullijst!$A$11:$M$196,9,FALSE)="","",VLOOKUP($C6,invullijst!$A$11:$M$196,9,FALSE)) ->  | K6: =IF(VLOOKUP($C6,invullijst!$A$11:$M$196,10,FALSE)="","",VLOOKUP($C6,invullijst!$A$11:$M$196,10,FALSE)) -> x | L6: 251 | M6: =IF(VLOOKUP($C6,invullijst!$A$11:$M$196,11,FALSE)="","",VLOOKUP($C6,invullijst!$A$11:$M$196,11,FALSE)) -> 
B7: 3 | C7: 106 | D7: =IF(VLOOKUP($C7,invullijst!$A$11:$M$196,4,FALSE)="","",VLOOKUP($C7,invullijst!$A$11:$M$196,4,FALSE)) -> vr | E7: =IF(VLOOKUP($C7,invullijst!$A$11:$M$196,2,FALSE)="","",VLOOKUP($C7,invullijst!$A$11:$M$196,2,FALSE)) -> René Pullens | F7: =IF(VLOOKUP($C7,invullijst!$A$11:$M$196,3,FALSE)="","",VLOOKUP($C7,invullijst!$A$11:$M$196,3,FALSE)) -> Baardwijk | G7: =IF(VLOOKUP(C7,invullijst!$A$11:$M$196,6,FALSE)="","",VLOOKUP(C7,invullijst!$A$11:$M$196,6,FALSE)) -> 82 | H7: =IF(VLOOKUP($C7,invullijst!$A$11:$M$196,7,FALSE)="","",VLOOKUP($C7,invullijst!$A$11:$M$196,7,FALSE)) -> 66 | I7: =IF(VLOOKUP($C7,invullijst!$A$11:$M$196,8,FALSE)="","",VLOOKUP($C7,invullijst!$A$11:$M$196,8,FALSE)) -> 83 | J7: =IF(VLOOKUP($C7,invullijst!$A$11:$M$196,9,FALSE)="","",VLOOKUP($C7,invullijst!$A$11:$M$196,9,FALSE)) ->  | K7: =IF(VLOOKUP($C7,invullijst!$A$11:$M$196,10,FALSE)="","",VLOOKUP($C7,invullijst!$A$11:$M$196,10,FALSE)) -> x | L7: 231 | M7: =IF(VLOOKUP($C7,invullijst!$A$11:$M$196,11,FALSE)="","",VLOOKUP($C7,invullijst!$A$11:$M$196,11,FALSE)) -> 
B8: 4 | C8: 108 | D8: =IF(VLOOKUP($C8,invullijst!$A$11:$M$196,4,FALSE)="","",VLOOKUP($C8,invullijst!$A$11:$M$196,4,FALSE)) -> vr | E8: =IF(VLOOKUP($C8,invullijst!$A$11:$M$196,2,FALSE)="","",VLOOKUP($C8,invullijst!$A$11:$M$196,2,FALSE)) -> Bram Pullens | F8: =IF(VLOOKUP($C8,invullijst!$A$11:$M$196,3,FALSE)="","",VLOOKUP($C8,invullijst!$A$11:$M$196,3,FALSE)) -> Baardwijk | G8: =IF(VLOOKUP(C8,invullijst!$A$11:$M$196,6,FALSE)="","",VLOOKUP(C8,invullijst!$A$11:$M$196,6,FALSE)) -> 80 | H8: =IF(VLOOKUP($C8,invullijst!$A$11:$M$196,7,FALSE)="","",VLOOKUP($C8,invullijst!$A$11:$M$196,7,FALSE)) -> 78 | I8: =IF(VLOOKUP($C8,invullijst!$A$11:$M$196,8,FALSE)="","",VLOOKUP($C8,invullijst!$A$11:$M$196,8,FALSE)) -> 78 | J8: =IF(VLOOKUP($C8,invullijst!$A$11:$M$196,9,FALSE)="","",VLOOKUP($C8,invullijst!$A$11:$M$196,9,FALSE)) ->  | K8: =IF(VLOOKUP($C8,invullijst!$A$11:$M$196,10,FALSE)="","",VLOOKUP($C8,invullijst!$A$11:$M$196,10,FALSE)) -> x | L8: 236 | M8: =IF(VLOOKUP($C8,invullijst!$A$11:$M$196,11,FALSE)="","",VLOOKUP($C8,invullijst!$A$11:$M$196,11,FALSE)) -> 
B9: 5 | C9: 109 | D9: =IF(VLOOKUP($C9,invullijst!$A$11:$M$196,4,FALSE)="","",VLOOKUP($C9,invullijst!$A$11:$M$196,4,FALSE)) -> vr | E9: =IF(VLOOKUP($C9,invullijst!$A$11:$M$196,2,FALSE)="","",VLOOKUP($C9,invullijst!$A$11:$M$196,2,FALSE)) -> Gijs Pullens | F9: =IF(VLOOKUP($C9,invullijst!$A$11:$M$196,3,FALSE)="","",VLOOKUP($C9,invullijst!$A$11:$M$196,3,FALSE)) -> Baardwijk | G9: =IF(VLOOKUP($C9,invullijst!$A$11:$M$196,6,FALSE)="","",VLOOKUP($C9,invullijst!$A$11:$M$196,6,FALSE)) -> 71 | H9: =IF(VLOOKUP($C9,invullijst!$A$11:$M$196,7,FALSE)="","",VLOOKUP($C9,invullijst!$A$11:$M$196,7,FALSE)) -> 84 | I9: =IF(VLOOKUP($C9,invullijst!$A$11:$M$196,8,FALSE)="","",VLOOKUP($C9,invullijst!$A$11:$M$196,8,FALSE)) -> 76 | J9: =IF(VLOOKUP($C9,invullijst!$A$11:$M$196,9,FALSE)="","",VLOOKUP($C9,invullijst!$A$11:$M$196,9,FALSE)) ->  | K9: =IF(VLOOKUP($C9,invullijst!$A$11:$M$196,10,FALSE)="","",VLOOKUP($C9,invullijst!$A$11:$M$196,10,FALSE)) -> x | L9: 231 | M9: =IF(VLOOKUP($C9,invullijst!$A$11:$M$196,11,FALSE)="","",VLOOKUP($C9,invullijst!$A$11:$M$196,11,FALSE)) -> 
B10: 6 | C10: 203 | D10: =IF(VLOOKUP($C10,invullijst!$A$11:$M$196,4,FALSE)="","",VLOOKUP($C10,invullijst!$A$11:$M$196,4,FALSE)) -> vr | E10: =IF(VLOOKUP($C10,invullijst!$A$11:$M$196,2,FALSE)="","",VLOOKUP($C10,invullijst!$A$11:$M$196,2,FALSE)) -> Frank van den Houdt | F10: =IF(VLOOKUP($C10,invullijst!$A$11:$M$196,3,FALSE)="","",VLOOKUP($C10,invullijst!$A$11:$M$196,3,FALSE)) -> Besoijen | G10: =IF(VLOOKUP(C10,invullijst!$A$11:$M$196,6,FALSE)="","",VLOOKUP(C10,invullijst!$A$11:$M$196,6,FALSE)) -> 87 | H10: =IF(VLOOKUP($C10,invullijst!$A$11:$M$196,7,FALSE)="","",VLOOKUP($C10,invullijst!$A$11:$M$196,7,FALSE)) -> 84 | I10: =IF(VLOOKUP($C10,invullijst!$A$11:$M$196,8,FALSE)="","",VLOOKUP($C10,invullijst!$A$11:$M$196,8,FALSE)) -> 73 | J10: =IF(VLOOKUP($C10,invullijst!$A$11:$M$196,9,FALSE)="","",VLOOKUP($C10,invullijst!$A$11:$M$196,9,FALSE)) -> x | K10: =IF(VLOOKUP($C10,invullijst!$A$11:$M$196,10,FALSE)="","",VLOOKUP($C10,invullijst!$A$11:$M$196,10,FALSE)) ->  | L10: 244 | M10: =IF(VLOOKUP($C10,invullijst!$A$11:$M$196,11,FALSE)="","",VLOOKUP($C10,invullijst!$A$11:$M$196,11,FALSE)) -> 39
B11: 7 | C11: 204 | D11: =IF(VLOOKUP($C11,invullijst!$A$11:$M$196,4,FALSE)="","",VLOOKUP($C11,invullijst!$A$11:$M$196,4,FALSE)) -> vr | E11: =IF(VLOOKUP($C11,invullijst!$A$11:$M$196,2,FALSE)="","",VLOOKUP($C11,invullijst!$A$11:$M$196,2,FALSE)) -> Harry de Louw | F11: =IF(VLOOKUP($C11,invullijst!$A$11:$M$196,3,FALSE)="","",VLOOKUP($C11,invullijst!$A$11:$M$196,3,FALSE)) -> Besoijen | G11: =IF(VLOOKUP(C11,invullijst!$A$11:$M$196,6,FALSE)="","",VLOOKUP(C11,invullijst!$A$11:$M$196,6,FALSE)) -> 84 | H11: =IF(VLOOKUP($C11,invullijst!$A$11:$M$196,7,FALSE)="","",VLOOKUP($C11,invullijst!$A$11:$M$196,7,FALSE)) -> 80 | I11: =IF(VLOOKUP($C11,invullijst!$A$11:$M$196,8,FALSE)="","",VLOOKUP($C11,invullijst!$A$11:$M$196,8,FALSE)) -> 83 | J11: =IF(VLOOKUP($C11,invullijst!$A$11:$M$196,9,FALSE)="","",VLOOKUP($C11,invullijst!$A$11:$M$196,9,FALSE)) -> x | K11: =IF(VLOOKUP($C11,invullijst!$A$11:$M$196,10,FALSE)="","",VLOOKUP($C11,invullijst!$A$11:$M$196,10,FALSE)) ->  | L11: 247 | M11: =IF(VLOOKUP($C11,invullijst!$A$11:$M$196,11,FALSE)="","",VLOOKUP($C11,invullijst!$A$11:$M$196,11,FALSE)) -> 33
B12: 8 | C12: 205 | D12: =IF(VLOOKUP($C12,invullijst!$A$11:$M$196,4,FALSE)="","",VLOOKUP($C12,invullijst!$A$11:$M$196,4,FALSE)) -> vr | E12: =IF(VLOOKUP($C12,invullijst!$A$11:$M$196,2,FALSE)="","",VLOOKUP($C12,invullijst!$A$11:$M$196,2,FALSE)) -> Jos v/d Snepscheut | F12: =IF(VLOOKUP($C12,invullijst!$A$11:$M$196,3,FALSE)="","",VLOOKUP($C12,invullijst!$A$11:$M$196,3,FALSE)) -> Besoijen | G12: =IF(VLOOKUP(C12,invullijst!$A$11:$M$196,6,FALSE)="","",VLOOKUP(C12,invullijst!$A$11:$M$196,6,FALSE)) -> 70 | H12: =IF(VLOOKUP($C12,invullijst!$A$11:$M$196,7,FALSE)="","",VLOOKUP($C12,invullijst!$A$11:$M$196,7,FALSE)) -> x | I12: =IF(VLOOKUP($C12,invullijst!$A$11:$M$196,8,FALSE)="","",VLOOKUP($C12,invullijst!$A$11:$M$196,8,FALSE)) -> 76 | J12: =IF(VLOOKUP($C12,invullijst!$A$11:$M$196,9,FALSE)="","",VLOOKUP($C12,invullijst!$A$11:$M$196,9,FALSE)) -> x | K12: =IF(VLOOKUP($C12,invullijst!$A$11:$M$196,10,FALSE)="","",VLOOKUP($C12,invullijst!$A$11:$M$196,10,FALSE)) ->  | L12: 146 | M12: =IF(VLOOKUP($C12,invullijst!$A$11:$M$196,11,FALSE)="","",VLOOKUP($C12,invullijst!$A$11:$M$196,11,FALSE)) -> 39
B13: 9 | C13: 206 | D13: =IF(VLOOKUP($C13,invullijst!$A$11:$M$196,4,FALSE)="","",VLOOKUP($C13,invullijst!$A$11:$M$196,4,FALSE)) -> vr | E13: =IF(VLOOKUP($C13,invullijst!$A$11:$M$196,2,FALSE)="","",VLOOKUP($C13,invullijst!$A$11:$M$196,2,FALSE)) -> Kees van Hulten | F13: =IF(VLOOKUP($C13,invullijst!$A$11:$M$196,3,FALSE)="","",VLOOKUP($C13,invullijst!$A$11:$M$196,3,FALSE)) -> Besoijen | G13: =IF(VLOOKUP(C13,invullijst!$A$11:$M$196,6,FALSE)="","",VLOOKUP(C13,invullijst!$A$11:$M$196,6,FALSE)) -> 77 | H13: =IF(VLOOKUP($C13,invullijst!$A$11:$M$196,7,FALSE)="","",VLOOKUP($C13,invullijst!$A$11:$M$196,7,FALSE)) -> x | I13: =IF(VLOOKUP($C13,invullijst!$A$11:$M$196,8,FALSE)="","",VLOOKUP($C13,invullijst!$A$11:$M$196,8,FALSE)) -> x | J13: =IF(VLOOKUP($C13,invullijst!$A$11:$M$196,9,FALSE)="","",VLOOKUP($C13,invullijst!$A$11:$M$196,9,FALSE)) -> x | K13: =IF(VLOOKUP($C13,invullijst!$A$11:$M$196,10,FALSE)="","",VLOOKUP($C13,invullijst!$A$11:$M$196,10,FALSE)) ->  | L13: 77 | M13: =IF(VLOOKUP($C13,invullijst!$A$11:$M$196,11,FALSE)="","",VLOOKUP($C13,invullijst!$A$11:$M$196,11,FALSE)) -> 
B14: 10 | C14: 208 | D14: =IF(VLOOKUP($C14,invullijst!$A$11:$M$196,4,FALSE)="","",VLOOKUP($C14,invullijst!$A$11:$M$196,4,FALSE)) -> vr | E14: =IF(VLOOKUP($C14,invullijst!$A$11:$M$196,2,FALSE)="","",VLOOKUP($C14,invullijst!$A$11:$M$196,2,FALSE)) -> Erin van Hulten | F14: =IF(VLOOKUP($C14,invullijst!$A$11:$M$196,3,FALSE)="","",VLOOKUP($C14,invullijst!$A$11:$M$196,3,FALSE)) -> Besoijen | G14: =IF(VLOOKUP(C14,invullijst!$A$11:$M$196,6,FALSE)="","",VLOOKUP(C14,invullijst!$A$11:$M$196,6,FALSE)) -> 83 | H14: =IF(VLOOKUP($C14,invullijst!$A$11:$M$196,7,FALSE)="","",VLOOKUP($C14,invullijst!$A$11:$M$196,7,FALSE)) -> 82 | I14: =IF(VLOOKUP($C14,invullijst!$A$11:$M$196,8,FALSE)="","",VLOOKUP($C14,invullijst!$A$11:$M$196,8,FALSE)) -> x | J14: =IF(VLOOKUP($C14,invullijst!$A$11:$M$196,9,FALSE)="","",VLOOKUP($C14,invullijst!$A$11:$M$196,9,FALSE)) -> x | K14: =IF(VLOOKUP($C14,invullijst!$A$11:$M$196,10,FALSE)="","",VLOOKUP($C14,invullijst!$A$11:$M$196,10,FALSE)) ->  | L14: 165 | M14: =IF(VLOOKUP($C14,invullijst!$A$11:$M$196,11,FALSE)="","",VLOOKUP($C14,invullijst!$A$11:$M$196,11,FALSE)) -> 
B15: 11 | C15: 209 | D15: =IF(VLOOKUP($C15,invullijst!$A$11:$M$196,4,FALSE)="","",VLOOKUP($C15,invullijst!$A$11:$M$196,4,FALSE)) -> vr | E15: =IF(VLOOKUP($C15,invullijst!$A$11:$M$196,2,FALSE)="","",VLOOKUP($C15,invullijst!$A$11:$M$196,2,FALSE)) -> René van Kuijk | F15: =IF(VLOOKUP($C15,invullijst!$A$11:$M$196,3,FALSE)="","",VLOOKUP($C15,invullijst!$A$11:$M$196,3,FALSE)) -> Besoijen | G15: =IF(VLOOKUP(C15,invullijst!$A$11:$M$196,6,FALSE)="","",VLOOKUP(C15,invullijst!$A$11:$M$196,6,FALSE)) -> 76 | H15: =IF(VLOOKUP($C15,invullijst!$A$11:$M$196,7,FALSE)="","",VLOOKUP($C15,invullijst!$A$11:$M$196,7,FALSE)) -> 83 | I15: =IF(VLOOKUP($C15,invullijst!$A$11:$M$196,8,FALSE)="","",VLOOKUP($C15,invullijst!$A$11:$M$196,8,FALSE)) -> 84 | J15: =IF(VLOOKUP($C15,invullijst!$A$11:$M$196,9,FALSE)="","",VLOOKUP($C15,invullijst!$A$11:$M$196,9,FALSE)) -> x | K15: =IF(VLOOKUP($C15,invullijst!$A$11:$M$196,10,FALSE)="","",VLOOKUP($C15,invullijst!$A$11:$M$196,10,FALSE)) ->  | L15: 243 | M15: =IF(VLOOKUP($C15,invullijst!$A$11:$M$196,11,FALSE)="","",VLOOKUP($C15,invullijst!$A$11:$M$196,11,FALSE)) -> 33
B16: 12 | C16: 210 | D16: =IF(VLOOKUP($C16,invullijst!$A$11:$M$196,4,FALSE)="","",VLOOKUP($C16,invullijst!$A$11:$M$196,4,FALSE)) -> vr | E16: =IF(VLOOKUP($C16,invullijst!$A$11:$M$196,2,FALSE)="","",VLOOKUP($C16,invullijst!$A$11:$M$196,2,FALSE)) -> Sander Oome | F16: =IF(VLOOKUP($C16,invullijst!$A$11:$M$196,3,FALSE)="","",VLOOKUP($C16,invullijst!$A$11:$M$196,3,FALSE)) -> Besoijen | G16: =IF(VLOOKUP(C16,invullijst!$A$11:$M$196,6,FALSE)="","",VLOOKUP(C16,invullijst!$A$11:$M$196,6,FALSE)) -> 83 | H16: =IF(VLOOKUP($C16,invullijst!$A$11:$M$196,7,FALSE)="","",VLOOKUP($C16,invullijst!$A$11:$M$196,7,FALSE)) -> 91 | I16: =IF(VLOOKUP($C16,invullijst!$A$11:$M$196,8,FALSE)="","",VLOOKUP($C16,invullijst!$A$11:$M$196,8,FALSE)) -> 93 | J16: =IF(VLOOKUP($C16,invullijst!$A$11:$M$196,9,FALSE)="","",VLOOKUP($C16,invullijst!$A$11:$M$196,9,FALSE)) -> x | K16: =IF(VLOOKUP($C16,invullijst!$A$11:$M$196,10,FALSE)="","",VLOOKUP($C16,invullijst!$A$11:$M$196,10,FALSE)) ->  | L16: 267 | M16: =IF(VLOOKUP($C16,invullijst!$A$11:$M$196,11,FALSE)="","",VLOOKUP($C16,invullijst!$A$11:$M$196,11,FALSE)) -> 40
B17: 13 | C17: 213 | D17: =IF(VLOOKUP($C17,invullijst!$A$11:$M$196,4,FALSE)="","",VLOOKUP($C17,invullijst!$A$11:$M$196,4,FALSE)) -> vr | E17: =IF(VLOOKUP($C17,invullijst!$A$11:$M$196,2,FALSE)="","",VLOOKUP($C17,invullijst!$A$11:$M$196,2,FALSE)) -> Roland van Delft | F17: =IF(VLOOKUP($C17,invullijst!$A$11:$M$196,3,FALSE)="","",VLOOKUP($C17,invullijst!$A$11:$M$196,3,FALSE)) -> Besoijen | G17: =IF(VLOOKUP(C17,invullijst!$A$11:$M$196,6,FALSE)="","",VLOOKUP(C17,invullijst!$A$11:$M$196,6,FALSE)) -> 52 | H17: =IF(VLOOKUP($C17,invullijst!$A$11:$M$196,7,FALSE)="","",VLOOKUP($C17,invullijst!$A$11:$M$196,7,FALSE)) -> 75 | I17: =IF(VLOOKUP($C17,invullijst!$A$11:$M$196,8,FALSE)="","",VLOOKUP($C17,invullijst!$A$11:$M$196,8,FALSE)) -> 62 | J17: =IF(VLOOKUP($C17,invullijst!$A$11:$M$196,9,FALSE)="","",VLOOKUP($C17,invullijst!$A$11:$M$196,9,FALSE)) -> x | K17: =IF(VLOOKUP($C17,invullijst!$A$11:$M$196,10,FALSE)="","",VLOOKUP($C17,invullijst!$A$11:$M$196,10,FALSE)) ->  | L17: 189 | M17: =IF(VLOOKUP($C17,invullijst!$A$11:$M$196,11,FALSE)="","",VLOOKUP($C17,invullijst!$A$11:$M$196,11,FALSE)) -> 36
B18: 14 | C18: 216 | D18: =IF(VLOOKUP($C18,invullijst!$A$11:$M$196,4,FALSE)="","",VLOOKUP($C18,invullijst!$A$11:$M$196,4,FALSE)) -> vr | E18: =IF(VLOOKUP($C18,invullijst!$A$11:$M$196,2,FALSE)="","",VLOOKUP($C18,invullijst!$A$11:$M$196,2,FALSE)) -> Pieter Laghuwitz | F18: =IF(VLOOKUP($C18,invullijst!$A$11:$M$196,3,FALSE)="","",VLOOKUP($C18,invullijst!$A$11:$M$196,3,FALSE)) -> Besoijen | G18: =IF(VLOOKUP(C18,invullijst!$A$11:$M$196,6,FALSE)="","",VLOOKUP(C18,invullijst!$A$11:$M$196,6,FALSE)) -> 92 | H18: =IF(VLOOKUP($C18,invullijst!$A$11:$M$196,7,FALSE)="","",VLOOKUP($C18,invullijst!$A$11:$M$196,7,FALSE)) -> 92 | I18: =IF(VLOOKUP($C18,invullijst!$A$11:$M$196,8,FALSE)="","",VLOOKUP($C18,invullijst!$A$11:$M$196,8,FALSE)) -> 86 | J18: =IF(VLOOKUP($C18,invullijst!$A$11:$M$196,9,FALSE)="","",VLOOKUP($C18,invullijst!$A$11:$M$196,9,FALSE)) -> x | K18: =IF(VLOOKUP($C18,invullijst!$A$11:$M$196,10,FALSE)="","",VLOOKUP($C18,invullijst!$A$11:$M$196,10,FALSE)) ->  | L18: 270 | M18: =IF(VLOOKUP($C18,invullijst!$A$11:$M$196,11,FALSE)="","",VLOOKUP($C18,invullijst!$A$11:$M$196,11,FALSE)) -> 44
B19: 15 | C19: 217 | D19: =IF(VLOOKUP($C19,invullijst!$A$11:$M$196,4,FALSE)="","",VLOOKUP($C19,invullijst!$A$11:$M$196,4,FALSE)) -> vr | E19: =IF(VLOOKUP($C19,invullijst!$A$11:$M$196,2,FALSE)="","",VLOOKUP($C19,invullijst!$A$11:$M$196,2,FALSE)) -> Hans Laghuwitz | F19: =IF(VLOOKUP($C19,invullijst!$A$11:$M$196,3,FALSE)="","",VLOOKUP($C19,invullijst!$A$11:$M$196,3,FALSE)) -> Besoijen | G19: =IF(VLOOKUP(C19,invullijst!$A$11:$M$196,6,FALSE)="","",VLOOKUP(C19,invullijst!$A$11:$M$196,6,FALSE)) -> 76 | H19: =IF(VLOOKUP($C19,invullijst!$A$11:$M$196,7,FALSE)="","",VLOOKUP($C19,invullijst!$A$11:$M$196,7,FALSE)) -> 80 | I19: =IF(VLOOKUP($C19,invullijst!$A$11:$M$196,8,FALSE)="","",VLOOKUP($C19,invullijst!$A$11:$M$196,8,FALSE)) -> 83 | J19: =IF(VLOOKUP($C19,invullijst!$A$11:$M$196,9,FALSE)="","",VLOOKUP($C19,invullijst!$A$11:$M$196,9,FALSE)) -> x | K19: =IF(VLOOKUP($C19,invullijst!$A$11:$M$196,10,FALSE)="","",VLOOKUP($C19,invullijst!$A$11:$M$196,10,FALSE)) ->  | L19: 239 | M19: =IF(VLOOKUP($C19,invullijst!$A$11:$M$196,11,FALSE)="","",VLOOKUP($C19,invullijst!$A$11:$M$196,11,FALSE)) -> 37
B20: 16 | C20: 222 | D20: =IF(VLOOKUP($C20,invullijst!$A$11:$M$196,4,FALSE)="","",VLOOKUP($C20,invullijst!$A$11:$M$196,4,FALSE)) -> vr | E20: =IF(VLOOKUP($C20,invullijst!$A$11:$M$196,2,FALSE)="","",VLOOKUP($C20,invullijst!$A$11:$M$196,2,FALSE)) -> Nick de Vaan | F20: =IF(VLOOKUP($C20,invullijst!$A$11:$M$196,3,FALSE)="","",VLOOKUP($C20,invullijst!$A$11:$M$196,3,FALSE)) -> Besoijen | G20: =IF(VLOOKUP(C20,invullijst!$A$11:$M$196,6,FALSE)="","",VLOOKUP(C20,invullijst!$A$11:$M$196,6,FALSE)) -> 80 | H20: =IF(VLOOKUP($C20,invullijst!$A$11:$M$196,7,FALSE)="","",VLOOKUP($C20,invullijst!$A$11:$M$196,7,FALSE)) -> x | J20: =IF(VLOOKUP($C20,invullijst!$A$11:$M$196,9,FALSE)="","",VLOOKUP($C20,invullijst!$A$11:$M$196,9,FALSE)) -> x | K20: =IF(VLOOKUP($C20,invullijst!$A$11:$M$196,10,FALSE)="","",VLOOKUP($C20,invullijst!$A$11:$M$196,10,FALSE)) ->  | L20: 80 | M20: =IF(VLOOKUP($C20,invullijst!$A$11:$M$196,11,FALSE)="","",VLOOKUP($C20,invullijst!$A$11:$M$196,11,FALSE)) -> 29
B21: 17 | C21: 223 | D21: =IF(VLOOKUP($C21,invullijst!$A$11:$M$196,4,FALSE)="","",VLOOKUP($C21,invullijst!$A$11:$M$196,4,FALSE)) -> vr | E21: =IF(VLOOKUP($C21,invullijst!$A$11:$M$196,2,FALSE)="","",VLOOKUP($C21,invullijst!$A$11:$M$196,2,FALSE)) -> Jänis Jakobsons | F21: =IF(VLOOKUP($C21,invullijst!$A$11:$M$196,3,FALSE)="","",VLOOKUP($C21,invullijst!$A$11:$M$196,3,FALSE)) -> Besoijen | G21: =IF(VLOOKUP(C21,invullijst!$A$11:$M$196,6,FALSE)="","",VLOOKUP(C21,invullijst!$A$11:$M$196,6,FALSE)) -> 80 | H21: =IF(VLOOKUP($C21,invullijst!$A$11:$M$196,7,FALSE)="","",VLOOKUP($C21,invullijst!$A$11:$M$196,7,FALSE)) -> 74 | I21: =IF(VLOOKUP($C21,invullijst!$A$11:$M$196,8,FALSE)="","",VLOOKUP($C21,invullijst!$A$11:$M$196,8,FALSE)) -> 70 | J21: =IF(VLOOKUP($C21,invullijst!$A$11:$M$196,9,FALSE)="","",VLOOKUP($C21,invullijst!$A$11:$M$196,9,FALSE)) -> x | K21: =IF(VLOOKUP($C21,invullijst!$A$11:$M$196,10,FALSE)="","",VLOOKUP($C21,invullijst!$A$11:$M$196,10,FALSE)) ->  | L21: 224 | M21: =IF(VLOOKUP($C21,invullijst!$A$11:$M$196,11,FALSE)="","",VLOOKUP($C21,invullijst!$A$11:$M$196,11,FALSE)) -> 12
A22: B | B22: 1 | C22: 302 | D22: =IF(VLOOKUP($C22,invullijst!$A$11:$M$196,4,FALSE)="","",VLOOKUP($C22,invullijst!$A$11:$M$196,4,FALSE)) -> vr | E22: =IF(VLOOKUP($C22,invullijst!$A$11:$M$196,2,FALSE)="","",VLOOKUP($C22,invullijst!$A$11:$M$196,2,FALSE)) -> Freek de Jong | F22: =IF(VLOOKUP($C22,invullijst!$A$11:$M$196,3,FALSE)="","",VLOOKUP($C22,invullijst!$A$11:$M$196,3,FALSE)) -> Elshout | G22: =IF(VLOOKUP(C22,invullijst!$A$11:$M$196,6,FALSE)="","",VLOOKUP(C22,invullijst!$A$11:$M$196,6,FALSE)) -> x | H22: =IF(VLOOKUP($C22,invullijst!$A$11:$M$196,7,FALSE)="","",VLOOKUP($C22,invullijst!$A$11:$M$196,7,FALSE)) -> 90 | I22: =IF(VLOOKUP($C22,invullijst!$A$11:$M$196,8,FALSE)="","",VLOOKUP($C22,invullijst!$A$11:$M$196,8,FALSE)) -> 88 | J22: =IF(VLOOKUP($C22,invullijst!$A$11:$M$196,9,FALSE)="","",VLOOKUP($C22,invullijst!$A$11:$M$196,9,FALSE)) ->  | K22: =IF(VLOOKUP($C22,invullijst!$A$11:$M$196,10,FALSE)="","",VLOOKUP($C22,invullijst!$A$11:$M$196,10,FALSE)) ->  | L22: 178 | M22: =IF(VLOOKUP($C22,invullijst!$A$11:$M$196,11,FALSE)="","",VLOOKUP($C22,invullijst!$A$11:$M$196,11,FALSE)) -> 
B23: 2 | C23: 304 | D23: =IF(VLOOKUP($C23,invullijst!$A$11:$M$196,4,FALSE)="","",VLOOKUP($C23,invullijst!$A$11:$M$196,4,FALSE)) -> vr | E23: =IF(VLOOKUP($C23,invullijst!$A$11:$M$196,2,FALSE)="","",VLOOKUP($C23,invullijst!$A$11:$M$196,2,FALSE)) -> Henk Bruurmijn | F23: =IF(VLOOKUP($C23,invullijst!$A$11:$M$196,3,FALSE)="","",VLOOKUP($C23,invullijst!$A$11:$M$196,3,FALSE)) -> Elshout | G23: =IF(VLOOKUP(C23,invullijst!$A$11:$M$196,6,FALSE)="","",VLOOKUP(C23,invullijst!$A$11:$M$196,6,FALSE)) -> x | H23: =IF(VLOOKUP($C23,invullijst!$A$11:$M$196,7,FALSE)="","",VLOOKUP($C23,invullijst!$A$11:$M$196,7,FALSE)) -> 76 | I23: =IF(VLOOKUP($C23,invullijst!$A$11:$M$196,8,FALSE)="","",VLOOKUP($C23,invullijst!$A$11:$M$196,8,FALSE)) -> 74 | J23: =IF(VLOOKUP($C23,invullijst!$A$11:$M$196,9,FALSE)="","",VLOOKUP($C23,invullijst!$A$11:$M$196,9,FALSE)) ->  | K23: =IF(VLOOKUP($C23,invullijst!$A$11:$M$196,10,FALSE)="","",VLOOKUP($C23,invullijst!$A$11:$M$196,10,FALSE)) ->  | L23: 150 | M23: =IF(VLOOKUP($C23,invullijst!$A$11:$M$196,11,FALSE)="","",VLOOKUP($C23,invullijst!$A$11:$M$196,11,FALSE)) -> 
B24: 3 | C24: 305 | D24: =IF(VLOOKUP($C24,invullijst!$A$11:$M$196,4,FALSE)="","",VLOOKUP($C24,invullijst!$A$11:$M$196,4,FALSE)) -> vr | E24: =IF(VLOOKUP($C24,invullijst!$A$11:$M$196,2,FALSE)="","",VLOOKUP($C24,invullijst!$A$11:$M$196,2,FALSE)) -> Johan Klerx | F24: =IF(VLOOKUP($C24,invullijst!$A$11:$M$196,3,FALSE)="","",VLOOKUP($C24,invullijst!$A$11:$M$196,3,FALSE)) -> Elshout | G24: =IF(VLOOKUP(C24,invullijst!$A$11:$M$196,6,FALSE)="","",VLOOKUP(C24,invullijst!$A$11:$M$196,6,FALSE)) -> x | H24: =IF(VLOOKUP($C24,invullijst!$A$11:$M$196,7,FALSE)="","",VLOOKUP($C24,invullijst!$A$11:$M$196,7,FALSE)) -> 88 | I24: =IF(VLOOKUP($C24,invullijst!$A$11:$M$196,8,FALSE)="","",VLOOKUP($C24,invullijst!$A$11:$M$196,8,FALSE)) -> 82 | J24: =IF(VLOOKUP($C24,invullijst!$A$11:$M$196,9,FALSE)="","",VLOOKUP($C24,invullijst!$A$11:$M$196,9,FALSE)) ->  | K24: =IF(VLOOKUP($C24,invullijst!$A$11:$M$196,10,FALSE)="","",VLOOKUP($C24,invullijst!$A$11:$M$196,10,FALSE)) ->  | L24: 170 | M24: =IF(VLOOKUP($C24,invullijst!$A$11:$M$196,11,FALSE)="","",VLOOKUP($C24,invullijst!$A$11:$M$196,11,FALSE)) -> 
B25: 4 | C25: 306 | D25: =IF(VLOOKUP($C25,invullijst!$A$11:$M$196,4,FALSE)="","",VLOOKUP($C25,invullijst!$A$11:$M$196,4,FALSE)) -> vr | E25: =IF(VLOOKUP($C25,invullijst!$A$11:$M$196,2,FALSE)="","",VLOOKUP($C25,invullijst!$A$11:$M$196,2,FALSE)) -> Ron Groot | F25: =IF(VLOOKUP($C25,invullijst!$A$11:$M$196,3,FALSE)="","",VLOOKUP($C25,invullijst!$A$11:$M$196,3,FALSE)) -> Elshout | G25: =IF(VLOOKUP(C25,invullijst!$A$11:$M$196,6,FALSE)="","",VLOOKUP(C25,invullijst!$A$11:$M$196,6,FALSE)) -> x | H25: =IF(VLOOKUP($C25,invullijst!$A$11:$M$196,7,FALSE)="","",VLOOKUP($C25,invullijst!$A$11:$M$196,7,FALSE)) -> 92 | I25: =IF(VLOOKUP($C25,invullijst!$A$11:$M$196,8,FALSE)="","",VLOOKUP($C25,invullijst!$A$11:$M$196,8,FALSE)) -> 87 | J25: =IF(VLOOKUP($C25,invullijst!$A$11:$M$196,9,FALSE)="","",VLOOKUP($C25,invullijst!$A$11:$M$196,9,FALSE)) ->  | K25: =IF(VLOOKUP($C25,invullijst!$A$11:$M$196,10,FALSE)="","",VLOOKUP($C25,invullijst!$A$11:$M$196,10,FALSE)) ->  | L25: 179 | M25: =IF(VLOOKUP($C25,invullijst!$A$11:$M$196,11,FALSE)="","",VLOOKUP($C25,invullijst!$A$11:$M$196,11,FALSE)) -> 
B26: 5 | C26: 402 | D26: =IF(VLOOKUP($C26,invullijst!$A$11:$M$196,4,FALSE)="","",VLOOKUP($C26,invullijst!$A$11:$M$196,4,FALSE)) -> vr | E26: =IF(VLOOKUP($C26,invullijst!$A$11:$M$196,2,FALSE)="","",VLOOKUP($C26,invullijst!$A$11:$M$196,2,FALSE)) -> Daniëlle v/d Lee | F26: =IF(VLOOKUP($C26,invullijst!$A$11:$M$196,3,FALSE)="","",VLOOKUP($C26,invullijst!$A$11:$M$196,3,FALSE)) -> Haarsteeg | G26: =IF(VLOOKUP(C26,invullijst!$A$11:$M$196,6,FALSE)="","",VLOOKUP(C26,invullijst!$A$11:$M$196,6,FALSE)) -> 81 | H26: =IF(VLOOKUP($C26,invullijst!$A$11:$M$196,7,FALSE)="","",VLOOKUP($C26,invullijst!$A$11:$M$196,7,FALSE)) -> x | J26: =IF(VLOOKUP($C26,invullijst!$A$11:$M$196,9,FALSE)="","",VLOOKUP($C26,invullijst!$A$11:$M$196,9,FALSE)) ->  | K26: =IF(VLOOKUP($C26,invullijst!$A$11:$M$196,10,FALSE)="","",VLOOKUP($C26,invullijst!$A$11:$M$196,10,FALSE)) ->  | L26: 81 | M26: =IF(VLOOKUP($C26,invullijst!$A$11:$M$196,11,FALSE)="","",VLOOKUP($C26,invullijst!$A$11:$M$196,11,FALSE)) -> 
B27: 6 | C27: 406 | D27: =IF(VLOOKUP($C27,invullijst!$A$11:$M$196,4,FALSE)="","",VLOOKUP($C27,invullijst!$A$11:$M$196,4,FALSE)) -> vr | E27: =IF(VLOOKUP($C27,invullijst!$A$11:$M$196,2,FALSE)="","",VLOOKUP($C27,invullijst!$A$11:$M$196,2,FALSE)) -> Jeroen van Oss | F27: =IF(VLOOKUP($C27,invullijst!$A$11:$M$196,3,FALSE)="","",VLOOKUP($C27,invullijst!$A$11:$M$196,3,FALSE)) -> Haarsteeg | G27: =IF(VLOOKUP(C27,invullijst!$A$11:$M$196,6,FALSE)="","",VLOOKUP(C27,invullijst!$A$11:$M$196,6,FALSE)) -> 77 | H27: =IF(VLOOKUP($C27,invullijst!$A$11:$M$196,7,FALSE)="","",VLOOKUP($C27,invullijst!$A$11:$M$196,7,FALSE)) -> x | I27: =IF(VLOOKUP($C27,invullijst!$A$11:$M$196,8,FALSE)="","",VLOOKUP($C27,invullijst!$A$11:$M$196,8,FALSE)) -> 84 | J27: =IF(VLOOKUP($C27,invullijst!$A$11:$M$196,9,FALSE)="","",VLOOKUP($C27,invullijst!$A$11:$M$196,9,FALSE)) ->  | K27: =IF(VLOOKUP($C27,invullijst!$A$11:$M$196,10,FALSE)="","",VLOOKUP($C27,invullijst!$A$11:$M$196,10,FALSE)) ->  | L27: 161 | M27: =IF(VLOOKUP($C27,invullijst!$A$11:$M$196,11,FALSE)="","",VLOOKUP($C27,invullijst!$A$11:$M$196,11,FALSE)) -> 
B28: 7 | C28: 408 | D28: =IF(VLOOKUP($C28,invullijst!$A$11:$M$196,4,FALSE)="","",VLOOKUP($C28,invullijst!$A$11:$M$196,4,FALSE)) -> vr | E28: =IF(VLOOKUP($C28,invullijst!$A$11:$M$196,2,FALSE)="","",VLOOKUP($C28,invullijst!$A$11:$M$196,2,FALSE)) -> Rudy van Falier | F28: =IF(VLOOKUP($C28,invullijst!$A$11:$M$196,3,FALSE)="","",VLOOKUP($C28,invullijst!$A$11:$M$196,3,FALSE)) -> Haarsteeg | G28: =IF(VLOOKUP(C28,invullijst!$A$11:$M$196,6,FALSE)="","",VLOOKUP(C28,invullijst!$A$11:$M$196,6,FALSE)) -> 80 | H28: =IF(VLOOKUP($C28,invullijst!$A$11:$M$196,7,FALSE)="","",VLOOKUP($C28,invullijst!$A$11:$M$196,7,FALSE)) -> x | J28: =IF(VLOOKUP($C28,invullijst!$A$11:$M$196,9,FALSE)="","",VLOOKUP($C28,invullijst!$A$11:$M$196,9,FALSE)) ->  | K28: =IF(VLOOKUP($C28,invullijst!$A$11:$M$196,10,FALSE)="","",VLOOKUP($C28,invullijst!$A$11:$M$196,10,FALSE)) ->  | L28: 80 | M28: =IF(VLOOKUP($C28,invullijst!$A$11:$M$196,11,FALSE)="","",VLOOKUP($C28,invullijst!$A$11:$M$196,11,FALSE)) -> 
B29: 8 | C29: 409 | D29: =IF(VLOOKUP($C29,invullijst!$A$11:$M$196,4,FALSE)="","",VLOOKUP($C29,invullijst!$A$11:$M$196,4,FALSE)) -> vr | E29: =IF(VLOOKUP($C29,invullijst!$A$11:$M$196,2,FALSE)="","",VLOOKUP($C29,invullijst!$A$11:$M$196,2,FALSE)) -> Thijs Koks | F29: =IF(VLOOKUP($C29,invullijst!$A$11:$M$196,3,FALSE)="","",VLOOKUP($C29,invullijst!$A$11:$M$196,3,FALSE)) -> Haarsteeg | G29: =IF(VLOOKUP(C29,invullijst!$A$11:$M$196,6,FALSE)="","",VLOOKUP(C29,invullijst!$A$11:$M$196,6,FALSE)) -> 84 | H29: =IF(VLOOKUP($C29,invullijst!$A$11:$M$196,7,FALSE)="","",VLOOKUP($C29,invullijst!$A$11:$M$196,7,FALSE)) -> x | I29: =IF(VLOOKUP($C29,invullijst!$A$11:$M$196,8,FALSE)="","",VLOOKUP($C29,invullijst!$A$11:$M$196,8,FALSE)) -> 86 | J29: =IF(VLOOKUP($C29,invullijst!$A$11:$M$196,9,FALSE)="","",VLOOKUP($C29,invullijst!$A$11:$M$196,9,FALSE)) ->  | K29: =IF(VLOOKUP($C29,invullijst!$A$11:$M$196,10,FALSE)="","",VLOOKUP($C29,invullijst!$A$11:$M$196,10,FALSE)) ->  | L29: 170 | M29: =IF(VLOOKUP($C29,invullijst!$A$11:$M$196,11,FALSE)="","",VLOOKUP($C29,invullijst!$A$11:$M$196,11,FALSE)) -> 
B30: 9 | C30: 410 | D30: =IF(VLOOKUP($C30,invullijst!$A$11:$M$196,4,FALSE)="","",VLOOKUP($C30,invullijst!$A$11:$M$196,4,FALSE)) -> vr | E30: =IF(VLOOKUP($C30,invullijst!$A$11:$M$196,2,FALSE)="","",VLOOKUP($C30,invullijst!$A$11:$M$196,2,FALSE)) -> Tonnie Koks | F30: =IF(VLOOKUP($C30,invullijst!$A$11:$M$196,3,FALSE)="","",VLOOKUP($C30,invullijst!$A$11:$M$196,3,FALSE)) -> Haarsteeg | G30: =IF(VLOOKUP(C30,invullijst!$A$11:$M$196,6,FALSE)="","",VLOOKUP(C30,invullijst!$A$11:$M$196,6,FALSE)) -> 79 | H30: =IF(VLOOKUP($C30,invullijst!$A$11:$M$196,7,FALSE)="","",VLOOKUP($C30,invullijst!$A$11:$M$196,7,FALSE)) -> x | I30: =IF(VLOOKUP($C30,invullijst!$A$11:$M$196,8,FALSE)="","",VLOOKUP($C30,invullijst!$A$11:$M$196,8,FALSE)) -> 78 | J30: =IF(VLOOKUP($C30,invullijst!$A$11:$M$196,9,FALSE)="","",VLOOKUP($C30,invullijst!$A$11:$M$196,9,FALSE)) ->  | K30: =IF(VLOOKUP($C30,invullijst!$A$11:$M$196,10,FALSE)="","",VLOOKUP($C30,invullijst!$A$11:$M$196,10,FALSE)) ->  | L30: 157 | M30: =IF(VLOOKUP($C30,invullijst!$A$11:$M$196,11,FALSE)="","",VLOOKUP($C30,invullijst!$A$11:$M$196,11,FALSE)) -> 
B31: 10 | C31: 411 | D31: =IF(VLOOKUP($C31,invullijst!$A$11:$M$196,4,FALSE)="","",VLOOKUP($C31,invullijst!$A$11:$M$196,4,FALSE)) -> vr | E31: =IF(VLOOKUP($C31,invullijst!$A$11:$M$196,2,FALSE)="","",VLOOKUP($C31,invullijst!$A$11:$M$196,2,FALSE)) -> Wilma v/d Lee | F31: =IF(VLOOKUP($C31,invullijst!$A$11:$M$196,3,FALSE)="","",VLOOKUP($C31,invullijst!$A$11:$M$196,3,FALSE)) -> Haarsteeg | G31: =IF(VLOOKUP(C31,invullijst!$A$11:$M$196,6,FALSE)="","",VLOOKUP(C31,invullijst!$A$11:$M$196,6,FALSE)) -> 78 | H31: =IF(VLOOKUP($C31,invullijst!$A$11:$M$196,7,FALSE)="","",VLOOKUP($C31,invullijst!$A$11:$M$196,7,FALSE)) -> x | I31: =IF(VLOOKUP($C31,invullijst!$A$11:$M$196,8,FALSE)="","",VLOOKUP($C31,invullijst!$A$11:$M$196,8,FALSE)) -> 72 | J31: =IF(VLOOKUP($C31,invullijst!$A$11:$M$196,9,FALSE)="","",VLOOKUP($C31,invullijst!$A$11:$M$196,9,FALSE)) ->  | K31: =IF(VLOOKUP($C31,invullijst!$A$11:$M$196,10,FALSE)="","",VLOOKUP($C31,invullijst!$A$11:$M$196,10,FALSE)) ->  | L31: 150 | M31: =IF(VLOOKUP($C31,invullijst!$A$11:$M$196,11,FALSE)="","",VLOOKUP($C31,invullijst!$A$11:$M$196,11,FALSE)) -> 
B32: 11 | C32: 501 | D32: =IF(VLOOKUP($C32,invullijst!$A$11:$M$196,4,FALSE)="","",VLOOKUP($C32,invullijst!$A$11:$M$196,4,FALSE)) -> vr | E32: =IF(VLOOKUP($C32,invullijst!$A$11:$M$196,2,FALSE)="","",VLOOKUP($C32,invullijst!$A$11:$M$196,2,FALSE)) -> Annette Vos | F32: =IF(VLOOKUP($C32,invullijst!$A$11:$M$196,3,FALSE)="","",VLOOKUP($C32,invullijst!$A$11:$M$196,3,FALSE)) -> Kaatsheuvel | G32: =IF(VLOOKUP(C32,invullijst!$A$11:$M$196,6,FALSE)="","",VLOOKUP(C32,invullijst!$A$11:$M$196,6,FALSE)) -> 81 | H32: =IF(VLOOKUP($C32,invullijst!$A$11:$M$196,7,FALSE)="","",VLOOKUP($C32,invullijst!$A$11:$M$196,7,FALSE)) -> 77 | I32: =IF(VLOOKUP($C32,invullijst!$A$11:$M$196,8,FALSE)="","",VLOOKUP($C32,invullijst!$A$11:$M$196,8,FALSE)) -> x | J32: =IF(VLOOKUP($C32,invullijst!$A$11:$M$196,9,FALSE)="","",VLOOKUP($C32,invullijst!$A$11:$M$196,9,FALSE)) ->  | K32: =IF(VLOOKUP($C32,invullijst!$A$11:$M$196,10,FALSE)="","",VLOOKUP($C32,invullijst!$A$11:$M$196,10,FALSE)) ->  | L32: 158 | M32: =IF(VLOOKUP($C32,invullijst!$A$11:$M$196,11,FALSE)="","",VLOOKUP($C32,invullijst!$A$11:$M$196,11,FALSE)) -> 
B33: 12 | C33: 504 | D33: =IF(VLOOKUP($C33,invullijst!$A$11:$M$196,4,FALSE)="","",VLOOKUP($C33,invullijst!$A$11:$M$196,4,FALSE)) -> vr | E33: =IF(VLOOKUP($C33,invullijst!$A$11:$M$196,2,FALSE)="","",VLOOKUP($C33,invullijst!$A$11:$M$196,2,FALSE)) -> Koen v/d Ven | F33: =IF(VLOOKUP($C33,invullijst!$A$11:$M$196,3,FALSE)="","",VLOOKUP($C33,invullijst!$A$11:$M$196,3,FALSE)) -> Kaatsheuvel | G33: =IF(VLOOKUP(C33,invullijst!$A$11:$M$196,6,FALSE)="","",VLOOKUP(C33,invullijst!$A$11:$M$196,6,FALSE)) -> 87 | H33: =IF(VLOOKUP($C33,invullijst!$A$11:$M$196,7,FALSE)="","",VLOOKUP($C33,invullijst!$A$11:$M$196,7,FALSE)) -> 83 | I33: =IF(VLOOKUP($C33,invullijst!$A$11:$M$196,8,FALSE)="","",VLOOKUP($C33,invullijst!$A$11:$M$196,8,FALSE)) -> x | J33: =IF(VLOOKUP($C33,invullijst!$A$11:$M$196,9,FALSE)="","",VLOOKUP($C33,invullijst!$A$11:$M$196,9,FALSE)) ->  | K33: =IF(VLOOKUP($C33,invullijst!$A$11:$M$196,10,FALSE)="","",VLOOKUP($C33,invullijst!$A$11:$M$196,10,FALSE)) ->  | L33: 170 | M33: =IF(VLOOKUP($C33,invullijst!$A$11:$M$196,11,FALSE)="","",VLOOKUP($C33,invullijst!$A$11:$M$196,11,FALSE)) -> 
B34: 13 | C34: 506 | D34: =IF(VLOOKUP($C34,invullijst!$A$11:$M$196,4,FALSE)="","",VLOOKUP($C34,invullijst!$A$11:$M$196,4,FALSE)) -> vr | E34: =IF(VLOOKUP($C34,invullijst!$A$11:$M$196,2,FALSE)="","",VLOOKUP($C34,invullijst!$A$11:$M$196,2,FALSE)) -> Maikel Monden | F34: =IF(VLOOKUP($C34,invullijst!$A$11:$M$196,3,FALSE)="","",VLOOKUP($C34,invullijst!$A$11:$M$196,3,FALSE)) -> Kaatsheuvel | G34: =IF(VLOOKUP(C34,invullijst!$A$11:$M$196,6,FALSE)="","",VLOOKUP(C34,invullijst!$A$11:$M$196,6,FALSE)) -> 81 | H34: =IF(VLOOKUP($C34,invullijst!$A$11:$M$196,7,FALSE)="","",VLOOKUP($C34,invullijst!$A$11:$M$196,7,FALSE)) -> x | I34: =IF(VLOOKUP($C34,invullijst!$A$11:$M$196,8,FALSE)="","",VLOOKUP($C34,invullijst!$A$11:$M$196,8,FALSE)) -> x | J34: =IF(VLOOKUP($C34,invullijst!$A$11:$M$196,9,FALSE)="","",VLOOKUP($C34,invullijst!$A$11:$M$196,9,FALSE)) ->  | K34: =IF(VLOOKUP($C34,invullijst!$A$11:$M$196,10,FALSE)="","",VLOOKUP($C34,invullijst!$A$11:$M$196,10,FALSE)) ->  | L34: 81 | M34: =IF(VLOOKUP($C34,invullijst!$A$11:$M$196,11,FALSE)="","",VLOOKUP($C34,invullijst!$A$11:$M$196,11,FALSE)) -> 
B35: 14 | C35: 507 | D35: =IF(VLOOKUP($C35,invullijst!$A$11:$M$196,4,FALSE)="","",VLOOKUP($C35,invullijst!$A$11:$M$196,4,FALSE)) -> vr | E35: =IF(VLOOKUP($C35,invullijst!$A$11:$M$196,2,FALSE)="","",VLOOKUP($C35,invullijst!$A$11:$M$196,2,FALSE)) -> Michael Blaauwbroek | F35: =IF(VLOOKUP($C35,invullijst!$A$11:$M$196,3,FALSE)="","",VLOOKUP($C35,invullijst!$A$11:$M$196,3,FALSE)) -> Kaatsheuvel | G35: =IF(VLOOKUP(C35,invullijst!$A$11:$M$196,6,FALSE)="","",VLOOKUP(C35,invullijst!$A$11:$M$196,6,FALSE)) -> 76 | H35: =IF(VLOOKUP($C35,invullijst!$A$11:$M$196,7,FALSE)="","",VLOOKUP($C35,invullijst!$A$11:$M$196,7,FALSE)) -> 74 | I35: =IF(VLOOKUP($C35,invullijst!$A$11:$M$196,8,FALSE)="","",VLOOKUP($C35,invullijst!$A$11:$M$196,8,FALSE)) -> x | J35: =IF(VLOOKUP($C35,invullijst!$A$11:$M$196,9,FALSE)="","",VLOOKUP($C35,invullijst!$A$11:$M$196,9,FALSE)) ->  | K35: =IF(VLOOKUP($C35,invullijst!$A$11:$M$196,10,FALSE)="","",VLOOKUP($C35,invullijst!$A$11:$M$196,10,FALSE)) ->  | L35: 150 | M35: =IF(VLOOKUP($C35,invullijst!$A$11:$M$196,11,FALSE)="","",VLOOKUP($C35,invullijst!$A$11:$M$196,11,FALSE)) -> 
B36: 15 | C36: 508 | D36: =IF(VLOOKUP($C36,invullijst!$A$11:$M$196,4,FALSE)="","",VLOOKUP($C36,invullijst!$A$11:$M$196,4,FALSE)) -> vr | E36: =IF(VLOOKUP($C36,invullijst!$A$11:$M$196,2,FALSE)="","",VLOOKUP($C36,invullijst!$A$11:$M$196,2,FALSE)) -> Rowan Dobbelsteen | F36: =IF(VLOOKUP($C36,invullijst!$A$11:$M$196,3,FALSE)="","",VLOOKUP($C36,invullijst!$A$11:$M$196,3,FALSE)) -> Kaatsheuvel | G36: =IF(VLOOKUP(C36,invullijst!$A$11:$M$196,6,FALSE)="","",VLOOKUP(C36,invullijst!$A$11:$M$196,6,FALSE)) -> 80 | H36: =IF(VLOOKUP($C36,invullijst!$A$11:$M$196,7,FALSE)="","",VLOOKUP($C36,invullijst!$A$11:$M$196,7,FALSE)) -> 81 | I36: =IF(VLOOKUP($C36,invullijst!$A$11:$M$196,8,FALSE)="","",VLOOKUP($C36,invullijst!$A$11:$M$196,8,FALSE)) -> x | J36: =IF(VLOOKUP($C36,invullijst!$A$11:$M$196,9,FALSE)="","",VLOOKUP($C36,invullijst!$A$11:$M$196,9,FALSE)) ->  | K36: =IF(VLOOKUP($C36,invullijst!$A$11:$M$196,10,FALSE)="","",VLOOKUP($C36,invullijst!$A$11:$M$196,10,FALSE)) ->  | L36: 161 | M36: =IF(VLOOKUP($C36,invullijst!$A$11:$M$196,11,FALSE)="","",VLOOKUP($C36,invullijst!$A$11:$M$196,11,FALSE)) -> 
B37: 16 | C37: 512 | D37: =IF(VLOOKUP($C37,invullijst!$A$11:$M$196,4,FALSE)="","",VLOOKUP($C37,invullijst!$A$11:$M$196,4,FALSE)) -> vr | E37: =IF(VLOOKUP($C37,invullijst!$A$11:$M$196,2,FALSE)="","",VLOOKUP($C37,invullijst!$A$11:$M$196,2,FALSE)) -> Hans Bergakker | F37: =IF(VLOOKUP($C37,invullijst!$A$11:$M$196,3,FALSE)="","",VLOOKUP($C37,invullijst!$A$11:$M$196,3,FALSE)) -> Kaatsheuvel | G37: =IF(VLOOKUP(C37,invullijst!$A$11:$M$196,6,FALSE)="","",VLOOKUP(C37,invullijst!$A$11:$M$196,6,FALSE)) -> 72 | H37: =IF(VLOOKUP($C37,invullijst!$A$11:$M$196,7,FALSE)="","",VLOOKUP($C37,invullijst!$A$11:$M$196,7,FALSE)) -> 75 | I37: =IF(VLOOKUP($C37,invullijst!$A$11:$M$196,8,FALSE)="","",VLOOKUP($C37,invullijst!$A$11:$M$196,8,FALSE)) -> x | J37: =IF(VLOOKUP($C37,invullijst!$A$11:$M$196,9,FALSE)="","",VLOOKUP($C37,invullijst!$A$11:$M$196,9,FALSE)) ->  | K37: =IF(VLOOKUP($C37,invullijst!$A$11:$M$196,10,FALSE)="","",VLOOKUP($C37,invullijst!$A$11:$M$196,10,FALSE)) ->  | L37: 147 | M37: =IF(VLOOKUP($C37,invullijst!$A$11:$M$196,11,FALSE)="","",VLOOKUP($C37,invullijst!$A$11:$M$196,11,FALSE)) -> 
B38: 17 | C38: 513 | D38: =IF(VLOOKUP($C38,invullijst!$A$11:$M$196,4,FALSE)="","",VLOOKUP($C38,invullijst!$A$11:$M$196,4,FALSE)) -> vr | E38: =IF(VLOOKUP($C38,invullijst!$A$11:$M$196,2,FALSE)="","",VLOOKUP($C38,invullijst!$A$11:$M$196,2,FALSE)) -> Mark van Delft | F38: =IF(VLOOKUP($C38,invullijst!$A$11:$M$196,3,FALSE)="","",VLOOKUP($C38,invullijst!$A$11:$M$196,3,FALSE)) -> Kaatsheuvel | G38: =IF(VLOOKUP(C38,invullijst!$A$11:$M$196,6,FALSE)="","",VLOOKUP(C38,invullijst!$A$11:$M$196,6,FALSE)) -> 82 | H38: =IF(VLOOKUP($C38,invullijst!$A$11:$M$196,7,FALSE)="","",VLOOKUP($C38,invullijst!$A$11:$M$196,7,FALSE)) -> 83 | I38: =IF(VLOOKUP($C38,invullijst!$A$11:$M$196,8,FALSE)="","",VLOOKUP($C38,invullijst!$A$11:$M$196,8,FALSE)) -> x | J38: =IF(VLOOKUP($C38,invullijst!$A$11:$M$196,9,FALSE)="","",VLOOKUP($C38,invullijst!$A$11:$M$196,9,FALSE)) ->  | K38: =IF(VLOOKUP($C38,invullijst!$A$11:$M$196,10,FALSE)="","",VLOOKUP($C38,invullijst!$A$11:$M$196,10,FALSE)) ->  | L38: 165 | M38: =IF(VLOOKUP($C38,invullijst!$A$11:$M$196,11,FALSE)="","",VLOOKUP($C38,invullijst!$A$11:$M$196,11,FALSE)) -> 
D39: =IF(VLOOKUP($C39,invullijst!$A$11:$M$196,4,FALSE)="","",VLOOKUP($C39,invullijst!$A$11:$M$196,4,FALSE)) -> 0 | E39: =IF(VLOOKUP($C39,invullijst!$A$11:$M$196,2,FALSE)="","",VLOOKUP($C39,invullijst!$A$11:$M$196,2,FALSE)) -> 0 | F39: =IF(VLOOKUP($C39,invullijst!$A$11:$M$196,3,FALSE)="","",VLOOKUP($C39,invullijst!$A$11:$M$196,3,FALSE)) -> 0 | G39: =IF(VLOOKUP(C39,invullijst!$A$11:$M$196,6,FALSE)="","",VLOOKUP(C39,invullijst!$A$11:$M$196,6,FALSE)) -> 0 | H39: =IF(VLOOKUP($C39,invullijst!$A$11:$M$196,7,FALSE)="","",VLOOKUP($C39,invullijst!$A$11:$M$196,7,FALSE)) -> 0 | I39: =IF(VLOOKUP($C39,invullijst!$A$11:$M$196,8,FALSE)="","",VLOOKUP($C39,invullijst!$A$11:$M$196,8,FALSE)) -> 0 | J39: =IF(VLOOKUP($C39,invullijst!$A$11:$M$196,9,FALSE)="","",VLOOKUP($C39,invullijst!$A$11:$M$196,9,FALSE)) -> 0 | K39: =IF(VLOOKUP($C39,invullijst!$A$11:$M$196,10,FALSE)="","",VLOOKUP($C39,invullijst!$A$11:$M$196,10,FALSE)) -> 0 | L39: 0 | M39: =IF(VLOOKUP($C39,invullijst!$A$11:$M$196,11,FALSE)="","",VLOOKUP($C39,invullijst!$A$11:$M$196,11,FALSE)) -> 0
D40: =IF(VLOOKUP($C40,invullijst!$A$11:$M$196,4,FALSE)="","",VLOOKUP($C40,invullijst!$A$11:$M$196,4,FALSE)) -> 0 | E40: =IF(VLOOKUP($C40,invullijst!$A$11:$M$196,2,FALSE)="","",VLOOKUP($C40,invullijst!$A$11:$M$196,2,FALSE)) -> 0 | F40: =IF(VLOOKUP($C40,invullijst!$A$11:$M$196,3,FALSE)="","",VLOOKUP($C40,invullijst!$A$11:$M$196,3,FALSE)) -> 0 | G40: =IF(VLOOKUP(C40,invullijst!$A$11:$M$196,6,FALSE)="","",VLOOKUP(C40,invullijst!$A$11:$M$196,6,FALSE)) -> 0 | H40: =IF(VLOOKUP($C40,invullijst!$A$11:$M$196,7,FALSE)="","",VLOOKUP($C40,invullijst!$A$11:$M$196,7,FALSE)) -> 0 | I40: =IF(VLOOKUP($C40,invullijst!$A$11:$M$196,8,FALSE)="","",VLOOKUP($C40,invullijst!$A$11:$M$196,8,FALSE)) -> 0 | J40: =IF(VLOOKUP($C40,invullijst!$A$11:$M$196,9,FALSE)="","",VLOOKUP($C40,invullijst!$A$11:$M$196,9,FALSE)) -> 0 | K40: =IF(VLOOKUP($C40,invullijst!$A$11:$M$196,10,FALSE)="","",VLOOKUP($C40,invullijst!$A$11:$M$196,10,FALSE)) -> 0 | L40: 0 | M40: =IF(VLOOKUP($C40,invullijst!$A$11:$M$196,11,FALSE)="","",VLOOKUP($C40,invullijst!$A$11:$M$196,11,FALSE)) -> 0
D41: =IF(VLOOKUP($C41,invullijst!$A$11:$M$196,4,FALSE)="","",VLOOKUP($C41,invullijst!$A$11:$M$196,4,FALSE)) -> 0 | E41: =IF(VLOOKUP($C41,invullijst!$A$11:$M$196,2,FALSE)="","",VLOOKUP($C41,invullijst!$A$11:$M$196,2,FALSE)) -> 0 | F41: =IF(VLOOKUP($C41,invullijst!$A$11:$M$196,3,FALSE)="","",VLOOKUP($C41,invullijst!$A$11:$M$196,3,FALSE)) -> 0 | G41: =IF(VLOOKUP(C41,invullijst!$A$11:$M$196,6,FALSE)="","",VLOOKUP(C41,invullijst!$A$11:$M$196,6,FALSE)) -> 0 | H41: =IF(VLOOKUP($C41,invullijst!$A$11:$M$196,7,FALSE)="","",VLOOKUP($C41,invullijst!$A$11:$M$196,7,FALSE)) -> 0 | I41: =IF(VLOOKUP($C41,invullijst!$A$11:$M$196,8,FALSE)="","",VLOOKUP($C41,invullijst!$A$11:$M$196,8,FALSE)) -> 0 | J41: =IF(VLOOKUP($C41,invullijst!$A$11:$M$196,9,FALSE)="","",VLOOKUP($C41,invullijst!$A$11:$M$196,9,FALSE)) -> 0 | K41: =IF(VLOOKUP($C41,invullijst!$A$11:$M$196,10,FALSE)="","",VLOOKUP($C41,invullijst!$A$11:$M$196,10,FALSE)) -> 0 | L41: 0 | M41: =IF(VLOOKUP($C41,invullijst!$A$11:$M$196,11,FALSE)="","",VLOOKUP($C41,invullijst!$A$11:$M$196,11,FALSE)) -> 0
D42: =IF(VLOOKUP($C42,invullijst!$A$11:$M$196,4,FALSE)="","",VLOOKUP($C42,invullijst!$A$11:$M$196,4,FALSE)) -> 0 | E42: =IF(VLOOKUP($C42,invullijst!$A$11:$M$196,2,FALSE)="","",VLOOKUP($C42,invullijst!$A$11:$M$196,2,FALSE)) -> 0 | F42: =IF(VLOOKUP($C42,invullijst!$A$11:$M$196,3,FALSE)="","",VLOOKUP($C42,invullijst!$A$11:$M$196,3,FALSE)) -> 0 | G42: =IF(VLOOKUP(C42,invullijst!$A$11:$M$196,6,FALSE)="","",VLOOKUP(C42,invullijst!$A$11:$M$196,6,FALSE)) -> 0 | H42: =IF(VLOOKUP($C42,invullijst!$A$11:$M$196,7,FALSE)="","",VLOOKUP($C42,invullijst!$A$11:$M$196,7,FALSE)) -> 0 | I42: =IF(VLOOKUP($C42,invullijst!$A$11:$M$196,8,FALSE)="","",VLOOKUP($C42,invullijst!$A$11:$M$196,8,FALSE)) -> 0 | J42: =IF(VLOOKUP($C42,invullijst!$A$11:$M$196,9,FALSE)="","",VLOOKUP($C42,invullijst!$A$11:$M$196,9,FALSE)) -> 0 | K42: =IF(VLOOKUP($C42,invullijst!$A$11:$M$196,10,FALSE)="","",VLOOKUP($C42,invullijst!$A$11:$M$196,10,FALSE)) -> 0 | L42: 0 | M42: =IF(VLOOKUP($C42,invullijst!$A$11:$M$196,11,FALSE)="","",VLOOKUP($C42,invullijst!$A$11:$M$196,11,FALSE)) -> 0
D43: =IF(VLOOKUP($C43,invullijst!$A$11:$M$196,4,FALSE)="","",VLOOKUP($C43,invullijst!$A$11:$M$196,4,FALSE)) -> 0 | E43: =IF(VLOOKUP($C43,invullijst!$A$11:$M$196,2,FALSE)="","",VLOOKUP($C43,invullijst!$A$11:$M$196,2,FALSE)) -> 0 | F43: =IF(VLOOKUP($C43,invullijst!$A$11:$M$196,3,FALSE)="","",VLOOKUP($C43,invullijst!$A$11:$M$196,3,FALSE)) -> 0 | G43: =IF(VLOOKUP(C43,invullijst!$A$11:$M$196,6,FALSE)="","",VLOOKUP(C43,invullijst!$A$11:$M$196,6,FALSE)) -> 0 | H43: =IF(VLOOKUP($C43,invullijst!$A$11:$M$196,7,FALSE)="","",VLOOKUP($C43,invullijst!$A$11:$M$196,7,FALSE)) -> 0 | I43: =IF(VLOOKUP($C43,invullijst!$A$11:$M$196,8,FALSE)="","",VLOOKUP($C43,invullijst!$A$11:$M$196,8,FALSE)) -> 0 | J43: =IF(VLOOKUP($C43,invullijst!$A$11:$M$196,9,FALSE)="","",VLOOKUP($C43,invullijst!$A$11:$M$196,9,FALSE)) -> 0 | K43: =IF(VLOOKUP($C43,invullijst!$A$11:$M$196,10,FALSE)="","",VLOOKUP($C43,invullijst!$A$11:$M$196,10,FALSE)) -> 0 | L43: 0 | M43: =IF(VLOOKUP($C43,invullijst!$A$11:$M$196,11,FALSE)="","",VLOOKUP($C43,invullijst!$A$11:$M$196,11,FALSE)) -> 0
D44: =IF(VLOOKUP($C44,invullijst!$A$11:$M$196,4,FALSE)="","",VLOOKUP($C44,invullijst!$A$11:$M$196,4,FALSE)) -> 0 | E44: =IF(VLOOKUP($C44,invullijst!$A$11:$M$196,2,FALSE)="","",VLOOKUP($C44,invullijst!$A$11:$M$196,2,FALSE)) -> 0 | F44: =IF(VLOOKUP($C44,invullijst!$A$11:$M$196,3,FALSE)="","",VLOOKUP($C44,invullijst!$A$11:$M$196,3,FALSE)) -> 0 | G44: =IF(VLOOKUP(C44,invullijst!$A$11:$M$196,6,FALSE)="","",VLOOKUP(C44,invullijst!$A$11:$M$196,6,FALSE)) -> 0 | H44: =IF(VLOOKUP($C44,invullijst!$A$11:$M$196,7,FALSE)="","",VLOOKUP($C44,invullijst!$A$11:$M$196,7,FALSE)) -> 0 | I44: =IF(VLOOKUP($C44,invullijst!$A$11:$M$196,8,FALSE)="","",VLOOKUP($C44,invullijst!$A$11:$M$196,8,FALSE)) -> 0 | J44: =IF(VLOOKUP($C44,invullijst!$A$11:$M$196,9,FALSE)="","",VLOOKUP($C44,invullijst!$A$11:$M$196,9,FALSE)) -> 0 | K44: =IF(VLOOKUP($C44,invullijst!$A$11:$M$196,10,FALSE)="","",VLOOKUP($C44,invullijst!$A$11:$M$196,10,FALSE)) -> 0 | L44: 0 | M44: =IF(VLOOKUP($C44,invullijst!$A$11:$M$196,11,FALSE)="","",VLOOKUP($C44,invullijst!$A$11:$M$196,11,FALSE)) -> 0
D45: =IF(VLOOKUP($C45,invullijst!$A$11:$M$196,4,FALSE)="","",VLOOKUP($C45,invullijst!$A$11:$M$196,4,FALSE)) -> 0 | E45: =IF(VLOOKUP($C45,invullijst!$A$11:$M$196,2,FALSE)="","",VLOOKUP($C45,invullijst!$A$11:$M$196,2,FALSE)) -> 0 | F45: =IF(VLOOKUP($C45,invullijst!$A$11:$M$196,3,FALSE)="","",VLOOKUP($C45,invullijst!$A$11:$M$196,3,FALSE)) -> 0 | G45: =IF(VLOOKUP(C45,invullijst!$A$11:$M$196,6,FALSE)="","",VLOOKUP(C45,invullijst!$A$11:$M$196,6,FALSE)) -> 0 | H45: =IF(VLOOKUP($C45,invullijst!$A$11:$M$196,7,FALSE)="","",VLOOKUP($C45,invullijst!$A$11:$M$196,7,FALSE)) -> 0 | I45: =IF(VLOOKUP($C45,invullijst!$A$11:$M$196,8,FALSE)="","",VLOOKUP($C45,invullijst!$A$11:$M$196,8,FALSE)) -> 0 | J45: =IF(VLOOKUP($C45,invullijst!$A$11:$M$196,9,FALSE)="","",VLOOKUP($C45,invullijst!$A$11:$M$196,9,FALSE)) -> 0 | K45: =IF(VLOOKUP($C45,invullijst!$A$11:$M$196,10,FALSE)="","",VLOOKUP($C45,invullijst!$A$11:$M$196,10,FALSE)) -> 0 | L45: 0 | M45: =IF(VLOOKUP($C45,invullijst!$A$11:$M$196,11,FALSE)="","",VLOOKUP($C45,invullijst!$A$11:$M$196,11,FALSE)) -> 0
D46: =IF(VLOOKUP($C46,invullijst!$A$11:$M$196,4,FALSE)="","",VLOOKUP($C46,invullijst!$A$11:$M$196,4,FALSE)) -> 0 | E46: =IF(VLOOKUP($C46,invullijst!$A$11:$M$196,2,FALSE)="","",VLOOKUP($C46,invullijst!$A$11:$M$196,2,FALSE)) -> 0 | F46: =IF(VLOOKUP($C46,invullijst!$A$11:$M$196,3,FALSE)="","",VLOOKUP($C46,invullijst!$A$11:$M$196,3,FALSE)) -> 0 | G46: =IF(VLOOKUP(C46,invullijst!$A$11:$M$196,6,FALSE)="","",VLOOKUP(C46,invullijst!$A$11:$M$196,6,FALSE)) -> 0 | H46: =IF(VLOOKUP($C46,invullijst!$A$11:$M$196,7,FALSE)="","",VLOOKUP($C46,invullijst!$A$11:$M$196,7,FALSE)) -> 0 | I46: =IF(VLOOKUP($C46,invullijst!$A$11:$M$196,8,FALSE)="","",VLOOKUP($C46,invullijst!$A$11:$M$196,8,FALSE)) -> 0 | J46: =IF(VLOOKUP($C46,invullijst!$A$11:$M$196,9,FALSE)="","",VLOOKUP($C46,invullijst!$A$11:$M$196,9,FALSE)) -> 0 | K46: =IF(VLOOKUP($C46,invullijst!$A$11:$M$196,10,FALSE)="","",VLOOKUP($C46,invullijst!$A$11:$M$196,10,FALSE)) -> 0 | L46: 0 | M46: =IF(VLOOKUP($C46,invullijst!$A$11:$M$196,11,FALSE)="","",VLOOKUP($C46,invullijst!$A$11:$M$196,11,FALSE)) -> 0
D47: =IF(VLOOKUP($C47,invullijst!$A$11:$M$196,4,FALSE)="","",VLOOKUP($C47,invullijst!$A$11:$M$196,4,FALSE)) -> 0 | E47: =IF(VLOOKUP($C47,invullijst!$A$11:$M$196,2,FALSE)="","",VLOOKUP($C47,invullijst!$A$11:$M$196,2,FALSE)) -> 0 | F47: =IF(VLOOKUP($C47,invullijst!$A$11:$M$196,3,FALSE)="","",VLOOKUP($C47,invullijst!$A$11:$M$196,3,FALSE)) -> 0 | G47: =IF(VLOOKUP(C47,invullijst!$A$11:$M$196,6,FALSE)="","",VLOOKUP(C47,invullijst!$A$11:$M$196,6,FALSE)) -> 0 | H47: =IF(VLOOKUP($C47,invullijst!$A$11:$M$196,7,FALSE)="","",VLOOKUP($C47,invullijst!$A$11:$M$196,7,FALSE)) -> 0 | I47: =IF(VLOOKUP($C47,invullijst!$A$11:$M$196,8,FALSE)="","",VLOOKUP($C47,invullijst!$A$11:$M$196,8,FALSE)) -> 0 | J47: =IF(VLOOKUP($C47,invullijst!$A$11:$M$196,9,FALSE)="","",VLOOKUP($C47,invullijst!$A$11:$M$196,9,FALSE)) -> 0 | K47: =IF(VLOOKUP($C47,invullijst!$A$11:$M$196,10,FALSE)="","",VLOOKUP($C47,invullijst!$A$11:$M$196,10,FALSE)) -> 0 | L47: 0 | M47: =IF(VLOOKUP($C47,invullijst!$A$11:$M$196,11,FALSE)="","",VLOOKUP($C47,invullijst!$A$11:$M$196,11,FALSE)) -> 0
D48: =IF(VLOOKUP($C48,invullijst!$A$11:$M$196,4,FALSE)="","",VLOOKUP($C48,invullijst!$A$11:$M$196,4,FALSE)) -> 0 | E48: =IF(VLOOKUP($C48,invullijst!$A$11:$M$196,2,FALSE)="","",VLOOKUP($C48,invullijst!$A$11:$M$196,2,FALSE)) -> 0 | F48: =IF(VLOOKUP($C48,invullijst!$A$11:$M$196,3,FALSE)="","",VLOOKUP($C48,invullijst!$A$11:$M$196,3,FALSE)) -> 0 | G48: =IF(VLOOKUP(C48,invullijst!$A$11:$M$196,6,FALSE)="","",VLOOKUP(C48,invullijst!$A$11:$M$196,6,FALSE)) -> 0 | H48: =IF(VLOOKUP($C48,invullijst!$A$11:$M$196,7,FALSE)="","",VLOOKUP($C48,invullijst!$A$11:$M$196,7,FALSE)) -> 0 | I48: =IF(VLOOKUP($C48,invullijst!$A$11:$M$196,8,FALSE)="","",VLOOKUP($C48,invullijst!$A$11:$M$196,8,FALSE)) -> 0 | J48: =IF(VLOOKUP($C48,invullijst!$A$11:$M$196,9,FALSE)="","",VLOOKUP($C48,invullijst!$A$11:$M$196,9,FALSE)) -> 0 | K48: =IF(VLOOKUP($C48,invullijst!$A$11:$M$196,10,FALSE)="","",VLOOKUP($C48,invullijst!$A$11:$M$196,10,FALSE)) -> 0 | L48: 0 | M48: =IF(VLOOKUP($C48,invullijst!$A$11:$M$196,11,FALSE)="","",VLOOKUP($C48,invullijst!$A$11:$M$196,11,FALSE)) -> 0
D49: =IF(VLOOKUP($C49,invullijst!$A$11:$M$196,4,FALSE)="","",VLOOKUP($C49,invullijst!$A$11:$M$196,4,FALSE)) -> 0 | E49: =IF(VLOOKUP($C49,invullijst!$A$11:$M$196,2,FALSE)="","",VLOOKUP($C49,invullijst!$A$11:$M$196,2,FALSE)) -> 0 | F49: =IF(VLOOKUP($C49,invullijst!$A$11:$M$196,3,FALSE)="","",VLOOKUP($C49,invullijst!$A$11:$M$196,3,FALSE)) -> 0 | G49: =IF(VLOOKUP(C49,invullijst!$A$11:$M$196,6,FALSE)="","",VLOOKUP(C49,invullijst!$A$11:$M$196,6,FALSE)) -> 0 | H49: =IF(VLOOKUP($C49,invullijst!$A$11:$M$196,7,FALSE)="","",VLOOKUP($C49,invullijst!$A$11:$M$196,7,FALSE)) -> 0 | I49: =IF(VLOOKUP($C49,invullijst!$A$11:$M$196,8,FALSE)="","",VLOOKUP($C49,invullijst!$A$11:$M$196,8,FALSE)) -> 0 | J49: =IF(VLOOKUP($C49,invullijst!$A$11:$M$196,9,FALSE)="","",VLOOKUP($C49,invullijst!$A$11:$M$196,9,FALSE)) -> 0 | K49: =IF(VLOOKUP($C49,invullijst!$A$11:$M$196,10,FALSE)="","",VLOOKUP($C49,invullijst!$A$11:$M$196,10,FALSE)) -> 0 | L49: 0 | M49: =IF(VLOOKUP($C49,invullijst!$A$11:$M$196,11,FALSE)="","",VLOOKUP($C49,invullijst!$A$11:$M$196,11,FALSE)) -> 0
D50: =IF(VLOOKUP($C50,invullijst!$A$11:$M$196,4,FALSE)="","",VLOOKUP($C50,invullijst!$A$11:$M$196,4,FALSE)) -> 0 | E50: =IF(VLOOKUP($C50,invullijst!$A$11:$M$196,2,FALSE)="","",VLOOKUP($C50,invullijst!$A$11:$M$196,2,FALSE)) -> 0 | F50: =IF(VLOOKUP($C50,invullijst!$A$11:$M$196,3,FALSE)="","",VLOOKUP($C50,invullijst!$A$11:$M$196,3,FALSE)) -> 0 | G50: =IF(VLOOKUP(C50,invullijst!$A$11:$M$196,6,FALSE)="","",VLOOKUP(C50,invullijst!$A$11:$M$196,6,FALSE)) -> 0 | H50: =IF(VLOOKUP($C50,invullijst!$A$11:$M$196,7,FALSE)="","",VLOOKUP($C50,invullijst!$A$11:$M$196,7,FALSE)) -> 0 | I50: =IF(VLOOKUP($C50,invullijst!$A$11:$M$196,8,FALSE)="","",VLOOKUP($C50,invullijst!$A$11:$M$196,8,FALSE)) -> 0 | J50: =IF(VLOOKUP($C50,invullijst!$A$11:$M$196,9,FALSE)="","",VLOOKUP($C50,invullijst!$A$11:$M$196,9,FALSE)) -> 0 | K50: =IF(VLOOKUP($C50,invullijst!$A$11:$M$196,10,FALSE)="","",VLOOKUP($C50,invullijst!$A$11:$M$196,10,FALSE)) -> 0 | L50: 0 | M50: =IF(VLOOKUP($C50,invullijst!$A$11:$M$196,11,FALSE)="","",VLOOKUP($C50,invullijst!$A$11:$M$196,11,FALSE)) -> 0
D51: =IF(VLOOKUP($C51,invullijst!$A$11:$M$196,4,FALSE)="","",VLOOKUP($C51,invullijst!$A$11:$M$196,4,FALSE)) -> 0
D52: =IF(VLOOKUP($C52,invullijst!$A$11:$M$196,4,FALSE)="","",VLOOKUP($C52,invullijst!$A$11:$M$196,4,FALSE)) -> 0
D53: =IF(VLOOKUP($C53,invullijst!$A$11:$M$196,4,FALSE)="","",VLOOKUP($C53,invullijst!$A$11:$M$196,4,FALSE)) -> 0
D54: =IF(VLOOKUP($C54,invullijst!$A$11:$M$196,4,FALSE)="","",VLOOKUP($C54,invullijst!$A$11:$M$196,4,FALSE)) -> 0
D55: =IF(VLOOKUP($C55,invullijst!$A$11:$M$196,4,FALSE)="","",VLOOKUP($C55,invullijst!$A$11:$M$196,4,FALSE)) -> 0

Sheet Jeugd
A1: JEUGD | G1: =invullijst!F1 -> Organistatie | K1: =invullijst!H2 -> 2025 - 2026
G2: =invullijst!F3 -> Sint Ambrosius Baardwijk
A3: alleen in de gele kolom nummer schutter invullen | G3: wedstrijd | M3: KAMP-
A4: KL | C4: schutter | E4: NAAM | F4: PLAATS | G4: 1 | H4: 2 | I4: 3 | J4: 4 | K4: 5 | L4: TOTAAL | M4: KAART
A5: A | B5: 1 | C5: 221 | D5: =IF(VLOOKUP($C5,invullijst!$A$11:$M$196,4,FALSE)="","",VLOOKUP($C5,invullijst!$A$11:$M$196,4,FALSE)) -> J | E5: =IF(VLOOKUP($C5,invullijst!$A$11:$M$196,2,FALSE)="","",VLOOKUP($C5,invullijst!$A$11:$M$196,2,FALSE)) -> Mees Huijben | F5: =IF(VLOOKUP($C5,invullijst!$A$11:$M$196,3,FALSE)="","",VLOOKUP($C5,invullijst!$A$11:$M$196,3,FALSE)) -> Besoijen | G5: =IF(VLOOKUP($C5,invullijst!$A$11:$M$196,6,FALSE)="","",VLOOKUP($C5,invullijst!$A$11:$M$196,6,FALSE)) -> 86 | H5: =IF(VLOOKUP($C5,invullijst!$A$11:$M$196,7,FALSE)="","",VLOOKUP($C5,invullijst!$A$11:$M$196,7,FALSE)) -> 83 | I5: =IF(VLOOKUP($C5,invullijst!$A$11:$M$196,8,FALSE)="","",VLOOKUP($C5,invullijst!$A$11:$M$196,8,FALSE)) -> 89 | J5: =IF(VLOOKUP($C5,invullijst!$A$11:$M$196,9,FALSE)="","",VLOOKUP($C5,invullijst!$A$11:$M$196,9,FALSE)) -> x | K5: =IF(VLOOKUP($C5,invullijst!$A$11:$M$196,10,FALSE)="","",VLOOKUP($C5,invullijst!$A$11:$M$196,10,FALSE)) ->  | L5: =SUM(G5:K5) -> 258 | M5: =IF(VLOOKUP($C5,invullijst!$A$11:$M$196,11,FALSE)="","",VLOOKUP($C5,invullijst!$A$11:$M$196,11,FALSE)) -> 43
B6: 2 | C6: 312 | D6: =IF(VLOOKUP($C6,invullijst!$A$11:$M$196,4,FALSE)="","",VLOOKUP($C6,invullijst!$A$11:$M$196,4,FALSE)) -> J | E6: =IF(VLOOKUP($C6,invullijst!$A$11:$M$196,2,FALSE)="","",VLOOKUP($C6,invullijst!$A$11:$M$196,2,FALSE)) -> Floor de Jong | F6: =IF(VLOOKUP($C6,invullijst!$A$11:$M$196,3,FALSE)="","",VLOOKUP($C6,invullijst!$A$11:$M$196,3,FALSE)) -> Elshout | G6: =IF(VLOOKUP($C6,invullijst!$A$11:$M$196,6,FALSE)="","",VLOOKUP($C6,invullijst!$A$11:$M$196,6,FALSE)) -> x | H6: =IF(VLOOKUP($C6,invullijst!$A$11:$M$196,7,FALSE)="","",VLOOKUP($C6,invullijst!$A$11:$M$196,7,FALSE)) -> 90 | I6: =IF(VLOOKUP($C6,invullijst!$A$11:$M$196,8,FALSE)="","",VLOOKUP($C6,invullijst!$A$11:$M$196,8,FALSE)) -> 97 | J6: =IF(VLOOKUP($C6,invullijst!$A$11:$M$196,9,FALSE)="","",VLOOKUP($C6,invullijst!$A$11:$M$196,9,FALSE)) ->  | K6: =IF(VLOOKUP($C6,invullijst!$A$11:$M$196,10,FALSE)="","",VLOOKUP($C6,invullijst!$A$11:$M$196,10,FALSE)) ->  | L6: =SUM(G6:K6) -> 187 | M6: =IF(VLOOKUP($C6,invullijst!$A$11:$M$196,11,FALSE)="","",VLOOKUP($C6,invullijst!$A$11:$M$196,11,FALSE)) -> 
B7: 3 | C7: 502 | D7: =IF(VLOOKUP($C7,invullijst!$A$11:$M$196,4,FALSE)="","",VLOOKUP($C7,invullijst!$A$11:$M$196,4,FALSE)) -> J | E7: =IF(VLOOKUP($C7,invullijst!$A$11:$M$196,2,FALSE)="","",VLOOKUP($C7,invullijst!$A$11:$M$196,2,FALSE)) -> Djody Wagemakers | F7: =IF(VLOOKUP($C7,invullijst!$A$11:$M$196,3,FALSE)="","",VLOOKUP($C7,invullijst!$A$11:$M$196,3,FALSE)) -> Kaatsheuvel | G7: =IF(VLOOKUP($C7,invullijst!$A$11:$M$196,6,FALSE)="","",VLOOKUP($C7,invullijst!$A$11:$M$196,6,FALSE)) -> 93 | H7: =IF(VLOOKUP($C7,invullijst!$A$11:$M$196,7,FALSE)="","",VLOOKUP($C7,invullijst!$A$11:$M$196,7,FALSE)) -> 91 | I7: =IF(VLOOKUP($C7,invullijst!$A$11:$M$196,8,FALSE)="","",VLOOKUP($C7,invullijst!$A$11:$M$196,8,FALSE)) -> x | J7: =IF(VLOOKUP($C7,invullijst!$A$11:$M$196,9,FALSE)="","",VLOOKUP($C7,invullijst!$A$11:$M$196,9,FALSE)) ->  | K7: =IF(VLOOKUP($C7,invullijst!$A$11:$M$196,10,FALSE)="","",VLOOKUP($C7,invullijst!$A$11:$M$196,10,FALSE)) ->  | L7: =SUM(G7:K7) -> 184 | M7: =IF(VLOOKUP($C7,invullijst!$A$11:$M$196,11,FALSE)="","",VLOOKUP($C7,invullijst!$A$11:$M$196,11,FALSE)) -> 
D8: =IF(VLOOKUP($C8,invullijst!$A$11:$M$196,4,FALSE)="","",VLOOKUP($C8,invullijst!$A$11:$M$196,4,FALSE)) -> 0 | E8: =IF(VLOOKUP($C8,invullijst!$A$11:$M$196,2,FALSE)="","",VLOOKUP($C8,invullijst!$A$11:$M$196,2,FALSE)) -> 0 | F8: =IF(VLOOKUP($C8,invullijst!$A$11:$M$196,3,FALSE)="","",VLOOKUP($C8,invullijst!$A$11:$M$196,3,FALSE)) -> 0 | G8: =IF(VLOOKUP($C8,invullijst!$A$11:$M$196,6,FALSE)="","",VLOOKUP($C8,invullijst!$A$11:$M$196,6,FALSE)) -> 0 | H8: =IF(VLOOKUP($C8,invullijst!$A$11:$M$196,7,FALSE)="","",VLOOKUP($C8,invullijst!$A$11:$M$196,7,FALSE)) -> 0 | I8: =IF(VLOOKUP($C8,invullijst!$A$11:$M$196,8,FALSE)="","",VLOOKUP($C8,invullijst!$A$11:$M$196,8,FALSE)) -> 0 | J8: =IF(VLOOKUP($C8,invullijst!$A$11:$M$196,9,FALSE)="","",VLOOKUP($C8,invullijst!$A$11:$M$196,9,FALSE)) -> 0 | K8: =IF(VLOOKUP($C8,invullijst!$A$11:$M$196,10,FALSE)="","",VLOOKUP($C8,invullijst!$A$11:$M$196,10,FALSE)) -> 0 | L8: =SUM(G8:K8) -> 0 | M8: =IF(VLOOKUP($C8,invullijst!$A$11:$M$196,11,FALSE)="","",VLOOKUP($C8,invullijst!$A$11:$M$196,11,FALSE)) -> 0
D9: =IF(VLOOKUP($C9,invullijst!$A$11:$M$196,4,FALSE)="","",VLOOKUP($C9,invullijst!$A$11:$M$196,4,FALSE)) -> 0
D10: =IF(VLOOKUP($C10,invullijst!$A$11:$M$196,4,FALSE)="","",VLOOKUP($C10,invullijst!$A$11:$M$196,4,FALSE)) -> 0
D11: =IF(VLOOKUP($C11,invullijst!$A$11:$M$196,4,FALSE)="","",VLOOKUP($C11,invullijst!$A$11:$M$196,4,FALSE)) -> 0
D12: =IF(VLOOKUP($C12,invullijst!$A$11:$M$196,4,FALSE)="","",VLOOKUP($C12,invullijst!$A$11:$M$196,4,FALSE)) -> 0
D13: =IF(VLOOKUP($C13,invullijst!$A$11:$M$196,4,FALSE)="","",VLOOKUP($C13,invullijst!$A$11:$M$196,4,FALSE)) -> 0
D14: =IF(VLOOKUP($C14,invullijst!$A$11:$M$196,4,FALSE)="","",VLOOKUP($C14,invullijst!$A$11:$M$196,4,FALSE)) -> 0

Sheet 65+
A1: 65+ | G1: =invullijst!F1 -> Organistatie | K1: =invullijst!H2 -> 2025 - 2026
G2: =invullijst!F3 -> Sint Ambrosius Baardwijk
A3: alleen in de gele kolom nummer schutter invullen | G3: wedstrijd | M3: KAMP-
A4: KL. | C4: schutter | E4: NAAM | F4: PLAATS | G4: 1 | H4: 2 | I4: 3 | J4: 4 | K4: 5 | L4: TOTAAL | M4: KAART
A5: A | B5: 1 | C5: 102 | D5: =IF(VLOOKUP($C5,invullijst!$A$11:$M215,4,FALSE)="","",VLOOKUP($C5,invullijst!$A$11:$M215,4,FALSE)) -> 65+ | E5: =IF(VLOOKUP($C5,invullijst!$A$11:$M213,2,FALSE)="","",VLOOKUP($C5,invullijst!$A$11:$M213,2,FALSE)) -> John de Jong (disp) | F5: =IF(VLOOKUP($C5,invullijst!$A$11:$M$196,3,FALSE)="","",VLOOKUP($C5,invullijst!$A$11:$M$196,3,FALSE)) -> Baardwijk | G5: =IF(VLOOKUP($C5,invullijst!$A$11:$M$196,6,FALSE)="","",VLOOKUP($C5,invullijst!$A$11:$M$196,6,FALSE)) -> 90 | H5: =IF(VLOOKUP($C5,invullijst!$A$11:$M$196,7,FALSE)="","",VLOOKUP($C5,invullijst!$A$11:$M$196,7,FALSE)) -> 84 | I5: =IF(VLOOKUP($C5,invullijst!$A$11:$M$196,8,FALSE)="","",VLOOKUP($C5,invullijst!$A$11:$M$196,8,FALSE)) -> 82 | J5: =IF(VLOOKUP($C5,invullijst!$A$11:$M$196,9,FALSE)="","",VLOOKUP($C5,invullijst!$A$11:$M$196,9,FALSE)) ->  | K5: =IF(VLOOKUP($C5,invullijst!$A$11:$M$196,10,FALSE)="","",VLOOKUP($C5,invullijst!$A$11:$M$196,10,FALSE)) -> x | L5: =SUM(G5:K5) -> 256 | M5: =IF(VLOOKUP($C5,invullijst!$A$11:$M$196,11,FALSE)="","",VLOOKUP($C5,invullijst!$A$11:$M$196,11,FALSE)) -> 
B6: 2 | C6: 104 | D6: =IF(VLOOKUP($C6,invullijst!$A$11:$M207,4,FALSE)="","",VLOOKUP($C6,invullijst!$A$11:$M207,4,FALSE)) -> 65+ | E6: =IF(VLOOKUP($C6,invullijst!$A$11:$M198,2,FALSE)="","",VLOOKUP($C6,invullijst!$A$11:$M198,2,FALSE)) -> Peter Brekelmans | F6: =IF(VLOOKUP($C6,invullijst!$A$11:$M$196,3,FALSE)="","",VLOOKUP($C6,invullijst!$A$11:$M$196,3,FALSE)) -> Baardwijk | G6: =IF(VLOOKUP($C6,invullijst!$A$11:$M$196,6,FALSE)="","",VLOOKUP($C6,invullijst!$A$11:$M$196,6,FALSE)) -> 75 | H6: =IF(VLOOKUP($C6,invullijst!$A$11:$M$196,7,FALSE)="","",VLOOKUP($C6,invullijst!$A$11:$M$196,7,FALSE)) -> 82 | I6: =IF(VLOOKUP($C6,invullijst!$A$11:$M$196,8,FALSE)="","",VLOOKUP($C6,invullijst!$A$11:$M$196,8,FALSE)) -> x | J6: =IF(VLOOKUP($C6,invullijst!$A$11:$M$196,9,FALSE)="","",VLOOKUP($C6,invullijst!$A$11:$M$196,9,FALSE)) ->  | K6: =IF(VLOOKUP($C6,invullijst!$A$11:$M$196,10,FALSE)="","",VLOOKUP($C6,invullijst!$A$11:$M$196,10,FALSE)) -> x | L6: =SUM(G6:K6) -> 157 | M6: =IF(VLOOKUP($C6,invullijst!$A$11:$M$196,11,FALSE)="","",VLOOKUP($C6,invullijst!$A$11:$M$196,11,FALSE)) -> 
B7: 3 | C7: 107 | D7: =IF(VLOOKUP($C7,invullijst!$A$11:$M209,4,FALSE)="","",VLOOKUP($C7,invullijst!$A$11:$M209,4,FALSE)) -> 65+ | E7: =IF(VLOOKUP($C7,invullijst!$A$11:$M209,2,FALSE)="","",VLOOKUP($C7,invullijst!$A$11:$M209,2,FALSE)) -> Cees Coppens | F7: =IF(VLOOKUP($C7,invullijst!$A$11:$M$196,3,FALSE)="","",VLOOKUP($C7,invullijst!$A$11:$M$196,3,FALSE)) -> Baardwijk | G7: =IF(VLOOKUP($C7,invullijst!$A$11:$M$196,6,FALSE)="","",VLOOKUP($C7,invullijst!$A$11:$M$196,6,FALSE)) -> 86 | H7: =IF(VLOOKUP($C7,invullijst!$A$11:$M$196,7,FALSE)="","",VLOOKUP($C7,invullijst!$A$11:$M$196,7,FALSE)) -> x | I7: =IF(VLOOKUP($C7,invullijst!$A$11:$M$196,8,FALSE)="","",VLOOKUP($C7,invullijst!$A$11:$M$196,8,FALSE)) -> 83 | J7: =IF(VLOOKUP($C7,invullijst!$A$11:$M$196,9,FALSE)="","",VLOOKUP($C7,invullijst!$A$11:$M$196,9,FALSE)) ->  | K7: =IF(VLOOKUP($C7,invullijst!$A$11:$M$196,10,FALSE)="","",VLOOKUP($C7,invullijst!$A$11:$M$196,10,FALSE)) -> x | L7: =SUM(G7:K7) -> 169 | M7: =IF(VLOOKUP($C7,invullijst!$A$11:$M$196,11,FALSE)="","",VLOOKUP($C7,invullijst!$A$11:$M$196,11,FALSE)) -> 
B8: 4 | C8: 112 | D8: =IF(VLOOKUP($C8,invullijst!$A$11:$M205,4,FALSE)="","",VLOOKUP($C8,invullijst!$A$11:$M205,4,FALSE)) -> 65+ | E8: =IF(VLOOKUP($C8,invullijst!$A$11:$M203,2,FALSE)="","",VLOOKUP($C8,invullijst!$A$11:$M203,2,FALSE)) -> Toon van Buul | F8: =IF(VLOOKUP($C8,invullijst!$A$11:$M$196,3,FALSE)="","",VLOOKUP($C8,invullijst!$A$11:$M$196,3,FALSE)) -> Baardwijk | G8: =IF(VLOOKUP($C8,invullijst!$A$11:$M$196,6,FALSE)="","",VLOOKUP($C8,invullijst!$A$11:$M$196,6,FALSE)) -> 54 | H8: =IF(VLOOKUP($C8,invullijst!$A$11:$M$196,7,FALSE)="","",VLOOKUP($C8,invullijst!$A$11:$M$196,7,FALSE)) -> x | I8: =IF(VLOOKUP($C8,invullijst!$A$11:$M$196,8,FALSE)="","",VLOOKUP($C8,invullijst!$A$11:$M$196,8,FALSE)) -> x | J8: =IF(VLOOKUP($C8,invullijst!$A$11:$M$196,9,FALSE)="","",VLOOKUP($C8,invullijst!$A$11:$M$196,9,FALSE)) ->  | K8: =IF(VLOOKUP($C8,invullijst!$A$11:$M$196,10,FALSE)="","",VLOOKUP($C8,invullijst!$A$11:$M$196,10,FALSE)) -> x | L8: =SUM(G8:K8) -> 54 | M8: =IF(VLOOKUP($C8,invullijst!$A$11:$M$196,11,FALSE)="","",VLOOKUP($C8,invullijst!$A$11:$M$196,11,FALSE)) -> 
B9: 5 | C9: 211 | D9: =IF(VLOOKUP($C9,invullijst!$A$11:$M213,4,FALSE)="","",VLOOKUP($C9,invullijst!$A$11:$M213,4,FALSE)) -> 65+ | E9: =IF(VLOOKUP($C9,invullijst!$A$11:$M212,2,FALSE)="","",VLOOKUP($C9,invullijst!$A$11:$M212,2,FALSE)) -> Ad van den houdt | F9: =IF(VLOOKUP($C9,invullijst!$A$11:$M$196,3,FALSE)="","",VLOOKUP($C9,invullijst!$A$11:$M$196,3,FALSE)) -> Besoijen | G9: =IF(VLOOKUP($C9,invullijst!$A$11:$M$196,6,FALSE)="","",VLOOKUP($C9,invullijst!$A$11:$M$196,6,FALSE)) -> 88 | H9: =IF(VLOOKUP($C9,invullijst!$A$11:$M$196,7,FALSE)="","",VLOOKUP($C9,invullijst!$A$11:$M$196,7,FALSE)) -> x | I9: =IF(VLOOKUP($C9,invullijst!$A$11:$M$196,8,FALSE)="","",VLOOKUP($C9,invullijst!$A$11:$M$196,8,FALSE)) -> 89 | J9: =IF(VLOOKUP($C9,invullijst!$A$11:$M$196,9,FALSE)="","",VLOOKUP($C9,invullijst!$A$11:$M$196,9,FALSE)) -> x | K9: =IF(VLOOKUP($C9,invullijst!$A$11:$M$196,10,FALSE)="","",VLOOKUP($C9,invullijst!$A$11:$M$196,10,FALSE)) ->  | L9: =SUM(G9:K9) -> 177 | M9: =IF(VLOOKUP($C9,invullijst!$A$11:$M$196,11,FALSE)="","",VLOOKUP($C9,invullijst!$A$11:$M$196,11,FALSE)) -> 41
B10: 6 | C10: 212 | D10: =IF(VLOOKUP($C10,invullijst!$A$11:$M217,4,FALSE)="","",VLOOKUP($C10,invullijst!$A$11:$M217,4,FALSE)) -> 65+ | E10: =IF(VLOOKUP($C10,invullijst!$A$11:$M213,2,FALSE)="","",VLOOKUP($C10,invullijst!$A$11:$M213,2,FALSE)) -> René Duquesnoy | F10: =IF(VLOOKUP($C10,invullijst!$A$11:$M$196,3,FALSE)="","",VLOOKUP($C10,invullijst!$A$11:$M$196,3,FALSE)) -> Besoijen | G10: =IF(VLOOKUP($C10,invullijst!$A$11:$M$196,6,FALSE)="","",VLOOKUP($C10,invullijst!$A$11:$M$196,6,FALSE)) -> 88 | H10: =IF(VLOOKUP($C10,invullijst!$A$11:$M$196,7,FALSE)="","",VLOOKUP($C10,invullijst!$A$11:$M$196,7,FALSE)) -> 85 | I10: =IF(VLOOKUP($C10,invullijst!$A$11:$M$196,8,FALSE)="","",VLOOKUP($C10,invullijst!$A$11:$M$196,8,FALSE)) -> 90 | J10: =IF(VLOOKUP($C10,invullijst!$A$11:$M$196,9,FALSE)="","",VLOOKUP($C10,invullijst!$A$11:$M$196,9,FALSE)) -> x | K10: =IF(VLOOKUP($C10,invullijst!$A$11:$M$196,10,FALSE)="","",VLOOKUP($C10,invullijst!$A$11:$M$196,10,FALSE)) ->  | L10: =SUM(G10:K10) -> 263 | M10: =IF(VLOOKUP($C10,invullijst!$A$11:$M$196,11,FALSE)="","",VLOOKUP($C10,invullijst!$A$11:$M$196,11,FALSE)) -> 37
B11: 7 | C11: 214 | D11: =IF(VLOOKUP($C11,invullijst!$A$11:$M218,4,FALSE)="","",VLOOKUP($C11,invullijst!$A$11:$M218,4,FALSE)) -> 65+ | E11: =IF(VLOOKUP($C11,invullijst!$A$11:$M214,2,FALSE)="","",VLOOKUP($C11,invullijst!$A$11:$M214,2,FALSE)) -> Andre de Vaan | F11: =IF(VLOOKUP($C11,invullijst!$A$11:$M$196,3,FALSE)="","",VLOOKUP($C11,invullijst!$A$11:$M$196,3,FALSE)) -> Besoijen | G11: =IF(VLOOKUP($C11,invullijst!$A$11:$M$196,6,FALSE)="","",VLOOKUP($C11,invullijst!$A$11:$M$196,6,FALSE)) -> 92 | H11: =IF(VLOOKUP($C11,invullijst!$A$11:$M$196,7,FALSE)="","",VLOOKUP($C11,invullijst!$A$11:$M$196,7,FALSE)) -> 93 | I11: =IF(VLOOKUP($C11,invullijst!$A$11:$M$196,8,FALSE)="","",VLOOKUP($C11,invullijst!$A$11:$M$196,8,FALSE)) -> 90 | J11: =IF(VLOOKUP($C11,invullijst!$A$11:$M$196,9,FALSE)="","",VLOOKUP($C11,invullijst!$A$11:$M$196,9,FALSE)) -> x | K11: =IF(VLOOKUP($C11,invullijst!$A$11:$M$196,10,FALSE)="","",VLOOKUP($C11,invullijst!$A$11:$M$196,10,FALSE)) ->  | L11: =SUM(G11:K11) -> 275 | M11: =IF(VLOOKUP($C11,invullijst!$A$11:$M$196,11,FALSE)="","",VLOOKUP($C11,invullijst!$A$11:$M$196,11,FALSE)) -> 44
B12: 8 | C12: 218 | D12: =IF(VLOOKUP($C12,invullijst!$A$11:$M214,4,FALSE)="","",VLOOKUP($C12,invullijst!$A$11:$M214,4,FALSE)) -> 65+ | E12: =IF(VLOOKUP($C12,invullijst!$A$11:$M208,2,FALSE)="","",VLOOKUP($C12,invullijst!$A$11:$M208,2,FALSE)) -> Jacob van de Werken | F12: =IF(VLOOKUP($C12,invullijst!$A$11:$M$196,3,FALSE)="","",VLOOKUP($C12,invullijst!$A$11:$M$196,3,FALSE)) -> Besoijen | G12: =IF(VLOOKUP($C12,invullijst!$A$11:$M$196,6,FALSE)="","",VLOOKUP($C12,invullijst!$A$11:$M$196,6,FALSE)) -> 95 | H12: =IF(VLOOKUP($C12,invullijst!$A$11:$M$196,7,FALSE)="","",VLOOKUP($C12,invullijst!$A$11:$M$196,7,FALSE)) -> 96 | I12: =IF(VLOOKUP($C12,invullijst!$A$11:$M$196,8,FALSE)="","",VLOOKUP($C12,invullijst!$A$11:$M$196,8,FALSE)) -> 96 | J12: =IF(VLOOKUP($C12,invullijst!$A$11:$M$196,9,FALSE)="","",VLOOKUP($C12,invullijst!$A$11:$M$196,9,FALSE)) -> x | K12: =IF(VLOOKUP($C12,invullijst!$A$11:$M$196,10,FALSE)="","",VLOOKUP($C12,invullijst!$A$11:$M$196,10,FALSE)) ->  | L12: =SUM(G12:K12) -> 287 | M12: =IF(VLOOKUP($C12,invullijst!$A$11:$M$196,11,FALSE)="","",VLOOKUP($C12,invullijst!$A$11:$M$196,11,FALSE)) -> 48
B13: 9 | C13: 219 | D13: =IF(VLOOKUP($C13,invullijst!$A$11:$M203,4,FALSE)="","",VLOOKUP($C13,invullijst!$A$11:$M203,4,FALSE)) -> 65+ | E13: =IF(VLOOKUP($C13,invullijst!$A$11:$M204,2,FALSE)="","",VLOOKUP($C13,invullijst!$A$11:$M204,2,FALSE)) -> Frans de Bont | F13: =IF(VLOOKUP($C13,invullijst!$A$11:$M$196,3,FALSE)="","",VLOOKUP($C13,invullijst!$A$11:$M$196,3,FALSE)) -> Besoijen | G13: =IF(VLOOKUP($C13,invullijst!$A$11:$M$196,6,FALSE)="","",VLOOKUP($C13,invullijst!$A$11:$M$196,6,FALSE)) -> 93 | H13: =IF(VLOOKUP($C13,invullijst!$A$11:$M$196,7,FALSE)="","",VLOOKUP($C13,invullijst!$A$11:$M$196,7,FALSE)) -> 96 | I13: =IF(VLOOKUP($C13,invullijst!$A$11:$M$196,8,FALSE)="","",VLOOKUP($C13,invullijst!$A$11:$M$196,8,FALSE)) -> 97 | J13: =IF(VLOOKUP($C13,invullijst!$A$11:$M$196,9,FALSE)="","",VLOOKUP($C13,invullijst!$A$11:$M$196,9,FALSE)) -> x | K13: =IF(VLOOKUP($C13,invullijst!$A$11:$M$196,10,FALSE)="","",VLOOKUP($C13,invullijst!$A$11:$M$196,10,FALSE)) ->  | L13: =SUM(G13:K13) -> 286 | M13: =IF(VLOOKUP($C13,invullijst!$A$11:$M$196,11,FALSE)="","",VLOOKUP($C13,invullijst!$A$11:$M$196,11,FALSE)) -> 48
B14: 10 | C14: 220 | D14: =IF(VLOOKUP($C14,invullijst!$A$11:$M202,4,FALSE)="","",VLOOKUP($C14,invullijst!$A$11:$M202,4,FALSE)) -> 65+ | E14: =IF(VLOOKUP($C14,invullijst!$A$11:$M202,2,FALSE)="","",VLOOKUP($C14,invullijst!$A$11:$M202,2,FALSE)) -> Kees Vos | F14: =IF(VLOOKUP($C14,invullijst!$A$11:$M$196,3,FALSE)="","",VLOOKUP($C14,invullijst!$A$11:$M$196,3,FALSE)) -> Besoijen | G14: =IF(VLOOKUP($C14,invullijst!$A$11:$M$196,6,FALSE)="","",VLOOKUP($C14,invullijst!$A$11:$M$196,6,FALSE)) -> 88 | H14: =IF(VLOOKUP($C14,invullijst!$A$11:$M$196,7,FALSE)="","",VLOOKUP($C14,invullijst!$A$11:$M$196,7,FALSE)) -> 94 | I14: =IF(VLOOKUP($C14,invullijst!$A$11:$M$196,8,FALSE)="","",VLOOKUP($C14,invullijst!$A$11:$M$196,8,FALSE)) -> 93 | J14: =IF(VLOOKUP($C14,invullijst!$A$11:$M$196,9,FALSE)="","",VLOOKUP($C14,invullijst!$A$11:$M$196,9,FALSE)) -> x | K14: =IF(VLOOKUP($C14,invullijst!$A$11:$M$196,10,FALSE)="","",VLOOKUP($C14,invullijst!$A$11:$M$196,10,FALSE)) ->  | L14: =SUM(G14:K14) -> 275 | M14: =IF(VLOOKUP($C14,invullijst!$A$11:$M$196,11,FALSE)="","",VLOOKUP($C14,invullijst!$A$11:$M$196,11,FALSE)) -> 48
B15: 11 | C15: 301 | D15: =IF(VLOOKUP($C15,invullijst!$A$11:$M219,4,FALSE)="","",VLOOKUP($C15,invullijst!$A$11:$M219,4,FALSE)) -> 65+ | E15: =IF(VLOOKUP($C15,invullijst!$A$11:$M215,2,FALSE)="","",VLOOKUP($C15,invullijst!$A$11:$M215,2,FALSE)) -> Arjen van Assem (disp) | F15: =IF(VLOOKUP($C15,invullijst!$A$11:$M$196,3,FALSE)="","",VLOOKUP($C15,invullijst!$A$11:$M$196,3,FALSE)) -> Elshout | G15: =IF(VLOOKUP($C15,invullijst!$A$11:$M$196,6,FALSE)="","",VLOOKUP($C15,invullijst!$A$11:$M$196,6,FALSE)) -> x | H15: =IF(VLOOKUP($C15,invullijst!$A$11:$M$196,7,FALSE)="","",VLOOKUP($C15,invullijst!$A$11:$M$196,7,FALSE)) -> 84 | I15: =IF(VLOOKUP($C15,invullijst!$A$11:$M$196,8,FALSE)="","",VLOOKUP($C15,invullijst!$A$11:$M$196,8,FALSE)) -> 88 | J15: =IF(VLOOKUP($C15,invullijst!$A$11:$M$196,9,FALSE)="","",VLOOKUP($C15,invullijst!$A$11:$M$196,9,FALSE)) ->  | K15: =IF(VLOOKUP($C15,invullijst!$A$11:$M$196,10,FALSE)="","",VLOOKUP($C15,invullijst!$A$11:$M$196,10,FALSE)) ->  | L15: =SUM(G15:K15) -> 172 | M15: =IF(VLOOKUP($C15,invullijst!$A$11:$M$196,11,FALSE)="","",VLOOKUP($C15,invullijst!$A$11:$M$196,11,FALSE)) -> 
B16: 12 | C16: 303 | D16: =IF(VLOOKUP($C16,invullijst!$A$11:$M204,4,FALSE)="","",VLOOKUP($C16,invullijst!$A$11:$M204,4,FALSE)) -> 65+ | E16: =IF(VLOOKUP($C16,invullijst!$A$11:$M205,2,FALSE)="","",VLOOKUP($C16,invullijst!$A$11:$M205,2,FALSE)) -> Hans van de Wiel | F16: =IF(VLOOKUP($C16,invullijst!$A$11:$M$196,3,FALSE)="","",VLOOKUP($C16,invullijst!$A$11:$M$196,3,FALSE)) -> Elshout | G16: =IF(VLOOKUP($C16,invullijst!$A$11:$M$196,6,FALSE)="","",VLOOKUP($C16,invullijst!$A$11:$M$196,6,FALSE)) -> x | H16: =IF(VLOOKUP($C16,invullijst!$A$11:$M$196,7,FALSE)="","",VLOOKUP($C16,invullijst!$A$11:$M$196,7,FALSE)) -> 96 | I16: =IF(VLOOKUP($C16,invullijst!$A$11:$M$196,8,FALSE)="","",VLOOKUP($C16,invullijst!$A$11:$M$196,8,FALSE)) -> x | J16: =IF(VLOOKUP($C16,invullijst!$A$11:$M$196,9,FALSE)="","",VLOOKUP($C16,invullijst!$A$11:$M$196,9,FALSE)) ->  | K16: =IF(VLOOKUP($C16,invullijst!$A$11:$M$196,10,FALSE)="","",VLOOKUP($C16,invullijst!$A$11:$M$196,10,FALSE)) ->  | L16: =SUM(G16:K16) -> 96 | M16: =IF(VLOOKUP($C16,invullijst!$A$11:$M$196,11,FALSE)="","",VLOOKUP($C16,invullijst!$A$11:$M$196,11,FALSE)) -> 
B17: 13 | C17: 307 | D17: =IF(VLOOKUP($C17,invullijst!$A$11:$M206,4,FALSE)="","",VLOOKUP($C17,invullijst!$A$11:$M206,4,FALSE)) -> 65+ | E17: =IF(VLOOKUP($C17,invullijst!$A$11:$M196,2,FALSE)="","",VLOOKUP($C17,invullijst!$A$11:$M196,2,FALSE)) -> Bert van Engelen | F17: =IF(VLOOKUP($C17,invullijst!$A$11:$M$196,3,FALSE)="","",VLOOKUP($C17,invullijst!$A$11:$M$196,3,FALSE)) -> Elshout | G17: =IF(VLOOKUP($C17,invullijst!$A$11:$M$196,6,FALSE)="","",VLOOKUP($C17,invullijst!$A$11:$M$196,6,FALSE)) -> x | H17: =IF(VLOOKUP($C17,invullijst!$A$11:$M$196,7,FALSE)="","",VLOOKUP($C17,invullijst!$A$11:$M$196,7,FALSE)) -> 93 | I17: =IF(VLOOKUP($C17,invullijst!$A$11:$M$196,8,FALSE)="","",VLOOKUP($C17,invullijst!$A$11:$M$196,8,FALSE)) -> 94 | J17: =IF(VLOOKUP($C17,invullijst!$A$11:$M$196,9,FALSE)="","",VLOOKUP($C17,invullijst!$A$11:$M$196,9,FALSE)) ->  | K17: =IF(VLOOKUP($C17,invullijst!$A$11:$M$196,10,FALSE)="","",VLOOKUP($C17,invullijst!$A$11:$M$196,10,FALSE)) ->  | L17: =SUM(G17:K17) -> 187 | M17: =IF(VLOOKUP($C17,invullijst!$A$11:$M$196,11,FALSE)="","",VLOOKUP($C17,invullijst!$A$11:$M$196,11,FALSE)) -> 
B18: 14 | C18: 309 | D18: =IF(VLOOKUP($C18,invullijst!$A$11:$M224,4,FALSE)="","",VLOOKUP($C18,invullijst!$A$11:$M224,4,FALSE)) -> 65+ | E18: =IF(VLOOKUP($C18,invullijst!$A$11:$M220,2,FALSE)="","",VLOOKUP($C18,invullijst!$A$11:$M220,2,FALSE)) -> René de Jong | F18: =IF(VLOOKUP($C18,invullijst!$A$11:$M$196,3,FALSE)="","",VLOOKUP($C18,invullijst!$A$11:$M$196,3,FALSE)) -> Elshout | G18: =IF(VLOOKUP($C18,invullijst!$A$11:$M$196,6,FALSE)="","",VLOOKUP($C18,invullijst!$A$11:$M$196,6,FALSE)) -> x | H18: =IF(VLOOKUP($C18,invullijst!$A$11:$M$196,7,FALSE)="","",VLOOKUP($C18,invullijst!$A$11:$M$196,7,FALSE)) -> 88 | I18: =IF(VLOOKUP($C18,invullijst!$A$11:$M$196,8,FALSE)="","",VLOOKUP($C18,invullijst!$A$11:$M$196,8,FALSE)) -> x | J18: =IF(VLOOKUP($C18,invullijst!$A$11:$M$196,9,FALSE)="","",VLOOKUP($C18,invullijst!$A$11:$M$196,9,FALSE)) ->  | K18: =IF(VLOOKUP($C18,invullijst!$A$11:$M$196,10,FALSE)="","",VLOOKUP($C18,invullijst!$A$11:$M$196,10,FALSE)) ->  | L18: =SUM(G18:K18) -> 88 | M18: =IF(VLOOKUP($C18,invullijst!$A$11:$M$196,11,FALSE)="","",VLOOKUP($C18,invullijst!$A$11:$M$196,11,FALSE)) -> 
B19: 15 | C19: 310 | D19: =IF(VLOOKUP($C19,invullijst!$A$11:$M208,4,FALSE)="","",VLOOKUP($C19,invullijst!$A$11:$M208,4,FALSE)) -> 65+ | E19: =IF(VLOOKUP($C19,invullijst!$A$11:$M207,2,FALSE)="","",VLOOKUP($C19,invullijst!$A$11:$M207,2,FALSE)) -> Tiny Boom | F19: =IF(VLOOKUP($C19,invullijst!$A$11:$M$196,3,FALSE)="","",VLOOKUP($C19,invullijst!$A$11:$M$196,3,FALSE)) -> Elshout | G19: =IF(VLOOKUP($C19,invullijst!$A$11:$M$196,6,FALSE)="","",VLOOKUP($C19,invullijst!$A$11:$M$196,6,FALSE)) -> x | H19: =IF(VLOOKUP($C19,invullijst!$A$11:$M$196,7,FALSE)="","",VLOOKUP($C19,invullijst!$A$11:$M$196,7,FALSE)) -> 92 | I19: =IF(VLOOKUP($C19,invullijst!$A$11:$M$196,8,FALSE)="","",VLOOKUP($C19,invullijst!$A$11:$M$196,8,FALSE)) -> 94 | J19: =IF(VLOOKUP($C19,invullijst!$A$11:$M$196,9,FALSE)="","",VLOOKUP($C19,invullijst!$A$11:$M$196,9,FALSE)) ->  | K19: =IF(VLOOKUP($C19,invullijst!$A$11:$M$196,10,FALSE)="","",VLOOKUP($C19,invullijst!$A$11:$M$196,10,FALSE)) ->  | L19: =SUM(G19:K19) -> 186 | M19: =IF(VLOOKUP($C19,invullijst!$A$11:$M$196,11,FALSE)="","",VLOOKUP($C19,invullijst!$A$11:$M$196,11,FALSE)) -> 
A20: B | B20: 1 | C20: 401 | D20: =IF(VLOOKUP($C20,invullijst!$A$11:$M211,4,FALSE)="","",VLOOKUP($C20,invullijst!$A$11:$M211,4,FALSE)) -> 65+ | E20: =IF(VLOOKUP($C20,invullijst!$A$11:$M211,2,FALSE)="","",VLOOKUP($C20,invullijst!$A$11:$M211,2,FALSE)) -> Frans van Beurden | F20: =IF(VLOOKUP($C20,invullijst!$A$11:$M$196,3,FALSE)="","",VLOOKUP($C20,invullijst!$A$11:$M$196,3,FALSE)) -> Haarsteeg | G20: =IF(VLOOKUP($C20,invullijst!$A$11:$M$196,6,FALSE)="","",VLOOKUP($C20,invullijst!$A$11:$M$196,6,FALSE)) -> 96 | H20: =IF(VLOOKUP($C20,invullijst!$A$11:$M$196,7,FALSE)="","",VLOOKUP($C20,invullijst!$A$11:$M$196,7,FALSE)) -> x | I20: =IF(VLOOKUP($C20,invullijst!$A$11:$M$196,8,FALSE)="","",VLOOKUP($C20,invullijst!$A$11:$M$196,8,FALSE)) -> 96 | J20: =IF(VLOOKUP($C20,invullijst!$A$11:$M$196,9,FALSE)="","",VLOOKUP($C20,invullijst!$A$11:$M$196,9,FALSE)) ->  | K20: =IF(VLOOKUP($C20,invullijst!$A$11:$M$196,10,FALSE)="","",VLOOKUP($C20,invullijst!$A$11:$M$196,10,FALSE)) ->  | L20: =SUM(G20:K20) -> 192 | M20: =IF(VLOOKUP($C20,invullijst!$A$11:$M$196,11,FALSE)="","",VLOOKUP($C20,invullijst!$A$11:$M$196,11,FALSE)) -> 
B21: 2 | C21: 403 | D21: =IF(VLOOKUP($C21,invullijst!$A$11:$M200,4,FALSE)="","",VLOOKUP($C21,invullijst!$A$11:$M200,4,FALSE)) -> 65+ | E21: =IF(VLOOKUP($C21,invullijst!$A$11:$M200,2,FALSE)="","",VLOOKUP($C21,invullijst!$A$11:$M200,2,FALSE)) -> Dorien de Kort | F21: =IF(VLOOKUP($C21,invullijst!$A$11:$M$196,3,FALSE)="","",VLOOKUP($C21,invullijst!$A$11:$M$196,3,FALSE)) -> Haarsteeg | G21: =IF(VLOOKUP($C21,invullijst!$A$11:$M$196,6,FALSE)="","",VLOOKUP($C21,invullijst!$A$11:$M$196,6,FALSE)) -> 91 | H21: =IF(VLOOKUP($C21,invullijst!$A$11:$M$196,7,FALSE)="","",VLOOKUP($C21,invullijst!$A$11:$M$196,7,FALSE)) -> x | I21: =IF(VLOOKUP($C21,invullijst!$A$11:$M$196,8,FALSE)="","",VLOOKUP($C21,invullijst!$A$11:$M$196,8,FALSE)) -> 96 | J21: =IF(VLOOKUP($C21,invullijst!$A$11:$M$196,9,FALSE)="","",VLOOKUP($C21,invullijst!$A$11:$M$196,9,FALSE)) ->  | K21: =IF(VLOOKUP($C21,invullijst!$A$11:$M$196,10,FALSE)="","",VLOOKUP($C21,invullijst!$A$11:$M$196,10,FALSE)) ->  | L21: =SUM(G21:K21) -> 187 | M21: =IF(VLOOKUP($C21,invullijst!$A$11:$M$196,11,FALSE)="","",VLOOKUP($C21,invullijst!$A$11:$M$196,11,FALSE)) -> 
B22: 3 | C22: 404 | D22: =IF(VLOOKUP($C22,invullijst!$A$11:$M212,4,FALSE)="","",VLOOKUP($C22,invullijst!$A$11:$M212,4,FALSE)) -> 65+ | E22: =IF(VLOOKUP($C22,invullijst!$A$11:$M206,2,FALSE)="","",VLOOKUP($C22,invullijst!$A$11:$M206,2,FALSE)) -> Gerard van Beurden | F22: =IF(VLOOKUP($C22,invullijst!$A$11:$M$196,3,FALSE)="","",VLOOKUP($C22,invullijst!$A$11:$M$196,3,FALSE)) -> Haarsteeg | G22: =IF(VLOOKUP($C22,invullijst!$A$11:$M$196,6,FALSE)="","",VLOOKUP($C22,invullijst!$A$11:$M$196,6,FALSE)) -> 92 | H22: =IF(VLOOKUP($C22,invullijst!$A$11:$M$196,7,FALSE)="","",VLOOKUP($C22,invullijst!$A$11:$M$196,7,FALSE)) -> x | I22: =IF(VLOOKUP($C22,invullijst!$A$11:$M$196,8,FALSE)="","",VLOOKUP($C22,invullijst!$A$11:$M$196,8,FALSE)) -> 98 | J22: =IF(VLOOKUP($C22,invullijst!$A$11:$M$196,9,FALSE)="","",VLOOKUP($C22,invullijst!$A$11:$M$196,9,FALSE)) ->  | K22: =IF(VLOOKUP($C22,invullijst!$A$11:$M$196,10,FALSE)="","",VLOOKUP($C22,invullijst!$A$11:$M$196,10,FALSE)) ->  | L22: =SUM(G22:K22) -> 190 | M22: =IF(VLOOKUP($C22,invullijst!$A$11:$M$196,11,FALSE)="","",VLOOKUP($C22,invullijst!$A$11:$M$196,11,FALSE)) -> 
B23: 4 | C23: 405 | D23: =IF(VLOOKUP($C23,invullijst!$A$11:$M225,4,FALSE)="","",VLOOKUP($C23,invullijst!$A$11:$M225,4,FALSE)) -> 65+ | E23: =IF(VLOOKUP($C23,invullijst!$A$11:$M221,2,FALSE)="","",VLOOKUP($C23,invullijst!$A$11:$M221,2,FALSE)) -> Jan de Vaan | F23: =IF(VLOOKUP($C23,invullijst!$A$11:$M$196,3,FALSE)="","",VLOOKUP($C23,invullijst!$A$11:$M$196,3,FALSE)) -> Haarsteeg | G23: =IF(VLOOKUP($C23,invullijst!$A$11:$M$196,6,FALSE)="","",VLOOKUP($C23,invullijst!$A$11:$M$196,6,FALSE)) -> 95 | H23: =IF(VLOOKUP($C23,invullijst!$A$11:$M$196,7,FALSE)="","",VLOOKUP($C23,invullijst!$A$11:$M$196,7,FALSE)) -> x | I23: =IF(VLOOKUP($C23,invullijst!$A$11:$M$196,8,FALSE)="","",VLOOKUP($C23,invullijst!$A$11:$M$196,8,FALSE)) -> 96 | J23: =IF(VLOOKUP($C23,invullijst!$A$11:$M$196,9,FALSE)="","",VLOOKUP($C23,invullijst!$A$11:$M$196,9,FALSE)) ->  | K23: =IF(VLOOKUP($C23,invullijst!$A$11:$M$196,10,FALSE)="","",VLOOKUP($C23,invullijst!$A$11:$M$196,10,FALSE)) ->  | L23: =SUM(G23:K23) -> 191 | M23: =IF(VLOOKUP($C23,invullijst!$A$11:$M$196,11,FALSE)="","",VLOOKUP($C23,invullijst!$A$11:$M$196,11,FALSE)) -> 
B24: 5 | C24: 412 | D24: =IF(VLOOKUP($C24,invullijst!$A$11:$M216,4,FALSE)="","",VLOOKUP($C24,invullijst!$A$11:$M216,4,FALSE)) -> 65+ | E24: =IF(VLOOKUP($C24,invullijst!$A$11:$M210,2,FALSE)="","",VLOOKUP($C24,invullijst!$A$11:$M210,2,FALSE)) -> Francien v/d Wiel | F24: =IF(VLOOKUP($C24,invullijst!$A$11:$M$196,3,FALSE)="","",VLOOKUP($C24,invullijst!$A$11:$M$196,3,FALSE)) -> Haarsteeg | G24: =IF(VLOOKUP($C24,invullijst!$A$11:$M$196,6,FALSE)="","",VLOOKUP($C24,invullijst!$A$11:$M$196,6,FALSE)) -> 87 | H24: =IF(VLOOKUP($C24,invullijst!$A$11:$M$196,7,FALSE)="","",VLOOKUP($C24,invullijst!$A$11:$M$196,7,FALSE)) -> x | I24: =IF(VLOOKUP($C24,invullijst!$A$11:$M$196,8,FALSE)="","",VLOOKUP($C24,invullijst!$A$11:$M$196,8,FALSE)) -> 95 | J24: =IF(VLOOKUP($C24,invullijst!$A$11:$M$196,9,FALSE)="","",VLOOKUP($C24,invullijst!$A$11:$M$196,9,FALSE)) ->  | K24: =IF(VLOOKUP($C24,invullijst!$A$11:$M$196,10,FALSE)="","",VLOOKUP($C24,invullijst!$A$11:$M$196,10,FALSE)) ->  | L24: =SUM(G24:K24) -> 182 | M24: =IF(VLOOKUP($C24,invullijst!$A$11:$M$196,11,FALSE)="","",VLOOKUP($C24,invullijst!$A$11:$M$196,11,FALSE)) -> 
B25: 6 | C25: 413 | D25: =IF(VLOOKUP($C25,invullijst!$A$11:$M201,4,FALSE)="","",VLOOKUP($C25,invullijst!$A$11:$M201,4,FALSE)) -> 65+ | E25: =IF(VLOOKUP($C25,invullijst!$A$11:$M212,2,FALSE)="","",VLOOKUP($C25,invullijst!$A$11:$M212,2,FALSE)) -> Frans Mommersteeg | F25: =IF(VLOOKUP($C25,invullijst!$A$11:$M$196,3,FALSE)="","",VLOOKUP($C25,invullijst!$A$11:$M$196,3,FALSE)) -> Haarsteeg | G25: =IF(VLOOKUP($C25,invullijst!$A$11:$M$196,6,FALSE)="","",VLOOKUP($C25,invullijst!$A$11:$M$196,6,FALSE)) -> 93 | H25: =IF(VLOOKUP($C25,invullijst!$A$11:$M$196,7,FALSE)="","",VLOOKUP($C25,invullijst!$A$11:$M$196,7,FALSE)) -> x | I25: =IF(VLOOKUP($C25,invullijst!$A$11:$M$196,8,FALSE)="","",VLOOKUP($C25,invullijst!$A$11:$M$196,8,FALSE)) -> 97 | J25: =IF(VLOOKUP($C25,invullijst!$A$11:$M$196,9,FALSE)="","",VLOOKUP($C25,invullijst!$A$11:$M$196,9,FALSE)) ->  | K25: =IF(VLOOKUP($C25,invullijst!$A$11:$M$196,10,FALSE)="","",VLOOKUP($C25,invullijst!$A$11:$M$196,10,FALSE)) ->  | L25: =SUM(G25:K25) -> 190 | M25: =IF(VLOOKUP($C25,invullijst!$A$11:$M$196,11,FALSE)="","",VLOOKUP($C25,invullijst!$A$11:$M$196,11,FALSE)) -> 
B26: 7 | C26: 414 | D26: =IF(VLOOKUP($C26,invullijst!$A$11:$M197,4,FALSE)="","",VLOOKUP($C26,invullijst!$A$11:$M197,4,FALSE)) -> 65+ | E26: =IF(VLOOKUP($C26,invullijst!$A$11:$M198,2,FALSE)="","",VLOOKUP($C26,invullijst!$A$11:$M198,2,FALSE)) -> Alex Hus | F26: =IF(VLOOKUP($C26,invullijst!$A$11:$M$196,3,FALSE)="","",VLOOKUP($C26,invullijst!$A$11:$M$196,3,FALSE)) -> Haarsteeg | G26: =IF(VLOOKUP($C26,invullijst!$A$11:$M$196,6,FALSE)="","",VLOOKUP($C26,invullijst!$A$11:$M$196,6,FALSE)) -> 73 | H26: =IF(VLOOKUP($C26,invullijst!$A$11:$M$196,7,FALSE)="","",VLOOKUP($C26,invullijst!$A$11:$M$196,7,FALSE)) -> x | I26: =IF(VLOOKUP($C26,invullijst!$A$11:$M$196,8,FALSE)="","",VLOOKUP($C26,invullijst!$A$11:$M$196,8,FALSE)) -> 90 | J26: =IF(VLOOKUP($C26,invullijst!$A$11:$M$196,9,FALSE)="","",VLOOKUP($C26,invullijst!$A$11:$M$196,9,FALSE)) ->  | K26: =IF(VLOOKUP($C26,invullijst!$A$11:$M$196,10,FALSE)="","",VLOOKUP($C26,invullijst!$A$11:$M$196,10,FALSE)) ->  | L26: =SUM(G26:K26) -> 163 | M26: =IF(VLOOKUP($C26,invullijst!$A$11:$M$196,11,FALSE)="","",VLOOKUP($C26,invullijst!$A$11:$M$196,11,FALSE)) -> 
B27: 8 | C27: 415 | D27: =IF(VLOOKUP($C27,invullijst!$A$11:$M199,4,FALSE)="","",VLOOKUP($C27,invullijst!$A$11:$M199,4,FALSE)) -> 65+ | E27: =IF(VLOOKUP($C27,invullijst!$A$11:$M201,2,FALSE)="","",VLOOKUP($C27,invullijst!$A$11:$M201,2,FALSE)) -> Wim de Gouw | F27: =IF(VLOOKUP($C27,invullijst!$A$11:$M$196,3,FALSE)="","",VLOOKUP($C27,invullijst!$A$11:$M$196,3,FALSE)) -> Haarsteeg | G27: =IF(VLOOKUP($C27,invullijst!$A$11:$M$196,6,FALSE)="","",VLOOKUP($C27,invullijst!$A$11:$M$196,6,FALSE)) -> 96 | H27: =IF(VLOOKUP($C27,invullijst!$A$11:$M$196,7,FALSE)="","",VLOOKUP($C27,invullijst!$A$11:$M$196,7,FALSE)) -> x | I27: =IF(VLOOKUP($C27,invullijst!$A$11:$M$196,8,FALSE)="","",VLOOKUP($C27,invullijst!$A$11:$M$196,8,FALSE)) -> 97 | J27: =IF(VLOOKUP($C27,invullijst!$A$11:$M$196,9,FALSE)="","",VLOOKUP($C27,invullijst!$A$11:$M$196,9,FALSE)) ->  | K27: =IF(VLOOKUP($C27,invullijst!$A$11:$M$196,10,FALSE)="","",VLOOKUP($C27,invullijst!$A$11:$M$196,10,FALSE)) ->  | L27: =SUM(G27:K27) -> 193 | M27: =IF(VLOOKUP($C27,invullijst!$A$11:$M$196,11,FALSE)="","",VLOOKUP($C27,invullijst!$A$11:$M$196,11,FALSE)) -> 
B28: 9 | C28: 503 | D28: =IF(VLOOKUP($C28,invullijst!$A$11:$M198,4,FALSE)="","",VLOOKUP($C28,invullijst!$A$11:$M198,4,FALSE)) -> 65+ | E28: =IF(VLOOKUP($C28,invullijst!$A$11:$M199,2,FALSE)="","",VLOOKUP($C28,invullijst!$A$11:$M199,2,FALSE)) -> Kees Vos (disp) | F28: =IF(VLOOKUP($C28,invullijst!$A$11:$M$196,3,FALSE)="","",VLOOKUP($C28,invullijst!$A$11:$M$196,3,FALSE)) -> Kaatsheuvel | G28: =IF(VLOOKUP($C28,invullijst!$A$11:$M$196,6,FALSE)="","",VLOOKUP($C28,invullijst!$A$11:$M$196,6,FALSE)) -> 87 | H28: =IF(VLOOKUP($C28,invullijst!$A$11:$M$196,7,FALSE)="","",VLOOKUP($C28,invullijst!$A$11:$M$196,7,FALSE)) -> 82 | I28: =IF(VLOOKUP($C28,invullijst!$A$11:$M$196,8,FALSE)="","",VLOOKUP($C28,invullijst!$A$11:$M$196,8,FALSE)) -> x | J28: =IF(VLOOKUP($C28,invullijst!$A$11:$M$196,9,FALSE)="","",VLOOKUP($C28,invullijst!$A$11:$M$196,9,FALSE)) ->  | K28: =IF(VLOOKUP($C28,invullijst!$A$11:$M$196,10,FALSE)="","",VLOOKUP($C28,invullijst!$A$11:$M$196,10,FALSE)) ->  | L28: =SUM(G28:K28) -> 169 | M28: =IF(VLOOKUP($C28,invullijst!$A$11:$M$196,11,FALSE)="","",VLOOKUP($C28,invullijst!$A$11:$M$196,11,FALSE)) -> 
B29: 10 | C29: 509 | D29: =IF(VLOOKUP($C29,invullijst!$A$11:$M210,4,FALSE)="","",VLOOKUP($C29,invullijst!$A$11:$M210,4,FALSE)) -> 65+ | E29: =IF(VLOOKUP($C29,invullijst!$A$11:$M211,2,FALSE)="","",VLOOKUP($C29,invullijst!$A$11:$M211,2,FALSE)) -> Adwan de Pinth | F29: =IF(VLOOKUP($C29,invullijst!$A$11:$M$196,3,FALSE)="","",VLOOKUP($C29,invullijst!$A$11:$M$196,3,FALSE)) -> Kaatsheuvel | G29: =IF(VLOOKUP($C29,invullijst!$A$11:$M$196,6,FALSE)="","",VLOOKUP($C29,invullijst!$A$11:$M$196,6,FALSE)) -> 96 | H29: =IF(VLOOKUP($C29,invullijst!$A$11:$M$196,7,FALSE)="","",VLOOKUP($C29,invullijst!$A$11:$M$196,7,FALSE)) -> 96 | I29: =IF(VLOOKUP($C29,invullijst!$A$11:$M$196,8,FALSE)="","",VLOOKUP($C29,invullijst!$A$11:$M$196,8,FALSE)) -> x | J29: =IF(VLOOKUP($C29,invullijst!$A$11:$M$196,9,FALSE)="","",VLOOKUP($C29,invullijst!$A$11:$M$196,9,FALSE)) ->  | K29: =IF(VLOOKUP($C29,invullijst!$A$11:$M$196,10,FALSE)="","",VLOOKUP($C29,invullijst!$A$11:$M$196,10,FALSE)) ->  | L29: =SUM(G29:K29) -> 192 | M29: =IF(VLOOKUP($C29,invullijst!$A$11:$M$196,11,FALSE)="","",VLOOKUP($C29,invullijst!$A$11:$M$196,11,FALSE)) -> 
B30: 11 | C30: 515 | D30: =IF(VLOOKUP($C30,invullijst!$A$11:$M220,4,FALSE)="","",VLOOKUP($C30,invullijst!$A$11:$M220,4,FALSE)) -> 65+ | E30: =IF(VLOOKUP($C30,invullijst!$A$11:$M216,2,FALSE)="","",VLOOKUP($C30,invullijst!$A$11:$M216,2,FALSE)) -> Ilona Bergakker (disp) | F30: =IF(VLOOKUP($C30,invullijst!$A$11:$M$196,3,FALSE)="","",VLOOKUP($C30,invullijst!$A$11:$M$196,3,FALSE)) -> Kaatsheuvel | G30: =IF(VLOOKUP($C30,invullijst!$A$11:$M$196,6,FALSE)="","",VLOOKUP($C30,invullijst!$A$11:$M$196,6,FALSE)) -> 89 | H30: =IF(VLOOKUP($C30,invullijst!$A$11:$M$196,7,FALSE)="","",VLOOKUP($C30,invullijst!$A$11:$M$196,7,FALSE)) -> 87 | I30: =IF(VLOOKUP($C30,invullijst!$A$11:$M$196,8,FALSE)="","",VLOOKUP($C30,invullijst!$A$11:$M$196,8,FALSE)) -> x | J30: =IF(VLOOKUP($C30,invullijst!$A$11:$M$196,9,FALSE)="","",VLOOKUP($C30,invullijst!$A$11:$M$196,9,FALSE)) ->  | K30: =IF(VLOOKUP($C30,invullijst!$A$11:$M$196,10,FALSE)="","",VLOOKUP($C30,invullijst!$A$11:$M$196,10,FALSE)) ->  | L30: =SUM(G30:K30) -> 176 | M30: =IF(VLOOKUP($C30,invullijst!$A$11:$M$196,11,FALSE)="","",VLOOKUP($C30,invullijst!$A$11:$M$196,11,FALSE)) -> 
B31: 12 | C31: 516 | D31: =IF(VLOOKUP($C31,invullijst!$A$11:$M221,4,FALSE)="","",VLOOKUP($C31,invullijst!$A$11:$M221,4,FALSE)) -> 65+ | E31: =IF(VLOOKUP($C31,invullijst!$A$11:$M217,2,FALSE)="","",VLOOKUP($C31,invullijst!$A$11:$M217,2,FALSE)) -> Henry Bergakker (disp) | F31: =IF(VLOOKUP($C31,invullijst!$A$11:$M$196,3,FALSE)="","",VLOOKUP($C31,invullijst!$A$11:$M$196,3,FALSE)) -> Kaatsheuvel | G31: =IF(VLOOKUP($C31,invullijst!$A$11:$M$196,6,FALSE)="","",VLOOKUP($C31,invullijst!$A$11:$M$196,6,FALSE)) -> 93 | H31: =IF(VLOOKUP($C31,invullijst!$A$11:$M$196,7,FALSE)="","",VLOOKUP($C31,invullijst!$A$11:$M$196,7,FALSE)) -> 81 | I31: =IF(VLOOKUP($C31,invullijst!$A$11:$M$196,8,FALSE)="","",VLOOKUP($C31,invullijst!$A$11:$M$196,8,FALSE)) -> x | J31: =IF(VLOOKUP($C31,invullijst!$A$11:$M$196,9,FALSE)="","",VLOOKUP($C31,invullijst!$A$11:$M$196,9,FALSE)) ->  | K31: =IF(VLOOKUP($C31,invullijst!$A$11:$M$196,10,FALSE)="","",VLOOKUP($C31,invullijst!$A$11:$M$196,10,FALSE)) ->  | L31: =SUM(G31:K31) -> 174 | M31: =IF(VLOOKUP($C31,invullijst!$A$11:$M$196,11,FALSE)="","",VLOOKUP($C31,invullijst!$A$11:$M$196,11,FALSE)) -> 
B32: 13 | C32: 517 | D32: =IF(VLOOKUP($C32,invullijst!$A$11:$M222,4,FALSE)="","",VLOOKUP($C32,invullijst!$A$11:$M222,4,FALSE)) -> 65+ | E32: =IF(VLOOKUP($C32,invullijst!$A$11:$M218,2,FALSE)="","",VLOOKUP($C32,invullijst!$A$11:$M218,2,FALSE)) -> Diny Vos (disp) | F32: =IF(VLOOKUP($C32,invullijst!$A$11:$M$196,3,FALSE)="","",VLOOKUP($C32,invullijst!$A$11:$M$196,3,FALSE)) -> Kaatsheuvel | G32: =IF(VLOOKUP($C32,invullijst!$A$11:$M$196,6,FALSE)="","",VLOOKUP($C32,invullijst!$A$11:$M$196,6,FALSE)) -> 90 | H32: =IF(VLOOKUP($C32,invullijst!$A$11:$M$196,7,FALSE)="","",VLOOKUP($C32,invullijst!$A$11:$M$196,7,FALSE)) -> 95 | I32: =IF(VLOOKUP($C32,invullijst!$A$11:$M$196,8,FALSE)="","",VLOOKUP($C32,invullijst!$A$11:$M$196,8,FALSE)) -> x | J32: =IF(VLOOKUP($C32,invullijst!$A$11:$M$196,9,FALSE)="","",VLOOKUP($C32,invullijst!$A$11:$M$196,9,FALSE)) ->  | K32: =IF(VLOOKUP($C32,invullijst!$A$11:$M$196,10,FALSE)="","",VLOOKUP($C32,invullijst!$A$11:$M$196,10,FALSE)) ->  | L32: =SUM(G32:K32) -> 185 | M32: =IF(VLOOKUP($C32,invullijst!$A$11:$M$196,11,FALSE)="","",VLOOKUP($C32,invullijst!$A$11:$M$196,11,FALSE)) -> 
B33: 14 | C33: 518 | D33: =IF(VLOOKUP($C33,invullijst!$A$11:$M223,4,FALSE)="","",VLOOKUP($C33,invullijst!$A$11:$M223,4,FALSE)) -> 65+ | E33: =IF(VLOOKUP($C33,invullijst!$A$11:$M219,2,FALSE)="","",VLOOKUP($C33,invullijst!$A$11:$M219,2,FALSE)) -> Ton Stanz | F33: =IF(VLOOKUP($C33,invullijst!$A$11:$M$196,3,FALSE)="","",VLOOKUP($C33,invullijst!$A$11:$M$196,3,FALSE)) -> Kaatsheuvel | G33: =IF(VLOOKUP($C33,invullijst!$A$11:$M$196,6,FALSE)="","",VLOOKUP($C33,invullijst!$A$11:$M$196,6,FALSE)) -> 80 | H33: =IF(VLOOKUP($C33,invullijst!$A$11:$M$196,7,FALSE)="","",VLOOKUP($C33,invullijst!$A$11:$M$196,7,FALSE)) -> 88 | I33: =IF(VLOOKUP($C33,invullijst!$A$11:$M$196,8,FALSE)="","",VLOOKUP($C33,invullijst!$A$11:$M$196,8,FALSE)) -> x | J33: =IF(VLOOKUP($C33,invullijst!$A$11:$M$196,9,FALSE)="","",VLOOKUP($C33,invullijst!$A$11:$M$196,9,FALSE)) ->  | K33: =IF(VLOOKUP($C33,invullijst!$A$11:$M$196,10,FALSE)="","",VLOOKUP($C33,invullijst!$A$11:$M$196,10,FALSE)) ->  | L33: =SUM(G33:K33) -> 168 | M33: =IF(VLOOKUP($C33,invullijst!$A$11:$M$196,11,FALSE)="","",VLOOKUP($C33,invullijst!$A$11:$M$196,11,FALSE)) -> 
D34: =IF(VLOOKUP($C34,invullijst!$A$11:$M226,4,FALSE)="","",VLOOKUP($C34,invullijst!$A$11:$M226,4,FALSE)) -> 0 | E34: =IF(VLOOKUP($C34,invullijst!$A$11:$M222,2,FALSE)="","",VLOOKUP($C34,invullijst!$A$11:$M222,2,FALSE)) -> 0 | F34: =IF(VLOOKUP($C34,invullijst!$A$11:$M$196,3,FALSE)="","",VLOOKUP($C34,invullijst!$A$11:$M$196,3,FALSE)) -> 0 | G34: =IF(VLOOKUP($C34,invullijst!$A$11:$M$196,6,FALSE)="","",VLOOKUP($C34,invullijst!$A$11:$M$196,6,FALSE)) -> 0 | H34: =IF(VLOOKUP($C34,invullijst!$A$11:$M$196,7,FALSE)="","",VLOOKUP($C34,invullijst!$A$11:$M$196,7,FALSE)) -> 0 | I34: =IF(VLOOKUP($C34,invullijst!$A$11:$M$196,8,FALSE)="","",VLOOKUP($C34,invullijst!$A$11:$M$196,8,FALSE)) -> 0 | J34: =IF(VLOOKUP($C34,invullijst!$A$11:$M$196,9,FALSE)="","",VLOOKUP($C34,invullijst!$A$11:$M$196,9,FALSE)) -> 0 | K34: =IF(VLOOKUP($C34,invullijst!$A$11:$M$196,10,FALSE)="","",VLOOKUP($C34,invullijst!$A$11:$M$196,10,FALSE)) -> 0 | L34: =SUM(G34:K34) -> 0 | M34: =IF(VLOOKUP($C34,invullijst!$A$11:$M$196,11,FALSE)="","",VLOOKUP($C34,invullijst!$A$11:$M$196,11,FALSE)) -> 0
D35: =IF(VLOOKUP($C35,invullijst!$A$11:$M227,4,FALSE)="","",VLOOKUP($C35,invullijst!$A$11:$M227,4,FALSE)) -> 0 | E35: =IF(VLOOKUP($C35,invullijst!$A$11:$M223,2,FALSE)="","",VLOOKUP($C35,invullijst!$A$11:$M223,2,FALSE)) -> 0 | F35: =IF(VLOOKUP($C35,invullijst!$A$11:$M$196,3,FALSE)="","",VLOOKUP($C35,invullijst!$A$11:$M$196,3,FALSE)) -> 0 | G35: =IF(VLOOKUP($C35,invullijst!$A$11:$M$196,6,FALSE)="","",VLOOKUP($C35,invullijst!$A$11:$M$196,6,FALSE)) -> 0 | H35: =IF(VLOOKUP($C35,invullijst!$A$11:$M$196,7,FALSE)="","",VLOOKUP($C35,invullijst!$A$11:$M$196,7,FALSE)) -> 0 | I35: =IF(VLOOKUP($C35,invullijst!$A$11:$M$196,8,FALSE)="","",VLOOKUP($C35,invullijst!$A$11:$M$196,8,FALSE)) -> 0 | J35: =IF(VLOOKUP($C35,invullijst!$A$11:$M$196,9,FALSE)="","",VLOOKUP($C35,invullijst!$A$11:$M$196,9,FALSE)) -> 0 | K35: =IF(VLOOKUP($C35,invullijst!$A$11:$M$196,10,FALSE)="","",VLOOKUP($C35,invullijst!$A$11:$M$196,10,FALSE)) -> 0 | L35: =SUM(G35:K35) -> 0 | M35: =IF(VLOOKUP($C35,invullijst!$A$11:$M$196,11,FALSE)="","",VLOOKUP($C35,invullijst!$A$11:$M$196,11,FALSE)) -> 0
D36: =IF(VLOOKUP($C36,invullijst!$A$11:$M228,4,FALSE)="","",VLOOKUP($C36,invullijst!$A$11:$M228,4,FALSE)) -> 0 | E36: =IF(VLOOKUP($C36,invullijst!$A$11:$M224,2,FALSE)="","",VLOOKUP($C36,invullijst!$A$11:$M224,2,FALSE)) -> 0 | F36: =IF(VLOOKUP($C36,invullijst!$A$11:$M$196,3,FALSE)="","",VLOOKUP($C36,invullijst!$A$11:$M$196,3,FALSE)) -> 0 | G36: =IF(VLOOKUP($C36,invullijst!$A$11:$M$196,6,FALSE)="","",VLOOKUP($C36,invullijst!$A$11:$M$196,6,FALSE)) -> 0 | H36: =IF(VLOOKUP($C36,invullijst!$A$11:$M$196,7,FALSE)="","",VLOOKUP($C36,invullijst!$A$11:$M$196,7,FALSE)) -> 0 | I36: =IF(VLOOKUP($C36,invullijst!$A$11:$M$196,8,FALSE)="","",VLOOKUP($C36,invullijst!$A$11:$M$196,8,FALSE)) -> 0 | J36: =IF(VLOOKUP($C36,invullijst!$A$11:$M$196,9,FALSE)="","",VLOOKUP($C36,invullijst!$A$11:$M$196,9,FALSE)) -> 0 | K36: =IF(VLOOKUP($C36,invullijst!$A$11:$M$196,10,FALSE)="","",VLOOKUP($C36,invullijst!$A$11:$M$196,10,FALSE)) -> 0 | L36: =SUM(G36:K36) -> 0 | M36: =IF(VLOOKUP($C36,invullijst!$A$11:$M$196,11,FALSE)="","",VLOOKUP($C36,invullijst!$A$11:$M$196,11,FALSE)) -> 0
D37: =IF(VLOOKUP($C37,invullijst!$A$11:$M229,4,FALSE)="","",VLOOKUP($C37,invullijst!$A$11:$M229,4,FALSE)) -> 0 | E37: =IF(VLOOKUP($C37,invullijst!$A$11:$M225,2,FALSE)="","",VLOOKUP($C37,invullijst!$A$11:$M225,2,FALSE)) -> 0 | F37: =IF(VLOOKUP($C37,invullijst!$A$11:$M$196,3,FALSE)="","",VLOOKUP($C37,invullijst!$A$11:$M$196,3,FALSE)) -> 0 | G37: =IF(VLOOKUP($C37,invullijst!$A$11:$M$196,6,FALSE)="","",VLOOKUP($C37,invullijst!$A$11:$M$196,6,FALSE)) -> 0 | H37: =IF(VLOOKUP($C37,invullijst!$A$11:$M$196,7,FALSE)="","",VLOOKUP($C37,invullijst!$A$11:$M$196,7,FALSE)) -> 0 | I37: =IF(VLOOKUP($C37,invullijst!$A$11:$M$196,8,FALSE)="","",VLOOKUP($C37,invullijst!$A$11:$M$196,8,FALSE)) -> 0 | J37: =IF(VLOOKUP($C37,invullijst!$A$11:$M$196,9,FALSE)="","",VLOOKUP($C37,invullijst!$A$11:$M$196,9,FALSE)) -> 0 | K37: =IF(VLOOKUP($C37,invullijst!$A$11:$M$196,10,FALSE)="","",VLOOKUP($C37,invullijst!$A$11:$M$196,10,FALSE)) -> 0 | L37: =SUM(G37:K37) -> 0 | M37: =IF(VLOOKUP($C37,invullijst!$A$11:$M$196,11,FALSE)="","",VLOOKUP($C37,invullijst!$A$11:$M$196,11,FALSE)) -> 0
D38: =IF(VLOOKUP($C38,invullijst!$A$11:$M230,4,FALSE)="","",VLOOKUP($C38,invullijst!$A$11:$M230,4,FALSE)) -> 0 | E38: =IF(VLOOKUP($C38,invullijst!$A$11:$M226,2,FALSE)="","",VLOOKUP($C38,invullijst!$A$11:$M226,2,FALSE)) -> 0 | F38: =IF(VLOOKUP($C38,invullijst!$A$11:$M$196,3,FALSE)="","",VLOOKUP($C38,invullijst!$A$11:$M$196,3,FALSE)) -> 0 | G38: =IF(VLOOKUP($C38,invullijst!$A$11:$M$196,6,FALSE)="","",VLOOKUP($C38,invullijst!$A$11:$M$196,6,FALSE)) -> 0 | H38: =IF(VLOOKUP($C38,invullijst!$A$11:$M$196,7,FALSE)="","",VLOOKUP($C38,invullijst!$A$11:$M$196,7,FALSE)) -> 0 | I38: =IF(VLOOKUP($C38,invullijst!$A$11:$M$196,8,FALSE)="","",VLOOKUP($C38,invullijst!$A$11:$M$196,8,FALSE)) -> 0 | J38: =IF(VLOOKUP($C38,invullijst!$A$11:$M$196,9,FALSE)="","",VLOOKUP($C38,invullijst!$A$11:$M$196,9,FALSE)) -> 0 | K38: =IF(VLOOKUP($C38,invullijst!$A$11:$M$196,10,FALSE)="","",VLOOKUP($C38,invullijst!$A$11:$M$196,10,FALSE)) -> 0 | L38: =SUM(G38:K38) -> 0 | M38: =IF(VLOOKUP($C38,invullijst!$A$11:$M$196,11,FALSE)="","",VLOOKUP($C38,invullijst!$A$11:$M$196,11,FALSE)) -> 0
D39: =IF(VLOOKUP($C39,invullijst!$A$11:$M231,4,FALSE)="","",VLOOKUP($C39,invullijst!$A$11:$M231,4,FALSE)) -> 0 | E39: =IF(VLOOKUP($C39,invullijst!$A$11:$M227,2,FALSE)="","",VLOOKUP($C39,invullijst!$A$11:$M227,2,FALSE)) -> 0 | F39: =IF(VLOOKUP($C39,invullijst!$A$11:$M$196,3,FALSE)="","",VLOOKUP($C39,invullijst!$A$11:$M$196,3,FALSE)) -> 0 | G39: =IF(VLOOKUP($C39,invullijst!$A$11:$M$196,6,FALSE)="","",VLOOKUP($C39,invullijst!$A$11:$M$196,6,FALSE)) -> 0 | H39: =IF(VLOOKUP($C39,invullijst!$A$11:$M$196,7,FALSE)="","",VLOOKUP($C39,invullijst!$A$11:$M$196,7,FALSE)) -> 0 | I39: =IF(VLOOKUP($C39,invullijst!$A$11:$M$196,8,FALSE)="","",VLOOKUP($C39,invullijst!$A$11:$M$196,8,FALSE)) -> 0 | J39: =IF(VLOOKUP($C39,invullijst!$A$11:$M$196,9,FALSE)="","",VLOOKUP($C39,invullijst!$A$11:$M$196,9,FALSE)) -> 0 | K39: =IF(VLOOKUP($C39,invullijst!$A$11:$M$196,10,FALSE)="","",VLOOKUP($C39,invullijst!$A$11:$M$196,10,FALSE)) -> 0 | L39: =SUM(G39:K39) -> 0 | M39: =IF(VLOOKUP($C39,invullijst!$A$11:$M$196,11,FALSE)="","",VLOOKUP($C39,invullijst!$A$11:$M$196,11,FALSE)) -> 0
D40: =IF(VLOOKUP($C40,invullijst!$A$11:$M232,4,FALSE)="","",VLOOKUP($C40,invullijst!$A$11:$M232,4,FALSE)) -> 0 | E40: =IF(VLOOKUP($C40,invullijst!$A$11:$M228,2,FALSE)="","",VLOOKUP($C40,invullijst!$A$11:$M228,2,FALSE)) -> 0 | F40: =IF(VLOOKUP($C40,invullijst!$A$11:$M$196,3,FALSE)="","",VLOOKUP($C40,invullijst!$A$11:$M$196,3,FALSE)) -> 0 | G40: =IF(VLOOKUP($C40,invullijst!$A$11:$M$196,6,FALSE)="","",VLOOKUP($C40,invullijst!$A$11:$M$196,6,FALSE)) -> 0 | H40: =IF(VLOOKUP($C40,invullijst!$A$11:$M$196,7,FALSE)="","",VLOOKUP($C40,invullijst!$A$11:$M$196,7,FALSE)) -> 0 | I40: =IF(VLOOKUP($C40,invullijst!$A$11:$M$196,8,FALSE)="","",VLOOKUP($C40,invullijst!$A$11:$M$196,8,FALSE)) -> 0 | J40: =IF(VLOOKUP($C40,invullijst!$A$11:$M$196,9,FALSE)="","",VLOOKUP($C40,invullijst!$A$11:$M$196,9,FALSE)) -> 0 | K40: =IF(VLOOKUP($C40,invullijst!$A$11:$M$196,10,FALSE)="","",VLOOKUP($C40,invullijst!$A$11:$M$196,10,FALSE)) -> 0 | L40: =SUM(G40:K40) -> 0 | M40: =IF(VLOOKUP($C40,invullijst!$A$11:$M$196,11,FALSE)="","",VLOOKUP($C40,invullijst!$A$11:$M$196,11,FALSE)) -> 0
D41: =IF(VLOOKUP($C41,invullijst!$A$11:$M233,4,FALSE)="","",VLOOKUP($C41,invullijst!$A$11:$M233,4,FALSE)) -> 0 | E41: =IF(VLOOKUP($C41,invullijst!$A$11:$M229,2,FALSE)="","",VLOOKUP($C41,invullijst!$A$11:$M229,2,FALSE)) -> 0 | F41: =IF(VLOOKUP($C41,invullijst!$A$11:$M$196,3,FALSE)="","",VLOOKUP($C41,invullijst!$A$11:$M$196,3,FALSE)) -> 0 | G41: =IF(VLOOKUP($C41,invullijst!$A$11:$M$196,6,FALSE)="","",VLOOKUP($C41,invullijst!$A$11:$M$196,6,FALSE)) -> 0 | H41: =IF(VLOOKUP($C41,invullijst!$A$11:$M$196,7,FALSE)="","",VLOOKUP($C41,invullijst!$A$11:$M$196,7,FALSE)) -> 0 | I41: =IF(VLOOKUP($C41,invullijst!$A$11:$M$196,8,FALSE)="","",VLOOKUP($C41,invullijst!$A$11:$M$196,8,FALSE)) -> 0 | J41: =IF(VLOOKUP($C41,invullijst!$A$11:$M$196,9,FALSE)="","",VLOOKUP($C41,invullijst!$A$11:$M$196,9,FALSE)) -> 0 | K41: =IF(VLOOKUP($C41,invullijst!$A$11:$M$196,10,FALSE)="","",VLOOKUP($C41,invullijst!$A$11:$M$196,10,FALSE)) -> 0 | L41: =SUM(G41:K41) -> 0 | M41: =IF(VLOOKUP($C41,invullijst!$A$11:$M$196,11,FALSE)="","",VLOOKUP($C41,invullijst!$A$11:$M$196,11,FALSE)) -> 0

Sheet Korps
C1: =invullijst!F1 -> Organistatie | E1: =invullijst!H2 -> 2025 - 2026 | J1: =invullijst!F3 -> Sint Ambrosius Baardwijk
C5: UITSLAGEN O.V.L.B. KORPS VRIJE-HAND | Q5: Hieronder niets wijzigen
C7: A-Korps Vrije-hand | J7: B-Korps Vrije-hand | AC7: A-Korps | AF7: B-Korps
C8: Baardwijk | D8: 321 | E8: - | F8: 335 | G8: Besoijen | J8: Baardwijk | K8: 0 | L8: - | M8: 305 | N8: Besoijen | Q8: =D8 -> 321 | R8: ba | S8: =IF(ISBLANK(D8),"",IF(D8=F8,1,IF(D8>F8,2,0))) -> 0 | T8: =IF(ISBLANK(F8),"",IF(F8=D8,1,IF(F8>D8,2,0))) -> 2 | U8: be | V8: =F8 -> 335 | W8: =K8 -> 0 | X8: ba | Y8: =IF(ISBLANK(K8),"",IF(K8=M8,1,IF(K8>M8,2,0))) -> 0 | Z8: =IF(ISBLANK(M8),"",IF(M8=K8,1,IF(M8>K8,2,0))) -> 2 | AA8: be | AB8: =M8 -> 305 | AC8: Baardwijk | AD8: =SUM(S8:S11) -> 0 | AE8: =SUM(Q8:Q11) -> 949 | AF8: Baardwijk | AG8: =SUM(Y8:Y11) -> 1 | AH8: =SUM(W8:W11) -> 53
C9: Baardwijk | D9: 309 | E9: - | F9: 346 | G9: Elshout | J9: Baardwijk | K9: 0 | L9: - | M9: 0 | N9: Elshout | Q9: 309 | R9: ba | S9: 0 | T9: 2 | U9: el | V9: 346 | W9: =K9 -> 0 | X9: ba | Y9: =IF(ISBLANK(K9),"",IF(K9=M9,1,IF(K9>M9,2,0))) -> 1 | Z9: =IF(ISBLANK(M9),"",IF(M9=K9,1,IF(M9>K9,2,0))) -> 1 | AA9: el | AB9: =M9 -> 0 | AC9: Besoijen | AD9: =SUM(T8,S12:S14) -> 6 | AE9: =SUM(V8,Q12:Q14) -> 1014 | AF9: Besoijen | AG9: =SUM(Z8,Y12:Y14) -> 6 | AH9: =SUM(AB8,W12:W14) -> 938
C10: Baardwijk | E10: - | G10: Haarsteeg | J10: Baardwijk | L10: - | N10: Haarsteeg | Q10: 0 | R10: ba | U10: ha | V10: 0 | W10: 0 | X10: ba | AA10: ha | AB10: 0 | AC10: Elshout | AD10: =SUM(T9,T12,S15:S16) -> 4 | AE10: =SUM(V9,V12,Q15:Q16) -> 677 | AF10: Elshout | AG10: =SUM(Z9,Z12,Y15:Y16) -> 1 | AH10: =SUM(AB9,AB12,W15:W16) -> 0
C11: Baardwijk | D11: 319 | E11: - | F11: 325 | G11: Kaatsheuvel | J11: Baardwijk | K11: 53 | L11: - | M11: 234 | N11: Kaatsheuvel | Q11: 319 | R11: ba | S11: 0 | T11: 2 | U11: ka | V11: 325 | W11: 53 | X11: ba | Y11: 0 | Z11: 2 | AA11: ka | AB11: 234 | AC11: Haarsteeg | AD11: =SUM(T10,T13,T15,S17) -> 0 | AE11: =SUM(V10,V13,V15,Q17) -> 648 | AF11: Haarsteeg | AG11: =SUM(Z10,Z13,Z15,Y17) -> 2 | AH11: =SUM(AB10,AB13,AB15,W17) -> 311
C12: Besoijen | E12: - | G12: Elshout | J12: Besoijen | L12: - | N12: Elshout | Q12: 0 | R12: be | U12: el | V12: 0 | W12: 0 | X12: be | AA12: el | AB12: 0 | AC12: Kaatsheuvel | AD12: =SUM(T11,T14,T16,T17) -> 2 | AE12: =SUM(V11,V14,V16,V17) -> 642 | AF12: Kaatsheuvel | AG12: =SUM(Z11,Z14,Z16,Z17) -> 2 | AH12: =SUM(AB11,AB14,AB16,AB17) -> 390
C13: Besoijen | D13: 332 | E13: - | F13: 320 | G13: Haarsteeg | J13: Besoijen | K13: 313 | L13: - | M13: 159 | N13: Haarsteeg | Q13: 332 | R13: be | S13: 2 | T13: 0 | U13: ha | V13: 320 | W13: 313 | X13: be | Y13: 2 | Z13: 0 | AA13: ha | AB13: 159
C14: Besoijen | D14: 347 | E14: - | F14: 317 | G14: Kaatsheuvel | J14: Besoijen | K14: 320 | L14: - | M14: 156 | N14: Kaatsheuvel | Q14: 347 | R14: be | S14: 2 | T14: 0 | U14: ka | V14: 317 | W14: 320 | X14: be | Y14: 2 | Z14: 0 | AA14: ka | AB14: 156
C15: Elshout | D15: 331 | E15: - | F15: 328 | G15: Haarsteeg | J15: Elshout | K15: 0 | L15: - | M15: 152 | N15: Haarsteeg | Q15: 331 | R15: el | S15: 2 | T15: 0 | U15: ha | V15: 328 | W15: 0 | X15: el | Y15: 0 | Z15: 2 | AA15: ha | AB15: 152
C16: Elshout | E16: - | G16: Kaatsheuvel | J16: Elshout | L16: - | N16: Kaatsheuvel | Q16: 0 | R16: el | U16: ka | V16: 0 | W16: 0 | X16: el | AA16: ka | AB16: 0
C17: Haarsteeg | E17: - | G17: Kaatsheuvel | J17: Haarsteeg | L17: - | N17: Kaatsheuvel | Q17: 0 | R17: ha | U17: ka | V17: 0 | W17: 0 | X17: ha | AA17: ka | AB17: 0
C18: (*): de wedstrijden kunnen zowel uit- als thuiswedstrijden zijn; dus b.v. zowel Besoijen-Elshout als Elshout- Besoijen...
C21: EINDSTAND A-KORPS VRIJE-HAND | J21: EINDSTAND B-KORPS VRIJE-HAND
D22: Matchpunten | E22: - | F22: Totaalpunten | K22: Matchpunten | L22: - | M22: Totaalpunten
A24: 1 | C24: Baardwijk | D24: =IF(ISTEXT(C24),VLOOKUP(C24,$AC$8:$AE$12,2,FALSE)," ") -> 0 | E24: - | F24: =IF(ISTEXT(C24),VLOOKUP(C24,$AC$8:$AE$12,3,FALSE)," ") -> 949 | H24: 1 | J24: Baardwijk | K24: =IF(ISTEXT(J24),VLOOKUP(J24,$AF$8:$AH$12,2,FALSE)," ") -> 1 | L24: - | M24: =IF(ISTEXT(J24),VLOOKUP(J24,$AF$8:$AH$12,3,FALSE)," ") -> 53
A25: 2 | C25: Besoijen | D25: =IF(ISTEXT(C25),VLOOKUP(C25,$AC$8:$AE$12,2,FALSE)," ") -> 6 | E25: - | F25: =IF(ISTEXT(C25),VLOOKUP(C25,$AC$8:$AE$12,3,FALSE)," ") -> 1014 | H25: 2 | J25: Besoijen | K25: =IF(ISTEXT(J25),VLOOKUP(J25,$AF$8:$AH$12,2,FALSE)," ") -> 6 | L25: - | M25: =IF(ISTEXT(J25),VLOOKUP(J25,$AF$8:$AH$12,3,FALSE)," ") -> 938
A26: 3 | C26: Elshout | D26: =IF(ISTEXT(C26),VLOOKUP(C26,$AC$8:$AE$12,2,FALSE)," ") -> 4 | E26: - | F26: =IF(ISTEXT(C26),VLOOKUP(C26,$AC$8:$AE$12,3,FALSE)," ") -> 677 | H26: 3 | J26: Elshout | K26: =IF(ISTEXT(J26),VLOOKUP(J26,$AF$8:$AH$12,2,FALSE)," ") -> 1 | L26: - | M26: =IF(ISTEXT(J26),VLOOKUP(J26,$AF$8:$AH$12,3,FALSE)," ") -> 0
A27: 4 | C27: Haarsteeg | D27: =IF(ISTEXT(C27),VLOOKUP(C27,$AC$8:$AE$12,2,FALSE)," ") -> 0 | E27: - | F27: =IF(ISTEXT(C27),VLOOKUP(C27,$AC$8:$AE$12,3,FALSE)," ") -> 648 | H27: 4 | J27: Haarsteeg | K27: =IF(ISTEXT(J27),VLOOKUP(J27,$AF$8:$AH$12,2,FALSE)," ") -> 2 | L27: - | M27: =IF(ISTEXT(J27),VLOOKUP(J27,$AF$8:$AH$12,3,FALSE)," ") -> 311
A28: 5 | C28: Kaatsheuvel | D28: =IF(ISTEXT(C28),VLOOKUP(C28,$AC$8:$AE$12,2,FALSE)," ") -> 2 | E28: - | F28: =IF(ISTEXT(C28),VLOOKUP(C28,$AC$8:$AE$12,3,FALSE)," ") -> 642 | H28: 5 | J28: Kaatsheuvel | K28: =IF(ISTEXT(J28),VLOOKUP(J28,$AF$8:$AH$12,2,FALSE)," ") -> 2 | L28: - | M28: =IF(ISTEXT(J28),VLOOKUP(J28,$AF$8:$AH$12,3,FALSE)," ") -> 390
C32: UITSLAGEN O.V.L.B. KORPS OPGELEGD | Q32: Hieronder niets wijzigen
C34: A-KORPS OPGELEGD | J34: B-KORPS OPGELEGD | AC34: A-Korps | AF34: B-Korps
C35: Baardwijk | D35: 165 | E35: - | F35: 286 | G35: Besoijen | J35: Baardwijk | K35: 0 | L35: - | M35: 269 | N35: Besoijen | Q35: =D35 -> 165 | R35: ba | S35: =IF(ISBLANK(D35),"",IF(D35=F35,1,IF(D35>F35,2,0))) -> 0 | T35: =IF(ISBLANK(F35),"",IF(F35=D35,1,IF(F35>D35,2,0))) -> 2 | U35: be | V35: =F35 -> 286 | W35: =K35 -> 0 | X35: ba | Y35: =IF(ISBLANK(K35),"",IF(K35=M35,1,IF(K35>M35,2,0))) -> 0 | Z35: =IF(ISBLANK(M35),"",IF(M35=K35,1,IF(M35>K35,2,0))) -> 2 | AA35: be | AB35: =M35 -> 269 | AC35: Baardwijk | AD35: =SUM(S35:S38) -> 0 | AE35: =SUM(Q35:Q38) -> 582 | AF35: Baardwijk | AG35: =SUM(Y35:Y38) -> 0 | AH35: =SUM(W35:W38) -> 54
C36: Baardwijk | D36: 166 | E36: - | F36: 281 | G36: Elshout | J36: Baardwijk | K36: 0 | L36: - | M36: 262 | N36: Elshout | Q36: 166 | R36: ba | S36: 0 | T36: 2 | U36: el | V36: 281 | W36: =K36 -> 0 | X36: ba | Y36: =IF(ISBLANK(K36),"",IF(K36=M36,1,IF(K36>M36,2,0))) -> 0 | Z36: =IF(ISBLANK(M36),"",IF(M36=K36,1,IF(M36>K36,2,0))) -> 2 | AA36: el | AB36: =M36 -> 262 | AC36: Besoijen | AD36: =SUM(T35,S39:S41) -> 4 | AE36: =SUM(V35,Q39:Q41) -> 848 | AF36: Besoijen | AG36: =SUM(Z35,Y39:Y41) -> 4 | AH36: =SUM(AB35,W39:W41) -> 798
C37: Baardwijk | E37: - | G37: Haarsteeg | J37: Baardwijk | L37: - | N37: Haarsteeg | Q37: 0 | R37: ba | U37: ha | V37: 0 | W37: 0 | X37: ba | AA37: ha | AB37: 0 | AC37: Elshout | AD37: =SUM(T36,T39,S42:S43) -> 2 | AE37: =SUM(V36,V39,Q42:Q43) -> 566 | AF37: Elshout | AG37: =SUM(Z36,Z39,Y42:Y43) -> 2 | AH37: =SUM(AB36,AB39,W42:W43) -> 350
C38: Baardwijk | D38: 251 | E38: - | F38: 273 | G38: Kaatsheuvel | J38: Baardwijk | K38: 54 | L38: - | M38: 262 | N38: Kaatsheuvel | Q38: 251 | R38: ba | S38: 0 | T38: 2 | U38: ka | V38: 273 | W38: 54 | X38: ba | Y38: 0 | Z38: 2 | AA38: ka | AB38: 262 | AC38: Haarsteeg | AD38: =SUM(T37,T40,T42,S44) -> 4 | AE38: =SUM(V37,V40,V42,Q44) -> 575 | AF38: Haarsteeg | AG38: =SUM(Z37,Z40,Z42,Y44) -> 4 | AH38: =SUM(AB37,AB40,AB42,W44) -> 560
C39: Besoijen | E39: - | G39: Elshout | J39: Besoijen | L39: - | N39: Elshout | Q39: 0 | R39: be | U39: el | V39: 0 | W39: 0 | X39: be | AA39: el | AB39: 0 | AC39: Kaatsheuvel | AD39: =SUM(T38,T41,T43,T44) -> 2 | AE39: =SUM(V38,V41,V43,V44) -> 545 | AF39: Kaatsheuvel | AG39: =SUM(Z38,Z41,Z43,Z44) -> 2 | AH39: =SUM(AB38,AB41,AB43,AB44) -> 519
C40: Besoijen | D40: 276 | E40: - | F40: 284 | G40: Haarsteeg | J40: Besoijen | K40: 268 | L40: - | M40: 271 | N40: Haarsteeg | Q40: 276 | R40: be | S40: 0 | T40: 2 | U40: ha | V40: 284 | W40: 268 | X40: be | Y40: 0 | Z40: 2 | AA40: ha | AB40: 271
C41: Besoijen | D41: 286 | E41: - | F41: 272 | G41: Kaatsheuvel | J41: Besoijen | K41: 261 | L41: - | M41: 257 | N41: Kaatsheuvel | Q41: 286 | R41: be | S41: 2 | T41: 0 | U41: ka | V41: 272 | W41: 261 | X41: be | Y41: 2 | Z41: 0 | AA41: ka | AB41: 257
C42: Elshout | D42: 285 | E42: - | F42: 291 | G42: Haarsteeg | J42: Elshout | K42: 88 | L42: - | M42: 289 | N42: Haarsteeg | Q42: 285 | R42: el | S42: 0 | T42: 2 | U42: ha | V42: 291 | W42: 88 | X42: el | Y42: 0 | Z42: 2 | AA42: ha | AB42: 289
C43: Elshout | E43: - | G43: Kaatsheuvel | J43: Elshout | L43: - | N43: Kaatsheuvel | Q43: 0 | R43: el | U43: ka | V43: 0 | W43: 0 | X43: el | AA43: ka | AB43: 0
C44: Haarsteeg | E44: - | G44: Kaatsheuvel | J44: Haarsteeg | L44: - | N44: Kaatsheuvel | Q44: 0 | R44: ha | U44: ka | V44: 0 | W44: 0 | X44: ha | AA44: ka | AB44: 0
C45: (*): de wedstrijden kunnen zowel uit- als thuiswedstrijden zijn; dus b.v. zowel Besoijen-Elshout als Elshout- Besoijen...
C48: EINDSTAND A-KORPS OPGELEGD | J48: EINDSTAND B-KORPS OPGELEGD
D49: Matchpunten | E49: - | F49: Totaalpunten | K49: Matchpunten | L49: - | M49: Totaalpunten
A51: 1 | C51: Baardwijk | D51: =IF(ISTEXT(C51),VLOOKUP(C51,$AC$35:$AE$39,2,FALSE)," ") -> 0 | E51: - | F51: =IF(ISTEXT(C51),VLOOKUP(C51,$AC$35:$AE$39,3,FALSE)," ") -> 582 | H51: 1 | J51: Baardwijk | K51: =IF(ISTEXT(J51),VLOOKUP(J51,$AF$35:$AH$39,2,FALSE)," ") -> 0 | L51: - | M51: =IF(ISTEXT(J51),VLOOKUP(J51,$AF$35:$AH$39,3,FALSE)," ") -> 54
A52: 2 | C52: Besoijen | D52: =IF(ISTEXT(C52),VLOOKUP(C52,$AC$35:$AE$39,2,FALSE)," ") -> 4 | E52: - | F52: =IF(ISTEXT(C52),VLOOKUP(C52,$AC$35:$AE$39,3,FALSE)," ") -> 848 | H52: 2 | J52: Besoijen | K52: =IF(ISTEXT(J52),VLOOKUP(J52,$AF$35:$AH$39,2,FALSE)," ") -> 4 | L52: - | M52: =IF(ISTEXT(J52),VLOOKUP(J52,$AF$35:$AH$39,3,FALSE)," ") -> 798
A53: 3 | C53: Elshout | D53: =IF(ISTEXT(C53),VLOOKUP(C53,$AC$35:$AE$39,2,FALSE)," ") -> 2 | E53: - | F53: =IF(ISTEXT(C53),VLOOKUP(C53,$AC$35:$AE$39,3,FALSE)," ") -> 566 | H53: 3 | J53: Elshout | K53: =IF(ISTEXT(J53),VLOOKUP(J53,$AF$35:$AH$39,2,FALSE)," ") -> 2 | L53: - | M53: =IF(ISTEXT(J53),VLOOKUP(J53,$AF$35:$AH$39,3,FALSE)," ") -> 350
A54: 4 | C54: Haarsteeg | D54: =IF(ISTEXT(C54),VLOOKUP(C54,$AC$35:$AE$39,2,FALSE)," ") -> 4 | E54: - | F54: =IF(ISTEXT(C54),VLOOKUP(C54,$AC$35:$AE$39,3,FALSE)," ") -> 575 | H54: 4 | J54: Haarsteeg | K54: =IF(ISTEXT(J54),VLOOKUP(J54,$AF$35:$AH$39,2,FALSE)," ") -> 4 | L54: - | M54: =IF(ISTEXT(J54),VLOOKUP(J54,$AF$35:$AH$39,3,FALSE)," ") -> 560
A55: 5 | C55: Kaatsheuvel | D55: =IF(ISTEXT(C55),VLOOKUP(C55,$AC$35:$AE$39,2,FALSE)," ") -> 2 | E55: - | F55: =IF(ISTEXT(C55),VLOOKUP(C55,$AC$35:$AE$39,3,FALSE)," ") -> 545 | H55: 5 | J55: Kaatsheuvel | K55: =IF(ISTEXT(J55),VLOOKUP(J55,$AF$35:$AH$39,2,FALSE)," ") -> 2 | L55: - | M55: =IF(ISTEXT(J55),VLOOKUP(J55,$AF$35:$AH$39,3,FALSE)," ") -> 519
C57: alleen in de groene kolom punten korps invullen

Sheet wedstrijd 1A
A1: =invullijst!F1 -> Organistatie | F1: =invullijst!H2 -> 2025 - 2026 | I1: =invullijst!F3 -> Sint Ambrosius Baardwijk
A2: Datum: | M2: 2025-12-07
A3: 5 | B3: =IF(VLOOKUP(A3,invullijst!A1:F5,2,FALSE)="","",VLOOKUP(A3,invullijst!A1:F5,2,FALSE)) -> Sint Jan Baptist Kaatsheuvel | I3: 1 | J3: =IF(VLOOKUP(I3,invullijst!A1:C5,2,FALSE)="","",VLOOKUP(I3,invullijst!A1:C5,2,FALSE)) -> Sint Ambrosius Baardwijk
A5: vrijehand
A6: 1 | B6: =IF($G$3="k",IF(VLOOKUP($D6,invullijst!$A$11:$M$196,11,FALSE)=0," ",VLOOKUP($D6,invullijst!$A$11:$M$196,11,FALSE)),"") ->  | C6: =IF(VLOOKUP(D6,invullijst!A$11:F$237,4,FALSE)="","",VLOOKUP(D6,invullijst!A$11:D$237,4,FALSE)) -> vr | D6: 504 | E6: =IF(VLOOKUP($D6,invullijst!$A$11:$M$196,2,FALSE)="","",VLOOKUP($D6,invullijst!$A$11:$M$196,2,FALSE)) -> Koen v/d Ven | G6: =IF(VLOOKUP($D6,invullijst!$A$11:$M$196,6,FALSE)=0,"",VLOOKUP($D6,invullijst!$A$11:$M$196,6,FALSE)) -> 87 | I6: 1 | J6: =IF($O$3="k",IF(VLOOKUP($L6,invullijst!$A$11:$M$196,11,FALSE)=0," ",VLOOKUP($L6,invullijst!$A$11:$M$196,11,FALSE)),"") ->  | K6: =IF(VLOOKUP($L6,invullijst!$A$11:$M$237,4,FALSE)="","",VLOOKUP($L6,invullijst!$A$11:$M$237,4,FALSE)) -> vr | L6: 105 | M6: =IF(VLOOKUP($L6,invullijst!$A$11:$M$196,2,FALSE)="","",VLOOKUP($L6,invullijst!$A$11:$M$196,2,FALSE)) -> René Klijn | O6: =IF(VLOOKUP($L6,invullijst!$A$11:$M$196,6,FALSE)=0,"",VLOOKUP($L6,invullijst!$A$11:$M$196,6,FALSE)) -> 86
A7: 2 | B7: =IF($G$3="k",IF(VLOOKUP($D7,invullijst!$A$11:$M$196,11,FALSE)=0," ",VLOOKUP($D7,invullijst!$A$11:$M$196,11,FALSE)),"") ->  | C7: =IF(VLOOKUP(D7,invullijst!A$11:F$237,4,FALSE)="","",VLOOKUP(D7,invullijst!A$11:D$237,4,FALSE)) -> vr | D7: 501 | E7: =IF(VLOOKUP($D7,invullijst!$A$11:$M$196,2,FALSE)="","",VLOOKUP($D7,invullijst!$A$11:$M$196,2,FALSE)) -> Annette Vos | G7: =IF(VLOOKUP($D7,invullijst!$A$11:$M$196,6,FALSE)=0,"",VLOOKUP($D7,invullijst!$A$11:$M$196,6,FALSE)) -> 81 | I7: 2 | J7: =IF($O$3="k",IF(VLOOKUP($L7,invullijst!$A$11:$M$196,11,FALSE)=0," ",VLOOKUP($L7,invullijst!$A$11:$M$196,11,FALSE)),"") ->  | K7: =IF(VLOOKUP($L7,invullijst!$A$11:$M$237,4,FALSE)="","",VLOOKUP($L7,invullijst!$A$11:$M$237,4,FALSE)) -> vr | L7: 106 | M7: =IF(VLOOKUP($L7,invullijst!$A$11:$M$196,2,FALSE)="","",VLOOKUP($L7,invullijst!$A$11:$M$196,2,FALSE)) -> René Pullens | O7: =IF(VLOOKUP($L7,invullijst!$A$11:$M$196,6,FALSE)=0,"",VLOOKUP($L7,invullijst!$A$11:$M$196,6,FALSE)) -> 82
A8: 3 | B8: =IF($G$3="k",IF(VLOOKUP($D8,invullijst!$A$11:$M$196,11,FALSE)=0," ",VLOOKUP($D8,invullijst!$A$11:$M$196,11,FALSE)),"") ->  | C8: =IF(VLOOKUP(D8,invullijst!A$11:F$237,4,FALSE)="","",VLOOKUP(D8,invullijst!A$11:D$237,4,FALSE)) -> vr | D8: 507 | E8: =IF(VLOOKUP($D8,invullijst!$A$11:$M$196,2,FALSE)="","",VLOOKUP($D8,invullijst!$A$11:$M$196,2,FALSE)) -> Michael Blaauwbroek | G8: =IF(VLOOKUP($D8,invullijst!$A$11:$M$196,6,FALSE)=0,"",VLOOKUP($D8,invullijst!$A$11:$M$196,6,FALSE)) -> 76 | I8: 3 | J8: =IF($O$3="k",IF(VLOOKUP($L8,invullijst!$A$11:$M$196,11,FALSE)=0," ",VLOOKUP($L8,invullijst!$A$11:$M$196,11,FALSE)),"") ->  | K8: =IF(VLOOKUP($L8,invullijst!$A$11:$M$237,4,FALSE)="","",VLOOKUP($L8,invullijst!$A$11:$M$237,4,FALSE)) -> vr | L8: 108 | M8: =IF(VLOOKUP($L8,invullijst!$A$11:$M$196,2,FALSE)="","",VLOOKUP($L8,invullijst!$A$11:$M$196,2,FALSE)) -> Bram Pullens | O8: =IF(VLOOKUP($L8,invullijst!$A$11:$M$196,6,FALSE)=0,"",VLOOKUP($L8,invullijst!$A$11:$M$196,6,FALSE)) -> 80
A9: 4 | B9: =IF($G$3="k",IF(VLOOKUP($D9,invullijst!$A$11:$M$196,11,FALSE)=0," ",VLOOKUP($D9,invullijst!$A$11:$M$196,11,FALSE)),"") ->  | C9: =IF(VLOOKUP(D9,invullijst!A$11:F$237,4,FALSE)="","",VLOOKUP(D9,invullijst!A$11:D$237,4,FALSE)) -> vr | D9: 506 | E9: =IF(VLOOKUP($D9,invullijst!$A$11:$M$196,2,FALSE)="","",VLOOKUP($D9,invullijst!$A$11:$M$196,2,FALSE)) -> Maikel Monden | G9: =IF(VLOOKUP($D9,invullijst!$A$11:$M$196,6,FALSE)=0,"",VLOOKUP($D9,invullijst!$A$11:$M$196,6,FALSE)) -> 81 | I9: 4 | J9: =IF($O$3="k",IF(VLOOKUP($L9,invullijst!$A$11:$M$196,11,FALSE)=0," ",VLOOKUP($L9,invullijst!$A$11:$M$196,11,FALSE)),"") ->  | K9: =IF(VLOOKUP($L9,invullijst!$A$11:$M$237,4,FALSE)="","",VLOOKUP($L9,invullijst!$A$11:$M$237,4,FALSE)) -> vr | L9: 109 | M9: =IF(VLOOKUP($L9,invullijst!$A$11:$M$196,2,FALSE)="","",VLOOKUP($L9,invullijst!$A$11:$M$196,2,FALSE)) -> Gijs Pullens | O9: =IF(VLOOKUP($L9,invullijst!$A$11:$M$196,6,FALSE)=0,"",VLOOKUP($L9,invullijst!$A$11:$M$196,6,FALSE)) -> 71
A10: Totaal A korps | G10: =SUM(G6:G9) -> 325 | I10: Totaal A korps | O10: =SUM(O6:O9) -> 319
A12: 1 | B12: =IF($G$3="k",IF(VLOOKUP($D12,invullijst!$A$11:$M$196,11,FALSE)=0," ",VLOOKUP($D12,invullijst!$A$11:$M$196,11,FALSE)),"") ->  | C12: =IF(VLOOKUP(D12,invullijst!A$11:F$237,4,FALSE)="","",VLOOKUP(D12,invullijst!A$11:D$237,4,FALSE)) -> vr | D12: 508 | E12: =IF(VLOOKUP($D12,invullijst!$A$11:$M$196,2,FALSE)="","",VLOOKUP($D12,invullijst!$A$11:$M$196,2,FALSE)) -> Rowan Dobbelsteen | G12: =IF(VLOOKUP($D12,invullijst!$A$11:$M$196,6,FALSE)=0,"",VLOOKUP($D12,invullijst!$A$11:$M$196,6,FALSE)) -> 80 | I12: 1 | J12: =IF($O$3="k",IF(VLOOKUP($L12,invullijst!$A$11:$M$196,11,FALSE)=0," ",VLOOKUP($L12,invullijst!$A$11:$M$196,11,FALSE)),"") ->  | K12: =IF(VLOOKUP($L12,invullijst!$A$11:$M$237,4,FALSE)="","",VLOOKUP($L12,invullijst!$A$11:$M$237,4,FALSE)) -> vr | L12: 101 | M12: =IF(VLOOKUP($L12,invullijst!$A$11:$M$196,2,FALSE)="","",VLOOKUP($L12,invullijst!$A$11:$M$196,2,FALSE)) -> Antwan van Buul | O12: =IF(VLOOKUP($L12,invullijst!$A$11:$M$196,6,FALSE)=0,"",VLOOKUP($L12,invullijst!$A$11:$M$196,6,FALSE)) -> 53
A13: 2 | B13: =IF($G$3="k",IF(VLOOKUP($D13,invullijst!$A$11:$M$196,11,FALSE)=0," ",VLOOKUP($D13,invullijst!$A$11:$M$196,11,FALSE)),"") ->  | C13: =IF(VLOOKUP(D13,invullijst!A$11:F$237,4,FALSE)="","",VLOOKUP(D13,invullijst!A$11:D$237,4,FALSE)) -> vr | D13: 512 | E13: =IF(VLOOKUP($D13,invullijst!$A$11:$M$196,2,FALSE)="","",VLOOKUP($D13,invullijst!$A$11:$M$196,2,FALSE)) -> Hans Bergakker | G13: =IF(VLOOKUP($D13,invullijst!$A$11:$M$196,6,FALSE)=0,"",VLOOKUP($D13,invullijst!$A$11:$M$196,6,FALSE)) -> 72 | I13: 2 | J13: =IF($O$3="k",IF(VLOOKUP($L13,invullijst!$A$11:$M$196,11,FALSE)=0," ",VLOOKUP($L13,invullijst!$A$11:$M$196,11,FALSE)),"") ->  | K13: =IF(VLOOKUP($L13,invullijst!$A$11:$M$237,4,FALSE)="","",VLOOKUP($L13,invullijst!$A$11:$M$237,4,FALSE)) -> 0 | M13: =IF(VLOOKUP($L13,invullijst!$A$11:$M$196,2,FALSE)="","",VLOOKUP($L13,invullijst!$A$11:$M$196,2,FALSE)) -> 0 | O13: =IF(VLOOKUP($L13,invullijst!$A$11:$M$196,6,FALSE)=0,"",VLOOKUP($L13,invullijst!$A$11:$M$196,6,FALSE)) -> 
A14: 3 | B14: =IF($G$3="k",IF(VLOOKUP($D14,invullijst!$A$11:$M$196,11,FALSE)=0," ",VLOOKUP($D14,invullijst!$A$11:$M$196,11,FALSE)),"") ->  | C14: =IF(VLOOKUP(D14,invullijst!A$11:F$237,4,FALSE)="","",VLOOKUP(D14,invullijst!A$11:D$237,4,FALSE)) -> vr | D14: 513 | E14: =IF(VLOOKUP($D14,invullijst!$A$11:$M$196,2,FALSE)="","",VLOOKUP($D14,invullijst!$A$11:$M$196,2,FALSE)) -> Mark van Delft | G14: =IF(VLOOKUP($D14,invullijst!$A$11:$M$196,6,FALSE)=0,"",VLOOKUP($D14,invullijst!$A$11:$M$196,6,FALSE)) -> 82 | I14: 3 | J14: =IF($O$3="k",IF(VLOOKUP($L14,invullijst!$A$11:$M$196,11,FALSE)=0," ",VLOOKUP($L14,invullijst!$A$11:$M$196,11,FALSE)),"") ->  | K14: =IF(VLOOKUP($L14,invullijst!$A$11:$M$237,4,FALSE)="","",VLOOKUP($L14,invullijst!$A$11:$M$237,4,FALSE)) -> 0 | M14: =IF(VLOOKUP($L14,invullijst!$A$11:$M$196,2,FALSE)="","",VLOOKUP($L14,invullijst!$A$11:$M$196,2,FALSE)) -> 0 | O14: =IF(VLOOKUP($L14,invullijst!$A$11:$M$196,6,FALSE)=0,"",VLOOKUP($L14,invullijst!$A$11:$M$196,6,FALSE)) -> 
A15: 4 | B15: =IF($G$3="k",IF(VLOOKUP($D15,invullijst!$A$11:$M$196,11,FALSE)=0," ",VLOOKUP($D15,invullijst!$A$11:$M$196,11,FALSE)),"") ->  | C15: =IF(VLOOKUP(D15,invullijst!A$11:F$237,4,FALSE)="","",VLOOKUP(D15,invullijst!A$11:D$237,4,FALSE)) -> 0 | E15: =IF(VLOOKUP($D15,invullijst!$A$11:$M$196,2,FALSE)="","",VLOOKUP($D15,invullijst!$A$11:$M$196,2,FALSE)) -> 0 | G15: =IF(VLOOKUP($D15,invullijst!$A$11:$M$196,6,FALSE)=0,"",VLOOKUP($D15,invullijst!$A$11:$M$196,6,FALSE)) ->  | I15: 4 | J15: =IF($O$3="k",IF(VLOOKUP($L15,invullijst!$A$11:$M$196,11,FALSE)=0," ",VLOOKUP($L15,invullijst!$A$11:$M$196,11,FALSE)),"") ->  | K15: =IF(VLOOKUP($L15,invullijst!$A$11:$M$237,4,FALSE)="","",VLOOKUP($L15,invullijst!$A$11:$M$237,4,FALSE)) -> 0 | M15: =IF(VLOOKUP($L15,invullijst!$A$11:$M$196,2,FALSE)="","",VLOOKUP($L15,invullijst!$A$11:$M$196,2,FALSE)) -> 0 | O15: =IF(VLOOKUP($L15,invullijst!$A$11:$M$196,6,FALSE)=0,"",VLOOKUP($L15,invullijst!$A$11:$M$196,6,FALSE)) -> 
A16: Totaal B1 korps | G16: =SUM(G12:G15) -> 234 | I16: Totaal B1 korps | O16: =SUM(O12:O15) -> 53
A18: 1 | B18: =IF($G$3="k",IF(VLOOKUP($D18,invullijst!$A$11:$M$196,11,FALSE)=0," ",VLOOKUP($D18,invullijst!$A$11:$M$196,11,FALSE)),"") ->  | C18: =IF(VLOOKUP(D18,invullijst!A$11:F$237,4,FALSE)="","",VLOOKUP(D18,invullijst!A$11:D$237,4,FALSE)) -> 0 | E18: =IF(VLOOKUP($D18,invullijst!$A$11:$M$196,2,FALSE)="","",VLOOKUP($D18,invullijst!$A$11:$M$196,2,FALSE)) -> 0 | G18: =IF(VLOOKUP($D18,invullijst!$A$11:$M$196,6,FALSE)=0,"",VLOOKUP($D18,invullijst!$A$11:$M$196,6,FALSE)) ->  | I18: 1 | J18: =IF($O$3="k",IF(VLOOKUP($L18,invullijst!$A$11:$M$196,11,FALSE)=0," ",VLOOKUP($L18,invullijst!$A$11:$M$196,11,FALSE)),"") ->  | K18: =IF(VLOOKUP($L18,invullijst!$A$11:$M$237,4,FALSE)="","",VLOOKUP($L18,invullijst!$A$11:$M$237,4,FALSE)) -> 0 | M18: =IF(VLOOKUP($L18,invullijst!$A$11:$M$196,2,FALSE)="","",VLOOKUP($L18,invullijst!$A$11:$M$196,2,FALSE)) -> 0 | O18: =IF(VLOOKUP($L18,invullijst!$A$11:$M$196,6,FALSE)=0,"",VLOOKUP($L18,invullijst!$A$11:$M$196,6,FALSE)) -> 
A19: 2 | B19: =IF($G$3="k",IF(VLOOKUP($D19,invullijst!$A$11:$M$196,11,FALSE)=0," ",VLOOKUP($D19,invullijst!$A$11:$M$196,11,FALSE)),"") ->  | C19: =IF(VLOOKUP(D19,invullijst!A$11:F$237,4,FALSE)="","",VLOOKUP(D19,invullijst!A$11:D$237,4,FALSE)) -> 0 | E19: =IF(VLOOKUP($D19,invullijst!$A$11:$M$196,2,FALSE)="","",VLOOKUP($D19,invullijst!$A$11:$M$196,2,FALSE)) -> 0 | G19: =IF(VLOOKUP($D19,invullijst!$A$11:$M$196,6,FALSE)=0,"",VLOOKUP($D19,invullijst!$A$11:$M$196,6,FALSE)) ->  | I19: 2 | J19: =IF($O$3="k",IF(VLOOKUP($L19,invullijst!$A$11:$M$196,11,FALSE)=0," ",VLOOKUP($L19,invullijst!$A$11:$M$196,11,FALSE)),"") ->  | K19: =IF(VLOOKUP($L19,invullijst!$A$11:$M$237,4,FALSE)="","",VLOOKUP($L19,invullijst!$A$11:$M$237,4,FALSE)) -> 0 | M19: =IF(VLOOKUP($L19,invullijst!$A$11:$M$196,2,FALSE)="","",VLOOKUP($L19,invullijst!$A$11:$M$196,2,FALSE)) -> 0 | O19: =IF(VLOOKUP($L19,invullijst!$A$11:$M$196,6,FALSE)=0,"",VLOOKUP($L19,invullijst!$A$11:$M$196,6,FALSE)) -> 
A20: 3 | B20: =IF($G$3="k",IF(VLOOKUP($D20,invullijst!$A$11:$M$196,11,FALSE)=0," ",VLOOKUP($D20,invullijst!$A$11:$M$196,11,FALSE)),"") ->  | C20: =IF(VLOOKUP(D20,invullijst!A$11:F$237,4,FALSE)="","",VLOOKUP(D20,invullijst!A$11:D$237,4,FALSE)) -> 0 | E20: =IF(VLOOKUP($D20,invullijst!$A$11:$M$196,2,FALSE)="","",VLOOKUP($D20,invullijst!$A$11:$M$196,2,FALSE)) -> 0 | G20: =IF(VLOOKUP($D20,invullijst!$A$11:$M$196,6,FALSE)=0,"",VLOOKUP($D20,invullijst!$A$11:$M$196,6,FALSE)) ->  | I20: 3 | J20: =IF($O$3="k",IF(VLOOKUP($L20,invullijst!$A$11:$M$196,11,FALSE)=0," ",VLOOKUP($L20,invullijst!$A$11:$M$196,11,FALSE)),"") ->  | K20: =IF(VLOOKUP($L20,invullijst!$A$11:$M$237,4,FALSE)="","",VLOOKUP($L20,invullijst!$A$11:$M$237,4,FALSE)) -> 0 | M20: =IF(VLOOKUP($L20,invullijst!$A$11:$M$196,2,FALSE)="","",VLOOKUP($L20,invullijst!$A$11:$M$196,2,FALSE)) -> 0 | O20: =IF(VLOOKUP($L20,invullijst!$A$11:$M$196,6,FALSE)=0,"",VLOOKUP($L20,invullijst!$A$11:$M$196,6,FALSE)) -> 
A21: 4 | B21: =IF($G$3="k",IF(VLOOKUP($D21,invullijst!$A$11:$M$196,11,FALSE)=0," ",VLOOKUP($D21,invullijst!$A$11:$M$196,11,FALSE)),"") ->  | C21: =IF(VLOOKUP(D21,invullijst!A$11:F$237,4,FALSE)="","",VLOOKUP(D21,invullijst!A$11:D$237,4,FALSE)) -> 0 | E21: =IF(VLOOKUP($D21,invullijst!$A$11:$M$196,2,FALSE)="","",VLOOKUP($D21,invullijst!$A$11:$M$196,2,FALSE)) -> 0 | G21: =IF(VLOOKUP($D21,invullijst!$A$11:$M$196,6,FALSE)=0,"",VLOOKUP($D21,invullijst!$A$11:$M$196,6,FALSE)) ->  | I21: 4 | J21: =IF($O$3="k",IF(VLOOKUP($L21,invullijst!$A$11:$M$196,11,FALSE)=0," ",VLOOKUP($L21,invullijst!$A$11:$M$196,11,FALSE)),"") ->  | K21: =IF(VLOOKUP($L21,invullijst!$A$11:$M$237,4,FALSE)="","",VLOOKUP($L21,invullijst!$A$11:$M$237,4,FALSE)) -> 0 | M21: =IF(VLOOKUP($L21,invullijst!$A$11:$M$196,2,FALSE)="","",VLOOKUP($L21,invullijst!$A$11:$M$196,2,FALSE)) -> 0 | O21: =IF(VLOOKUP($L21,invullijst!$A$11:$M$196,6,FALSE)=0,"",VLOOKUP($L21,invullijst!$A$11:$M$196,6,FALSE)) -> 
A22: DIVERSEN / INHAAL | G22: =+SUM(G18:G21) -> 0 | I22: DIVERSEN / INHAAL | O22: =SUM(O18:O21) -> 0
A24: OPGELEGD (Jeugd <16 en 65+)
A25: 1 | B25: =IF($G$3="k",IF(VLOOKUP($D25,invullijst!$A$11:$M$196,11,FALSE)=0," ",VLOOKUP($D25,invullijst!$A$11:$M$196,11,FALSE)),"") ->  | C25: =IF(VLOOKUP(D25,invullijst!A$11:F$237,4,FALSE)="","",VLOOKUP(D25,invullijst!A$11:D$237,4,FALSE)) -> 65+ | D25: 509 | E25: =IF(VLOOKUP($D25,invullijst!$A$11:$M$196,2,FALSE)="","",VLOOKUP($D25,invullijst!$A$11:$M$196,2,FALSE)) -> Adwan de Pinth | G25: =IF(VLOOKUP($D25,invullijst!$A$11:$M$196,6,FALSE)=0,"",VLOOKUP($D25,invullijst!$A$11:$M$196,6,FALSE)) -> 96 | I25: 1 | J25: =IF($O$3="k",IF(VLOOKUP($L25,invullijst!$A$11:$M$196,11,FALSE)=0," ",VLOOKUP($L25,invullijst!$A$11:$M$196,11,FALSE)),"") ->  | K25: =IF(VLOOKUP($L25,invullijst!$A$11:$M$237,4,FALSE)="","",VLOOKUP($L25,invullijst!$A$11:$M$237,4,FALSE)) -> 65+ | L25: 107 | M25: =IF(VLOOKUP($L25,invullijst!$A$11:$M$196,2,FALSE)="","",VLOOKUP($L25,invullijst!$A$11:$M$196,2,FALSE)) -> Cees Coppens | O25: =IF(VLOOKUP($L25,invullijst!$A$11:$M$196,6,FALSE)=0,"",VLOOKUP($L25,invullijst!$A$11:$M$196,6,FALSE)) -> 86
A26: 2 | B26: =IF($G$3="k",IF(VLOOKUP($D26,invullijst!$A$11:$M$196,11,FALSE)=0," ",VLOOKUP($D26,invullijst!$A$11:$M$196,11,FALSE)),"") ->  | C26: =IF(VLOOKUP(D26,invullijst!A$11:F$237,4,FALSE)="","",VLOOKUP(D26,invullijst!A$11:D$237,4,FALSE)) -> 65+ | D26: 517 | E26: =IF(VLOOKUP($D26,invullijst!$A$11:$M$196,2,FALSE)="","",VLOOKUP($D26,invullijst!$A$11:$M$196,2,FALSE)) -> Diny Vos (disp) | G26: =IF(VLOOKUP($D26,invullijst!$A$11:$M$196,6,FALSE)=0,"",VLOOKUP($D26,invullijst!$A$11:$M$196,6,FALSE)) -> 90 | I26: 2 | J26: =IF($O$3="k",IF(VLOOKUP($L26,invullijst!$A$11:$M$196,11,FALSE)=0," ",VLOOKUP($L26,invullijst!$A$11:$M$196,11,FALSE)),"") ->  | K26: =IF(VLOOKUP($L26,invullijst!$A$11:$M$237,4,FALSE)="","",VLOOKUP($L26,invullijst!$A$11:$M$237,4,FALSE)) -> 65+ | L26: 102 | M26: =IF(VLOOKUP($L26,invullijst!$A$11:$M$196,2,FALSE)="","",VLOOKUP($L26,invullijst!$A$11:$M$196,2,FALSE)) -> John de Jong (disp) | O26: =IF(VLOOKUP($L26,invullijst!$A$11:$M$196,6,FALSE)=0,"",VLOOKUP($L26,invullijst!$A$11:$M$196,6,FALSE)) -> 90
A27: 3 | B27: =IF($G$3="k",IF(VLOOKUP($D27,invullijst!$A$11:$M$196,11,FALSE)=0," ",VLOOKUP($D27,invullijst!$A$11:$M$196,11,FALSE)),"") ->  | C27: =IF(VLOOKUP(D27,invullijst!A$11:F$237,4,FALSE)="","",VLOOKUP(D27,invullijst!A$11:D$237,4,FALSE)) -> 65+ | D27: 503 | E27: =IF(VLOOKUP($D27,invullijst!$A$11:$M$196,2,FALSE)="","",VLOOKUP($D27,invullijst!$A$11:$M$196,2,FALSE)) -> Kees Vos (disp) | G27: =IF(VLOOKUP($D27,invullijst!$A$11:$M$196,6,FALSE)=0,"",VLOOKUP($D27,invullijst!$A$11:$M$196,6,FALSE)) -> 87 | I27: 3 | J27: =IF($O$3="k",IF(VLOOKUP($L27,invullijst!$A$11:$M$196,11,FALSE)=0," ",VLOOKUP($L27,invullijst!$A$11:$M$196,11,FALSE)),"") ->  | K27: =IF(VLOOKUP($L27,invullijst!$A$11:$M$237,4,FALSE)="","",VLOOKUP($L27,invullijst!$A$11:$M$237,4,FALSE)) -> 65+ | L27: 104 | M27: =IF(VLOOKUP($L27,invullijst!$A$11:$M$196,2,FALSE)="","",VLOOKUP($L27,invullijst!$A$11:$M$196,2,FALSE)) -> Peter Brekelmans | O27: =IF(VLOOKUP($L27,invullijst!$A$11:$M$196,6,FALSE)=0,"",VLOOKUP($L27,invullijst!$A$11:$M$196,6,FALSE)) -> 75
A28: Totaal korps opgelegd A1 | G28: =SUM(G25:G27) -> 273 | I28: Totaal korps opgelegd A1 | O28: =SUM(O25:O27) -> 251
A30: 1 | B30: =IF($G$3="k",IF(VLOOKUP($D30,invullijst!$A$11:$M$196,11,FALSE)=0," ",VLOOKUP($D30,invullijst!$A$11:$M$196,11,FALSE)),"") ->  | C30: =IF(VLOOKUP(D30,invullijst!A$11:F$237,4,FALSE)="","",VLOOKUP(D30,invullijst!A$11:D$237,4,FALSE)) -> 65+ | D30: 515 | E30: =IF(VLOOKUP($D30,invullijst!$A$11:$M$196,2,FALSE)="","",VLOOKUP($D30,invullijst!$A$11:$M$196,2,FALSE)) -> Ilona Bergakker (disp) | G30: =IF(VLOOKUP($D30,invullijst!$A$11:$M$196,6,FALSE)=0,"",VLOOKUP($D30,invullijst!$A$11:$M$196,6,FALSE)) -> 89 | I30: 1 | J30: =IF($O$3="k",IF(VLOOKUP($L30,invullijst!$A$11:$M$196,11,FALSE)=0," ",VLOOKUP($L30,invullijst!$A$11:$M$196,11,FALSE)),"") ->  | K30: =IF(VLOOKUP($L30,invullijst!$A$11:$M$237,4,FALSE)="","",VLOOKUP($L30,invullijst!$A$11:$M$237,4,FALSE)) -> 65+ | L30: 112 | M30: =IF(VLOOKUP($L30,invullijst!$A$11:$M$196,2,FALSE)="","",VLOOKUP($L30,invullijst!$A$11:$M$196,2,FALSE)) -> Toon van Buul | O30: =IF(VLOOKUP($L30,invullijst!$A$11:$M$196,6,FALSE)=0,"",VLOOKUP($L30,invullijst!$A$11:$M$196,6,FALSE)) -> 54
A31: 2 | B31: =IF($G$3="k",IF(VLOOKUP($D31,invullijst!$A$11:$M$196,11,FALSE)=0," ",VLOOKUP($D31,invullijst!$A$11:$M$196,11,FALSE)),"") ->  | C31: =IF(VLOOKUP(D31,invullijst!A$11:F$237,4,FALSE)="","",VLOOKUP(D31,invullijst!A$11:D$237,4,FALSE)) -> 65+ | D31: 516 | E31: =IF(VLOOKUP($D31,invullijst!$A$11:$M$196,2,FALSE)="","",VLOOKUP($D31,invullijst!$A$11:$M$196,2,FALSE)) -> Henry Bergakker (disp) | G31: =IF(VLOOKUP($D31,invullijst!$A$11:$M$196,6,FALSE)=0,"",VLOOKUP($D31,invullijst!$A$11:$M$196,6,FALSE)) -> 93 | I31: 2 | J31: =IF($O$3="k",IF(VLOOKUP($L31,invullijst!$A$11:$M$196,11,FALSE)=0," ",VLOOKUP($L31,invullijst!$A$11:$M$196,11,FALSE)),"") ->  | K31: =IF(VLOOKUP($L31,invullijst!$A$11:$M$237,4,FALSE)="","",VLOOKUP($L31,invullijst!$A$11:$M$237,4,FALSE)) -> 0 | M31: =IF(VLOOKUP($L31,invullijst!$A$11:$M$196,2,FALSE)="","",VLOOKUP($L31,invullijst!$A$11:$M$196,2,FALSE)) -> 0 | O31: =IF(VLOOKUP($L31,invullijst!$A$11:$M$196,6,FALSE)=0,"",VLOOKUP($L31,invullijst!$A$11:$M$196,6,FALSE)) -> 
A32: 3 | B32: =IF($G$3="k",IF(VLOOKUP($D32,invullijst!$A$11:$M$196,11,FALSE)=0," ",VLOOKUP($D32,invullijst!$A$11:$M$196,11,FALSE)),"") ->  | C32: =IF(VLOOKUP(D32,invullijst!A$11:F$237,4,FALSE)="","",VLOOKUP(D32,invullijst!A$11:D$237,4,FALSE)) -> 65+ | D32: 518 | E32: =IF(VLOOKUP($D32,invullijst!$A$11:$M$196,2,FALSE)="","",VLOOKUP($D32,invullijst!$A$11:$M$196,2,FALSE)) -> Ton Stanz | G32: =IF(VLOOKUP($D32,invullijst!$A$11:$M$196,6,FALSE)=0,"",VLOOKUP($D32,invullijst!$A$11:$M$196,6,FALSE)) -> 80 | I32: 3 | J32: =IF($O$3="k",IF(VLOOKUP($L32,invullijst!$A$11:$M$196,11,FALSE)=0," ",VLOOKUP($L32,invullijst!$A$11:$M$196,11,FALSE)),"") ->  | K32: =IF(VLOOKUP($L32,invullijst!$A$11:$M$237,4,FALSE)="","",VLOOKUP($L32,invullijst!$A$11:$M$237,4,FALSE)) -> 0 | M32: =IF(VLOOKUP($L32,invullijst!$A$11:$M$196,2,FALSE)="","",VLOOKUP($L32,invullijst!$A$11:$M$196,2,FALSE)) -> 0 | O32: =IF(VLOOKUP($L32,invullijst!$A$11:$M$196,6,FALSE)=0,"",VLOOKUP($L32,invullijst!$A$11:$M$196,6,FALSE)) -> 
A33: Totaal korps opgelegd A2 | G33: =SUM(G30:G32) -> 262 | I33: Totaal korps opgelegd A2 | O33: =SUM(O30:O32) -> 54
A35: 1 | B35: =IF($G$3="k",IF(VLOOKUP($D35,invullijst!$A$11:$M$196,11,FALSE)=0," ",VLOOKUP($D35,invullijst!$A$11:$M$196,11,FALSE)),"") ->  | C35: =IF(VLOOKUP(D35,invullijst!A$11:F$237,4,FALSE)="","",VLOOKUP(D35,invullijst!A$11:D$237,4,FALSE)) -> J | D35: 502 | E35: =IF(VLOOKUP($D35,invullijst!$A$11:$M$196,2,FALSE)="","",VLOOKUP($D35,invullijst!$A$11:$M$196,2,FALSE)) -> Djody Wagemakers | G35: =IF(VLOOKUP($D35,invullijst!$A$11:$M$196,6,FALSE)=0,"",VLOOKUP($D35,invullijst!$A$11:$M$196,6,FALSE)) -> 93 | I35: 1 | J35: =IF($O$3="k",IF(VLOOKUP($L35,invullijst!$A$11:$M$196,11,FALSE)=0," ",VLOOKUP($L35,invullijst!$A$11:$M$196,11,FALSE)),"") ->  | K35: =IF(VLOOKUP($L35,invullijst!$A$11:$M$237,4,FALSE)="","",VLOOKUP($L35,invullijst!$A$11:$M$237,4,FALSE)) -> 0 | M35: =IF(VLOOKUP($L35,invullijst!$A$11:$M$196,2,FALSE)="","",VLOOKUP($L35,invullijst!$A$11:$M$196,2,FALSE)) -> 0 | O35: =IF(VLOOKUP($L35,invullijst!$A$11:$M$196,6,FALSE)=0,"",VLOOKUP($L35,invullijst!$A$11:$M$196,6,FALSE)) -> 
A36: 2 | B36: =IF($G$3="k",IF(VLOOKUP($D36,invullijst!$A$11:$M$196,11,FALSE)=0," ",VLOOKUP($D36,invullijst!$A$11:$M$196,11,FALSE)),"") ->  | C36: =IF(VLOOKUP(D36,invullijst!A$11:F$237,4,FALSE)="","",VLOOKUP(D36,invullijst!A$11:D$237,4,FALSE)) -> 0 | E36: =IF(VLOOKUP($D36,invullijst!$A$11:$M$196,2,FALSE)="","",VLOOKUP($D36,invullijst!$A$11:$M$196,2,FALSE)) -> 0 | G36: =IF(VLOOKUP($D36,invullijst!$A$11:$M$196,6,FALSE)=0,"",VLOOKUP($D36,invullijst!$A$11:$M$196,6,FALSE)) ->  | I36: 2 | J36: =IF($O$3="k",IF(VLOOKUP($L36,invullijst!$A$11:$M$196,11,FALSE)=0," ",VLOOKUP($L36,invullijst!$A$11:$M$196,11,FALSE)),"") ->  | K36: =IF(VLOOKUP($L36,invullijst!$A$11:$M$237,4,FALSE)="","",VLOOKUP($L36,invullijst!$A$11:$M$237,4,FALSE)) -> 0 | M36: =IF(VLOOKUP($L36,invullijst!$A$11:$M$196,2,FALSE)="","",VLOOKUP($L36,invullijst!$A$11:$M$196,2,FALSE)) -> 0 | O36: =IF(VLOOKUP($L36,invullijst!$A$11:$M$196,6,FALSE)=0,"",VLOOKUP($L36,invullijst!$A$11:$M$196,6,FALSE)) -> 
A37: 3 | B37: =IF($G$3="k",IF(VLOOKUP($D37,invullijst!$A$11:$M$196,11,FALSE)=0," ",VLOOKUP($D37,invullijst!$A$11:$M$196,11,FALSE)),"") ->  | C37: =IF(VLOOKUP(D37,invullijst!A$11:F$237,4,FALSE)="","",VLOOKUP(D37,invullijst!A$11:D$237,4,FALSE)) -> 0 | E37: =IF(VLOOKUP($D37,invullijst!$A$11:$M$196,2,FALSE)="","",VLOOKUP($D37,invullijst!$A$11:$M$196,2,FALSE)) -> 0 | G37: =IF(VLOOKUP($D37,invullijst!$A$11:$M$196,6,FALSE)=0,"",VLOOKUP($D37,invullijst!$A$11:$M$196,6,FALSE)) ->  | I37: 3 | J37: =IF($O$3="k",IF(VLOOKUP($L37,invullijst!$A$11:$M$196,11,FALSE)=0," ",VLOOKUP($L37,invullijst!$A$11:$M$196,11,FALSE)),"") ->  | K37: =IF(VLOOKUP($L37,invullijst!$A$11:$M$237,4,FALSE)="","",VLOOKUP($L37,invullijst!$A$11:$M$237,4,FALSE)) -> 0 | M37: =IF(VLOOKUP($L37,invullijst!$A$11:$M$196,2,FALSE)="","",VLOOKUP($L37,invullijst!$A$11:$M$196,2,FALSE)) -> 0 | O37: =IF(VLOOKUP($L37,invullijst!$A$11:$M$196,6,FALSE)=0,"",VLOOKUP($L37,invullijst!$A$11:$M$196,6,FALSE)) -> 
A38: Totaal korps opgelegd A3 | G38: =SUM(G35:G37) -> 93 | I38: Totaal korps opgelegd A3 | O38: =SUM(O35:O37) -> 0

Sheet wedstrijd 1B
A1: =invullijst!F1 -> Organistatie | F1: =invullijst!H2 -> 2025 - 2026 | I1: =invullijst!F3 -> Sint Ambrosius Baardwijk
A2: Datum: | M2: 2025-12-07
A3: 2 | B3: =IF(VLOOKUP(A3,invullijst!A1:F5,2,FALSE)="","",VLOOKUP(A3,invullijst!A1:F5,2,FALSE)) -> St. Crispinus & Crispinianus Besoijen | I3: 4 | J3: =IF(VLOOKUP(I3,invullijst!A1:C5,2,FALSE)="","",VLOOKUP(I3,invullijst!A1:C5,2,FALSE)) -> Sint Ambrosius Haarsteeg
A5: vrijehand
A6: 1 | B6: =IF($G$3="k",IF(VLOOKUP($D6,invullijst!$A$11:$M$196,11,FALSE)=0," ",VLOOKUP($D6,invullijst!$A$11:$M$196,11,FALSE)),"") ->  | C6: =IF(VLOOKUP(D6,invullijst!A$11:F$237,4,FALSE)="","",VLOOKUP(D6,invullijst!A$11:D$237,4,FALSE)) -> vr | D6: 210 | E6: =IF(VLOOKUP($D6,invullijst!$A$11:$M$196,2,FALSE)="","",VLOOKUP($D6,invullijst!$A$11:$M$196,2,FALSE)) -> Sander Oome | G6: =IF(VLOOKUP($D6,invullijst!$A$11:$M$196,6,FALSE)=0,"",VLOOKUP($D6,invullijst!$A$11:$M$196,6,FALSE)) -> 83 | I6: 1 | J6: =IF($O$3="k",IF(VLOOKUP($L6,invullijst!$A$11:$M$196,11,FALSE)=0," ",VLOOKUP($L6,invullijst!$A$11:$M$196,11,FALSE)),"") ->  | K6: =IF(VLOOKUP($L6,invullijst!$A$11:$M$237,4,FALSE)="","",VLOOKUP($L6,invullijst!$A$11:$M$237,4,FALSE)) -> vr | L6: 406 | M6: =IF(VLOOKUP($L6,invullijst!$A$11:$M$196,2,FALSE)="","",VLOOKUP($L6,invullijst!$A$11:$M$196,2,FALSE)) -> Jeroen van Oss | O6: =IF(VLOOKUP($L6,invullijst!$A$11:$M$196,6,FALSE)=0,"",VLOOKUP($L6,invullijst!$A$11:$M$196,6,FALSE)) -> 77
A7: 2 | B7: =IF($G$3="k",IF(VLOOKUP($D7,invullijst!$A$11:$M$196,11,FALSE)=0," ",VLOOKUP($D7,invullijst!$A$11:$M$196,11,FALSE)),"") ->  | C7: =IF(VLOOKUP(D7,invullijst!A$11:F$237,4,FALSE)="","",VLOOKUP(D7,invullijst!A$11:D$237,4,FALSE)) -> vr | D7: 216 | E7: =IF(VLOOKUP($D7,invullijst!$A$11:$M$196,2,FALSE)="","",VLOOKUP($D7,invullijst!$A$11:$M$196,2,FALSE)) -> Pieter Laghuwitz | G7: =IF(VLOOKUP($D7,invullijst!$A$11:$M$196,6,FALSE)=0,"",VLOOKUP($D7,invullijst!$A$11:$M$196,6,FALSE)) -> 92 | I7: 2 | J7: =IF($O$3="k",IF(VLOOKUP($L7,invullijst!$A$11:$M$196,11,FALSE)=0," ",VLOOKUP($L7,invullijst!$A$11:$M$196,11,FALSE)),"") ->  | K7: =IF(VLOOKUP($L7,invullijst!$A$11:$M$237,4,FALSE)="","",VLOOKUP($L7,invullijst!$A$11:$M$237,4,FALSE)) -> vr | L7: 409 | M7: =IF(VLOOKUP($L7,invullijst!$A$11:$M$196,2,FALSE)="","",VLOOKUP($L7,invullijst!$A$11:$M$196,2,FALSE)) -> Thijs Koks | O7: =IF(VLOOKUP($L7,invullijst!$A$11:$M$196,6,FALSE)=0,"",VLOOKUP($L7,invullijst!$A$11:$M$196,6,FALSE)) -> 84
A8: 3 | B8: =IF($G$3="k",IF(VLOOKUP($D8,invullijst!$A$11:$M$196,11,FALSE)=0," ",VLOOKUP($D8,invullijst!$A$11:$M$196,11,FALSE)),"") ->  | C8: =IF(VLOOKUP(D8,invullijst!A$11:F$237,4,FALSE)="","",VLOOKUP(D8,invullijst!A$11:D$237,4,FALSE)) -> vr | D8: 203 | E8: =IF(VLOOKUP($D8,invullijst!$A$11:$M$196,2,FALSE)="","",VLOOKUP($D8,invullijst!$A$11:$M$196,2,FALSE)) -> Frank van den Houdt | G8: =IF(VLOOKUP($D8,invullijst!$A$11:$M$196,6,FALSE)=0,"",VLOOKUP($D8,invullijst!$A$11:$M$196,6,FALSE)) -> 87 | I8: 3 | J8: =IF($O$3="k",IF(VLOOKUP($L8,invullijst!$A$11:$M$196,11,FALSE)=0," ",VLOOKUP($L8,invullijst!$A$11:$M$196,11,FALSE)),"") ->  | K8: =IF(VLOOKUP($L8,invullijst!$A$11:$M$237,4,FALSE)="","",VLOOKUP($L8,invullijst!$A$11:$M$237,4,FALSE)) -> vr | L8: 410 | M8: =IF(VLOOKUP($L8,invullijst!$A$11:$M$196,2,FALSE)="","",VLOOKUP($L8,invullijst!$A$11:$M$196,2,FALSE)) -> Tonnie Koks | O8: =IF(VLOOKUP($L8,invullijst!$A$11:$M$196,6,FALSE)=0,"",VLOOKUP($L8,invullijst!$A$11:$M$196,6,FALSE)) -> 79
A9: 4 | B9: =IF($G$3="k",IF(VLOOKUP($D9,invullijst!$A$11:$M$196,11,FALSE)=0," ",VLOOKUP($D9,invullijst!$A$11:$M$196,11,FALSE)),"") ->  | C9: =IF(VLOOKUP(D9,invullijst!A$11:F$237,4,FALSE)="","",VLOOKUP(D9,invullijst!A$11:D$237,4,FALSE)) -> vr | D9: 205 | E9: =IF(VLOOKUP($D9,invullijst!$A$11:$M$196,2,FALSE)="","",VLOOKUP($D9,invullijst!$A$11:$M$196,2,FALSE)) -> Jos v/d Snepscheut | G9: =IF(VLOOKUP($D9,invullijst!$A$11:$M$196,6,FALSE)=0,"",VLOOKUP($D9,invullijst!$A$11:$M$196,6,FALSE)) -> 70 | I9: 4 | J9: =IF($O$3="k",IF(VLOOKUP($L9,invullijst!$A$11:$M$196,11,FALSE)=0," ",VLOOKUP($L9,invullijst!$A$11:$M$196,11,FALSE)),"") ->  | K9: =IF(VLOOKUP($L9,invullijst!$A$11:$M$237,4,FALSE)="","",VLOOKUP($L9,invullijst!$A$11:$M$237,4,FALSE)) -> vr | L9: 408 | M9: =IF(VLOOKUP($L9,invullijst!$A$11:$M$196,2,FALSE)="","",VLOOKUP($L9,invullijst!$A$11:$M$196,2,FALSE)) -> Rudy van Falier | O9: =IF(VLOOKUP($L9,invullijst!$A$11:$M$196,6,FALSE)=0,"",VLOOKUP($L9,invullijst!$A$11:$M$196,6,FALSE)) -> 80
A10: Totaal A korps | G10: =SUM(G6:G9) -> 332 | I10: Totaal A korps | O10: =SUM(O6:O9) -> 320
A12: 1 | B12: =IF($G$3="k",IF(VLOOKUP($D12,invullijst!$A$11:$M$196,11,FALSE)=0," ",VLOOKUP($D12,invullijst!$A$11:$M$196,11,FALSE)),"") ->  | C12: =IF(VLOOKUP(D12,invullijst!A$11:F$237,4,FALSE)="","",VLOOKUP(D12,invullijst!A$11:D$237,4,FALSE)) -> vr | D12: 209 | E12: =IF(VLOOKUP($D12,invullijst!$A$11:$M$196,2,FALSE)="","",VLOOKUP($D12,invullijst!$A$11:$M$196,2,FALSE)) -> René van Kuijk | G12: =IF(VLOOKUP($D12,invullijst!$A$11:$M$196,6,FALSE)=0,"",VLOOKUP($D12,invullijst!$A$11:$M$196,6,FALSE)) -> 76 | I12: 1 | J12: =IF($O$3="k",IF(VLOOKUP($L12,invullijst!$A$11:$M$196,11,FALSE)=0," ",VLOOKUP($L12,invullijst!$A$11:$M$196,11,FALSE)),"") ->  | K12: =IF(VLOOKUP($L12,invullijst!$A$11:$M$237,4,FALSE)="","",VLOOKUP($L12,invullijst!$A$11:$M$237,4,FALSE)) -> vr | L12: 402 | M12: =IF(VLOOKUP($L12,invullijst!$A$11:$M$196,2,FALSE)="","",VLOOKUP($L12,invullijst!$A$11:$M$196,2,FALSE)) -> Daniëlle v/d Lee | O12: =IF(VLOOKUP($L12,invullijst!$A$11:$M$196,6,FALSE)=0,"",VLOOKUP($L12,invullijst!$A$11:$M$196,6,FALSE)) -> 81
A13: 2 | B13: =IF($G$3="k",IF(VLOOKUP($D13,invullijst!$A$11:$M$196,11,FALSE)=0," ",VLOOKUP($D13,invullijst!$A$11:$M$196,11,FALSE)),"") ->  | C13: =IF(VLOOKUP(D13,invullijst!A$11:F$237,4,FALSE)="","",VLOOKUP(D13,invullijst!A$11:D$237,4,FALSE)) -> vr | D13: 217 | E13: =IF(VLOOKUP($D13,invullijst!$A$11:$M$196,2,FALSE)="","",VLOOKUP($D13,invullijst!$A$11:$M$196,2,FALSE)) -> Hans Laghuwitz | G13: =IF(VLOOKUP($D13,invullijst!$A$11:$M$196,6,FALSE)=0,"",VLOOKUP($D13,invullijst!$A$11:$M$196,6,FALSE)) -> 76 | I13: 2 | J13: =IF($O$3="k",IF(VLOOKUP($L13,invullijst!$A$11:$M$196,11,FALSE)=0," ",VLOOKUP($L13,invullijst!$A$11:$M$196,11,FALSE)),"") ->  | K13: =IF(VLOOKUP($L13,invullijst!$A$11:$M$237,4,FALSE)="","",VLOOKUP($L13,invullijst!$A$11:$M$237,4,FALSE)) -> vr | L13: 411 | M13: =IF(VLOOKUP($L13,invullijst!$A$11:$M$196,2,FALSE)="","",VLOOKUP($L13,invullijst!$A$11:$M$196,2,FALSE)) -> Wilma v/d Lee | O13: =IF(VLOOKUP($L13,invullijst!$A$11:$M$196,6,FALSE)=0,"",VLOOKUP($L13,invullijst!$A$11:$M$196,6,FALSE)) -> 78
A14: 3 | B14: =IF($G$3="k",IF(VLOOKUP($D14,invullijst!$A$11:$M$196,11,FALSE)=0," ",VLOOKUP($D14,invullijst!$A$11:$M$196,11,FALSE)),"") ->  | C14: =IF(VLOOKUP(D14,invullijst!A$11:F$237,4,FALSE)="","",VLOOKUP(D14,invullijst!A$11:D$237,4,FALSE)) -> vr | D14: 204 | E14: =IF(VLOOKUP($D14,invullijst!$A$11:$M$196,2,FALSE)="","",VLOOKUP($D14,invullijst!$A$11:$M$196,2,FALSE)) -> Harry de Louw | G14: =IF(VLOOKUP($D14,invullijst!$A$11:$M$196,6,FALSE)=0,"",VLOOKUP($D14,invullijst!$A$11:$M$196,6,FALSE)) -> 84 | I14: 3 | J14: =IF($O$3="k",IF(VLOOKUP($L14,invullijst!$A$11:$M$196,11,FALSE)=0," ",VLOOKUP($L14,invullijst!$A$11:$M$196,11,FALSE)),"") ->  | K14: =IF(VLOOKUP($L14,invullijst!$A$11:$M$237,4,FALSE)="","",VLOOKUP($L14,invullijst!$A$11:$M$237,4,FALSE)) -> 0 | M14: =IF(VLOOKUP($L14,invullijst!$A$11:$M$196,2,FALSE)="","",VLOOKUP($L14,invullijst!$A$11:$M$196,2,FALSE)) -> 0 | O14: =IF(VLOOKUP($L14,invullijst!$A$11:$M$196,6,FALSE)=0,"",VLOOKUP($L14,invullijst!$A$11:$M$196,6,FALSE)) -> 
A15: 4 | B15: =IF($G$3="k",IF(VLOOKUP($D15,invullijst!$A$11:$M$196,11,FALSE)=0," ",VLOOKUP($D15,invullijst!$A$11:$M$196,11,FALSE)),"") ->  | C15: =IF(VLOOKUP(D15,invullijst!A$11:F$237,4,FALSE)="","",VLOOKUP(D15,invullijst!A$11:D$237,4,FALSE)) -> vr | D15: 206 | E15: =IF(VLOOKUP($D15,invullijst!$A$11:$M$196,2,FALSE)="","",VLOOKUP($D15,invullijst!$A$11:$M$196,2,FALSE)) -> Kees van Hulten | G15: =IF(VLOOKUP($D15,invullijst!$A$11:$M$196,6,FALSE)=0,"",VLOOKUP($D15,invullijst!$A$11:$M$196,6,FALSE)) -> 77 | I15: 4 | J15: =IF($O$3="k",IF(VLOOKUP($L15,invullijst!$A$11:$M$196,11,FALSE)=0," ",VLOOKUP($L15,invullijst!$A$11:$M$196,11,FALSE)),"") ->  | K15: =IF(VLOOKUP($L15,invullijst!$A$11:$M$237,4,FALSE)="","",VLOOKUP($L15,invullijst!$A$11:$M$237,4,FALSE)) -> 0 | M15: =IF(VLOOKUP($L15,invullijst!$A$11:$M$196,2,FALSE)="","",VLOOKUP($L15,invullijst!$A$11:$M$196,2,FALSE)) -> 0 | O15: =IF(VLOOKUP($L15,invullijst!$A$11:$M$196,6,FALSE)=0,"",VLOOKUP($L15,invullijst!$A$11:$M$196,6,FALSE)) -> 
A16: Totaal B1 korps | G16: =SUM(G12:G15) -> 313 | I16: Totaal B1 korps | O16: =SUM(O12:O15) -> 159
A18: 1 | B18: =IF($G$3="k",IF(VLOOKUP($D18,invullijst!$A$11:$M$196,11,FALSE)=0," ",VLOOKUP($D18,invullijst!$A$11:$M$196,11,FALSE)),"") ->  | C18: =IF(VLOOKUP(D18,invullijst!A$11:F$237,4,FALSE)="","",VLOOKUP(D18,invullijst!A$11:D$237,4,FALSE)) -> vr | D18: 213 | E18: =IF(VLOOKUP($D18,invullijst!$A$11:$M$196,2,FALSE)="","",VLOOKUP($D18,invullijst!$A$11:$M$196,2,FALSE)) -> Roland van Delft | G18: =IF(VLOOKUP($D18,invullijst!$A$11:$M$196,6,FALSE)=0,"",VLOOKUP($D18,invullijst!$A$11:$M$196,6,FALSE)) -> 52 | I18: 1 | J18: =IF($O$3="k",IF(VLOOKUP($L18,invullijst!$A$11:$M$196,11,FALSE)=0," ",VLOOKUP($L18,invullijst!$A$11:$M$196,11,FALSE)),"") ->  | K18: =IF(VLOOKUP($L18,invullijst!$A$11:$M$237,4,FALSE)="","",VLOOKUP($L18,invullijst!$A$11:$M$237,4,FALSE)) -> 0 | M18: =IF(VLOOKUP($L18,invullijst!$A$11:$M$196,2,FALSE)="","",VLOOKUP($L18,invullijst!$A$11:$M$196,2,FALSE)) -> 0 | O18: =IF(VLOOKUP($L18,invullijst!$A$11:$M$196,6,FALSE)=0,"",VLOOKUP($L18,invullijst!$A$11:$M$196,6,FALSE)) -> 
A19: 2 | B19: =IF($G$3="k",IF(VLOOKUP($D19,invullijst!$A$11:$M$196,11,FALSE)=0," ",VLOOKUP($D19,invullijst!$A$11:$M$196,11,FALSE)),"") ->  | C19: =IF(VLOOKUP(D19,invullijst!A$11:F$237,4,FALSE)="","",VLOOKUP(D19,invullijst!A$11:D$237,4,FALSE)) -> vr | D19: 222 | E19: =IF(VLOOKUP($D19,invullijst!$A$11:$M$196,2,FALSE)="","",VLOOKUP($D19,invullijst!$A$11:$M$196,2,FALSE)) -> Nick de Vaan | G19: =IF(VLOOKUP($D19,invullijst!$A$11:$M$196,6,FALSE)=0,"",VLOOKUP($D19,invullijst!$A$11:$M$196,6,FALSE)) -> 80 | I19: 2 | J19: =IF($O$3="k",IF(VLOOKUP($L19,invullijst!$A$11:$M$196,11,FALSE)=0," ",VLOOKUP($L19,invullijst!$A$11:$M$196,11,FALSE)),"") ->  | K19: =IF(VLOOKUP($L19,invullijst!$A$11:$M$237,4,FALSE)="","",VLOOKUP($L19,invullijst!$A$11:$M$237,4,FALSE)) -> 0 | M19: =IF(VLOOKUP($L19,invullijst!$A$11:$M$196,2,FALSE)="","",VLOOKUP($L19,invullijst!$A$11:$M$196,2,FALSE)) -> 0 | O19: =IF(VLOOKUP($L19,invullijst!$A$11:$M$196,6,FALSE)=0,"",VLOOKUP($L19,invullijst!$A$11:$M$196,6,FALSE)) -> 
A20: 3 | B20: =IF($G$3="k",IF(VLOOKUP($D20,invullijst!$A$11:$M$196,11,FALSE)=0," ",VLOOKUP($D20,invullijst!$A$11:$M$196,11,FALSE)),"") ->  | C20: =IF(VLOOKUP(D20,invullijst!A$11:F$237,4,FALSE)="","",VLOOKUP(D20,invullijst!A$11:D$237,4,FALSE)) -> 0 | E20: =IF(VLOOKUP($D20,invullijst!$A$11:$M$196,2,FALSE)="","",VLOOKUP($D20,invullijst!$A$11:$M$196,2,FALSE)) -> 0 | G20: =IF(VLOOKUP($D20,invullijst!$A$11:$M$196,6,FALSE)=0,"",VLOOKUP($D20,invullijst!$A$11:$M$196,6,FALSE)) ->  | I20: 3 | J20: =IF($O$3="k",IF(VLOOKUP($L20,invullijst!$A$11:$M$196,11,FALSE)=0," ",VLOOKUP($L20,invullijst!$A$11:$M$196,11,FALSE)),"") ->  | K20: =IF(VLOOKUP($L20,invullijst!$A$11:$M$237,4,FALSE)="","",VLOOKUP($L20,invullijst!$A$11:$M$237,4,FALSE)) -> 0 | M20: =IF(VLOOKUP($L20,invullijst!$A$11:$M$196,2,FALSE)="","",VLOOKUP($L20,invullijst!$A$11:$M$196,2,FALSE)) -> 0 | O20: =IF(VLOOKUP($L20,invullijst!$A$11:$M$196,6,FALSE)=0,"",VLOOKUP($L20,invullijst!$A$11:$M$196,6,FALSE)) -> 
A21: 4 | B21: =IF($G$3="k",IF(VLOOKUP($D21,invullijst!$A$11:$M$196,11,FALSE)=0," ",VLOOKUP($D21,invullijst!$A$11:$M$196,11,FALSE)),"") ->  | C21: =IF(VLOOKUP(D21,invullijst!A$11:F$237,4,FALSE)="","",VLOOKUP(D21,invullijst!A$11:D$237,4,FALSE)) -> 0 | E21: =IF(VLOOKUP($D21,invullijst!$A$11:$M$196,2,FALSE)="","",VLOOKUP($D21,invullijst!$A$11:$M$196,2,FALSE)) -> 0 | G21: =IF(VLOOKUP($D21,invullijst!$A$11:$M$196,6,FALSE)=0,"",VLOOKUP($D21,invullijst!$A$11:$M$196,6,FALSE)) ->  | I21: 4 | J21: =IF($O$3="k",IF(VLOOKUP($L21,invullijst!$A$11:$M$196,11,FALSE)=0," ",VLOOKUP($L21,invullijst!$A$11:$M$196,11,FALSE)),"") ->  | K21: =IF(VLOOKUP($L21,invullijst!$A$11:$M$237,4,FALSE)="","",VLOOKUP($L21,invullijst!$A$11:$M$237,4,FALSE)) -> 0 | M21: =IF(VLOOKUP($L21,invullijst!$A$11:$M$196,2,FALSE)="","",VLOOKUP($L21,invullijst!$A$11:$M$196,2,FALSE)) -> 0 | O21: =IF(VLOOKUP($L21,invullijst!$A$11:$M$196,6,FALSE)=0,"",VLOOKUP($L21,invullijst!$A$11:$M$196,6,FALSE)) -> 
A22: DIVERSEN / INHAAL | G22: =SUM(G18:G21) -> 132 | I22: DIVERSEN / INHAAL | O22: =SUM(O12:O21) -> 318
A24: OPGELEGD (Jeugd <16 en 65+)
A25: 1 | B25: =IF($G$3="k",IF(VLOOKUP($D25,invullijst!$A$11:$M$196,11,FALSE)=0," ",VLOOKUP($D25,invullijst!$A$11:$M$196,11,FALSE)),"") ->  | C25: =IF(VLOOKUP(D25,invullijst!A$11:F$237,4,FALSE)="","",VLOOKUP(D25,invullijst!A$11:D$237,4,FALSE)) -> 65+ | D25: 219 | E25: =IF(VLOOKUP($D25,invullijst!$A$11:$M$196,2,FALSE)="","",VLOOKUP($D25,invullijst!$A$11:$M$196,2,FALSE)) -> Frans de Bont | G25: =IF(VLOOKUP($D25,invullijst!$A$11:$M$196,6,FALSE)=0,"",VLOOKUP($D25,invullijst!$A$11:$M$196,6,FALSE)) -> 93 | I25: 1 | J25: =IF($O$3="k",IF(VLOOKUP($L25,invullijst!$A$11:$M$196,11,FALSE)=0," ",VLOOKUP($L25,invullijst!$A$11:$M$196,11,FALSE)),"") ->  | K25: =IF(VLOOKUP($L25,invullijst!$A$11:$M$237,4,FALSE)="","",VLOOKUP($L25,invullijst!$A$11:$M$237,4,FALSE)) -> 65+ | L25: 404 | M25: =IF(VLOOKUP($L25,invullijst!$A$11:$M$196,2,FALSE)="","",VLOOKUP($L25,invullijst!$A$11:$M$196,2,FALSE)) -> Gerard van Beurden | O25: =IF(VLOOKUP($L25,invullijst!$A$11:$M$196,6,FALSE)=0,"",VLOOKUP($L25,invullijst!$A$11:$M$196,6,FALSE)) -> 92
A26: 2 | B26: =IF($G$3="k",IF(VLOOKUP($D26,invullijst!$A$11:$M$196,11,FALSE)=0," ",VLOOKUP($D26,invullijst!$A$11:$M$196,11,FALSE)),"") ->  | C26: =IF(VLOOKUP(D26,invullijst!A$11:F$237,4,FALSE)="","",VLOOKUP(D26,invullijst!A$11:D$237,4,FALSE)) -> 65+ | D26: 218 | E26: =IF(VLOOKUP($D26,invullijst!$A$11:$M$196,2,FALSE)="","",VLOOKUP($D26,invullijst!$A$11:$M$196,2,FALSE)) -> Jacob van de Werken | G26: =IF(VLOOKUP($D26,invullijst!$A$11:$M$196,6,FALSE)=0,"",VLOOKUP($D26,invullijst!$A$11:$M$196,6,FALSE)) -> 95 | I26: 2 | J26: =IF($O$3="k",IF(VLOOKUP($L26,invullijst!$A$11:$M$196,11,FALSE)=0," ",VLOOKUP($L26,invullijst!$A$11:$M$196,11,FALSE)),"") ->  | K26: =IF(VLOOKUP($L26,invullijst!$A$11:$M$237,4,FALSE)="","",VLOOKUP($L26,invullijst!$A$11:$M$237,4,FALSE)) -> 65+ | L26: 401 | M26: =IF(VLOOKUP($L26,invullijst!$A$11:$M$196,2,FALSE)="","",VLOOKUP($L26,invullijst!$A$11:$M$196,2,FALSE)) -> Frans van Beurden | O26: =IF(VLOOKUP($L26,invullijst!$A$11:$M$196,6,FALSE)=0,"",VLOOKUP($L26,invullijst!$A$11:$M$196,6,FALSE)) -> 96
A27: 3 | B27: =IF($G$3="k",IF(VLOOKUP($D27,invullijst!$A$11:$M$196,11,FALSE)=0," ",VLOOKUP($D27,invullijst!$A$11:$M$196,11,FALSE)),"") ->  | C27: =IF(VLOOKUP(D27,invullijst!A$11:F$237,4,FALSE)="","",VLOOKUP(D27,invullijst!A$11:D$237,4,FALSE)) -> 65+ | D27: 220 | E27: =IF(VLOOKUP($D27,invullijst!$A$11:$M$196,2,FALSE)="","",VLOOKUP($D27,invullijst!$A$11:$M$196,2,FALSE)) -> Kees Vos | G27: =IF(VLOOKUP($D27,invullijst!$A$11:$M$196,6,FALSE)=0,"",VLOOKUP($D27,invullijst!$A$11:$M$196,6,FALSE)) -> 88 | I27: 3 | J27: =IF($O$3="k",IF(VLOOKUP($L27,invullijst!$A$11:$M$196,11,FALSE)=0," ",VLOOKUP($L27,invullijst!$A$11:$M$196,11,FALSE)),"") ->  | K27: =IF(VLOOKUP($L27,invullijst!$A$11:$M$237,4,FALSE)="","",VLOOKUP($L27,invullijst!$A$11:$M$237,4,FALSE)) -> 65+ | L27: 415 | M27: =IF(VLOOKUP($L27,invullijst!$A$11:$M$196,2,FALSE)="","",VLOOKUP($L27,invullijst!$A$11:$M$196,2,FALSE)) -> Wim de Gouw | O27: =IF(VLOOKUP($L27,invullijst!$A$11:$M$196,6,FALSE)=0,"",VLOOKUP($L27,invullijst!$A$11:$M$196,6,FALSE)) -> 96
A28: Totaal korps opgelegd A1 | G28: =SUM(G25:G27) -> 276 | I28: Totaal korps opgelegd A1 | O28: =SUM(O25:O27) -> 284
A30: 1 | B30: =IF($G$3="k",IF(VLOOKUP($D30,invullijst!$A$11:$M$196,11,FALSE)=0," ",VLOOKUP($D30,invullijst!$A$11:$M$196,11,FALSE)),"") ->  | C30: =IF(VLOOKUP(D30,invullijst!A$11:F$237,4,FALSE)="","",VLOOKUP(D30,invullijst!A$11:D$237,4,FALSE)) -> 65+ | D30: 212 | E30: =IF(VLOOKUP($D30,invullijst!$A$11:$M$196,2,FALSE)="","",VLOOKUP($D30,invullijst!$A$11:$M$196,2,FALSE)) -> René Duquesnoy | G30: =IF(VLOOKUP($D30,invullijst!$A$11:$M$196,6,FALSE)=0,"",VLOOKUP($D30,invullijst!$A$11:$M$196,6,FALSE)) -> 88 | I30: 1 | J30: =IF($O$3="k",IF(VLOOKUP($L30,invullijst!$A$11:$M$196,11,FALSE)=0," ",VLOOKUP($L30,invullijst!$A$11:$M$196,11,FALSE)),"") ->  | K30: =IF(VLOOKUP($L30,invullijst!$A$11:$M$237,4,FALSE)="","",VLOOKUP($L30,invullijst!$A$11:$M$237,4,FALSE)) -> 65+ | L30: 403 | M30: =IF(VLOOKUP($L30,invullijst!$A$11:$M$196,2,FALSE)="","",VLOOKUP($L30,invullijst!$A$11:$M$196,2,FALSE)) -> Dorien de Kort | O30: =IF(VLOOKUP($L30,invullijst!$A$11:$M$196,6,FALSE)=0,"",VLOOKUP($L30,invullijst!$A$11:$M$196,6,FALSE)) -> 91
A31: 2 | B31: =IF($G$3="k",IF(VLOOKUP($D31,invullijst!$A$11:$M$196,11,FALSE)=0," ",VLOOKUP($D31,invullijst!$A$11:$M$196,11,FALSE)),"") ->  | C31: =IF(VLOOKUP(D31,invullijst!A$11:F$237,4,FALSE)="","",VLOOKUP(D31,invullijst!A$11:D$237,4,FALSE)) -> 65+ | D31: 211 | E31: =IF(VLOOKUP($D31,invullijst!$A$11:$M$196,2,FALSE)="","",VLOOKUP($D31,invullijst!$A$11:$M$196,2,FALSE)) -> Ad van den houdt | G31: =IF(VLOOKUP($D31,invullijst!$A$11:$M$196,6,FALSE)=0,"",VLOOKUP($D31,invullijst!$A$11:$M$196,6,FALSE)) -> 88 | I31: 2 | J31: =IF($O$3="k",IF(VLOOKUP($L31,invullijst!$A$11:$M$196,11,FALSE)=0," ",VLOOKUP($L31,invullijst!$A$11:$M$196,11,FALSE)),"") ->  | K31: =IF(VLOOKUP($L31,invullijst!$A$11:$M$237,4,FALSE)="","",VLOOKUP($L31,invullijst!$A$11:$M$237,4,FALSE)) -> 65+ | L31: 412 | M31: =IF(VLOOKUP($L31,invullijst!$A$11:$M$196,2,FALSE)="","",VLOOKUP($L31,invullijst!$A$11:$M$196,2,FALSE)) -> Francien v/d Wiel | O31: =IF(VLOOKUP($L31,invullijst!$A$11:$M$196,6,FALSE)=0,"",VLOOKUP($L31,invullijst!$A$11:$M$196,6,FALSE)) -> 87
A32: 3 | B32: =IF($G$3="k",IF(VLOOKUP($D32,invullijst!$A$11:$M$196,11,FALSE)=0," ",VLOOKUP($D32,invullijst!$A$11:$M$196,11,FALSE)),"") ->  | C32: =IF(VLOOKUP(D32,invullijst!A$11:F$237,4,FALSE)="","",VLOOKUP(D32,invullijst!A$11:D$237,4,FALSE)) -> 65+ | D32: 214 | E32: =IF(VLOOKUP($D32,invullijst!$A$11:$M$196,2,FALSE)="","",VLOOKUP($D32,invullijst!$A$11:$M$196,2,FALSE)) -> Andre de Vaan | G32: =IF(VLOOKUP($D32,invullijst!$A$11:$M$196,6,FALSE)=0,"",VLOOKUP($D32,invullijst!$A$11:$M$196,6,FALSE)) -> 92 | I32: 3 | J32: =IF($O$3="k",IF(VLOOKUP($L32,invullijst!$A$11:$M$196,11,FALSE)=0," ",VLOOKUP($L32,invullijst!$A$11:$M$196,11,FALSE)),"") ->  | K32: =IF(VLOOKUP($L32,invullijst!$A$11:$M$237,4,FALSE)="","",VLOOKUP($L32,invullijst!$A$11:$M$237,4,FALSE)) -> 65+ | L32: 413 | M32: =IF(VLOOKUP($L32,invullijst!$A$11:$M$196,2,FALSE)="","",VLOOKUP($L32,invullijst!$A$11:$M$196,2,FALSE)) -> Frans Mommersteeg | O32: =IF(VLOOKUP($L32,invullijst!$A$11:$M$196,6,FALSE)=0,"",VLOOKUP($L32,invullijst!$A$11:$M$196,6,FALSE)) -> 93
A33: Totaal korps opgelegd A2 | G33: =SUM(G30:G32) -> 268 | I33: Totaal korps opgelegd A2 | O33: =SUM(O30:O32) -> 271
A35: 1 | B35: =IF($G$3="k",IF(VLOOKUP($D35,invullijst!$A$11:$M$196,11,FALSE)=0," ",VLOOKUP($D35,invullijst!$A$11:$M$196,11,FALSE)),"") ->  | C35: =IF(VLOOKUP(D35,invullijst!A$11:F$237,4,FALSE)="","",VLOOKUP(D35,invullijst!A$11:D$237,4,FALSE)) -> 0 | E35: =IF(VLOOKUP($D35,invullijst!$A$11:$M$196,2,FALSE)="","",VLOOKUP($D35,invullijst!$A$11:$M$196,2,FALSE)) -> 0 | G35: =IF(VLOOKUP($D35,invullijst!$A$11:$M$196,6,FALSE)=0,"",VLOOKUP($D35,invullijst!$A$11:$M$196,6,FALSE)) ->  | I35: 1 | J35: =IF($O$3="k",IF(VLOOKUP($L35,invullijst!$A$11:$M$196,11,FALSE)=0," ",VLOOKUP($L35,invullijst!$A$11:$M$196,11,FALSE)),"") ->  | K35: =IF(VLOOKUP($L35,invullijst!$A$11:$M$237,4,FALSE)="","",VLOOKUP($L35,invullijst!$A$11:$M$237,4,FALSE)) -> 65+ | L35: 414 | M35: =IF(VLOOKUP($L35,invullijst!$A$11:$M$196,2,FALSE)="","",VLOOKUP($L35,invullijst!$A$11:$M$196,2,FALSE)) -> Alex Hus | O35: =IF(VLOOKUP($L35,invullijst!$A$11:$M$196,6,FALSE)=0,"",VLOOKUP($L35,invullijst!$A$11:$M$196,6,FALSE)) -> 73
A36: 2 | B36: =IF($G$3="k",IF(VLOOKUP($D36,invullijst!$A$11:$M$196,11,FALSE)=0," ",VLOOKUP($D36,invullijst!$A$11:$M$196,11,FALSE)),"") ->  | C36: =IF(VLOOKUP(D36,invullijst!A$11:F$237,4,FALSE)="","",VLOOKUP(D36,invullijst!A$11:D$237,4,FALSE)) -> 0 | E36: =IF(VLOOKUP($D36,invullijst!$A$11:$M$196,2,FALSE)="","",VLOOKUP($D36,invullijst!$A$11:$M$196,2,FALSE)) -> 0 | G36: =IF(VLOOKUP($D36,invullijst!$A$11:$M$196,6,FALSE)=0,"",VLOOKUP($D36,invullijst!$A$11:$M$196,6,FALSE)) ->  | I36: 2 | J36: =IF($O$3="k",IF(VLOOKUP($L36,invullijst!$A$11:$M$196,11,FALSE)=0," ",VLOOKUP($L36,invullijst!$A$11:$M$196,11,FALSE)),"") ->  | K36: =IF(VLOOKUP($L36,invullijst!$A$11:$M$237,4,FALSE)="","",VLOOKUP($L36,invullijst!$A$11:$M$237,4,FALSE)) -> 0 | M36: =IF(VLOOKUP($L36,invullijst!$A$11:$M$196,2,FALSE)="","",VLOOKUP($L36,invullijst!$A$11:$M$196,2,FALSE)) -> 0 | O36: =IF(VLOOKUP($L36,invullijst!$A$11:$M$196,6,FALSE)=0,"",VLOOKUP($L36,invullijst!$A$11:$M$196,6,FALSE)) -> 
A37: 3 | B37: =IF($G$3="k",IF(VLOOKUP($D37,invullijst!$A$11:$M$196,11,FALSE)=0," ",VLOOKUP($D37,invullijst!$A$11:$M$196,11,FALSE)),"") ->  | C37: =IF(VLOOKUP(D37,invullijst!A$11:F$237,4,FALSE)="","",VLOOKUP(D37,invullijst!A$11:D$237,4,FALSE)) -> 0 | E37: =IF(VLOOKUP($D37,invullijst!$A$11:$M$196,2,FALSE)="","",VLOOKUP($D37,invullijst!$A$11:$M$196,2,FALSE)) -> 0 | G37: =IF(VLOOKUP($D37,invullijst!$A$11:$M$196,6,FALSE)=0,"",VLOOKUP($D37,invullijst!$A$11:$M$196,6,FALSE)) ->  | I37: 3 | J37: =IF($O$3="k",IF(VLOOKUP($L37,invullijst!$A$11:$M$196,11,FALSE)=0," ",VLOOKUP($L37,invullijst!$A$11:$M$196,11,FALSE)),"") ->  | K37: =IF(VLOOKUP($L37,invullijst!$A$11:$M$237,4,FALSE)="","",VLOOKUP($L37,invullijst!$A$11:$M$237,4,FALSE)) -> 0 | M37: =IF(VLOOKUP($L37,invullijst!$A$11:$M$196,2,FALSE)="","",VLOOKUP($L37,invullijst!$A$11:$M$196,2,FALSE)) -> 0 | O37: =IF(VLOOKUP($L37,invullijst!$A$11:$M$196,6,FALSE)=0,"",VLOOKUP($L37,invullijst!$A$11:$M$196,6,FALSE)) -> 
A38: Diversen | G38: =SUM(G35:G37) -> 0 | I38: Totaal korps opgelegd A3 | O38: =SUM(O35:O37) -> 73

Sheet wedstrijd 2A
A1: =invullijst!F1 -> Organistatie | F1: =invullijst!H2 -> 2025 - 2026 | I1: =invullijst!F3 -> Sint Ambrosius Baardwijk
A2: Datum: | M2: 2026-01-18
A3: 3 | B3: =IF(VLOOKUP(A3,invullijst!A1:F5,2,FALSE)="","",VLOOKUP(A3,invullijst!A1:F5,2,FALSE)) -> O.L.V. Schuts Elshout | I3: 1 | J3: =IF(VLOOKUP(I3,invullijst!A1:C5,2,FALSE)="","",VLOOKUP(I3,invullijst!A1:C5,2,FALSE)) -> Sint Ambrosius Baardwijk
A5: vrijehand
A6: 1 | B6: =IF($G$3="k",IF(VLOOKUP($D6,invullijst!$A$11:$M$196,11,FALSE)=0," ",VLOOKUP($D6,invullijst!$A$11:$M$196,11,FALSE)),"") ->  | C6: =IF(VLOOKUP(D6,invullijst!A$11:F$237,4,FALSE)="","",VLOOKUP(D6,invullijst!A$11:D$237,4,FALSE)) -> vr | D6: 302 | E6: =IF(VLOOKUP($D6,invullijst!$A$11:$M$196,2,FALSE)="","",VLOOKUP($D6,invullijst!$A$11:$M$196,2,FALSE)) -> Freek de Jong | G6: =IF(VLOOKUP($D6,invullijst!$A$11:$M$196,7,FALSE)=0,"",VLOOKUP($D6,invullijst!$A$11:$M$196,7,FALSE)) -> 90 | I6: 1 | J6: =IF($O$3="k",IF(VLOOKUP($L6,invullijst!$A$11:$M$196,11,FALSE)=0," ",VLOOKUP($L6,invullijst!$A$11:$M$196,11,FALSE)),"") ->  | K6: =IF(VLOOKUP($L6,invullijst!$A$11:$M$237,4,FALSE)="","",VLOOKUP($L6,invullijst!$A$11:$M$237,4,FALSE)) -> vr | L6: 105 | M6: =IF(VLOOKUP($L6,invullijst!$A$11:$M$196,2,FALSE)="","",VLOOKUP($L6,invullijst!$A$11:$M$196,2,FALSE)) -> René Klijn | O6: =IF(VLOOKUP($L6,invullijst!$A$11:$M$196,7,FALSE)=0,"",VLOOKUP($L6,invullijst!$A$11:$M$196,7,FALSE)) -> 81
A7: 2 | B7: =IF($G$3="k",IF(VLOOKUP($D7,invullijst!$A$11:$M$196,11,FALSE)=0," ",VLOOKUP($D7,invullijst!$A$11:$M$196,11,FALSE)),"") ->  | C7: =IF(VLOOKUP(D7,invullijst!A$11:F$237,4,FALSE)="","",VLOOKUP(D7,invullijst!A$11:D$237,4,FALSE)) -> vr | D7: 305 | E7: =IF(VLOOKUP($D7,invullijst!$A$11:$M$196,2,FALSE)="","",VLOOKUP($D7,invullijst!$A$11:$M$196,2,FALSE)) -> Johan Klerx | G7: =IF(VLOOKUP($D7,invullijst!$A$11:$M$196,7,FALSE)=0,"",VLOOKUP($D7,invullijst!$A$11:$M$196,7,FALSE)) -> 88 | I7: 2 | J7: =IF($O$3="k",IF(VLOOKUP($L7,invullijst!$A$11:$M$196,11,FALSE)=0," ",VLOOKUP($L7,invullijst!$A$11:$M$196,11,FALSE)),"") ->  | K7: =IF(VLOOKUP($L7,invullijst!$A$11:$M$237,4,FALSE)="","",VLOOKUP($L7,invullijst!$A$11:$M$237,4,FALSE)) -> vr | L7: 108 | M7: =IF(VLOOKUP($L7,invullijst!$A$11:$M$196,2,FALSE)="","",VLOOKUP($L7,invullijst!$A$11:$M$196,2,FALSE)) -> Bram Pullens | O7: =IF(VLOOKUP($L7,invullijst!$A$11:$M$196,7,FALSE)=0,"",VLOOKUP($L7,invullijst!$A$11:$M$196,7,FALSE)) -> 78
A8: 3 | B8: =IF($G$3="k",IF(VLOOKUP($D8,invullijst!$A$11:$M$196,11,FALSE)=0," ",VLOOKUP($D8,invullijst!$A$11:$M$196,11,FALSE)),"") ->  | C8: =IF(VLOOKUP(D8,invullijst!A$11:F$237,4,FALSE)="","",VLOOKUP(D8,invullijst!A$11:D$237,4,FALSE)) -> vr | D8: 306 | E8: =IF(VLOOKUP($D8,invullijst!$A$11:$M$196,2,FALSE)="","",VLOOKUP($D8,invullijst!$A$11:$M$196,2,FALSE)) -> Ron Groot | G8: =IF(VLOOKUP($D8,invullijst!$A$11:$M$196,7,FALSE)=0,"",VLOOKUP($D8,invullijst!$A$11:$M$196,7,FALSE)) -> 92 | I8: 3 | J8: =IF($O$3="k",IF(VLOOKUP($L8,invullijst!$A$11:$M$196,11,FALSE)=0," ",VLOOKUP($L8,invullijst!$A$11:$M$196,11,FALSE)),"") ->  | K8: =IF(VLOOKUP($L8,invullijst!$A$11:$M$237,4,FALSE)="","",VLOOKUP($L8,invullijst!$A$11:$M$237,4,FALSE)) -> vr | L8: 109 | M8: =IF(VLOOKUP($L8,invullijst!$A$11:$M$196,2,FALSE)="","",VLOOKUP($L8,invullijst!$A$11:$M$196,2,FALSE)) -> Gijs Pullens | O8: =IF(VLOOKUP($L8,invullijst!$A$11:$M$196,7,FALSE)=0,"",VLOOKUP($L8,invullijst!$A$11:$M$196,7,FALSE)) -> 84
A9: 4 | B9: =IF($G$3="k",IF(VLOOKUP($D9,invullijst!$A$11:$M$196,11,FALSE)=0," ",VLOOKUP($D9,invullijst!$A$11:$M$196,11,FALSE)),"") ->  | C9: =IF(VLOOKUP(D9,invullijst!A$11:F$237,4,FALSE)="","",VLOOKUP(D9,invullijst!A$11:D$237,4,FALSE)) -> vr | D9: 304 | E9: =IF(VLOOKUP($D9,invullijst!$A$11:$M$196,2,FALSE)="","",VLOOKUP($D9,invullijst!$A$11:$M$196,2,FALSE)) -> Henk Bruurmijn | G9: =IF(VLOOKUP($D9,invullijst!$A$11:$M$196,7,FALSE)=0,"",VLOOKUP($D9,invullijst!$A$11:$M$196,7,FALSE)) -> 76 | I9: 4 | J9: =IF($O$3="k",IF(VLOOKUP($L9,invullijst!$A$11:$M$196,11,FALSE)=0," ",VLOOKUP($L9,invullijst!$A$11:$M$196,11,FALSE)),"") ->  | K9: =IF(VLOOKUP($L9,invullijst!$A$11:$M$237,4,FALSE)="","",VLOOKUP($L9,invullijst!$A$11:$M$237,4,FALSE)) -> vr | L9: 106 | M9: =IF(VLOOKUP($L9,invullijst!$A$11:$M$196,2,FALSE)="","",VLOOKUP($L9,invullijst!$A$11:$M$196,2,FALSE)) -> René Pullens | O9: =IF(VLOOKUP($L9,invullijst!$A$11:$M$196,7,FALSE)=0,"",VLOOKUP($L9,invullijst!$A$11:$M$196,7,FALSE)) -> 66
A10: Totaal A korps | G10: =SUM(G6:G9) -> 346 | I10: Totaal A korps | O10: =SUM(O6:O9) -> 309
A12: 1 | B12: =IF($G$3="k",IF(VLOOKUP($D12,invullijst!$A$11:$M$196,11,FALSE)=0," ",VLOOKUP($D12,invullijst!$A$11:$M$196,11,FALSE)),"") ->  | C12: =IF(VLOOKUP(D12,invullijst!A$11:F$237,4,FALSE)="","",VLOOKUP(D12,invullijst!A$11:D$237,4,FALSE)) -> 0 | E12: =IF(VLOOKUP($D12,invullijst!$A$11:$M$196,2,FALSE)="","",VLOOKUP($D12,invullijst!$A$11:$M$196,2,FALSE)) -> 0 | G12: =IF(VLOOKUP($D12,invullijst!$A$11:$M$196,7,FALSE)=0,"",VLOOKUP($D12,invullijst!$A$11:$M$196,7,FALSE)) ->  | I12: 1 | J12: =IF($O$3="k",IF(VLOOKUP($L12,invullijst!$A$11:$M$196,11,FALSE)=0," ",VLOOKUP($L12,invullijst!$A$11:$M$196,11,FALSE)),"") ->  | K12: =IF(VLOOKUP($L12,invullijst!$A$11:$M$237,4,FALSE)="","",VLOOKUP($L12,invullijst!$A$11:$M$237,4,FALSE)) -> 0 | M12: =IF(VLOOKUP($L12,invullijst!$A$11:$M$196,2,FALSE)="","",VLOOKUP($L12,invullijst!$A$11:$M$196,2,FALSE)) -> 0 | O12: =IF(VLOOKUP($L12,invullijst!$A$11:$M$196,7,FALSE)=0,"",VLOOKUP($L12,invullijst!$A$11:$M$196,7,FALSE)) -> 
A13: 2 | B13: =IF($G$3="k",IF(VLOOKUP($D13,invullijst!$A$11:$M$196,11,FALSE)=0," ",VLOOKUP($D13,invullijst!$A$11:$M$196,11,FALSE)),"") ->  | C13: =IF(VLOOKUP(D13,invullijst!A$11:F$237,4,FALSE)="","",VLOOKUP(D13,invullijst!A$11:D$237,4,FALSE)) -> 0 | E13: =IF(VLOOKUP($D13,invullijst!$A$11:$M$196,2,FALSE)="","",VLOOKUP($D13,invullijst!$A$11:$M$196,2,FALSE)) -> 0 | G13: =IF(VLOOKUP($D13,invullijst!$A$11:$M$196,7,FALSE)=0,"",VLOOKUP($D13,invullijst!$A$11:$M$196,7,FALSE)) ->  | I13: 2 | J13: =IF($O$3="k",IF(VLOOKUP($L13,invullijst!$A$11:$M$196,11,FALSE)=0," ",VLOOKUP($L13,invullijst!$A$11:$M$196,11,FALSE)),"") ->  | K13: =IF(VLOOKUP($L13,invullijst!$A$11:$M$237,4,FALSE)="","",VLOOKUP($L13,invullijst!$A$11:$M$237,4,FALSE)) -> 0 | M13: =IF(VLOOKUP($L13,invullijst!$A$11:$M$196,2,FALSE)="","",VLOOKUP($L13,invullijst!$A$11:$M$196,2,FALSE)) -> 0 | O13: =IF(VLOOKUP($L13,invullijst!$A$11:$M$196,7,FALSE)=0,"",VLOOKUP($L13,invullijst!$A$11:$M$196,7,FALSE)) -> 
A14: 3 | B14: =IF($G$3="k",IF(VLOOKUP($D14,invullijst!$A$11:$M$196,11,FALSE)=0," ",VLOOKUP($D14,invullijst!$A$11:$M$196,11,FALSE)),"") ->  | C14: =IF(VLOOKUP(D14,invullijst!A$11:F$237,4,FALSE)="","",VLOOKUP(D14,invullijst!A$11:D$237,4,FALSE)) -> 0 | E14: =IF(VLOOKUP($D14,invullijst!$A$11:$M$196,2,FALSE)="","",VLOOKUP($D14,invullijst!$A$11:$M$196,2,FALSE)) -> 0 | G14: =IF(VLOOKUP($D14,invullijst!$A$11:$M$196,7,FALSE)=0,"",VLOOKUP($D14,invullijst!$A$11:$M$196,7,FALSE)) ->  | I14: 3 | J14: =IF($O$3="k",IF(VLOOKUP($L14,invullijst!$A$11:$M$196,11,FALSE)=0," ",VLOOKUP($L14,invullijst!$A$11:$M$196,11,FALSE)),"") ->  | K14: =IF(VLOOKUP($L14,invullijst!$A$11:$M$237,4,FALSE)="","",VLOOKUP($L14,invullijst!$A$11:$M$237,4,FALSE)) -> 0 | M14: =IF(VLOOKUP($L14,invullijst!$A$11:$M$196,2,FALSE)="","",VLOOKUP($L14,invullijst!$A$11:$M$196,2,FALSE)) -> 0 | O14: =IF(VLOOKUP($L14,invullijst!$A$11:$M$196,7,FALSE)=0,"",VLOOKUP($L14,invullijst!$A$11:$M$196,7,FALSE)) -> 
A15: 4 | B15: =IF($G$3="k",IF(VLOOKUP($D15,invullijst!$A$11:$M$196,11,FALSE)=0," ",VLOOKUP($D15,invullijst!$A$11:$M$196,11,FALSE)),"") ->  | C15: =IF(VLOOKUP(D15,invullijst!A$11:F$237,4,FALSE)="","",VLOOKUP(D15,invullijst!A$11:D$237,4,FALSE)) -> 0 | E15: =IF(VLOOKUP($D15,invullijst!$A$11:$M$196,2,FALSE)="","",VLOOKUP($D15,invullijst!$A$11:$M$196,2,FALSE)) -> 0 | G15: =IF(VLOOKUP($D15,invullijst!$A$11:$M$196,7,FALSE)=0,"",VLOOKUP($D15,invullijst!$A$11:$M$196,7,FALSE)) ->  | I15: 4 | J15: =IF($O$3="k",IF(VLOOKUP($L15,invullijst!$A$11:$M$196,11,FALSE)=0," ",VLOOKUP($L15,invullijst!$A$11:$M$196,11,FALSE)),"") ->  | K15: =IF(VLOOKUP($L15,invullijst!$A$11:$M$237,4,FALSE)="","",VLOOKUP($L15,invullijst!$A$11:$M$237,4,FALSE)) -> 0 | M15: =IF(VLOOKUP($L15,invullijst!$A$11:$M$196,2,FALSE)="","",VLOOKUP($L15,invullijst!$A$11:$M$196,2,FALSE)) -> 0 | O15: =IF(VLOOKUP($L15,invullijst!$A$11:$M$196,7,FALSE)=0,"",VLOOKUP($L15,invullijst!$A$11:$M$196,7,FALSE)) -> 
A16: Totaal B1 korps | G16: =SUM(G12:G15) -> 0 | I16: Totaal B1 korps | O16: =SUM(O12:O15) -> 0
A18: 1 | B18: =IF($G$3="k",IF(VLOOKUP($D18,invullijst!$A$11:$M$196,11,FALSE)=0," ",VLOOKUP($D18,invullijst!$A$11:$M$196,11,FALSE)),"") ->  | C18: =IF(VLOOKUP(D18,invullijst!A$11:F$237,4,FALSE)="","",VLOOKUP(D18,invullijst!A$11:D$237,4,FALSE)) -> 0 | E18: =IF(VLOOKUP($D18,invullijst!$A$11:$M$196,2,FALSE)="","",VLOOKUP($D18,invullijst!$A$11:$M$196,2,FALSE)) -> 0 | G18: =IF(VLOOKUP($D18,invullijst!$A$11:$M$196,7,FALSE)=0,"",VLOOKUP($D18,invullijst!$A$11:$M$196,7,FALSE)) ->  | I18: 1 | J18: =IF($O$3="k",IF(VLOOKUP($L18,invullijst!$A$11:$M$196,11,FALSE)=0," ",VLOOKUP($L18,invullijst!$A$11:$M$196,11,FALSE)),"") ->  | K18: =IF(VLOOKUP($L18,invullijst!$A$11:$M$237,4,FALSE)="","",VLOOKUP($L18,invullijst!$A$11:$M$237,4,FALSE)) -> 0 | M18: =IF(VLOOKUP($L18,invullijst!$A$11:$M$196,2,FALSE)="","",VLOOKUP($L18,invullijst!$A$11:$M$196,2,FALSE)) -> 0 | O18: =IF(VLOOKUP($L18,invullijst!$A$11:$M$196,7,FALSE)=0,"",VLOOKUP($L18,invullijst!$A$11:$M$196,7,FALSE)) -> 
A19: 2 | B19: =IF($G$3="k",IF(VLOOKUP($D19,invullijst!$A$11:$M$196,11,FALSE)=0," ",VLOOKUP($D19,invullijst!$A$11:$M$196,11,FALSE)),"") ->  | C19: =IF(VLOOKUP(D19,invullijst!A$11:F$237,4,FALSE)="","",VLOOKUP(D19,invullijst!A$11:D$237,4,FALSE)) -> 0 | E19: =IF(VLOOKUP($D19,invullijst!$A$11:$M$196,2,FALSE)="","",VLOOKUP($D19,invullijst!$A$11:$M$196,2,FALSE)) -> 0 | G19: =IF(VLOOKUP($D19,invullijst!$A$11:$M$196,7,FALSE)=0,"",VLOOKUP($D19,invullijst!$A$11:$M$196,7,FALSE)) ->  | I19: 2 | J19: =IF($O$3="k",IF(VLOOKUP($L19,invullijst!$A$11:$M$196,11,FALSE)=0," ",VLOOKUP($L19,invullijst!$A$11:$M$196,11,FALSE)),"") ->  | K19: =IF(VLOOKUP($L19,invullijst!$A$11:$M$237,4,FALSE)="","",VLOOKUP($L19,invullijst!$A$11:$M$237,4,FALSE)) -> 0 | M19: =IF(VLOOKUP($L19,invullijst!$A$11:$M$196,2,FALSE)="","",VLOOKUP($L19,invullijst!$A$11:$M$196,2,FALSE)) -> 0 | O19: =IF(VLOOKUP($L19,invullijst!$A$11:$M$196,7,FALSE)=0,"",VLOOKUP($L19,invullijst!$A$11:$M$196,7,FALSE)) -> 
A20: 3 | B20: =IF($G$3="k",IF(VLOOKUP($D20,invullijst!$A$11:$M$196,11,FALSE)=0," ",VLOOKUP($D20,invullijst!$A$11:$M$196,11,FALSE)),"") ->  | C20: =IF(VLOOKUP(D20,invullijst!A$11:F$237,4,FALSE)="","",VLOOKUP(D20,invullijst!A$11:D$237,4,FALSE)) -> 0 | E20: =IF(VLOOKUP($D20,invullijst!$A$11:$M$196,2,FALSE)="","",VLOOKUP($D20,invullijst!$A$11:$M$196,2,FALSE)) -> 0 | G20: =IF(VLOOKUP($D20,invullijst!$A$11:$M$196,7,FALSE)=0,"",VLOOKUP($D20,invullijst!$A$11:$M$196,7,FALSE)) ->  | I20: 3 | J20: =IF($O$3="k",IF(VLOOKUP($L20,invullijst!$A$11:$M$196,11,FALSE)=0," ",VLOOKUP($L20,invullijst!$A$11:$M$196,11,FALSE)),"") ->  | K20: =IF(VLOOKUP($L20,invullijst!$A$11:$M$237,4,FALSE)="","",VLOOKUP($L20,invullijst!$A$11:$M$237,4,FALSE)) -> 0 | M20: =IF(VLOOKUP($L20,invullijst!$A$11:$M$196,2,FALSE)="","",VLOOKUP($L20,invullijst!$A$11:$M$196,2,FALSE)) -> 0 | O20: =IF(VLOOKUP($L20,invullijst!$A$11:$M$196,7,FALSE)=0,"",VLOOKUP($L20,invullijst!$A$11:$M$196,7,FALSE)) -> 
A21: 4 | B21: =IF($G$3="k",IF(VLOOKUP($D21,invullijst!$A$11:$M$196,11,FALSE)=0," ",VLOOKUP($D21,invullijst!$A$11:$M$196,11,FALSE)),"") ->  | C21: =IF(VLOOKUP(D21,invullijst!A$11:F$237,4,FALSE)="","",VLOOKUP(D21,invullijst!A$11:D$237,4,FALSE)) -> 0 | E21: =IF(VLOOKUP($D21,invullijst!$A$11:$M$196,2,FALSE)="","",VLOOKUP($D21,invullijst!$A$11:$M$196,2,FALSE)) -> 0 | G21: =IF(VLOOKUP($D21,invullijst!$A$11:$M$196,7,FALSE)=0,"",VLOOKUP($D21,invullijst!$A$11:$M$196,7,FALSE)) ->  | I21: 4 | J21: =IF($O$3="k",IF(VLOOKUP($L21,invullijst!$A$11:$M$196,11,FALSE)=0," ",VLOOKUP($L21,invullijst!$A$11:$M$196,11,FALSE)),"") ->  | K21: =IF(VLOOKUP($L21,invullijst!$A$11:$M$237,4,FALSE)="","",VLOOKUP($L21,invullijst!$A$11:$M$237,4,FALSE)) -> 0 | M21: =IF(VLOOKUP($L21,invullijst!$A$11:$M$196,2,FALSE)="","",VLOOKUP($L21,invullijst!$A$11:$M$196,2,FALSE)) -> 0 | O21: =IF(VLOOKUP($L21,invullijst!$A$11:$M$196,7,FALSE)=0,"",VLOOKUP($L21,invullijst!$A$11:$M$196,7,FALSE)) -> 
A22: DIVERSEN / INHAAL | G22: =SUM(G18:G21) -> 0 | I22: DIVERSEN / INHAAL | O22: =SUM(O18:O21) -> 0
A24: OPGELEGD (Jeugd <16 en 65+)
A25: 1 | B25: =IF($G$3="k",IF(VLOOKUP($D25,invullijst!$A$11:$M$196,11,FALSE)=0," ",VLOOKUP($D25,invullijst!$A$11:$M$196,11,FALSE)),"") ->  | C25: =IF(VLOOKUP(D25,invullijst!A$11:F$237,4,FALSE)="","",VLOOKUP(D25,invullijst!A$11:D$237,4,FALSE)) -> 65+ | D25: 307 | E25: =IF(VLOOKUP($D25,invullijst!$A$11:$M$196,2,FALSE)="","",VLOOKUP($D25,invullijst!$A$11:$M$196,2,FALSE)) -> Bert van Engelen | G25: =IF(VLOOKUP($D25,invullijst!$A$11:$M$196,7,FALSE)=0,"",VLOOKUP($D25,invullijst!$A$11:$M$196,7,FALSE)) -> 93 | I25: 1 | J25: =IF($O$3="k",IF(VLOOKUP($L25,invullijst!$A$11:$M$196,11,FALSE)=0," ",VLOOKUP($L25,invullijst!$A$11:$M$196,11,FALSE)),"") ->  | K25: =IF(VLOOKUP($L25,invullijst!$A$11:$M$237,4,FALSE)="","",VLOOKUP($L25,invullijst!$A$11:$M$237,4,FALSE)) -> 65+ | L25: 102 | M25: =IF(VLOOKUP($L25,invullijst!$A$11:$M$196,2,FALSE)="","",VLOOKUP($L25,invullijst!$A$11:$M$196,2,FALSE)) -> John de Jong (disp) | O25: =IF(VLOOKUP($L25,invullijst!$A$11:$M$196,7,FALSE)=0,"",VLOOKUP($L25,invullijst!$A$11:$M$196,7,FALSE)) -> 84
A26: 2 | B26: =IF($G$3="k",IF(VLOOKUP($D26,invullijst!$A$11:$M$196,11,FALSE)=0," ",VLOOKUP($D26,invullijst!$A$11:$M$196,11,FALSE)),"") ->  | C26: =IF(VLOOKUP(D26,invullijst!A$11:F$237,4,FALSE)="","",VLOOKUP(D26,invullijst!A$11:D$237,4,FALSE)) -> 65+ | D26: 310 | E26: =IF(VLOOKUP($D26,invullijst!$A$11:$M$196,2,FALSE)="","",VLOOKUP($D26,invullijst!$A$11:$M$196,2,FALSE)) -> Tiny Boom | G26: =IF(VLOOKUP($D26,invullijst!$A$11:$M$196,7,FALSE)=0,"",VLOOKUP($D26,invullijst!$A$11:$M$196,7,FALSE)) -> 92 | I26: 2 | J26: =IF($O$3="k",IF(VLOOKUP($L26,invullijst!$A$11:$M$196,11,FALSE)=0," ",VLOOKUP($L26,invullijst!$A$11:$M$196,11,FALSE)),"") ->  | K26: =IF(VLOOKUP($L26,invullijst!$A$11:$M$237,4,FALSE)="","",VLOOKUP($L26,invullijst!$A$11:$M$237,4,FALSE)) -> 65+ | L26: 104 | M26: =IF(VLOOKUP($L26,invullijst!$A$11:$M$196,2,FALSE)="","",VLOOKUP($L26,invullijst!$A$11:$M$196,2,FALSE)) -> Peter Brekelmans | O26: =IF(VLOOKUP($L26,invullijst!$A$11:$M$196,7,FALSE)=0,"",VLOOKUP($L26,invullijst!$A$11:$M$196,7,FALSE)) -> 82
A27: 3 | B27: =IF($G$3="k",IF(VLOOKUP($D27,invullijst!$A$11:$M$196,11,FALSE)=0," ",VLOOKUP($D27,invullijst!$A$11:$M$196,11,FALSE)),"") ->  | C27: =IF(VLOOKUP(D27,invullijst!A$11:F$237,4,FALSE)="","",VLOOKUP(D27,invullijst!A$11:D$237,4,FALSE)) -> 65+ | D27: 303 | E27: =IF(VLOOKUP($D27,invullijst!$A$11:$M$196,2,FALSE)="","",VLOOKUP($D27,invullijst!$A$11:$M$196,2,FALSE)) -> Hans van de Wiel | G27: =IF(VLOOKUP($D27,invullijst!$A$11:$M$196,7,FALSE)=0,"",VLOOKUP($D27,invullijst!$A$11:$M$196,7,FALSE)) -> 96 | I27: 3 | J27: =IF($O$3="k",IF(VLOOKUP($L27,invullijst!$A$11:$M$196,11,FALSE)=0," ",VLOOKUP($L27,invullijst!$A$11:$M$196,11,FALSE)),"") ->  | K27: =IF(VLOOKUP($L27,invullijst!$A$11:$M$237,4,FALSE)="","",VLOOKUP($L27,invullijst!$A$11:$M$237,4,FALSE)) -> 0 | M27: =IF(VLOOKUP($L27,invullijst!$A$11:$M$196,2,FALSE)="","",VLOOKUP($L27,invullijst!$A$11:$M$196,2,FALSE)) -> 0 | O27: =IF(VLOOKUP($L27,invullijst!$A$11:$M$196,7,FALSE)=0,"",VLOOKUP($L27,invullijst!$A$11:$M$196,7,FALSE)) -> 
A28: Totaal korps opgelegd A1 | G28: =SUM(G25:G27) -> 281 | I28: Totaal korps opgelegd A1 | O28: =SUM(O25:O27) -> 166
A30: 1 | B30: =IF($G$3="k",IF(VLOOKUP($D30,invullijst!$A$11:$M$196,11,FALSE)=0," ",VLOOKUP($D30,invullijst!$A$11:$M$196,11,FALSE)),"") ->  | C30: =IF(VLOOKUP(D30,invullijst!A$11:F$237,4,FALSE)="","",VLOOKUP(D30,invullijst!A$11:D$237,4,FALSE)) -> J | D30: 312 | E30: =IF(VLOOKUP($D30,invullijst!$A$11:$M$196,2,FALSE)="","",VLOOKUP($D30,invullijst!$A$11:$M$196,2,FALSE)) -> Floor de Jong | G30: =IF(VLOOKUP($D30,invullijst!$A$11:$M$196,7,FALSE)=0,"",VLOOKUP($D30,invullijst!$A$11:$M$196,7,FALSE)) -> 90 | I30: 1 | J30: =IF($O$3="k",IF(VLOOKUP($L30,invullijst!$A$11:$M$196,11,FALSE)=0," ",VLOOKUP($L30,invullijst!$A$11:$M$196,11,FALSE)),"") ->  | K30: =IF(VLOOKUP($L30,invullijst!$A$11:$M$237,4,FALSE)="","",VLOOKUP($L30,invullijst!$A$11:$M$237,4,FALSE)) -> 0 | M30: =IF(VLOOKUP($L30,invullijst!$A$11:$M$196,2,FALSE)="","",VLOOKUP($L30,invullijst!$A$11:$M$196,2,FALSE)) -> 0 | O30: =IF(VLOOKUP($L30,invullijst!$A$11:$M$196,7,FALSE)=0,"",VLOOKUP($L30,invullijst!$A$11:$M$196,7,FALSE)) -> 
A31: 2 | B31: =IF($G$3="k",IF(VLOOKUP($D31,invullijst!$A$11:$M$196,11,FALSE)=0," ",VLOOKUP($D31,invullijst!$A$11:$M$196,11,FALSE)),"") ->  | C31: =IF(VLOOKUP(D31,invullijst!A$11:F$237,4,FALSE)="","",VLOOKUP(D31,invullijst!A$11:D$237,4,FALSE)) -> 65+ | D31: 301 | E31: =IF(VLOOKUP($D31,invullijst!$A$11:$M$196,2,FALSE)="","",VLOOKUP($D31,invullijst!$A$11:$M$196,2,FALSE)) -> Arjen van Assem (disp) | G31: =IF(VLOOKUP($D31,invullijst!$A$11:$M$196,7,FALSE)=0,"",VLOOKUP($D31,invullijst!$A$11:$M$196,7,FALSE)) -> 84 | I31: 2 | J31: =IF($O$3="k",IF(VLOOKUP($L31,invullijst!$A$11:$M$196,11,FALSE)=0," ",VLOOKUP($L31,invullijst!$A$11:$M$196,11,FALSE)),"") ->  | K31: =IF(VLOOKUP($L31,invullijst!$A$11:$M$237,4,FALSE)="","",VLOOKUP($L31,invullijst!$A$11:$M$237,4,FALSE)) -> 0 | M31: =IF(VLOOKUP($L31,invullijst!$A$11:$M$196,2,FALSE)="","",VLOOKUP($L31,invullijst!$A$11:$M$196,2,FALSE)) -> 0 | O31: =IF(VLOOKUP($L31,invullijst!$A$11:$M$196,7,FALSE)=0,"",VLOOKUP($L31,invullijst!$A$11:$M$196,7,FALSE)) -> 
A32: 3 | B32: =IF($G$3="k",IF(VLOOKUP($D32,invullijst!$A$11:$M$196,11,FALSE)=0," ",VLOOKUP($D32,invullijst!$A$11:$M$196,11,FALSE)),"") ->  | C32: =IF(VLOOKUP(D32,invullijst!A$11:F$237,4,FALSE)="","",VLOOKUP(D32,invullijst!A$11:D$237,4,FALSE)) -> 65+ | D32: 309 | E32: =IF(VLOOKUP($D32,invullijst!$A$11:$M$196,2,FALSE)="","",VLOOKUP($D32,invullijst!$A$11:$M$196,2,FALSE)) -> René de Jong | G32: =IF(VLOOKUP($D32,invullijst!$A$11:$M$196,7,FALSE)=0,"",VLOOKUP($D32,invullijst!$A$11:$M$196,7,FALSE)) -> 88 | I32: 3 | J32: =IF($O$3="k",IF(VLOOKUP($L32,invullijst!$A$11:$M$196,11,FALSE)=0," ",VLOOKUP($L32,invullijst!$A$11:$M$196,11,FALSE)),"") ->  | K32: =IF(VLOOKUP($L32,invullijst!$A$11:$M$237,4,FALSE)="","",VLOOKUP($L32,invullijst!$A$11:$M$237,4,FALSE)) -> 0 | M32: =IF(VLOOKUP($L32,invullijst!$A$11:$M$196,2,FALSE)="","",VLOOKUP($L32,invullijst!$A$11:$M$196,2,FALSE)) -> 0 | O32: =IF(VLOOKUP($L32,invullijst!$A$11:$M$196,7,FALSE)=0,"",VLOOKUP($L32,invullijst!$A$11:$M$196,7,FALSE)) -> 
A33: Totaal korps opgelegd A2 | G33: =SUM(G30:G32) -> 262 | I33: Totaal korps opgelegd A2 | O33: =SUM(O30:O32) -> 0
A35: 1 | B35: =IF($G$3="k",IF(VLOOKUP($D35,invullijst!$A$11:$M$196,11,FALSE)=0," ",VLOOKUP($D35,invullijst!$A$11:$M$196,11,FALSE)),"") ->  | C35: =IF(VLOOKUP(D35,invullijst!A$11:F$237,4,FALSE)="","",VLOOKUP(D35,invullijst!A$11:D$237,4,FALSE)) -> 0 | E35: =IF(VLOOKUP($D35,invullijst!$A$11:$M$196,2,FALSE)="","",VLOOKUP($D35,invullijst!$A$11:$M$196,2,FALSE)) -> 0 | G35: =IF(VLOOKUP($D35,invullijst!$A$11:$M$196,7,FALSE)=0,"",VLOOKUP($D35,invullijst!$A$11:$M$196,7,FALSE)) ->  | I35: 1 | J35: =IF($O$3="k",IF(VLOOKUP($L35,invullijst!$A$11:$M$196,11,FALSE)=0," ",VLOOKUP($L35,invullijst!$A$11:$M$196,11,FALSE)),"") ->  | K35: =IF(VLOOKUP($L35,invullijst!$A$11:$M$237,4,FALSE)="","",VLOOKUP($L35,invullijst!$A$11:$M$237,4,FALSE)) -> 0 | M35: =IF(VLOOKUP($L35,invullijst!$A$11:$M$196,2,FALSE)="","",VLOOKUP($L35,invullijst!$A$11:$M$196,2,FALSE)) -> 0 | O35: =IF(VLOOKUP($L35,invullijst!$A$11:$M$196,7,FALSE)=0,"",VLOOKUP($L35,invullijst!$A$11:$M$196,7,FALSE)) -> 
A36: 2 | B36: =IF($G$3="k",IF(VLOOKUP($D36,invullijst!$A$11:$M$196,11,FALSE)=0," ",VLOOKUP($D36,invullijst!$A$11:$M$196,11,FALSE)),"") ->  | C36: =IF(VLOOKUP(D36,invullijst!A$11:F$237,4,FALSE)="","",VLOOKUP(D36,invullijst!A$11:D$237,4,FALSE)) -> 0 | E36: =IF(VLOOKUP($D36,invullijst!$A$11:$M$196,2,FALSE)="","",VLOOKUP($D36,invullijst!$A$11:$M$196,2,FALSE)) -> 0 | G36: =IF(VLOOKUP($D36,invullijst!$A$11:$M$196,7,FALSE)=0,"",VLOOKUP($D36,invullijst!$A$11:$M$196,7,FALSE)) ->  | I36: 2 | J36: =IF($O$3="k",IF(VLOOKUP($L36,invullijst!$A$11:$M$196,11,FALSE)=0," ",VLOOKUP($L36,invullijst!$A$11:$M$196,11,FALSE)),"") ->  | K36: =IF(VLOOKUP($L36,invullijst!$A$11:$M$237,4,FALSE)="","",VLOOKUP($L36,invullijst!$A$11:$M$237,4,FALSE)) -> 0 | M36: =IF(VLOOKUP($L36,invullijst!$A$11:$M$196,2,FALSE)="","",VLOOKUP($L36,invullijst!$A$11:$M$196,2,FALSE)) -> 0 | O36: =IF(VLOOKUP($L36,invullijst!$A$11:$M$196,7,FALSE)=0,"",VLOOKUP($L36,invullijst!$A$11:$M$196,7,FALSE)) -> 
A37: 3 | B37: =IF($G$3="k",IF(VLOOKUP($D37,invullijst!$A$11:$M$196,11,FALSE)=0," ",VLOOKUP($D37,invullijst!$A$11:$M$196,11,FALSE)),"") ->  | C37: =IF(VLOOKUP(D37,invullijst!A$11:F$237,4,FALSE)="","",VLOOKUP(D37,invullijst!A$11:D$237,4,FALSE)) -> 0 | E37: =IF(VLOOKUP($D37,invullijst!$A$11:$M$196,2,FALSE)="","",VLOOKUP($D37,invullijst!$A$11:$M$196,2,FALSE)) -> 0 | G37: =IF(VLOOKUP($D37,invullijst!$A$11:$M$196,7,FALSE)=0,"",VLOOKUP($D37,invullijst!$A$11:$M$196,7,FALSE)) ->  | I37: 3 | J37: =IF($O$3="k",IF(VLOOKUP($L37,invullijst!$A$11:$M$196,11,FALSE)=0," ",VLOOKUP($L37,invullijst!$A$11:$M$196,11,FALSE)),"") ->  | K37: =IF(VLOOKUP($L37,invullijst!$A$11:$M$237,4,FALSE)="","",VLOOKUP($L37,invullijst!$A$11:$M$237,4,FALSE)) -> 0 | M37: =IF(VLOOKUP($L37,invullijst!$A$11:$M$196,2,FALSE)="","",VLOOKUP($L37,invullijst!$A$11:$M$196,2,FALSE)) -> 0 | O37: =IF(VLOOKUP($L37,invullijst!$A$11:$M$196,7,FALSE)=0,"",VLOOKUP($L37,invullijst!$A$11:$M$196,7,FALSE)) -> 
A38: Totaal korps opgelegd A3 | G38: =SUM(G35:G37) -> 0 | I38: Totaal korps opgelegd A3 | O38: =SUM(O35:O37) -> 0

Sheet wedstrijd 2B
A1: =invullijst!F1 -> Organistatie | F1: =invullijst!H2 -> 2025 - 2026 | I1: =invullijst!F3 -> Sint Ambrosius Baardwijk
A2: Datum: | M2: 2026-01-18
A3: 5 | B3: =IF(VLOOKUP(A3,invullijst!A1:F5,2,FALSE)="","",VLOOKUP(A3,invullijst!A1:F5,2,FALSE)) -> Sint Jan Baptist Kaatsheuvel | I3: 2 | J3: =IF(VLOOKUP(I3,invullijst!A1:C5,2,FALSE)="","",VLOOKUP(I3,invullijst!A1:C5,2,FALSE)) -> St. Crispinus & Crispinianus Besoijen
A5: vrijehand
A6: 1 | B6: =IF($G$3="k",IF(VLOOKUP($D6,invullijst!$A$11:$M$196,11,FALSE)=0," ",VLOOKUP($D6,invullijst!$A$11:$M$196,11,FALSE)),"") ->  | C6: =IF(VLOOKUP(D6,invullijst!A$11:F$237,4,FALSE)="","",VLOOKUP(D6,invullijst!A$11:D$237,4,FALSE)) -> vr | D6: 504 | E6: =IF(VLOOKUP($D6,invullijst!$A$11:$M$196,2,FALSE)="","",VLOOKUP($D6,invullijst!$A$11:$M$196,2,FALSE)) -> Koen v/d Ven | G6: =IF(VLOOKUP($D6,invullijst!$A$11:$M$196,7,FALSE)=0,"",VLOOKUP($D6,invullijst!$A$11:$M$196,7,FALSE)) -> 83 | I6: 1 | J6: =IF($O$3="k",IF(VLOOKUP($L6,invullijst!$A$11:$M$196,11,FALSE)=0," ",VLOOKUP($L6,invullijst!$A$11:$M$196,11,FALSE)),"") ->  | K6: =IF(VLOOKUP($L6,invullijst!$A$11:$M$237,4,FALSE)="","",VLOOKUP($L6,invullijst!$A$11:$M$237,4,FALSE)) -> vr | L6: 210 | M6: =IF(VLOOKUP($L6,invullijst!$A$11:$M$196,2,FALSE)="","",VLOOKUP($L6,invullijst!$A$11:$M$196,2,FALSE)) -> Sander Oome | O6: =IF(VLOOKUP($L6,invullijst!$A$11:$M$196,7,FALSE)=0,"",VLOOKUP($L6,invullijst!$A$11:$M$196,7,FALSE)) -> 91
A7: 2 | B7: =IF($G$3="k",IF(VLOOKUP($D7,invullijst!$A$11:$M$196,11,FALSE)=0," ",VLOOKUP($D7,invullijst!$A$11:$M$196,11,FALSE)),"") ->  | C7: =IF(VLOOKUP(D7,invullijst!A$11:F$237,4,FALSE)="","",VLOOKUP(D7,invullijst!A$11:D$237,4,FALSE)) -> vr | D7: 501 | E7: =IF(VLOOKUP($D7,invullijst!$A$11:$M$196,2,FALSE)="","",VLOOKUP($D7,invullijst!$A$11:$M$196,2,FALSE)) -> Annette Vos | G7: =IF(VLOOKUP($D7,invullijst!$A$11:$M$196,7,FALSE)=0,"",VLOOKUP($D7,invullijst!$A$11:$M$196,7,FALSE)) -> 77 | I7: 2 | J7: =IF($O$3="k",IF(VLOOKUP($L7,invullijst!$A$11:$M$196,11,FALSE)=0," ",VLOOKUP($L7,invullijst!$A$11:$M$196,11,FALSE)),"") ->  | K7: =IF(VLOOKUP($L7,invullijst!$A$11:$M$237,4,FALSE)="","",VLOOKUP($L7,invullijst!$A$11:$M$237,4,FALSE)) -> vr | L7: 216 | M7: =IF(VLOOKUP($L7,invullijst!$A$11:$M$196,2,FALSE)="","",VLOOKUP($L7,invullijst!$A$11:$M$196,2,FALSE)) -> Pieter Laghuwitz | O7: =IF(VLOOKUP($L7,invullijst!$A$11:$M$196,7,FALSE)=0,"",VLOOKUP($L7,invullijst!$A$11:$M$196,7,FALSE)) -> 92
A8: 3 | B8: =IF($G$3="k",IF(VLOOKUP($D8,invullijst!$A$11:$M$196,11,FALSE)=0," ",VLOOKUP($D8,invullijst!$A$11:$M$196,11,FALSE)),"") ->  | C8: =IF(VLOOKUP(D8,invullijst!A$11:F$237,4,FALSE)="","",VLOOKUP(D8,invullijst!A$11:D$237,4,FALSE)) -> vr | D8: 513 | E8: =IF(VLOOKUP($D8,invullijst!$A$11:$M$196,2,FALSE)="","",VLOOKUP($D8,invullijst!$A$11:$M$196,2,FALSE)) -> Mark van Delft | G8: =IF(VLOOKUP($D8,invullijst!$A$11:$M$196,7,FALSE)=0,"",VLOOKUP($D8,invullijst!$A$11:$M$196,7,FALSE)) -> 83 | I8: 3 | J8: =IF($O$3="k",IF(VLOOKUP($L8,invullijst!$A$11:$M$196,11,FALSE)=0," ",VLOOKUP($L8,invullijst!$A$11:$M$196,11,FALSE)),"") ->  | K8: =IF(VLOOKUP($L8,invullijst!$A$11:$M$237,4,FALSE)="","",VLOOKUP($L8,invullijst!$A$11:$M$237,4,FALSE)) -> vr | L8: 203 | M8: =IF(VLOOKUP($L8,invullijst!$A$11:$M$196,2,FALSE)="","",VLOOKUP($L8,invullijst!$A$11:$M$196,2,FALSE)) -> Frank van den Houdt | O8: =IF(VLOOKUP($L8,invullijst!$A$11:$M$196,7,FALSE)=0,"",VLOOKUP($L8,invullijst!$A$11:$M$196,7,FALSE)) -> 84
A9: 4 | B9: =IF($G$3="k",IF(VLOOKUP($D9,invullijst!$A$11:$M$196,11,FALSE)=0," ",VLOOKUP($D9,invullijst!$A$11:$M$196,11,FALSE)),"") ->  | C9: =IF(VLOOKUP(D9,invullijst!A$11:F$237,4,FALSE)="","",VLOOKUP(D9,invullijst!A$11:D$237,4,FALSE)) -> vr | D9: 507 | E9: =IF(VLOOKUP($D9,invullijst!$A$11:$M$196,2,FALSE)="","",VLOOKUP($D9,invullijst!$A$11:$M$196,2,FALSE)) -> Michael Blaauwbroek | G9: =IF(VLOOKUP($D9,invullijst!$A$11:$M$196,7,FALSE)=0,"",VLOOKUP($D9,invullijst!$A$11:$M$196,7,FALSE)) -> 74 | I9: 4 | J9: =IF($O$3="k",IF(VLOOKUP($L9,invullijst!$A$11:$M$196,11,FALSE)=0," ",VLOOKUP($L9,invullijst!$A$11:$M$196,11,FALSE)),"") ->  | K9: =IF(VLOOKUP($L9,invullijst!$A$11:$M$237,4,FALSE)="","",VLOOKUP($L9,invullijst!$A$11:$M$237,4,FALSE)) -> vr | L9: 217 | M9: =IF(VLOOKUP($L9,invullijst!$A$11:$M$196,2,FALSE)="","",VLOOKUP($L9,invullijst!$A$11:$M$196,2,FALSE)) -> Hans Laghuwitz | O9: =IF(VLOOKUP($L9,invullijst!$A$11:$M$196,7,FALSE)=0,"",VLOOKUP($L9,invullijst!$A$11:$M$196,7,FALSE)) -> 80
A10: Totaal A korps | G10: =SUM(G6:G9) -> 317 | I10: Totaal A korps | O10: =SUM(O6:O9) -> 347
A12: 1 | B12: =IF($G$3="k",IF(VLOOKUP($D12,invullijst!$A$11:$M$196,11,FALSE)=0," ",VLOOKUP($D12,invullijst!$A$11:$M$196,11,FALSE)),"") ->  | C12: =IF(VLOOKUP(D12,invullijst!A$11:F$237,4,FALSE)="","",VLOOKUP(D12,invullijst!A$11:D$237,4,FALSE)) -> vr | D12: 512 | E12: =IF(VLOOKUP($D12,invullijst!$A$11:$M$196,2,FALSE)="","",VLOOKUP($D12,invullijst!$A$11:$M$196,2,FALSE)) -> Hans Bergakker | G12: =IF(VLOOKUP($D12,invullijst!$A$11:$M$196,7,FALSE)=0,"",VLOOKUP($D12,invullijst!$A$11:$M$196,7,FALSE)) -> 75 | I12: 1 | J12: =IF($O$3="k",IF(VLOOKUP($L12,invullijst!$A$11:$M$196,11,FALSE)=0," ",VLOOKUP($L12,invullijst!$A$11:$M$196,11,FALSE)),"") ->  | K12: =IF(VLOOKUP($L12,invullijst!$A$11:$M$237,4,FALSE)="","",VLOOKUP($L12,invullijst!$A$11:$M$237,4,FALSE)) -> vr | L12: 209 | M12: =IF(VLOOKUP($L12,invullijst!$A$11:$M$196,2,FALSE)="","",VLOOKUP($L12,invullijst!$A$11:$M$196,2,FALSE)) -> René van Kuijk | O12: =IF(VLOOKUP($L12,invullijst!$A$11:$M$196,7,FALSE)=0,"",VLOOKUP($L12,invullijst!$A$11:$M$196,7,FALSE)) -> 83
A13: 2 | B13: =IF($G$3="k",IF(VLOOKUP($D13,invullijst!$A$11:$M$196,11,FALSE)=0," ",VLOOKUP($D13,invullijst!$A$11:$M$196,11,FALSE)),"") ->  | C13: =IF(VLOOKUP(D13,invullijst!A$11:F$237,4,FALSE)="","",VLOOKUP(D13,invullijst!A$11:D$237,4,FALSE)) -> vr | D13: 508 | E13: =IF(VLOOKUP($D13,invullijst!$A$11:$M$196,2,FALSE)="","",VLOOKUP($D13,invullijst!$A$11:$M$196,2,FALSE)) -> Rowan Dobbelsteen | G13: =IF(VLOOKUP($D13,invullijst!$A$11:$M$196,7,FALSE)=0,"",VLOOKUP($D13,invullijst!$A$11:$M$196,7,FALSE)) -> 81 | I13: 2 | J13: =IF($O$3="k",IF(VLOOKUP($L13,invullijst!$A$11:$M$196,11,FALSE)=0," ",VLOOKUP($L13,invullijst!$A$11:$M$196,11,FALSE)),"") ->  | K13: =IF(VLOOKUP($L13,invullijst!$A$11:$M$237,4,FALSE)="","",VLOOKUP($L13,invullijst!$A$11:$M$237,4,FALSE)) -> vr | L13: 208 | M13: =IF(VLOOKUP($L13,invullijst!$A$11:$M$196,2,FALSE)="","",VLOOKUP($L13,invullijst!$A$11:$M$196,2,FALSE)) -> Erin van Hulten | O13: =IF(VLOOKUP($L13,invullijst!$A$11:$M$196,7,FALSE)=0,"",VLOOKUP($L13,invullijst!$A$11:$M$196,7,FALSE)) -> 82
A14: 3 | B14: =IF($G$3="k",IF(VLOOKUP($D14,invullijst!$A$11:$M$196,11,FALSE)=0," ",VLOOKUP($D14,invullijst!$A$11:$M$196,11,FALSE)),"") ->  | C14: =IF(VLOOKUP(D14,invullijst!A$11:F$237,4,FALSE)="","",VLOOKUP(D14,invullijst!A$11:D$237,4,FALSE)) -> 0 | E14: =IF(VLOOKUP($D14,invullijst!$A$11:$M$196,2,FALSE)="","",VLOOKUP($D14,invullijst!$A$11:$M$196,2,FALSE)) -> 0 | G14: =IF(VLOOKUP($D14,invullijst!$A$11:$M$196,7,FALSE)=0,"",VLOOKUP($D14,invullijst!$A$11:$M$196,7,FALSE)) ->  | I14: 3 | J14: =IF($O$3="k",IF(VLOOKUP($L14,invullijst!$A$11:$M$196,11,FALSE)=0," ",VLOOKUP($L14,invullijst!$A$11:$M$196,11,FALSE)),"") ->  | K14: =IF(VLOOKUP($L14,invullijst!$A$11:$M$237,4,FALSE)="","",VLOOKUP($L14,invullijst!$A$11:$M$237,4,FALSE)) -> vr | L14: 204 | M14: =IF(VLOOKUP($L14,invullijst!$A$11:$M$196,2,FALSE)="","",VLOOKUP($L14,invullijst!$A$11:$M$196,2,FALSE)) -> Harry de Louw | O14: =IF(VLOOKUP($L14,invullijst!$A$11:$M$196,7,FALSE)=0,"",VLOOKUP($L14,invullijst!$A$11:$M$196,7,FALSE)) -> 80
A15: 4 | B15: =IF($G$3="k",IF(VLOOKUP($D15,invullijst!$A$11:$M$196,11,FALSE)=0," ",VLOOKUP($D15,invullijst!$A$11:$M$196,11,FALSE)),"") ->  | C15: =IF(VLOOKUP(D15,invullijst!A$11:F$237,4,FALSE)="","",VLOOKUP(D15,invullijst!A$11:D$237,4,FALSE)) -> 0 | E15: =IF(VLOOKUP($D15,invullijst!$A$11:$M$196,2,FALSE)="","",VLOOKUP($D15,invullijst!$A$11:$M$196,2,FALSE)) -> 0 | G15: =IF(VLOOKUP($D15,invullijst!$A$11:$M$196,7,FALSE)=0,"",VLOOKUP($D15,invullijst!$A$11:$M$196,7,FALSE)) ->  | I15: 4 | J15: =IF($O$3="k",IF(VLOOKUP($L15,invullijst!$A$11:$M$196,11,FALSE)=0," ",VLOOKUP($L15,invullijst!$A$11:$M$196,11,FALSE)),"") ->  | K15: =IF(VLOOKUP($L15,invullijst!$A$11:$M$237,4,FALSE)="","",VLOOKUP($L15,invullijst!$A$11:$M$237,4,FALSE)) -> vr | L15: 213 | M15: =IF(VLOOKUP($L15,invullijst!$A$11:$M$196,2,FALSE)="","",VLOOKUP($L15,invullijst!$A$11:$M$196,2,FALSE)) -> Roland van Delft | O15: =IF(VLOOKUP($L15,invullijst!$A$11:$M$196,7,FALSE)=0,"",VLOOKUP($L15,invullijst!$A$11:$M$196,7,FALSE)) -> 75
A16: Totaal B1 korps | G16: =SUM(G12:G15) -> 156 | I16: Totaal B1 korps | O16: =SUM(O12:O15) -> 320
A18: 1 | B18: =IF($G$3="k",IF(VLOOKUP($D18,invullijst!$A$11:$M$196,11,FALSE)=0," ",VLOOKUP($D18,invullijst!$A$11:$M$196,11,FALSE)),"") ->  | C18: =IF(VLOOKUP(D18,invullijst!A$11:F$237,4,FALSE)="","",VLOOKUP(D18,invullijst!A$11:D$237,4,FALSE)) -> 0 | E18: =IF(VLOOKUP($D18,invullijst!$A$11:$M$196,2,FALSE)="","",VLOOKUP($D18,invullijst!$A$11:$M$196,2,FALSE)) -> 0 | G18: =IF(VLOOKUP($D18,invullijst!$A$11:$M$196,7,FALSE)=0,"",VLOOKUP($D18,invullijst!$A$11:$M$196,7,FALSE)) ->  | I18: 1 | J18: =IF($O$3="k",IF(VLOOKUP($L18,invullijst!$A$11:$M$196,11,FALSE)=0," ",VLOOKUP($L18,invullijst!$A$11:$M$196,11,FALSE)),"") ->  | K18: =IF(VLOOKUP($L18,invullijst!$A$11:$M$237,4,FALSE)="","",VLOOKUP($L18,invullijst!$A$11:$M$237,4,FALSE)) -> vr | L18: 223 | M18: =IF(VLOOKUP($L18,invullijst!$A$11:$M$196,2,FALSE)="","",VLOOKUP($L18,invullijst!$A$11:$M$196,2,FALSE)) -> Jänis Jakobsons | O18: =IF(VLOOKUP($L18,invullijst!$A$11:$M$196,7,FALSE)=0,"",VLOOKUP($L18,invullijst!$A$11:$M$196,7,FALSE)) -> 74
A19: 2 | B19: =IF($G$3="k",IF(VLOOKUP($D19,invullijst!$A$11:$M$196,11,FALSE)=0," ",VLOOKUP($D19,invullijst!$A$11:$M$196,11,FALSE)),"") ->  | C19: =IF(VLOOKUP(D19,invullijst!A$11:F$237,4,FALSE)="","",VLOOKUP(D19,invullijst!A$11:D$237,4,FALSE)) -> 0 | E19: =IF(VLOOKUP($D19,invullijst!$A$11:$M$196,2,FALSE)="","",VLOOKUP($D19,invullijst!$A$11:$M$196,2,FALSE)) -> 0 | G19: =IF(VLOOKUP($D19,invullijst!$A$11:$M$196,7,FALSE)=0,"",VLOOKUP($D19,invullijst!$A$11:$M$196,7,FALSE)) ->  | I19: 2 | J19: =IF($O$3="k",IF(VLOOKUP($L19,invullijst!$A$11:$M$196,11,FALSE)=0," ",VLOOKUP($L19,invullijst!$A$11:$M$196,11,FALSE)),"") ->  | K19: =IF(VLOOKUP($L19,invullijst!$A$11:$M$237,4,FALSE)="","",VLOOKUP($L19,invullijst!$A$11:$M$237,4,FALSE)) -> 0 | M19: =IF(VLOOKUP($L19,invullijst!$A$11:$M$196,2,FALSE)="","",VLOOKUP($L19,invullijst!$A$11:$M$196,2,FALSE)) -> 0 | O19: =IF(VLOOKUP($L19,invullijst!$A$11:$M$196,7,FALSE)=0,"",VLOOKUP($L19,invullijst!$A$11:$M$196,7,FALSE)) -> 
A20: 3 | B20: =IF($G$3="k",IF(VLOOKUP($D20,invullijst!$A$11:$M$196,11,FALSE)=0," ",VLOOKUP($D20,invullijst!$A$11:$M$196,11,FALSE)),"") ->  | C20: =IF(VLOOKUP(D20,invullijst!A$11:F$237,4,FALSE)="","",VLOOKUP(D20,invullijst!A$11:D$237,4,FALSE)) -> 0 | E20: =IF(VLOOKUP($D20,invullijst!$A$11:$M$196,2,FALSE)="","",VLOOKUP($D20,invullijst!$A$11:$M$196,2,FALSE)) -> 0 | G20: =IF(VLOOKUP($D20,invullijst!$A$11:$M$196,7,FALSE)=0,"",VLOOKUP($D20,invullijst!$A$11:$M$196,7,FALSE)) ->  | I20: 3 | J20: =IF($O$3="k",IF(VLOOKUP($L20,invullijst!$A$11:$M$196,11,FALSE)=0," ",VLOOKUP($L20,invullijst!$A$11:$M$196,11,FALSE)),"") ->  | K20: =IF(VLOOKUP($L20,invullijst!$A$11:$M$237,4,FALSE)="","",VLOOKUP($L20,invullijst!$A$11:$M$237,4,FALSE)) -> 0 | M20: =IF(VLOOKUP($L20,invullijst!$A$11:$M$196,2,FALSE)="","",VLOOKUP($L20,invullijst!$A$11:$M$196,2,FALSE)) -> 0 | O20: =IF(VLOOKUP($L20,invullijst!$A$11:$M$196,7,FALSE)=0,"",VLOOKUP($L20,invullijst!$A$11:$M$196,7,FALSE)) -> 
A21: 4 | B21: =IF($G$3="k",IF(VLOOKUP($D21,invullijst!$A$11:$M$196,11,FALSE)=0," ",VLOOKUP($D21,invullijst!$A$11:$M$196,11,FALSE)),"") ->  | C21: =IF(VLOOKUP(D21,invullijst!A$11:F$237,4,FALSE)="","",VLOOKUP(D21,invullijst!A$11:D$237,4,FALSE)) -> 0 | E21: =IF(VLOOKUP($D21,invullijst!$A$11:$M$196,2,FALSE)="","",VLOOKUP($D21,invullijst!$A$11:$M$196,2,FALSE)) -> 0 | G21: =IF(VLOOKUP($D21,invullijst!$A$11:$M$196,7,FALSE)=0,"",VLOOKUP($D21,invullijst!$A$11:$M$196,7,FALSE)) ->  | I21: 4 | J21: =IF($O$3="k",IF(VLOOKUP($L21,invullijst!$A$11:$M$196,11,FALSE)=0," ",VLOOKUP($L21,invullijst!$A$11:$M$196,11,FALSE)),"") ->  | K21: =IF(VLOOKUP($L21,invullijst!$A$11:$M$237,4,FALSE)="","",VLOOKUP($L21,invullijst!$A$11:$M$237,4,FALSE)) -> 0 | M21: =IF(VLOOKUP($L21,invullijst!$A$11:$M$196,2,FALSE)="","",VLOOKUP($L21,invullijst!$A$11:$M$196,2,FALSE)) -> 0 | O21: =IF(VLOOKUP($L21,invullijst!$A$11:$M$196,7,FALSE)=0,"",VLOOKUP($L21,invullijst!$A$11:$M$196,7,FALSE)) -> 
A22: DIVERSE / INHAAL | G22: =SUM(G18:G21) -> 0 | I22: DIVERSE / INHAAL | O22: =SUM(O18:O21) -> 74
A24: OPGELEGD (Jeugd <16 en 65+)
A25: 1 | B25: =IF($G$3="k",IF(VLOOKUP($D25,invullijst!$A$11:$M$196,11,FALSE)=0," ",VLOOKUP($D25,invullijst!$A$11:$M$196,11,FALSE)),"") ->  | C25: =IF(VLOOKUP(D25,invullijst!A$11:F$237,4,FALSE)="","",VLOOKUP(D25,invullijst!A$11:D$237,4,FALSE)) -> 65+ | D25: 509 | E25: =IF(VLOOKUP($D25,invullijst!$A$11:$M$196,2,FALSE)="","",VLOOKUP($D25,invullijst!$A$11:$M$196,2,FALSE)) -> Adwan de Pinth | G25: =IF(VLOOKUP($D25,invullijst!$A$11:$M$196,7,FALSE)=0,"",VLOOKUP($D25,invullijst!$A$11:$M$196,7,FALSE)) -> 96 | I25: 1 | J25: =IF($O$3="k",IF(VLOOKUP($L25,invullijst!$A$11:$M$196,11,FALSE)=0," ",VLOOKUP($L25,invullijst!$A$11:$M$196,11,FALSE)),"") ->  | K25: =IF(VLOOKUP($L25,invullijst!$A$11:$M$237,4,FALSE)="","",VLOOKUP($L25,invullijst!$A$11:$M$237,4,FALSE)) -> 65+ | L25: 218 | M25: =IF(VLOOKUP($L25,invullijst!$A$11:$M$196,2,FALSE)="","",VLOOKUP($L25,invullijst!$A$11:$M$196,2,FALSE)) -> Jacob van de Werken | O25: =IF(VLOOKUP($L25,invullijst!$A$11:$M$196,7,FALSE)=0,"",VLOOKUP($L25,invullijst!$A$11:$M$196,7,FALSE)) -> 96
A26: 2 | B26: =IF($G$3="k",IF(VLOOKUP($D26,invullijst!$A$11:$M$196,11,FALSE)=0," ",VLOOKUP($D26,invullijst!$A$11:$M$196,11,FALSE)),"") ->  | C26: =IF(VLOOKUP(D26,invullijst!A$11:F$237,4,FALSE)="","",VLOOKUP(D26,invullijst!A$11:D$237,4,FALSE)) -> 65+ | D26: 516 | E26: =IF(VLOOKUP($D26,invullijst!$A$11:$M$196,2,FALSE)="","",VLOOKUP($D26,invullijst!$A$11:$M$196,2,FALSE)) -> Henry Bergakker (disp) | G26: =IF(VLOOKUP($D26,invullijst!$A$11:$M$196,7,FALSE)=0,"",VLOOKUP($D26,invullijst!$A$11:$M$196,7,FALSE)) -> 81 | I26: 2 | J26: =IF($O$3="k",IF(VLOOKUP($L26,invullijst!$A$11:$M$196,11,FALSE)=0," ",VLOOKUP($L26,invullijst!$A$11:$M$196,11,FALSE)),"") ->  | K26: =IF(VLOOKUP($L26,invullijst!$A$11:$M$237,4,FALSE)="","",VLOOKUP($L26,invullijst!$A$11:$M$237,4,FALSE)) -> 65+ | L26: 220 | M26: =IF(VLOOKUP($L26,invullijst!$A$11:$M$196,2,FALSE)="","",VLOOKUP($L26,invullijst!$A$11:$M$196,2,FALSE)) -> Kees Vos | O26: =IF(VLOOKUP($L26,invullijst!$A$11:$M$196,7,FALSE)=0,"",VLOOKUP($L26,invullijst!$A$11:$M$196,7,FALSE)) -> 94
A27: 3 | B27: =IF($G$3="k",IF(VLOOKUP($D27,invullijst!$A$11:$M$196,11,FALSE)=0," ",VLOOKUP($D27,invullijst!$A$11:$M$196,11,FALSE)),"") ->  | C27: =IF(VLOOKUP(D27,invullijst!A$11:F$237,4,FALSE)="","",VLOOKUP(D27,invullijst!A$11:D$237,4,FALSE)) -> 65+ | D27: 517 | E27: =IF(VLOOKUP($D27,invullijst!$A$11:$M$196,2,FALSE)="","",VLOOKUP($D27,invullijst!$A$11:$M$196,2,FALSE)) -> Diny Vos (disp) | G27: =IF(VLOOKUP($D27,invullijst!$A$11:$M$196,7,FALSE)=0,"",VLOOKUP($D27,invullijst!$A$11:$M$196,7,FALSE)) -> 95 | I27: 3 | J27: =IF($O$3="k",IF(VLOOKUP($L27,invullijst!$A$11:$M$196,11,FALSE)=0," ",VLOOKUP($L27,invullijst!$A$11:$M$196,11,FALSE)),"") ->  | K27: =IF(VLOOKUP($L27,invullijst!$A$11:$M$237,4,FALSE)="","",VLOOKUP($L27,invullijst!$A$11:$M$237,4,FALSE)) -> 65+ | L27: 219 | M27: =IF(VLOOKUP($L27,invullijst!$A$11:$M$196,2,FALSE)="","",VLOOKUP($L27,invullijst!$A$11:$M$196,2,FALSE)) -> Frans de Bont | O27: =IF(VLOOKUP($L27,invullijst!$A$11:$M$196,7,FALSE)=0,"",VLOOKUP($L27,invullijst!$A$11:$M$196,7,FALSE)) -> 96
A28: Totaal korps opgelegd A1 | G28: =SUM(G25:G27) -> 272 | I28: Totaal korps opgelegd A1 | O28: =SUM(O25:O27) -> 286
A30: 1 | B30: =IF($G$3="k",IF(VLOOKUP($D30,invullijst!$A$11:$M$196,11,FALSE)=0," ",VLOOKUP($D30,invullijst!$A$11:$M$196,11,FALSE)),"") ->  | C30: =IF(VLOOKUP(D30,invullijst!A$11:F$237,4,FALSE)="","",VLOOKUP(D30,invullijst!A$11:D$237,4,FALSE)) -> 65+ | D30: 503 | E30: =IF(VLOOKUP($D30,invullijst!$A$11:$M$196,2,FALSE)="","",VLOOKUP($D30,invullijst!$A$11:$M$196,2,FALSE)) -> Kees Vos (disp) | G30: =IF(VLOOKUP($D30,invullijst!$A$11:$M$196,7,FALSE)=0,"",VLOOKUP($D30,invullijst!$A$11:$M$196,7,FALSE)) -> 82 | I30: 1 | J30: =IF($O$3="k",IF(VLOOKUP($L30,invullijst!$A$11:$M$196,11,FALSE)=0," ",VLOOKUP($L30,invullijst!$A$11:$M$196,11,FALSE)),"") ->  | K30: =IF(VLOOKUP($L30,invullijst!$A$11:$M$237,4,FALSE)="","",VLOOKUP($L30,invullijst!$A$11:$M$237,4,FALSE)) -> 65+ | L30: 212 | M30: =IF(VLOOKUP($L30,invullijst!$A$11:$M$196,2,FALSE)="","",VLOOKUP($L30,invullijst!$A$11:$M$196,2,FALSE)) -> René Duquesnoy | O30: =IF(VLOOKUP($L30,invullijst!$A$11:$M$196,7,FALSE)=0,"",VLOOKUP($L30,invullijst!$A$11:$M$196,7,FALSE)) -> 85
A31: 2 | B31: =IF($G$3="k",IF(VLOOKUP($D31,invullijst!$A$11:$M$196,11,FALSE)=0," ",VLOOKUP($D31,invullijst!$A$11:$M$196,11,FALSE)),"") ->  | C31: =IF(VLOOKUP(D31,invullijst!A$11:F$237,4,FALSE)="","",VLOOKUP(D31,invullijst!A$11:D$237,4,FALSE)) -> 65+ | D31: 518 | E31: =IF(VLOOKUP($D31,invullijst!$A$11:$M$196,2,FALSE)="","",VLOOKUP($D31,invullijst!$A$11:$M$196,2,FALSE)) -> Ton Stanz | G31: =IF(VLOOKUP($D31,invullijst!$A$11:$M$196,7,FALSE)=0,"",VLOOKUP($D31,invullijst!$A$11:$M$196,7,FALSE)) -> 88 | I31: 2 | J31: =IF($O$3="k",IF(VLOOKUP($L31,invullijst!$A$11:$M$196,11,FALSE)=0," ",VLOOKUP($L31,invullijst!$A$11:$M$196,11,FALSE)),"") ->  | K31: =IF(VLOOKUP($L31,invullijst!$A$11:$M$237,4,FALSE)="","",VLOOKUP($L31,invullijst!$A$11:$M$237,4,FALSE)) -> 65+ | L31: 214 | M31: =IF(VLOOKUP($L31,invullijst!$A$11:$M$196,2,FALSE)="","",VLOOKUP($L31,invullijst!$A$11:$M$196,2,FALSE)) -> Andre de Vaan | O31: =IF(VLOOKUP($L31,invullijst!$A$11:$M$196,7,FALSE)=0,"",VLOOKUP($L31,invullijst!$A$11:$M$196,7,FALSE)) -> 93
A32: 3 | B32: =IF($G$3="k",IF(VLOOKUP($D32,invullijst!$A$11:$M$196,11,FALSE)=0," ",VLOOKUP($D32,invullijst!$A$11:$M$196,11,FALSE)),"") ->  | C32: =IF(VLOOKUP(D32,invullijst!A$11:F$237,4,FALSE)="","",VLOOKUP(D32,invullijst!A$11:D$237,4,FALSE)) -> 65+ | D32: 515 | E32: =IF(VLOOKUP($D32,invullijst!$A$11:$M$196,2,FALSE)="","",VLOOKUP($D32,invullijst!$A$11:$M$196,2,FALSE)) -> Ilona Bergakker (disp) | G32: =IF(VLOOKUP($D32,invullijst!$A$11:$M$196,7,FALSE)=0,"",VLOOKUP($D32,invullijst!$A$11:$M$196,7,FALSE)) -> 87 | I32: 3 | J32: =IF($O$3="k",IF(VLOOKUP($L32,invullijst!$A$11:$M$196,11,FALSE)=0," ",VLOOKUP($L32,invullijst!$A$11:$M$196,11,FALSE)),"") ->  | K32: =IF(VLOOKUP($L32,invullijst!$A$11:$M$237,4,FALSE)="","",VLOOKUP($L32,invullijst!$A$11:$M$237,4,FALSE)) -> J | L32: 221 | M32: =IF(VLOOKUP($L32,invullijst!$A$11:$M$196,2,FALSE)="","",VLOOKUP($L32,invullijst!$A$11:$M$196,2,FALSE)) -> Mees Huijben | O32: =IF(VLOOKUP($L32,invullijst!$A$11:$M$196,7,FALSE)=0,"",VLOOKUP($L32,invullijst!$A$11:$M$196,7,FALSE)) -> 83
A33: Totaal korps opgelegd A2 | G33: =SUM(G30:G32) -> 257 | I33: Totaal korps opgelegd A2 | O33: =SUM(O30:O32) -> 261
A35: 1 | B35: =IF($G$3="k",IF(VLOOKUP($D35,invullijst!$A$11:$M$196,11,FALSE)=0," ",VLOOKUP($D35,invullijst!$A$11:$M$196,11,FALSE)),"") ->  | C35: =IF(VLOOKUP(D35,invullijst!A$11:F$237,4,FALSE)="","",VLOOKUP(D35,invullijst!A$11:D$237,4,FALSE)) -> J | D35: 502 | E35: =IF(VLOOKUP($D35,invullijst!$A$11:$M$196,2,FALSE)="","",VLOOKUP($D35,invullijst!$A$11:$M$196,2,FALSE)) -> Djody Wagemakers | G35: =IF(VLOOKUP($D35,invullijst!$A$11:$M$196,7,FALSE)=0,"",VLOOKUP($D35,invullijst!$A$11:$M$196,7,FALSE)) -> 91 | I35: 1 | J35: inh | K35: =IF(VLOOKUP($L35,invullijst!$A$11:$M$237,4,FALSE)="","",VLOOKUP($L35,invullijst!$A$11:$M$237,4,FALSE)) -> vr | L35: 208 | M35: =IF(VLOOKUP($L35,invullijst!$A$11:$M$196,2,FALSE)="","",VLOOKUP($L35,invullijst!$A$11:$M$196,2,FALSE)) -> Erin van Hulten | O35: 83
A36: 2 | B36: =IF($G$3="k",IF(VLOOKUP($D36,invullijst!$A$11:$M$196,11,FALSE)=0," ",VLOOKUP($D36,invullijst!$A$11:$M$196,11,FALSE)),"") ->  | C36: =IF(VLOOKUP(D36,invullijst!A$11:F$237,4,FALSE)="","",VLOOKUP(D36,invullijst!A$11:D$237,4,FALSE)) -> 0 | E36: =IF(VLOOKUP($D36,invullijst!$A$11:$M$196,2,FALSE)="","",VLOOKUP($D36,invullijst!$A$11:$M$196,2,FALSE)) -> 0 | G36: =IF(VLOOKUP($D36,invullijst!$A$11:$M$196,7,FALSE)=0,"",VLOOKUP($D36,invullijst!$A$11:$M$196,7,FALSE)) ->  | I36: 2 | J36: inh | K36: =IF(VLOOKUP($L36,invullijst!$A$11:$M$237,4,FALSE)="","",VLOOKUP($L36,invullijst!$A$11:$M$237,4,FALSE)) -> J | L36: 221 | M36: =IF(VLOOKUP($L36,invullijst!$A$11:$M$196,2,FALSE)="","",VLOOKUP($L36,invullijst!$A$11:$M$196,2,FALSE)) -> Mees Huijben | O36: 86
A37: 3 | B37: =IF($G$3="k",IF(VLOOKUP($D37,invullijst!$A$11:$M$196,11,FALSE)=0," ",VLOOKUP($D37,invullijst!$A$11:$M$196,11,FALSE)),"") ->  | C37: =IF(VLOOKUP(D37,invullijst!A$11:F$237,4,FALSE)="","",VLOOKUP(D37,invullijst!A$11:D$237,4,FALSE)) -> 0 | E37: =IF(VLOOKUP($D37,invullijst!$A$11:$M$196,2,FALSE)="","",VLOOKUP($D37,invullijst!$A$11:$M$196,2,FALSE)) -> 0 | G37: =IF(VLOOKUP($D37,invullijst!$A$11:$M$196,7,FALSE)=0,"",VLOOKUP($D37,invullijst!$A$11:$M$196,7,FALSE)) ->  | I37: 3 | J37: inh | K37: =IF(VLOOKUP($L37,invullijst!$A$11:$M$237,4,FALSE)="","",VLOOKUP($L37,invullijst!$A$11:$M$237,4,FALSE)) -> vr | L37: 223 | M37: =IF(VLOOKUP($L37,invullijst!$A$11:$M$196,2,FALSE)="","",VLOOKUP($L37,invullijst!$A$11:$M$196,2,FALSE)) -> Jänis Jakobsons | O37: 80
A38: Totaal korps opgelegd A3 | G38: =SUM(G35:G37) -> 91 | I38: Totaal korps opgelegd A3

Sheet wedstrijd 3A
A1: =invullijst!F1 -> Organistatie | F1: =invullijst!H2 -> 2025 - 2026 | I1: =invullijst!F3 -> Sint Ambrosius Baardwijk
A2: Datum: | M2: 2026-02-01
A3: 2 | B3: =IF(VLOOKUP(A3,invullijst!A1:F5,2,FALSE)="","",VLOOKUP(A3,invullijst!A1:F5,2,FALSE)) -> St. Crispinus & Crispinianus Besoijen | G3: K | I3: 1 | J3: =IF(VLOOKUP(I3,invullijst!A1:C5,2,FALSE)="","",VLOOKUP(I3,invullijst!A1:C5,2,FALSE)) -> Sint Ambrosius Baardwijk
A5: vrijehand
A6: 1 | B6: =IF($G$3="k",IF(VLOOKUP($D6,invullijst!$A$11:$M$196,11,FALSE)=0," ",VLOOKUP($D6,invullijst!$A$11:$M$196,11,FALSE)),"") -> 40 | C6: =IF(VLOOKUP(D6,invullijst!A$11:F$237,4,FALSE)="","",VLOOKUP(D6,invullijst!A$11:D$237,4,FALSE)) -> vr | D6: 210 | E6: =IF(VLOOKUP($D6,invullijst!$A$11:$M$196,2,FALSE)="","",VLOOKUP($D6,invullijst!$A$11:$M$196,2,FALSE)) -> Sander Oome | G6: =IF(VLOOKUP($D6,invullijst!$A$11:$M$196,8,FALSE)=0,"",VLOOKUP($D6,invullijst!$A$11:$M$196,8,FALSE)) -> 93 | I6: 1 | J6: =IF($O$3="k",IF(VLOOKUP($L6,invullijst!$A$11:$M$196,11,FALSE)=0," ",VLOOKUP($L6,invullijst!$A$11:$M$196,11,FALSE)),"") ->  | K6: =IF(VLOOKUP($L6,invullijst!$A$11:$M$237,4,FALSE)="","",VLOOKUP($L6,invullijst!$A$11:$M$237,4,FALSE)) -> vr | L6: 105 | M6: =IF(VLOOKUP($L6,invullijst!$A$11:$M$196,2,FALSE)="","",VLOOKUP($L6,invullijst!$A$11:$M$196,2,FALSE)) -> René Klijn | O6: =IF(VLOOKUP($L6,invullijst!$A$11:$M$196,8,FALSE)=0,"",VLOOKUP($L6,invullijst!$A$11:$M$196,8,FALSE)) -> 84
A7: 2 | B7: =IF($G$3="k",IF(VLOOKUP($D7,invullijst!$A$11:$M$196,11,FALSE)=0," ",VLOOKUP($D7,invullijst!$A$11:$M$196,11,FALSE)),"") -> 39 | C7: =IF(VLOOKUP(D7,invullijst!A$11:F$237,4,FALSE)="","",VLOOKUP(D7,invullijst!A$11:D$237,4,FALSE)) -> vr | D7: 203 | E7: =IF(VLOOKUP($D7,invullijst!$A$11:$M$196,2,FALSE)="","",VLOOKUP($D7,invullijst!$A$11:$M$196,2,FALSE)) -> Frank van den Houdt | G7: =IF(VLOOKUP($D7,invullijst!$A$11:$M$196,8,FALSE)=0,"",VLOOKUP($D7,invullijst!$A$11:$M$196,8,FALSE)) -> 73 | I7: 2 | J7: =IF($O$3="k",IF(VLOOKUP($L7,invullijst!$A$11:$M$196,11,FALSE)=0," ",VLOOKUP($L7,invullijst!$A$11:$M$196,11,FALSE)),"") ->  | K7: =IF(VLOOKUP($L7,invullijst!$A$11:$M$237,4,FALSE)="","",VLOOKUP($L7,invullijst!$A$11:$M$237,4,FALSE)) -> vr | L7: 108 | M7: =IF(VLOOKUP($L7,invullijst!$A$11:$M$196,2,FALSE)="","",VLOOKUP($L7,invullijst!$A$11:$M$196,2,FALSE)) -> Bram Pullens | O7: =IF(VLOOKUP($L7,invullijst!$A$11:$M$196,8,FALSE)=0,"",VLOOKUP($L7,invullijst!$A$11:$M$196,8,FALSE)) -> 78
A8: 3 | B8: =IF($G$3="k",IF(VLOOKUP($D8,invullijst!$A$11:$M$196,11,FALSE)=0," ",VLOOKUP($D8,invullijst!$A$11:$M$196,11,FALSE)),"") -> 44 | C8: =IF(VLOOKUP(D8,invullijst!A$11:F$237,4,FALSE)="","",VLOOKUP(D8,invullijst!A$11:D$237,4,FALSE)) -> vr | D8: 216 | E8: =IF(VLOOKUP($D8,invullijst!$A$11:$M$196,2,FALSE)="","",VLOOKUP($D8,invullijst!$A$11:$M$196,2,FALSE)) -> Pieter Laghuwitz | G8: =IF(VLOOKUP($D8,invullijst!$A$11:$M$196,8,FALSE)=0,"",VLOOKUP($D8,invullijst!$A$11:$M$196,8,FALSE)) -> 86 | I8: 3 | J8: =IF($O$3="k",IF(VLOOKUP($L8,invullijst!$A$11:$M$196,11,FALSE)=0," ",VLOOKUP($L8,invullijst!$A$11:$M$196,11,FALSE)),"") ->  | K8: =IF(VLOOKUP($L8,invullijst!$A$11:$M$237,4,FALSE)="","",VLOOKUP($L8,invullijst!$A$11:$M$237,4,FALSE)) -> vr | L8: 109 | M8: =IF(VLOOKUP($L8,invullijst!$A$11:$M$196,2,FALSE)="","",VLOOKUP($L8,invullijst!$A$11:$M$196,2,FALSE)) -> Gijs Pullens | O8: =IF(VLOOKUP($L8,invullijst!$A$11:$M$196,8,FALSE)=0,"",VLOOKUP($L8,invullijst!$A$11:$M$196,8,FALSE)) -> 76
A9: 4 | B9: =IF($G$3="k",IF(VLOOKUP($D9,invullijst!$A$11:$M$196,11,FALSE)=0," ",VLOOKUP($D9,invullijst!$A$11:$M$196,11,FALSE)),"") -> 37 | C9: =IF(VLOOKUP(D9,invullijst!A$11:F$237,4,FALSE)="","",VLOOKUP(D9,invullijst!A$11:D$237,4,FALSE)) -> vr | D9: 217 | E9: =IF(VLOOKUP($D9,invullijst!$A$11:$M$196,2,FALSE)="","",VLOOKUP($D9,invullijst!$A$11:$M$196,2,FALSE)) -> Hans Laghuwitz | G9: =IF(VLOOKUP($D9,invullijst!$A$11:$M$196,8,FALSE)=0,"",VLOOKUP($D9,invullijst!$A$11:$M$196,8,FALSE)) -> 83 | I9: 4 | J9: =IF($O$3="k",IF(VLOOKUP($L9,invullijst!$A$11:$M$196,11,FALSE)=0," ",VLOOKUP($L9,invullijst!$A$11:$M$196,11,FALSE)),"") ->  | K9: =IF(VLOOKUP($L9,invullijst!$A$11:$M$237,4,FALSE)="","",VLOOKUP($L9,invullijst!$A$11:$M$237,4,FALSE)) -> vr | L9: 106 | M9: =IF(VLOOKUP($L9,invullijst!$A$11:$M$196,2,FALSE)="","",VLOOKUP($L9,invullijst!$A$11:$M$196,2,FALSE)) -> René Pullens | O9: =IF(VLOOKUP($L9,invullijst!$A$11:$M$196,8,FALSE)=0,"",VLOOKUP($L9,invullijst!$A$11:$M$196,8,FALSE)) -> 83
A10: Totaal A korps | G10: =SUM(G6:G9) -> 335 | I10: Totaal A korps | O10: =SUM(O6:O9) -> 321
A12: 1 | B12: =IF($G$3="k",IF(VLOOKUP($D12,invullijst!$A$11:$M$196,11,FALSE)=0," ",VLOOKUP($D12,invullijst!$A$11:$M$196,11,FALSE)),"") -> 33 | C12: =IF(VLOOKUP(D12,invullijst!A$11:F$237,4,FALSE)="","",VLOOKUP(D12,invullijst!A$11:D$237,4,FALSE)) -> vr | D12: 209 | E12: =IF(VLOOKUP($D12,invullijst!$A$11:$M$196,2,FALSE)="","",VLOOKUP($D12,invullijst!$A$11:$M$196,2,FALSE)) -> René van Kuijk | G12: =IF(VLOOKUP($D12,invullijst!$A$11:$M$196,8,FALSE)=0,"",VLOOKUP($D12,invullijst!$A$11:$M$196,8,FALSE)) -> 84 | I12: 1 | J12: =IF($O$3="k",IF(VLOOKUP($L12,invullijst!$A$11:$M$196,11,FALSE)=0," ",VLOOKUP($L12,invullijst!$A$11:$M$196,11,FALSE)),"") ->  | K12: =IF(VLOOKUP($L12,invullijst!$A$11:$M$237,4,FALSE)="","",VLOOKUP($L12,invullijst!$A$11:$M$237,4,FALSE)) -> 0 | M12: =IF(VLOOKUP($L12,invullijst!$A$11:$M$196,2,FALSE)="","",VLOOKUP($L12,invullijst!$A$11:$M$196,2,FALSE)) -> 0 | O12: =IF(VLOOKUP($L12,invullijst!$A$11:$M$196,8,FALSE)=0,"",VLOOKUP($L12,invullijst!$A$11:$M$196,8,FALSE)) -> 
A13: 2 | B13: =IF($G$3="k",IF(VLOOKUP($D13,invullijst!$A$11:$M$196,11,FALSE)=0," ",VLOOKUP($D13,invullijst!$A$11:$M$196,11,FALSE)),"") -> 39 | C13: =IF(VLOOKUP(D13,invullijst!A$11:F$237,4,FALSE)="","",VLOOKUP(D13,invullijst!A$11:D$237,4,FALSE)) -> vr | D13: 205 | E13: =IF(VLOOKUP($D13,invullijst!$A$11:$M$196,2,FALSE)="","",VLOOKUP($D13,invullijst!$A$11:$M$196,2,FALSE)) -> Jos v/d Snepscheut | G13: =IF(VLOOKUP($D13,invullijst!$A$11:$M$196,8,FALSE)=0,"",VLOOKUP($D13,invullijst!$A$11:$M$196,8,FALSE)) -> 76 | I13: 2 | J13: =IF($O$3="k",IF(VLOOKUP($L13,invullijst!$A$11:$M$196,11,FALSE)=0," ",VLOOKUP($L13,invullijst!$A$11:$M$196,11,FALSE)),"") ->  | K13: =IF(VLOOKUP($L13,invullijst!$A$11:$M$237,4,FALSE)="","",VLOOKUP($L13,invullijst!$A$11:$M$237,4,FALSE)) -> 0 | M13: =IF(VLOOKUP($L13,invullijst!$A$11:$M$196,2,FALSE)="","",VLOOKUP($L13,invullijst!$A$11:$M$196,2,FALSE)) -> 0 | O13: =IF(VLOOKUP($L13,invullijst!$A$11:$M$196,8,FALSE)=0,"",VLOOKUP($L13,invullijst!$A$11:$M$196,8,FALSE)) -> 
A14: 3 | B14: =IF($G$3="k",IF(VLOOKUP($D14,invullijst!$A$11:$M$196,11,FALSE)=0," ",VLOOKUP($D14,invullijst!$A$11:$M$196,11,FALSE)),"") -> 33 | C14: =IF(VLOOKUP(D14,invullijst!A$11:F$237,4,FALSE)="","",VLOOKUP(D14,invullijst!A$11:D$237,4,FALSE)) -> vr | D14: 204 | E14: =IF(VLOOKUP($D14,invullijst!$A$11:$M$196,2,FALSE)="","",VLOOKUP($D14,invullijst!$A$11:$M$196,2,FALSE)) -> Harry de Louw | G14: =IF(VLOOKUP($D14,invullijst!$A$11:$M$196,8,FALSE)=0,"",VLOOKUP($D14,invullijst!$A$11:$M$196,8,FALSE)) -> 83 | I14: 3 | J14: =IF($O$3="k",IF(VLOOKUP($L14,invullijst!$A$11:$M$196,11,FALSE)=0," ",VLOOKUP($L14,invullijst!$A$11:$M$196,11,FALSE)),"") ->  | K14: =IF(VLOOKUP($L14,invullijst!$A$11:$M$237,4,FALSE)="","",VLOOKUP($L14,invullijst!$A$11:$M$237,4,FALSE)) -> 0 | M14: =IF(VLOOKUP($L14,invullijst!$A$11:$M$196,2,FALSE)="","",VLOOKUP($L14,invullijst!$A$11:$M$196,2,FALSE)) -> 0 | O14: =IF(VLOOKUP($L14,invullijst!$A$11:$M$196,8,FALSE)=0,"",VLOOKUP($L14,invullijst!$A$11:$M$196,8,FALSE)) -> 
A15: 4 | B15: =IF($G$3="k",IF(VLOOKUP($D15,invullijst!$A$11:$M$196,11,FALSE)=0," ",VLOOKUP($D15,invullijst!$A$11:$M$196,11,FALSE)),"") -> 36 | C15: =IF(VLOOKUP(D15,invullijst!A$11:F$237,4,FALSE)="","",VLOOKUP(D15,invullijst!A$11:D$237,4,FALSE)) -> vr | D15: 213 | E15: =IF(VLOOKUP($D15,invullijst!$A$11:$M$196,2,FALSE)="","",VLOOKUP($D15,invullijst!$A$11:$M$196,2,FALSE)) -> Roland van Delft | G15: =IF(VLOOKUP($D15,invullijst!$A$11:$M$196,8,FALSE)=0,"",VLOOKUP($D15,invullijst!$A$11:$M$196,8,FALSE)) -> 62 | I15: 4 | J15: =IF($O$3="k",IF(VLOOKUP($L15,invullijst!$A$11:$M$196,11,FALSE)=0," ",VLOOKUP($L15,invullijst!$A$11:$M$196,11,FALSE)),"") ->  | K15: =IF(VLOOKUP($L15,invullijst!$A$11:$M$237,4,FALSE)="","",VLOOKUP($L15,invullijst!$A$11:$M$237,4,FALSE)) -> 0 | M15: =IF(VLOOKUP($L15,invullijst!$A$11:$M$196,2,FALSE)="","",VLOOKUP($L15,invullijst!$A$11:$M$196,2,FALSE)) -> 0 | O15: =IF(VLOOKUP($L15,invullijst!$A$11:$M$196,8,FALSE)=0,"",VLOOKUP($L15,invullijst!$A$11:$M$196,8,FALSE)) -> 
A16: Totaal B1 korps | G16: =SUM(G12:G15) -> 305 | I16: Totaal B1 korps | O16: =SUM(O12:O15) -> 0
A18: 1 | B18: =IF($G$3="k",IF(VLOOKUP($D18,invullijst!$A$11:$M$196,11,FALSE)=0," ",VLOOKUP($D18,invullijst!$A$11:$M$196,11,FALSE)),"") -> 29 | C18: =IF(VLOOKUP(D18,invullijst!A$11:F$237,4,FALSE)="","",VLOOKUP(D18,invullijst!A$11:D$237,4,FALSE)) -> vr | D18: 222 | E18: =IF(VLOOKUP($D18,invullijst!$A$11:$M$196,2,FALSE)="","",VLOOKUP($D18,invullijst!$A$11:$M$196,2,FALSE)) -> Nick de Vaan | G18: =IF(VLOOKUP($D18,invullijst!$A$11:$M$196,8,FALSE)=0,"",VLOOKUP($D18,invullijst!$A$11:$M$196,8,FALSE)) -> 74 | I18: 1 | J18: =IF($O$3="k",IF(VLOOKUP($L18,invullijst!$A$11:$M$196,11,FALSE)=0," ",VLOOKUP($L18,invullijst!$A$11:$M$196,11,FALSE)),"") ->  | K18: =IF(VLOOKUP($L18,invullijst!$A$11:$M$237,4,FALSE)="","",VLOOKUP($L18,invullijst!$A$11:$M$237,4,FALSE)) -> 0 | M18: =IF(VLOOKUP($L18,invullijst!$A$11:$M$196,2,FALSE)="","",VLOOKUP($L18,invullijst!$A$11:$M$196,2,FALSE)) -> 0 | O18: =IF(VLOOKUP($L18,invullijst!$A$11:$M$196,8,FALSE)=0,"",VLOOKUP($L18,invullijst!$A$11:$M$196,8,FALSE)) -> 
A19: 2 | B19: =IF($G$3="k",IF(VLOOKUP($D19,invullijst!$A$11:$M$196,11,FALSE)=0," ",VLOOKUP($D19,invullijst!$A$11:$M$196,11,FALSE)),"") -> 12 | C19: =IF(VLOOKUP(D19,invullijst!A$11:F$237,4,FALSE)="","",VLOOKUP(D19,invullijst!A$11:D$237,4,FALSE)) -> vr | D19: 223 | E19: =IF(VLOOKUP($D19,invullijst!$A$11:$M$196,2,FALSE)="","",VLOOKUP($D19,invullijst!$A$11:$M$196,2,FALSE)) -> Jänis Jakobsons | G19: =IF(VLOOKUP($D19,invullijst!$A$11:$M$196,8,FALSE)=0,"",VLOOKUP($D19,invullijst!$A$11:$M$196,8,FALSE)) -> 70 | I19: 2 | J19: =IF($O$3="k",IF(VLOOKUP($L19,invullijst!$A$11:$M$196,11,FALSE)=0," ",VLOOKUP($L19,invullijst!$A$11:$M$196,11,FALSE)),"") ->  | K19: =IF(VLOOKUP($L19,invullijst!$A$11:$M$237,4,FALSE)="","",VLOOKUP($L19,invullijst!$A$11:$M$237,4,FALSE)) -> 0 | M19: =IF(VLOOKUP($L19,invullijst!$A$11:$M$196,2,FALSE)="","",VLOOKUP($L19,invullijst!$A$11:$M$196,2,FALSE)) -> 0 | O19: =IF(VLOOKUP($L19,invullijst!$A$11:$M$196,8,FALSE)=0,"",VLOOKUP($L19,invullijst!$A$11:$M$196,8,FALSE)) -> 
A20: 3 | B20: =IF($G$3="k",IF(VLOOKUP($D20,invullijst!$A$11:$M$196,11,FALSE)=0," ",VLOOKUP($D20,invullijst!$A$11:$M$196,11,FALSE)),"") ->  | C20: =IF(VLOOKUP(D20,invullijst!A$11:F$237,4,FALSE)="","",VLOOKUP(D20,invullijst!A$11:D$237,4,FALSE)) -> 0 | E20: =IF(VLOOKUP($D20,invullijst!$A$11:$M$196,2,FALSE)="","",VLOOKUP($D20,invullijst!$A$11:$M$196,2,FALSE)) -> 0 | G20: =IF(VLOOKUP($D20,invullijst!$A$11:$M$196,8,FALSE)=0,"",VLOOKUP($D20,invullijst!$A$11:$M$196,8,FALSE)) ->  | I20: 3 | J20: =IF($O$3="k",IF(VLOOKUP($L20,invullijst!$A$11:$M$196,11,FALSE)=0," ",VLOOKUP($L20,invullijst!$A$11:$M$196,11,FALSE)),"") ->  | K20: =IF(VLOOKUP($L20,invullijst!$A$11:$M$237,4,FALSE)="","",VLOOKUP($L20,invullijst!$A$11:$M$237,4,FALSE)) -> 0 | M20: =IF(VLOOKUP($L20,invullijst!$A$11:$M$196,2,FALSE)="","",VLOOKUP($L20,invullijst!$A$11:$M$196,2,FALSE)) -> 0 | O20: =IF(VLOOKUP($L20,invullijst!$A$11:$M$196,8,FALSE)=0,"",VLOOKUP($L20,invullijst!$A$11:$M$196,8,FALSE)) -> 
A21: 4 | B21: =IF($G$3="k",IF(VLOOKUP($D21,invullijst!$A$11:$M$196,11,FALSE)=0," ",VLOOKUP($D21,invullijst!$A$11:$M$196,11,FALSE)),"") ->  | C21: =IF(VLOOKUP(D21,invullijst!A$11:F$237,4,FALSE)="","",VLOOKUP(D21,invullijst!A$11:D$237,4,FALSE)) -> 0 | E21: =IF(VLOOKUP($D21,invullijst!$A$11:$M$196,2,FALSE)="","",VLOOKUP($D21,invullijst!$A$11:$M$196,2,FALSE)) -> 0 | G21: =IF(VLOOKUP($D21,invullijst!$A$11:$M$196,8,FALSE)=0,"",VLOOKUP($D21,invullijst!$A$11:$M$196,8,FALSE)) ->  | I21: 4 | J21: =IF($O$3="k",IF(VLOOKUP($L21,invullijst!$A$11:$M$196,11,FALSE)=0," ",VLOOKUP($L21,invullijst!$A$11:$M$196,11,FALSE)),"") ->  | K21: =IF(VLOOKUP($L21,invullijst!$A$11:$M$237,4,FALSE)="","",VLOOKUP($L21,invullijst!$A$11:$M$237,4,FALSE)) -> 0 | M21: =IF(VLOOKUP($L21,invullijst!$A$11:$M$196,2,FALSE)="","",VLOOKUP($L21,invullijst!$A$11:$M$196,2,FALSE)) -> 0 | O21: =IF(VLOOKUP($L21,invullijst!$A$11:$M$196,8,FALSE)=0,"",VLOOKUP($L21,invullijst!$A$11:$M$196,8,FALSE)) -> 
A22: DIVERSEN / INHAAL | G22: =SUM(G18:G21) -> 144 | I22: DIVERSEN / INHAAL | O22: =SUM(O18:O21) -> 0
A24: OPGELEGD (Jeugd <16 en 65+)
A25: 1 | B25: =IF($G$3="k",IF(VLOOKUP($D25,invullijst!$A$11:$M$196,11,FALSE)=0," ",VLOOKUP($D25,invullijst!$A$11:$M$196,11,FALSE)),"") -> 48 | C25: =IF(VLOOKUP(D25,invullijst!A$11:F$237,4,FALSE)="","",VLOOKUP(D25,invullijst!A$11:D$237,4,FALSE)) -> 65+ | D25: 220 | E25: =IF(VLOOKUP($D25,invullijst!$A$11:$M$196,2,FALSE)="","",VLOOKUP($D25,invullijst!$A$11:$M$196,2,FALSE)) -> Kees Vos | G25: =IF(VLOOKUP($D25,invullijst!$A$11:$M$196,8,FALSE)=0,"",VLOOKUP($D25,invullijst!$A$11:$M$196,8,FALSE)) -> 93 | I25: 1 | J25: =IF($O$3="k",IF(VLOOKUP($L25,invullijst!$A$11:$M$196,11,FALSE)=0," ",VLOOKUP($L25,invullijst!$A$11:$M$196,11,FALSE)),"") ->  | K25: =IF(VLOOKUP($L25,invullijst!$A$11:$M$237,4,FALSE)="","",VLOOKUP($L25,invullijst!$A$11:$M$237,4,FALSE)) -> 65+ | L25: 102 | M25: =IF(VLOOKUP($L25,invullijst!$A$11:$M$196,2,FALSE)="","",VLOOKUP($L25,invullijst!$A$11:$M$196,2,FALSE)) -> John de Jong (disp) | O25: =IF(VLOOKUP($L25,invullijst!$A$11:$M$196,8,FALSE)=0,"",VLOOKUP($L25,invullijst!$A$11:$M$196,8,FALSE)) -> 82
A26: 2 | B26: =IF($G$3="k",IF(VLOOKUP($D26,invullijst!$A$11:$M$196,11,FALSE)=0," ",VLOOKUP($D26,invullijst!$A$11:$M$196,11,FALSE)),"") -> 48 | C26: =IF(VLOOKUP(D26,invullijst!A$11:F$237,4,FALSE)="","",VLOOKUP(D26,invullijst!A$11:D$237,4,FALSE)) -> 65+ | D26: 218 | E26: =IF(VLOOKUP($D26,invullijst!$A$11:$M$196,2,FALSE)="","",VLOOKUP($D26,invullijst!$A$11:$M$196,2,FALSE)) -> Jacob van de Werken | G26: =IF(VLOOKUP($D26,invullijst!$A$11:$M$196,8,FALSE)=0,"",VLOOKUP($D26,invullijst!$A$11:$M$196,8,FALSE)) -> 96 | I26: 2 | J26: =IF($O$3="k",IF(VLOOKUP($L26,invullijst!$A$11:$M$196,11,FALSE)=0," ",VLOOKUP($L26,invullijst!$A$11:$M$196,11,FALSE)),"") ->  | K26: =IF(VLOOKUP($L26,invullijst!$A$11:$M$237,4,FALSE)="","",VLOOKUP($L26,invullijst!$A$11:$M$237,4,FALSE)) -> 65+ | L26: 107 | M26: =IF(VLOOKUP($L26,invullijst!$A$11:$M$196,2,FALSE)="","",VLOOKUP($L26,invullijst!$A$11:$M$196,2,FALSE)) -> Cees Coppens | O26: =IF(VLOOKUP($L26,invullijst!$A$11:$M$196,8,FALSE)=0,"",VLOOKUP($L26,invullijst!$A$11:$M$196,8,FALSE)) -> 83
A27: 3 | B27: =IF($G$3="k",IF(VLOOKUP($D27,invullijst!$A$11:$M$196,11,FALSE)=0," ",VLOOKUP($D27,invullijst!$A$11:$M$196,11,FALSE)),"") -> 48 | C27: =IF(VLOOKUP(D27,invullijst!A$11:F$237,4,FALSE)="","",VLOOKUP(D27,invullijst!A$11:D$237,4,FALSE)) -> 65+ | D27: 219 | E27: =IF(VLOOKUP($D27,invullijst!$A$11:$M$196,2,FALSE)="","",VLOOKUP($D27,invullijst!$A$11:$M$196,2,FALSE)) -> Frans de Bont | G27: =IF(VLOOKUP($D27,invullijst!$A$11:$M$196,8,FALSE)=0,"",VLOOKUP($D27,invullijst!$A$11:$M$196,8,FALSE)) -> 97 | I27: 3 | J27: =IF($O$3="k",IF(VLOOKUP($L27,invullijst!$A$11:$M$196,11,FALSE)=0," ",VLOOKUP($L27,invullijst!$A$11:$M$196,11,FALSE)),"") ->  | K27: =IF(VLOOKUP($L27,invullijst!$A$11:$M$237,4,FALSE)="","",VLOOKUP($L27,invullijst!$A$11:$M$237,4,FALSE)) -> 0 | M27: =IF(VLOOKUP($L27,invullijst!$A$11:$M$196,2,FALSE)="","",VLOOKUP($L27,invullijst!$A$11:$M$196,2,FALSE)) -> 0 | O27: =IF(VLOOKUP($L27,invullijst!$A$11:$M$196,8,FALSE)=0,"",VLOOKUP($L27,invullijst!$A$11:$M$196,8,FALSE)) -> 
A28: Totaal korps opgelegd A1 | G28: =SUM(G25:G27) -> 286 | I28: Totaal korps opgelegd A1 | O28: =SUM(O25:O27) -> 165
A30: 1 | B30: =IF($G$3="k",IF(VLOOKUP($D30,invullijst!$A$11:$M$196,11,FALSE)=0," ",VLOOKUP($D30,invullijst!$A$11:$M$196,11,FALSE)),"") -> 37 | C30: =IF(VLOOKUP(D30,invullijst!A$11:F$237,4,FALSE)="","",VLOOKUP(D30,invullijst!A$11:D$237,4,FALSE)) -> 65+ | D30: 212 | E30: =IF(VLOOKUP($D30,invullijst!$A$11:$M$196,2,FALSE)="","",VLOOKUP($D30,invullijst!$A$11:$M$196,2,FALSE)) -> René Duquesnoy | G30: =IF(VLOOKUP($D30,invullijst!$A$11:$M$196,8,FALSE)=0,"",VLOOKUP($D30,invullijst!$A$11:$M$196,8,FALSE)) -> 90 | I30: 1 | J30: =IF($O$3="k",IF(VLOOKUP($L30,invullijst!$A$11:$M$196,11,FALSE)=0," ",VLOOKUP($L30,invullijst!$A$11:$M$196,11,FALSE)),"") ->  | K30: =IF(VLOOKUP($L30,invullijst!$A$11:$M$237,4,FALSE)="","",VLOOKUP($L30,invullijst!$A$11:$M$237,4,FALSE)) -> 0 | M30: =IF(VLOOKUP($L30,invullijst!$A$11:$M$196,2,FALSE)="","",VLOOKUP($L30,invullijst!$A$11:$M$196,2,FALSE)) -> 0 | O30: =IF(VLOOKUP($L30,invullijst!$A$11:$M$196,8,FALSE)=0,"",VLOOKUP($L30,invullijst!$A$11:$M$196,8,FALSE)) -> 
A31: 2 | B31: =IF($G$3="k",IF(VLOOKUP($D31,invullijst!$A$11:$M$196,11,FALSE)=0," ",VLOOKUP($D31,invullijst!$A$11:$M$196,11,FALSE)),"") -> 43 | C31: =IF(VLOOKUP(D31,invullijst!A$11:F$237,4,FALSE)="","",VLOOKUP(D31,invullijst!A$11:D$237,4,FALSE)) -> J | D31: 221 | E31: =IF(VLOOKUP($D31,invullijst!$A$11:$M$196,2,FALSE)="","",VLOOKUP($D31,invullijst!$A$11:$M$196,2,FALSE)) -> Mees Huijben | G31: =IF(VLOOKUP($D31,invullijst!$A$11:$M$196,8,FALSE)=0,"",VLOOKUP($D31,invullijst!$A$11:$M$196,8,FALSE)) -> 89 | I31: 2 | J31: =IF($O$3="k",IF(VLOOKUP($L31,invullijst!$A$11:$M$196,11,FALSE)=0," ",VLOOKUP($L31,invullijst!$A$11:$M$196,11,FALSE)),"") ->  | K31: =IF(VLOOKUP($L31,invullijst!$A$11:$M$237,4,FALSE)="","",VLOOKUP($L31,invullijst!$A$11:$M$237,4,FALSE)) -> 0 | M31: =IF(VLOOKUP($L31,invullijst!$A$11:$M$196,2,FALSE)="","",VLOOKUP($L31,invullijst!$A$11:$M$196,2,FALSE)) -> 0 | O31: =IF(VLOOKUP($L31,invullijst!$A$11:$M$196,8,FALSE)=0,"",VLOOKUP($L31,invullijst!$A$11:$M$196,8,FALSE)) -> 
A32: 3 | B32: =IF($G$3="k",IF(VLOOKUP($D32,invullijst!$A$11:$M$196,11,FALSE)=0," ",VLOOKUP($D32,invullijst!$A$11:$M$196,11,FALSE)),"") -> 44 | C32: =IF(VLOOKUP(D32,invullijst!A$11:F$237,4,FALSE)="","",VLOOKUP(D32,invullijst!A$11:D$237,4,FALSE)) -> 65+ | D32: 214 | E32: =IF(VLOOKUP($D32,invullijst!$A$11:$M$196,2,FALSE)="","",VLOOKUP($D32,invullijst!$A$11:$M$196,2,FALSE)) -> Andre de Vaan | G32: =IF(VLOOKUP($D32,invullijst!$A$11:$M$196,8,FALSE)=0,"",VLOOKUP($D32,invullijst!$A$11:$M$196,8,FALSE)) -> 90 | I32: 3 | J32: =IF($O$3="k",IF(VLOOKUP($L32,invullijst!$A$11:$M$196,11,FALSE)=0," ",VLOOKUP($L32,invullijst!$A$11:$M$196,11,FALSE)),"") ->  | K32: =IF(VLOOKUP($L32,invullijst!$A$11:$M$237,4,FALSE)="","",VLOOKUP($L32,invullijst!$A$11:$M$237,4,FALSE)) -> 0 | M32: =IF(VLOOKUP($L32,invullijst!$A$11:$M$196,2,FALSE)="","",VLOOKUP($L32,invullijst!$A$11:$M$196,2,FALSE)) -> 0 | O32: =IF(VLOOKUP($L32,invullijst!$A$11:$M$196,8,FALSE)=0,"",VLOOKUP($L32,invullijst!$A$11:$M$196,8,FALSE)) -> 
A33: Totaal korps opgelegd A2 | G33: =SUM(G30:G32) -> 269 | I33: Totaal korps opgelegd A2 | O33: =SUM(O30:O32) -> 0
A35: 1 | B35: =IF($G$3="k",IF(VLOOKUP($D35,invullijst!$A$11:$M$196,11,FALSE)=0," ",VLOOKUP($D35,invullijst!$A$11:$M$196,11,FALSE)),"") -> 41 | C35: =IF(VLOOKUP(D35,invullijst!A$11:F$237,4,FALSE)="","",VLOOKUP(D35,invullijst!A$11:D$237,4,FALSE)) -> 65+ | D35: 211 | E35: =IF(VLOOKUP($D35,invullijst!$A$11:$M$196,2,FALSE)="","",VLOOKUP($D35,invullijst!$A$11:$M$196,2,FALSE)) -> Ad van den houdt | G35: =IF(VLOOKUP($D35,invullijst!$A$11:$M$196,8,FALSE)=0,"",VLOOKUP($D35,invullijst!$A$11:$M$196,8,FALSE)) -> 89 | I35: 1 | J35: =IF($O$3="k",IF(VLOOKUP($L35,invullijst!$A$11:$M$196,11,FALSE)=0," ",VLOOKUP($L35,invullijst!$A$11:$M$196,11,FALSE)),"") ->  | K35: =IF(VLOOKUP($L35,invullijst!$A$11:$M$237,4,FALSE)="","",VLOOKUP($L35,invullijst!$A$11:$M$237,4,FALSE)) -> 0 | M35: =IF(VLOOKUP($L35,invullijst!$A$11:$M$196,2,FALSE)="","",VLOOKUP($L35,invullijst!$A$11:$M$196,2,FALSE)) -> 0 | O35: =IF(VLOOKUP($L35,invullijst!$A$11:$M$196,8,FALSE)=0,"",VLOOKUP($L35,invullijst!$A$11:$M$196,8,FALSE)) -> 
A36: 2 | B36: =IF($G$3="k",IF(VLOOKUP($D36,invullijst!$A$11:$M$196,11,FALSE)=0," ",VLOOKUP($D36,invullijst!$A$11:$M$196,11,FALSE)),"") ->  | C36: =IF(VLOOKUP(D36,invullijst!A$11:F$237,4,FALSE)="","",VLOOKUP(D36,invullijst!A$11:D$237,4,FALSE)) -> 0 | E36: =IF(VLOOKUP($D36,invullijst!$A$11:$M$196,2,FALSE)="","",VLOOKUP($D36,invullijst!$A$11:$M$196,2,FALSE)) -> 0 | G36: =IF(VLOOKUP($D36,invullijst!$A$11:$M$196,8,FALSE)=0,"",VLOOKUP($D36,invullijst!$A$11:$M$196,8,FALSE)) ->  | I36: 2 | J36: =IF($O$3="k",IF(VLOOKUP($L36,invullijst!$A$11:$M$196,11,FALSE)=0," ",VLOOKUP($L36,invullijst!$A$11:$M$196,11,FALSE)),"") ->  | K36: =IF(VLOOKUP($L36,invullijst!$A$11:$M$237,4,FALSE)="","",VLOOKUP($L36,invullijst!$A$11:$M$237,4,FALSE)) -> 0 | M36: =IF(VLOOKUP($L36,invullijst!$A$11:$M$196,2,FALSE)="","",VLOOKUP($L36,invullijst!$A$11:$M$196,2,FALSE)) -> 0 | O36: =IF(VLOOKUP($L36,invullijst!$A$11:$M$196,8,FALSE)=0,"",VLOOKUP($L36,invullijst!$A$11:$M$196,8,FALSE)) -> 
A37: 3 | B37: =IF($G$3="k",IF(VLOOKUP($D37,invullijst!$A$11:$M$196,11,FALSE)=0," ",VLOOKUP($D37,invullijst!$A$11:$M$196,11,FALSE)),"") ->  | C37: =IF(VLOOKUP(D37,invullijst!A$11:F$237,4,FALSE)="","",VLOOKUP(D37,invullijst!A$11:D$237,4,FALSE)) -> 0 | E37: =IF(VLOOKUP($D37,invullijst!$A$11:$M$196,2,FALSE)="","",VLOOKUP($D37,invullijst!$A$11:$M$196,2,FALSE)) -> 0 | G37: =IF(VLOOKUP($D37,invullijst!$A$11:$M$196,8,FALSE)=0,"",VLOOKUP($D37,invullijst!$A$11:$M$196,8,FALSE)) ->  | I37: 3 | J37: =IF($O$3="k",IF(VLOOKUP($L37,invullijst!$A$11:$M$196,11,FALSE)=0," ",VLOOKUP($L37,invullijst!$A$11:$M$196,11,FALSE)),"") ->  | K37: =IF(VLOOKUP($L37,invullijst!$A$11:$M$237,4,FALSE)="","",VLOOKUP($L37,invullijst!$A$11:$M$237,4,FALSE)) -> 0 | M37: =IF(VLOOKUP($L37,invullijst!$A$11:$M$196,2,FALSE)="","",VLOOKUP($L37,invullijst!$A$11:$M$196,2,FALSE)) -> 0 | O37: =IF(VLOOKUP($L37,invullijst!$A$11:$M$196,8,FALSE)=0,"",VLOOKUP($L37,invullijst!$A$11:$M$196,8,FALSE)) -> 
A38: Totaal korps opgelegd A3 | G38: =SUM(G35:G37) -> 89 | I38: Totaal korps opgelegd A3 | O38: =SUM(O35:O37) -> 0

Sheet wedstrijd 3B
A1: =invullijst!F1 -> Organistatie | F1: =invullijst!H2 -> 2025 - 2026 | I1: =invullijst!F3 -> Sint Ambrosius Baardwijk
A2: Datum: | M2: 2026-02-01
A3: 4 | B3: =IF(VLOOKUP(A3,invullijst!A1:F5,2,FALSE)="","",VLOOKUP(A3,invullijst!A1:F5,2,FALSE)) -> Sint Ambrosius Haarsteeg | I3: 3 | J3: =IF(VLOOKUP(I3,invullijst!A1:C5,2,FALSE)="","",VLOOKUP(I3,invullijst!A1:C5,2,FALSE)) -> O.L.V. Schuts Elshout
A5: vrijehand
A6: 1 | B6: =IF($G$3="k",IF(VLOOKUP($D6,invullijst!$A$11:$M$196,11,FALSE)=0," ",VLOOKUP($D6,invullijst!$A$11:$M$196,11,FALSE)),"") ->  | C6: =IF(VLOOKUP(D6,invullijst!A$11:F$237,4,FALSE)="","",VLOOKUP(D6,invullijst!A$11:D$237,4,FALSE)) -> vr | D6: 406 | E6: =IF(VLOOKUP($D6,invullijst!$A$11:$M$196,2,FALSE)="","",VLOOKUP($D6,invullijst!$A$11:$M$196,2,FALSE)) -> Jeroen van Oss | G6: =IF(VLOOKUP($D6,invullijst!$A$11:$M$196,8,FALSE)=0,"",VLOOKUP($D6,invullijst!$A$11:$M$196,8,FALSE)) -> 84 | I6: 1 | J6: =IF($O$3="k",IF(VLOOKUP($L6,invullijst!$A$11:$M$196,11,FALSE)=0," ",VLOOKUP($L6,invullijst!$A$11:$M$196,11,FALSE)),"") ->  | K6: =IF(VLOOKUP($L6,invullijst!$A$11:$M$237,4,FALSE)="","",VLOOKUP($L6,invullijst!$A$11:$M$237,4,FALSE)) -> vr | L6: 306 | M6: =IF(VLOOKUP($L6,invullijst!$A$11:$M$196,2,FALSE)="","",VLOOKUP($L6,invullijst!$A$11:$M$196,2,FALSE)) -> Ron Groot | O6: =IF(VLOOKUP($L6,invullijst!$A$11:$M$196,8,FALSE)=0,"",VLOOKUP($L6,invullijst!$A$11:$M$196,8,FALSE)) -> 87
A7: 2 | B7: =IF($G$3="k",IF(VLOOKUP($D7,invullijst!$A$11:$M$196,11,FALSE)=0," ",VLOOKUP($D7,invullijst!$A$11:$M$196,11,FALSE)),"") ->  | C7: =IF(VLOOKUP(D7,invullijst!A$11:F$237,4,FALSE)="","",VLOOKUP(D7,invullijst!A$11:D$237,4,FALSE)) -> vr | D7: 410 | E7: =IF(VLOOKUP($D7,invullijst!$A$11:$M$196,2,FALSE)="","",VLOOKUP($D7,invullijst!$A$11:$M$196,2,FALSE)) -> Tonnie Koks | G7: =IF(VLOOKUP($D7,invullijst!$A$11:$M$196,8,FALSE)=0,"",VLOOKUP($D7,invullijst!$A$11:$M$196,8,FALSE)) -> 78 | I7: 2 | J7: =IF($O$3="k",IF(VLOOKUP($L7,invullijst!$A$11:$M$196,11,FALSE)=0," ",VLOOKUP($L7,invullijst!$A$11:$M$196,11,FALSE)),"") ->  | K7: =IF(VLOOKUP($L7,invullijst!$A$11:$M$237,4,FALSE)="","",VLOOKUP($L7,invullijst!$A$11:$M$237,4,FALSE)) -> vr | L7: 305 | M7: =IF(VLOOKUP($L7,invullijst!$A$11:$M$196,2,FALSE)="","",VLOOKUP($L7,invullijst!$A$11:$M$196,2,FALSE)) -> Johan Klerx | O7: =IF(VLOOKUP($L7,invullijst!$A$11:$M$196,8,FALSE)=0,"",VLOOKUP($L7,invullijst!$A$11:$M$196,8,FALSE)) -> 82
A8: 3 | B8: =IF($G$3="k",IF(VLOOKUP($D8,invullijst!$A$11:$M$196,11,FALSE)=0," ",VLOOKUP($D8,invullijst!$A$11:$M$196,11,FALSE)),"") ->  | C8: =IF(VLOOKUP(D8,invullijst!A$11:F$237,4,FALSE)="","",VLOOKUP(D8,invullijst!A$11:D$237,4,FALSE)) -> vr | D8: 409 | E8: =IF(VLOOKUP($D8,invullijst!$A$11:$M$196,2,FALSE)="","",VLOOKUP($D8,invullijst!$A$11:$M$196,2,FALSE)) -> Thijs Koks | G8: =IF(VLOOKUP($D8,invullijst!$A$11:$M$196,8,FALSE)=0,"",VLOOKUP($D8,invullijst!$A$11:$M$196,8,FALSE)) -> 86 | I8: 3 | J8: =IF($O$3="k",IF(VLOOKUP($L8,invullijst!$A$11:$M$196,11,FALSE)=0," ",VLOOKUP($L8,invullijst!$A$11:$M$196,11,FALSE)),"") ->  | K8: =IF(VLOOKUP($L8,invullijst!$A$11:$M$237,4,FALSE)="","",VLOOKUP($L8,invullijst!$A$11:$M$237,4,FALSE)) -> vr | L8: 304 | M8: =IF(VLOOKUP($L8,invullijst!$A$11:$M$196,2,FALSE)="","",VLOOKUP($L8,invullijst!$A$11:$M$196,2,FALSE)) -> Henk Bruurmijn | O8: =IF(VLOOKUP($L8,invullijst!$A$11:$M$196,8,FALSE)=0,"",VLOOKUP($L8,invullijst!$A$11:$M$196,8,FALSE)) -> 74
A9: 4 | B9: =IF($G$3="k",IF(VLOOKUP($D9,invullijst!$A$11:$M$196,11,FALSE)=0," ",VLOOKUP($D9,invullijst!$A$11:$M$196,11,FALSE)),"") ->  | C9: =IF(VLOOKUP(D9,invullijst!A$11:F$237,4,FALSE)="","",VLOOKUP(D9,invullijst!A$11:D$237,4,FALSE)) -> vr | D9: 408 | E9: =IF(VLOOKUP($D9,invullijst!$A$11:$M$196,2,FALSE)="","",VLOOKUP($D9,invullijst!$A$11:$M$196,2,FALSE)) -> Rudy van Falier | G9: =IF(VLOOKUP($D9,invullijst!$A$11:$M$196,8,FALSE)=0,"",VLOOKUP($D9,invullijst!$A$11:$M$196,8,FALSE)) -> 80 | I9: 4 | J9: =IF($O$3="k",IF(VLOOKUP($L9,invullijst!$A$11:$M$196,11,FALSE)=0," ",VLOOKUP($L9,invullijst!$A$11:$M$196,11,FALSE)),"") ->  | K9: =IF(VLOOKUP($L9,invullijst!$A$11:$M$237,4,FALSE)="","",VLOOKUP($L9,invullijst!$A$11:$M$237,4,FALSE)) -> vr | L9: 302 | M9: =IF(VLOOKUP($L9,invullijst!$A$11:$M$196,2,FALSE)="","",VLOOKUP($L9,invullijst!$A$11:$M$196,2,FALSE)) -> Freek de Jong | O9: =IF(VLOOKUP($L9,invullijst!$A$11:$M$196,8,FALSE)=0,"",VLOOKUP($L9,invullijst!$A$11:$M$196,8,FALSE)) -> 88
A10: Totaal A korps | G10: =SUM(G6:G9) -> 328 | I10: Totaal A korps | O10: =SUM(O6:O9) -> 331
A12: 1 | B12: =IF($G$3="k",IF(VLOOKUP($D12,invullijst!$A$11:$M$196,11,FALSE)=0," ",VLOOKUP($D12,invullijst!$A$11:$M$196,11,FALSE)),"") ->  | C12: =IF(VLOOKUP(D12,invullijst!A$11:F$237,4,FALSE)="","",VLOOKUP(D12,invullijst!A$11:D$237,4,FALSE)) -> vr | D12: 402 | E12: =IF(VLOOKUP($D12,invullijst!$A$11:$M$196,2,FALSE)="","",VLOOKUP($D12,invullijst!$A$11:$M$196,2,FALSE)) -> Daniëlle v/d Lee | G12: =IF(VLOOKUP($D12,invullijst!$A$11:$M$196,8,FALSE)=0,"",VLOOKUP($D12,invullijst!$A$11:$M$196,8,FALSE)) -> 80 | I12: 1 | J12: =IF($O$3="k",IF(VLOOKUP($L12,invullijst!$A$11:$M$196,11,FALSE)=0," ",VLOOKUP($L12,invullijst!$A$11:$M$196,11,FALSE)),"") ->  | K12: =IF(VLOOKUP($L12,invullijst!$A$11:$M$237,4,FALSE)="","",VLOOKUP($L12,invullijst!$A$11:$M$237,4,FALSE)) -> 0 | M12: =IF(VLOOKUP($L12,invullijst!$A$11:$M$196,2,FALSE)="","",VLOOKUP($L12,invullijst!$A$11:$M$196,2,FALSE)) -> 0 | O12: =IF(VLOOKUP($L12,invullijst!$A$11:$M$196,8,FALSE)=0,"",VLOOKUP($L12,invullijst!$A$11:$M$196,8,FALSE)) -> 
A13: 2 | B13: =IF($G$3="k",IF(VLOOKUP($D13,invullijst!$A$11:$M$196,11,FALSE)=0," ",VLOOKUP($D13,invullijst!$A$11:$M$196,11,FALSE)),"") ->  | C13: =IF(VLOOKUP(D13,invullijst!A$11:F$237,4,FALSE)="","",VLOOKUP(D13,invullijst!A$11:D$237,4,FALSE)) -> vr | D13: 411 | E13: =IF(VLOOKUP($D13,invullijst!$A$11:$M$196,2,FALSE)="","",VLOOKUP($D13,invullijst!$A$11:$M$196,2,FALSE)) -> Wilma v/d Lee | G13: =IF(VLOOKUP($D13,invullijst!$A$11:$M$196,8,FALSE)=0,"",VLOOKUP($D13,invullijst!$A$11:$M$196,8,FALSE)) -> 72 | I13: 2 | J13: =IF($O$3="k",IF(VLOOKUP($L13,invullijst!$A$11:$M$196,11,FALSE)=0," ",VLOOKUP($L13,invullijst!$A$11:$M$196,11,FALSE)),"") ->  | K13: =IF(VLOOKUP($L13,invullijst!$A$11:$M$237,4,FALSE)="","",VLOOKUP($L13,invullijst!$A$11:$M$237,4,FALSE)) -> 0 | M13: =IF(VLOOKUP($L13,invullijst!$A$11:$M$196,2,FALSE)="","",VLOOKUP($L13,invullijst!$A$11:$M$196,2,FALSE)) -> 0 | O13: =IF(VLOOKUP($L13,invullijst!$A$11:$M$196,8,FALSE)=0,"",VLOOKUP($L13,invullijst!$A$11:$M$196,8,FALSE)) -> 
A14: 3 | B14: =IF($G$3="k",IF(VLOOKUP($D14,invullijst!$A$11:$M$196,11,FALSE)=0," ",VLOOKUP($D14,invullijst!$A$11:$M$196,11,FALSE)),"") ->  | C14: =IF(VLOOKUP(D14,invullijst!A$11:F$237,4,FALSE)="","",VLOOKUP(D14,invullijst!A$11:D$237,4,FALSE)) -> 0 | E14: =IF(VLOOKUP($D14,invullijst!$A$11:$M$196,2,FALSE)="","",VLOOKUP($D14,invullijst!$A$11:$M$196,2,FALSE)) -> 0 | G14: =IF(VLOOKUP($D14,invullijst!$A$11:$M$196,8,FALSE)=0,"",VLOOKUP($D14,invullijst!$A$11:$M$196,8,FALSE)) ->  | I14: 3 | J14: =IF($O$3="k",IF(VLOOKUP($L14,invullijst!$A$11:$M$196,11,FALSE)=0," ",VLOOKUP($L14,invullijst!$A$11:$M$196,11,FALSE)),"") ->  | K14: =IF(VLOOKUP($L14,invullijst!$A$11:$M$237,4,FALSE)="","",VLOOKUP($L14,invullijst!$A$11:$M$237,4,FALSE)) -> 0 | M14: =IF(VLOOKUP($L14,invullijst!$A$11:$M$196,2,FALSE)="","",VLOOKUP($L14,invullijst!$A$11:$M$196,2,FALSE)) -> 0 | O14: =IF(VLOOKUP($L14,invullijst!$A$11:$M$196,8,FALSE)=0,"",VLOOKUP($L14,invullijst!$A$11:$M$196,8,FALSE)) -> 
A15: 4 | B15: =IF($G$3="k",IF(VLOOKUP($D15,invullijst!$A$11:$M$196,11,FALSE)=0," ",VLOOKUP($D15,invullijst!$A$11:$M$196,11,FALSE)),"") ->  | C15: =IF(VLOOKUP(D15,invullijst!A$11:F$237,4,FALSE)="","",VLOOKUP(D15,invullijst!A$11:D$237,4,FALSE)) -> 0 | E15: =IF(VLOOKUP($D15,invullijst!$A$11:$M$196,2,FALSE)="","",VLOOKUP($D15,invullijst!$A$11:$M$196,2,FALSE)) -> 0 | G15: =IF(VLOOKUP($D15,invullijst!$A$11:$M$196,8,FALSE)=0,"",VLOOKUP($D15,invullijst!$A$11:$M$196,8,FALSE)) ->  | I15: 4 | J15: =IF($O$3="k",IF(VLOOKUP($L15,invullijst!$A$11:$M$196,11,FALSE)=0," ",VLOOKUP($L15,invullijst!$A$11:$M$196,11,FALSE)),"") ->  | K15: =IF(VLOOKUP($L15,invullijst!$A$11:$M$237,4,FALSE)="","",VLOOKUP($L15,invullijst!$A$11:$M$237,4,FALSE)) -> 0 | M15: =IF(VLOOKUP($L15,invullijst!$A$11:$M$196,2,FALSE)="","",VLOOKUP($L15,invullijst!$A$11:$M$196,2,FALSE)) -> 0 | O15: =IF(VLOOKUP($L15,invullijst!$A$11:$M$196,8,FALSE)=0,"",VLOOKUP($L15,invullijst!$A$11:$M$196,8,FALSE)) -> 
A16: Totaal B1 korps | G16: =SUM(G12:G15) -> 152 | I16: Totaal B1 korps | O16: =SUM(O12:O15) -> 0
A18: 1 | B18: =IF($G$3="k",IF(VLOOKUP($D18,invullijst!$A$11:$M$196,11,FALSE)=0," ",VLOOKUP($D18,invullijst!$A$11:$M$196,11,FALSE)),"") ->  | C18: =IF(VLOOKUP(D18,invullijst!A$11:F$237,4,FALSE)="","",VLOOKUP(D18,invullijst!A$11:D$237,4,FALSE)) -> 0 | E18: =IF(VLOOKUP($D18,invullijst!$A$11:$M$196,2,FALSE)="","",VLOOKUP($D18,invullijst!$A$11:$M$196,2,FALSE)) -> 0 | G18: =IF(VLOOKUP($D18,invullijst!$A$11:$M$196,8,FALSE)=0,"",VLOOKUP($D18,invullijst!$A$11:$M$196,8,FALSE)) ->  | I18: 1 | J18: =IF($O$3="k",IF(VLOOKUP($L18,invullijst!$A$11:$M$196,11,FALSE)=0," ",VLOOKUP($L18,invullijst!$A$11:$M$196,11,FALSE)),"") ->  | K18: =IF(VLOOKUP($L18,invullijst!$A$11:$M$237,4,FALSE)="","",VLOOKUP($L18,invullijst!$A$11:$M$237,4,FALSE)) -> 0 | M18: =IF(VLOOKUP($L18,invullijst!$A$11:$M$196,2,FALSE)="","",VLOOKUP($L18,invullijst!$A$11:$M$196,2,FALSE)) -> 0 | O18: =IF(VLOOKUP($L18,invullijst!$A$11:$M$196,8,FALSE)=0,"",VLOOKUP($L18,invullijst!$A$11:$M$196,8,FALSE)) -> 
A19: 2 | B19: =IF($G$3="k",IF(VLOOKUP($D19,invullijst!$A$11:$M$196,11,FALSE)=0," ",VLOOKUP($D19,invullijst!$A$11:$M$196,11,FALSE)),"") ->  | C19: =IF(VLOOKUP(D19,invullijst!A$11:F$237,4,FALSE)="","",VLOOKUP(D19,invullijst!A$11:D$237,4,FALSE)) -> 0 | E19: =IF(VLOOKUP($D19,invullijst!$A$11:$M$196,2,FALSE)="","",VLOOKUP($D19,invullijst!$A$11:$M$196,2,FALSE)) -> 0 | G19: =IF(VLOOKUP($D19,invullijst!$A$11:$M$196,8,FALSE)=0,"",VLOOKUP($D19,invullijst!$A$11:$M$196,8,FALSE)) ->  | I19: 2 | J19: =IF($O$3="k",IF(VLOOKUP($L19,invullijst!$A$11:$M$196,11,FALSE)=0," ",VLOOKUP($L19,invullijst!$A$11:$M$196,11,FALSE)),"") ->  | K19: =IF(VLOOKUP($L19,invullijst!$A$11:$M$237,4,FALSE)="","",VLOOKUP($L19,invullijst!$A$11:$M$237,4,FALSE)) -> 0 | M19: =IF(VLOOKUP($L19,invullijst!$A$11:$M$196,2,FALSE)="","",VLOOKUP($L19,invullijst!$A$11:$M$196,2,FALSE)) -> 0 | O19: =IF(VLOOKUP($L19,invullijst!$A$11:$M$196,8,FALSE)=0,"",VLOOKUP($L19,invullijst!$A$11:$M$196,8,FALSE)) -> 
A20: 3 | B20: =IF($G$3="k",IF(VLOOKUP($D20,invullijst!$A$11:$M$196,11,FALSE)=0," ",VLOOKUP($D20,invullijst!$A$11:$M$196,11,FALSE)),"") ->  | C20: =IF(VLOOKUP(D20,invullijst!A$11:F$237,4,FALSE)="","",VLOOKUP(D20,invullijst!A$11:D$237,4,FALSE)) -> 0 | E20: =IF(VLOOKUP($D20,invullijst!$A$11:$M$196,2,FALSE)="","",VLOOKUP($D20,invullijst!$A$11:$M$196,2,FALSE)) -> 0 | G20: =IF(VLOOKUP($D20,invullijst!$A$11:$M$196,8,FALSE)=0,"",VLOOKUP($D20,invullijst!$A$11:$M$196,8,FALSE)) ->  | I20: 3 | J20: =IF($O$3="k",IF(VLOOKUP($L20,invullijst!$A$11:$M$196,11,FALSE)=0," ",VLOOKUP($L20,invullijst!$A$11:$M$196,11,FALSE)),"") ->  | K20: =IF(VLOOKUP($L20,invullijst!$A$11:$M$237,4,FALSE)="","",VLOOKUP($L20,invullijst!$A$11:$M$237,4,FALSE)) -> 0 | M20: =IF(VLOOKUP($L20,invullijst!$A$11:$M$196,2,FALSE)="","",VLOOKUP($L20,invullijst!$A$11:$M$196,2,FALSE)) -> 0 | O20: =IF(VLOOKUP($L20,invullijst!$A$11:$M$196,8,FALSE)=0,"",VLOOKUP($L20,invullijst!$A$11:$M$196,8,FALSE)) -> 
A21: 4 | B21: =IF($G$3="k",IF(VLOOKUP($D21,invullijst!$A$11:$M$196,11,FALSE)=0," ",VLOOKUP($D21,invullijst!$A$11:$M$196,11,FALSE)),"") ->  | C21: =IF(VLOOKUP(D21,invullijst!A$11:F$237,4,FALSE)="","",VLOOKUP(D21,invullijst!A$11:D$237,4,FALSE)) -> 0 | E21: =IF(VLOOKUP($D21,invullijst!$A$11:$M$196,2,FALSE)="","",VLOOKUP($D21,invullijst!$A$11:$M$196,2,FALSE)) -> 0 | G21: =IF(VLOOKUP($D21,invullijst!$A$11:$M$196,8,FALSE)=0,"",VLOOKUP($D21,invullijst!$A$11:$M$196,8,FALSE)) ->  | I21: 4 | J21: =IF($O$3="k",IF(VLOOKUP($L21,invullijst!$A$11:$M$196,11,FALSE)=0," ",VLOOKUP($L21,invullijst!$A$11:$M$196,11,FALSE)),"") ->  | K21: =IF(VLOOKUP($L21,invullijst!$A$11:$M$237,4,FALSE)="","",VLOOKUP($L21,invullijst!$A$11:$M$237,4,FALSE)) -> 0 | M21: =IF(VLOOKUP($L21,invullijst!$A$11:$M$196,2,FALSE)="","",VLOOKUP($L21,invullijst!$A$11:$M$196,2,FALSE)) -> 0 | O21: =IF(VLOOKUP($L21,invullijst!$A$11:$M$196,8,FALSE)=0,"",VLOOKUP($L21,invullijst!$A$11:$M$196,8,FALSE)) -> 
A22: DIVERSEN / INHAAL | G22: =SUM(G18:G21) -> 0 | I22: DIVERSEN / INHAAL | O22: =SUM(O18:O21) -> 0
A24: OPGELEGD (Jeugd <16 en 65+)
A25: 1 | B25: =IF($G$3="k",IF(VLOOKUP($D25,invullijst!$A$11:$M$196,11,FALSE)=0," ",VLOOKUP($D25,invullijst!$A$11:$M$196,11,FALSE)),"") ->  | C25: =IF(VLOOKUP(D25,invullijst!A$11:F$237,4,FALSE)="","",VLOOKUP(D25,invullijst!A$11:D$237,4,FALSE)) -> 65+ | D25: 405 | E25: =IF(VLOOKUP($D25,invullijst!$A$11:$M$196,2,FALSE)="","",VLOOKUP($D25,invullijst!$A$11:$M$196,2,FALSE)) -> Jan de Vaan | G25: =IF(VLOOKUP($D25,invullijst!$A$11:$M$196,8,FALSE)=0,"",VLOOKUP($D25,invullijst!$A$11:$M$196,8,FALSE)) -> 96 | I25: 1 | J25: =IF($O$3="k",IF(VLOOKUP($L25,invullijst!$A$11:$M$196,11,FALSE)=0," ",VLOOKUP($L25,invullijst!$A$11:$M$196,11,FALSE)),"") ->  | K25: =IF(VLOOKUP($L25,invullijst!$A$11:$M$237,4,FALSE)="","",VLOOKUP($L25,invullijst!$A$11:$M$237,4,FALSE)) -> 65+ | L25: 310 | M25: =IF(VLOOKUP($L25,invullijst!$A$11:$M$196,2,FALSE)="","",VLOOKUP($L25,invullijst!$A$11:$M$196,2,FALSE)) -> Tiny Boom | O25: =IF(VLOOKUP($L25,invullijst!$A$11:$M$196,8,FALSE)=0,"",VLOOKUP($L25,invullijst!$A$11:$M$196,8,FALSE)) -> 94
A26: 2 | B26: =IF($G$3="k",IF(VLOOKUP($D26,invullijst!$A$11:$M$196,11,FALSE)=0," ",VLOOKUP($D26,invullijst!$A$11:$M$196,11,FALSE)),"") ->  | C26: =IF(VLOOKUP(D26,invullijst!A$11:F$237,4,FALSE)="","",VLOOKUP(D26,invullijst!A$11:D$237,4,FALSE)) -> 65+ | D26: 404 | E26: =IF(VLOOKUP($D26,invullijst!$A$11:$M$196,2,FALSE)="","",VLOOKUP($D26,invullijst!$A$11:$M$196,2,FALSE)) -> Gerard van Beurden | G26: =IF(VLOOKUP($D26,invullijst!$A$11:$M$196,8,FALSE)=0,"",VLOOKUP($D26,invullijst!$A$11:$M$196,8,FALSE)) -> 98 | I26: 2 | J26: =IF($O$3="k",IF(VLOOKUP($L26,invullijst!$A$11:$M$196,11,FALSE)=0," ",VLOOKUP($L26,invullijst!$A$11:$M$196,11,FALSE)),"") ->  | K26: =IF(VLOOKUP($L26,invullijst!$A$11:$M$237,4,FALSE)="","",VLOOKUP($L26,invullijst!$A$11:$M$237,4,FALSE)) -> 65+ | L26: 307 | M26: =IF(VLOOKUP($L26,invullijst!$A$11:$M$196,2,FALSE)="","",VLOOKUP($L26,invullijst!$A$11:$M$196,2,FALSE)) -> Bert van Engelen | O26: =IF(VLOOKUP($L26,invullijst!$A$11:$M$196,8,FALSE)=0,"",VLOOKUP($L26,invullijst!$A$11:$M$196,8,FALSE)) -> 94
A27: 3 | B27: =IF($G$3="k",IF(VLOOKUP($D27,invullijst!$A$11:$M$196,11,FALSE)=0," ",VLOOKUP($D27,invullijst!$A$11:$M$196,11,FALSE)),"") ->  | C27: =IF(VLOOKUP(D27,invullijst!A$11:F$237,4,FALSE)="","",VLOOKUP(D27,invullijst!A$11:D$237,4,FALSE)) -> 65+ | D27: 415 | E27: =IF(VLOOKUP($D27,invullijst!$A$11:$M$196,2,FALSE)="","",VLOOKUP($D27,invullijst!$A$11:$M$196,2,FALSE)) -> Wim de Gouw | G27: =IF(VLOOKUP($D27,invullijst!$A$11:$M$196,8,FALSE)=0,"",VLOOKUP($D27,invullijst!$A$11:$M$196,8,FALSE)) -> 97 | I27: 3 | J27: =IF($O$3="k",IF(VLOOKUP($L27,invullijst!$A$11:$M$196,11,FALSE)=0," ",VLOOKUP($L27,invullijst!$A$11:$M$196,11,FALSE)),"") ->  | K27: =IF(VLOOKUP($L27,invullijst!$A$11:$M$237,4,FALSE)="","",VLOOKUP($L27,invullijst!$A$11:$M$237,4,FALSE)) -> J | L27: 312 | M27: =IF(VLOOKUP($L27,invullijst!$A$11:$M$196,2,FALSE)="","",VLOOKUP($L27,invullijst!$A$11:$M$196,2,FALSE)) -> Floor de Jong | O27: =IF(VLOOKUP($L27,invullijst!$A$11:$M$196,8,FALSE)=0,"",VLOOKUP($L27,invullijst!$A$11:$M$196,8,FALSE)) -> 97
A28: Totaal korps opgelegd A1 | G28: =SUM(G25:G27) -> 291 | I28: Totaal korps opgelegd A1 | O28: =SUM(O25:O27) -> 285
A30: 1 | B30: =IF($G$3="k",IF(VLOOKUP($D30,invullijst!$A$11:$M$196,11,FALSE)=0," ",VLOOKUP($D30,invullijst!$A$11:$M$196,11,FALSE)),"") ->  | C30: =IF(VLOOKUP(D30,invullijst!A$11:F$237,4,FALSE)="","",VLOOKUP(D30,invullijst!A$11:D$237,4,FALSE)) -> 65+ | D30: 401 | E30: =IF(VLOOKUP($D30,invullijst!$A$11:$M$196,2,FALSE)="","",VLOOKUP($D30,invullijst!$A$11:$M$196,2,FALSE)) -> Frans van Beurden | G30: =IF(VLOOKUP($D30,invullijst!$A$11:$M$196,8,FALSE)=0,"",VLOOKUP($D30,invullijst!$A$11:$M$196,8,FALSE)) -> 96 | I30: 1 | J30: =IF($O$3="k",IF(VLOOKUP($L30,invullijst!$A$11:$M$196,11,FALSE)=0," ",VLOOKUP($L30,invullijst!$A$11:$M$196,11,FALSE)),"") ->  | K30: =IF(VLOOKUP($L30,invullijst!$A$11:$M$237,4,FALSE)="","",VLOOKUP($L30,invullijst!$A$11:$M$237,4,FALSE)) -> 65+ | L30: 301 | M30: =IF(VLOOKUP($L30,invullijst!$A$11:$M$196,2,FALSE)="","",VLOOKUP($L30,invullijst!$A$11:$M$196,2,FALSE)) -> Arjen van Assem (disp) | O30: =IF(VLOOKUP($L30,invullijst!$A$11:$M$196,8,FALSE)=0,"",VLOOKUP($L30,invullijst!$A$11:$M$196,8,FALSE)) -> 88
A31: 2 | B31: =IF($G$3="k",IF(VLOOKUP($D31,invullijst!$A$11:$M$196,11,FALSE)=0," ",VLOOKUP($D31,invullijst!$A$11:$M$196,11,FALSE)),"") ->  | C31: =IF(VLOOKUP(D31,invullijst!A$11:F$237,4,FALSE)="","",VLOOKUP(D31,invullijst!A$11:D$237,4,FALSE)) -> 65+ | D31: 403 | E31: =IF(VLOOKUP($D31,invullijst!$A$11:$M$196,2,FALSE)="","",VLOOKUP($D31,invullijst!$A$11:$M$196,2,FALSE)) -> Dorien de Kort | G31: =IF(VLOOKUP($D31,invullijst!$A$11:$M$196,8,FALSE)=0,"",VLOOKUP($D31,invullijst!$A$11:$M$196,8,FALSE)) -> 96 | I31: 2 | J31: =IF($O$3="k",IF(VLOOKUP($L31,invullijst!$A$11:$M$196,11,FALSE)=0," ",VLOOKUP($L31,invullijst!$A$11:$M$196,11,FALSE)),"") ->  | K31: =IF(VLOOKUP($L31,invullijst!$A$11:$M$237,4,FALSE)="","",VLOOKUP($L31,invullijst!$A$11:$M$237,4,FALSE)) -> 0 | M31: =IF(VLOOKUP($L31,invullijst!$A$11:$M$196,2,FALSE)="","",VLOOKUP($L31,invullijst!$A$11:$M$196,2,FALSE)) -> 0 | O31: =IF(VLOOKUP($L31,invullijst!$A$11:$M$196,8,FALSE)=0,"",VLOOKUP($L31,invullijst!$A$11:$M$196,8,FALSE)) -> 
A32: 3 | B32: =IF($G$3="k",IF(VLOOKUP($D32,invullijst!$A$11:$M$196,11,FALSE)=0," ",VLOOKUP($D32,invullijst!$A$11:$M$196,11,FALSE)),"") ->  | C32: =IF(VLOOKUP(D32,invullijst!A$11:F$237,4,FALSE)="","",VLOOKUP(D32,invullijst!A$11:D$237,4,FALSE)) -> 65+ | D32: 413 | E32: =IF(VLOOKUP($D32,invullijst!$A$11:$M$196,2,FALSE)="","",VLOOKUP($D32,invullijst!$A$11:$M$196,2,FALSE)) -> Frans Mommersteeg | G32: =IF(VLOOKUP($D32,invullijst!$A$11:$M$196,8,FALSE)=0,"",VLOOKUP($D32,invullijst!$A$11:$M$196,8,FALSE)) -> 97 | I32: 3 | J32: =IF($O$3="k",IF(VLOOKUP($L32,invullijst!$A$11:$M$196,11,FALSE)=0," ",VLOOKUP($L32,invullijst!$A$11:$M$196,11,FALSE)),"") ->  | K32: =IF(VLOOKUP($L32,invullijst!$A$11:$M$237,4,FALSE)="","",VLOOKUP($L32,invullijst!$A$11:$M$237,4,FALSE)) -> 0 | M32: =IF(VLOOKUP($L32,invullijst!$A$11:$M$196,2,FALSE)="","",VLOOKUP($L32,invullijst!$A$11:$M$196,2,FALSE)) -> 0 | O32: =IF(VLOOKUP($L32,invullijst!$A$11:$M$196,8,FALSE)=0,"",VLOOKUP($L32,invullijst!$A$11:$M$196,8,FALSE)) -> 
A33: Totaal korps opgelegd A2 | G33: =SUM(G30:G32) -> 289 | I33: Totaal korps opgelegd A2 | O33: =SUM(O30:O32) -> 88
A35: 1 | B35: =IF($G$3="k",IF(VLOOKUP($D35,invullijst!$A$11:$M$196,11,FALSE)=0," ",VLOOKUP($D35,invullijst!$A$11:$M$196,11,FALSE)),"") ->  | C35: =IF(VLOOKUP(D35,invullijst!A$11:F$237,4,FALSE)="","",VLOOKUP(D35,invullijst!A$11:D$237,4,FALSE)) -> 65+ | D35: 412 | E35: =IF(VLOOKUP($D35,invullijst!$A$11:$M$196,2,FALSE)="","",VLOOKUP($D35,invullijst!$A$11:$M$196,2,FALSE)) -> Francien v/d Wiel | G35: =IF(VLOOKUP($D35,invullijst!$A$11:$M$196,8,FALSE)=0,"",VLOOKUP($D35,invullijst!$A$11:$M$196,8,FALSE)) -> 95 | I35: 1 | J35: =IF($O$3="k",IF(VLOOKUP($L35,invullijst!$A$11:$M$196,11,FALSE)=0," ",VLOOKUP($L35,invullijst!$A$11:$M$196,11,FALSE)),"") ->  | K35: =IF(VLOOKUP($L35,invullijst!$A$11:$M$237,4,FALSE)="","",VLOOKUP($L35,invullijst!$A$11:$M$237,4,FALSE)) -> 0 | M35: =IF(VLOOKUP($L35,invullijst!$A$11:$M$196,2,FALSE)="","",VLOOKUP($L35,invullijst!$A$11:$M$196,2,FALSE)) -> 0 | O35: =IF(VLOOKUP($L35,invullijst!$A$11:$M$196,8,FALSE)=0,"",VLOOKUP($L35,invullijst!$A$11:$M$196,8,FALSE)) -> 
A36: 2 | B36: =IF($G$3="k",IF(VLOOKUP($D36,invullijst!$A$11:$M$196,11,FALSE)=0," ",VLOOKUP($D36,invullijst!$A$11:$M$196,11,FALSE)),"") ->  | C36: =IF(VLOOKUP(D36,invullijst!A$11:F$237,4,FALSE)="","",VLOOKUP(D36,invullijst!A$11:D$237,4,FALSE)) -> 65+ | D36: 414 | E36: =IF(VLOOKUP($D36,invullijst!$A$11:$M$196,2,FALSE)="","",VLOOKUP($D36,invullijst!$A$11:$M$196,2,FALSE)) -> Alex Hus | G36: =IF(VLOOKUP($D36,invullijst!$A$11:$M$196,8,FALSE)=0,"",VLOOKUP($D36,invullijst!$A$11:$M$196,8,FALSE)) -> 90 | I36: 2 | J36: =IF($O$3="k",IF(VLOOKUP($L36,invullijst!$A$11:$M$196,11,FALSE)=0," ",VLOOKUP($L36,invullijst!$A$11:$M$196,11,FALSE)),"") ->  | K36: =IF(VLOOKUP($L36,invullijst!$A$11:$M$237,4,FALSE)="","",VLOOKUP($L36,invullijst!$A$11:$M$237,4,FALSE)) -> 0 | M36: =IF(VLOOKUP($L36,invullijst!$A$11:$M$196,2,FALSE)="","",VLOOKUP($L36,invullijst!$A$11:$M$196,2,FALSE)) -> 0 | O36: =IF(VLOOKUP($L36,invullijst!$A$11:$M$196,8,FALSE)=0,"",VLOOKUP($L36,invullijst!$A$11:$M$196,8,FALSE)) -> 
A37: 3 | B37: =IF($G$3="k",IF(VLOOKUP($D37,invullijst!$A$11:$M$196,11,FALSE)=0," ",VLOOKUP($D37,invullijst!$A$11:$M$196,11,FALSE)),"") ->  | C37: =IF(VLOOKUP(D37,invullijst!A$11:F$237,4,FALSE)="","",VLOOKUP(D37,invullijst!A$11:D$237,4,FALSE)) ->  | D37: inh | E37: jan de vaan | G37: 95 | I37: 3 | J37: =IF($O$3="k",IF(VLOOKUP($L37,invullijst!$A$11:$M$196,11,FALSE)=0," ",VLOOKUP($L37,invullijst!$A$11:$M$196,11,FALSE)),"") ->  | K37: =IF(VLOOKUP($L37,invullijst!$A$11:$M$237,4,FALSE)="","",VLOOKUP($L37,invullijst!$A$11:$M$237,4,FALSE)) -> 0 | M37: =IF(VLOOKUP($L37,invullijst!$A$11:$M$196,2,FALSE)="","",VLOOKUP($L37,invullijst!$A$11:$M$196,2,FALSE)) -> 0 | O37: =IF(VLOOKUP($L37,invullijst!$A$11:$M$196,8,FALSE)=0,"",VLOOKUP($L37,invullijst!$A$11:$M$196,8,FALSE)) -> 
A38: Totaal korps opgelegd A3 | I38: Totaal korps opgelegd A3 | O38: =SUM(O35:O37) -> 0

Sheet wedstrijd 4A
A1: =invullijst!F1 -> Organistatie | F1: =invullijst!H2 -> 2025 - 2026 | I1: =invullijst!F3 -> Sint Ambrosius Baardwijk
A2: Datum: | M2: 2026-02-22
A3: 4 | B3: =IF(VLOOKUP(A3,invullijst!A1:F5,2,FALSE)="","",VLOOKUP(A3,invullijst!A1:F5,2,FALSE)) -> Sint Ambrosius Haarsteeg | G3: k | I3: 1 | J3: =IF(VLOOKUP(I3,invullijst!A1:C5,2,FALSE)="","",VLOOKUP(I3,invullijst!A1:C5,2,FALSE)) -> Sint Ambrosius Baardwijk | O3: k
A5: vrijehand
A6: 1 | B6: =IF($G$3="k",IF(VLOOKUP($D6,invullijst!$A$11:$M$196,11,FALSE)=0," ",VLOOKUP($D6,invullijst!$A$11:$M$196,11,FALSE)),"") ->  | C6: =IF(VLOOKUP(D6,invullijst!A$11:F$237,4,FALSE)="","",VLOOKUP(D6,invullijst!A$11:D$237,4,FALSE)) -> 0 | E6: =IF(VLOOKUP($D6,invullijst!$A$11:$M$196,2,FALSE)="","",VLOOKUP($D6,invullijst!$A$11:$M$196,2,FALSE)) -> 0 | G6: =IF(VLOOKUP($D6,invullijst!$A$11:$M$196,9,FALSE)=0,"",VLOOKUP($D6,invullijst!$A$11:$M$196,9,FALSE)) ->  | I6: 1 | J6: =IF($O$3="k",IF(VLOOKUP($L6,invullijst!$A$11:$M$196,11,FALSE)=0," ",VLOOKUP($L6,invullijst!$A$11:$M$196,11,FALSE)),"") ->  | K6: =IF(VLOOKUP($L6,invullijst!$A$11:$M$237,4,FALSE)="","",VLOOKUP($L6,invullijst!$A$11:$M$237,4,FALSE)) -> 0 | M6: =IF(VLOOKUP($L6,invullijst!$A$11:$M$196,2,FALSE)="","",VLOOKUP($L6,invullijst!$A$11:$M$196,2,FALSE)) -> 0 | O6: =IF(VLOOKUP($L6,invullijst!$A$11:$M$196,9,FALSE)=0,"",VLOOKUP($L6,invullijst!$A$11:$M$196,9,FALSE)) -> 
A7: 2 | B7: =IF($G$3="k",IF(VLOOKUP($D7,invullijst!$A$11:$M$196,11,FALSE)=0," ",VLOOKUP($D7,invullijst!$A$11:$M$196,11,FALSE)),"") ->  | C7: =IF(VLOOKUP(D7,invullijst!A$11:F$237,4,FALSE)="","",VLOOKUP(D7,invullijst!A$11:D$237,4,FALSE)) -> 0 | E7: =IF(VLOOKUP($D7,invullijst!$A$11:$M$196,2,FALSE)="","",VLOOKUP($D7,invullijst!$A$11:$M$196,2,FALSE)) -> 0 | G7: =IF(VLOOKUP($D7,invullijst!$A$11:$M$196,9,FALSE)=0,"",VLOOKUP($D7,invullijst!$A$11:$M$196,9,FALSE)) ->  | I7: 2 | J7: =IF($O$3="k",IF(VLOOKUP($L7,invullijst!$A$11:$M$196,11,FALSE)=0," ",VLOOKUP($L7,invullijst!$A$11:$M$196,11,FALSE)),"") ->  | K7: =IF(VLOOKUP($L7,invullijst!$A$11:$M$237,4,FALSE)="","",VLOOKUP($L7,invullijst!$A$11:$M$237,4,FALSE)) -> 0 | M7: =IF(VLOOKUP($L7,invullijst!$A$11:$M$196,2,FALSE)="","",VLOOKUP($L7,invullijst!$A$11:$M$196,2,FALSE)) -> 0 | O7: =IF(VLOOKUP($L7,invullijst!$A$11:$M$196,9,FALSE)=0,"",VLOOKUP($L7,invullijst!$A$11:$M$196,9,FALSE)) -> 
A8: 3 | B8: =IF($G$3="k",IF(VLOOKUP($D8,invullijst!$A$11:$M$196,11,FALSE)=0," ",VLOOKUP($D8,invullijst!$A$11:$M$196,11,FALSE)),"") ->  | C8: =IF(VLOOKUP(D8,invullijst!A$11:F$237,4,FALSE)="","",VLOOKUP(D8,invullijst!A$11:D$237,4,FALSE)) -> 0 | E8: =IF(VLOOKUP($D8,invullijst!$A$11:$M$196,2,FALSE)="","",VLOOKUP($D8,invullijst!$A$11:$M$196,2,FALSE)) -> 0 | G8: =IF(VLOOKUP($D8,invullijst!$A$11:$M$196,9,FALSE)=0,"",VLOOKUP($D8,invullijst!$A$11:$M$196,9,FALSE)) ->  | I8: 3 | J8: =IF($O$3="k",IF(VLOOKUP($L8,invullijst!$A$11:$M$196,11,FALSE)=0," ",VLOOKUP($L8,invullijst!$A$11:$M$196,11,FALSE)),"") ->  | K8: =IF(VLOOKUP($L8,invullijst!$A$11:$M$237,4,FALSE)="","",VLOOKUP($L8,invullijst!$A$11:$M$237,4,FALSE)) -> 0 | M8: =IF(VLOOKUP($L8,invullijst!$A$11:$M$196,2,FALSE)="","",VLOOKUP($L8,invullijst!$A$11:$M$196,2,FALSE)) -> 0 | O8: =IF(VLOOKUP($L8,invullijst!$A$11:$M$196,9,FALSE)=0,"",VLOOKUP($L8,invullijst!$A$11:$M$196,9,FALSE)) -> 
A9: 4 | B9: =IF($G$3="k",IF(VLOOKUP($D9,invullijst!$A$11:$M$196,11,FALSE)=0," ",VLOOKUP($D9,invullijst!$A$11:$M$196,11,FALSE)),"") ->  | C9: =IF(VLOOKUP(D9,invullijst!A$11:F$237,4,FALSE)="","",VLOOKUP(D9,invullijst!A$11:D$237,4,FALSE)) -> 0 | E9: =IF(VLOOKUP($D9,invullijst!$A$11:$M$196,2,FALSE)="","",VLOOKUP($D9,invullijst!$A$11:$M$196,2,FALSE)) -> 0 | G9: =IF(VLOOKUP($D9,invullijst!$A$11:$M$196,9,FALSE)=0,"",VLOOKUP($D9,invullijst!$A$11:$M$196,9,FALSE)) ->  | I9: 4 | J9: =IF($O$3="k",IF(VLOOKUP($L9,invullijst!$A$11:$M$196,11,FALSE)=0," ",VLOOKUP($L9,invullijst!$A$11:$M$196,11,FALSE)),"") ->  | K9: =IF(VLOOKUP($L9,invullijst!$A$11:$M$237,4,FALSE)="","",VLOOKUP($L9,invullijst!$A$11:$M$237,4,FALSE)) -> 0 | M9: =IF(VLOOKUP($L9,invullijst!$A$11:$M$196,2,FALSE)="","",VLOOKUP($L9,invullijst!$A$11:$M$196,2,FALSE)) -> 0 | O9: =IF(VLOOKUP($L9,invullijst!$A$11:$M$196,9,FALSE)=0,"",VLOOKUP($L9,invullijst!$A$11:$M$196,9,FALSE)) -> 
A10: Totaal A korps | G10: =SUM(G6:G9) -> 0 | I10: Totaal A korps | O10: =SUM(O6:O9) -> 0
A12: 1 | B12: =IF($G$3="k",IF(VLOOKUP($D12,invullijst!$A$11:$M$196,11,FALSE)=0," ",VLOOKUP($D12,invullijst!$A$11:$M$196,11,FALSE)),"") ->  | C12: =IF(VLOOKUP(D12,invullijst!A$11:F$237,4,FALSE)="","",VLOOKUP(D12,invullijst!A$11:D$237,4,FALSE)) -> 0 | E12: =IF(VLOOKUP($D12,invullijst!$A$11:$M$196,2,FALSE)="","",VLOOKUP($D12,invullijst!$A$11:$M$196,2,FALSE)) -> 0 | G12: =IF(VLOOKUP($D12,invullijst!$A$11:$M$196,9,FALSE)=0,"",VLOOKUP($D12,invullijst!$A$11:$M$196,9,FALSE)) ->  | I12: 1 | J12: =IF($O$3="k",IF(VLOOKUP($L12,invullijst!$A$11:$M$196,11,FALSE)=0," ",VLOOKUP($L12,invullijst!$A$11:$M$196,11,FALSE)),"") ->  | K12: =IF(VLOOKUP($L12,invullijst!$A$11:$M$237,4,FALSE)="","",VLOOKUP($L12,invullijst!$A$11:$M$237,4,FALSE)) -> 0 | M12: =IF(VLOOKUP($L12,invullijst!$A$11:$M$196,2,FALSE)="","",VLOOKUP($L12,invullijst!$A$11:$M$196,2,FALSE)) -> 0 | O12: =IF(VLOOKUP($L12,invullijst!$A$11:$M$196,9,FALSE)=0,"",VLOOKUP($L12,invullijst!$A$11:$M$196,9,FALSE)) -> 
A13: 2 | B13: =IF($G$3="k",IF(VLOOKUP($D13,invullijst!$A$11:$M$196,11,FALSE)=0," ",VLOOKUP($D13,invullijst!$A$11:$M$196,11,FALSE)),"") ->  | C13: =IF(VLOOKUP(D13,invullijst!A$11:F$237,4,FALSE)="","",VLOOKUP(D13,invullijst!A$11:D$237,4,FALSE)) -> 0 | E13: =IF(VLOOKUP($D13,invullijst!$A$11:$M$196,2,FALSE)="","",VLOOKUP($D13,invullijst!$A$11:$M$196,2,FALSE)) -> 0 | G13: =IF(VLOOKUP($D13,invullijst!$A$11:$M$196,9,FALSE)=0,"",VLOOKUP($D13,invullijst!$A$11:$M$196,9,FALSE)) ->  | I13: 2 | J13: =IF($O$3="k",IF(VLOOKUP($L13,invullijst!$A$11:$M$196,11,FALSE)=0," ",VLOOKUP($L13,invullijst!$A$11:$M$196,11,FALSE)),"") ->  | K13: =IF(VLOOKUP($L13,invullijst!$A$11:$M$237,4,FALSE)="","",VLOOKUP($L13,invullijst!$A$11:$M$237,4,FALSE)) -> 0 | M13: =IF(VLOOKUP($L13,invullijst!$A$11:$M$196,2,FALSE)="","",VLOOKUP($L13,invullijst!$A$11:$M$196,2,FALSE)) -> 0 | O13: =IF(VLOOKUP($L13,invullijst!$A$11:$M$196,9,FALSE)=0,"",VLOOKUP($L13,invullijst!$A$11:$M$196,9,FALSE)) -> 
A14: 3 | B14: =IF($G$3="k",IF(VLOOKUP($D14,invullijst!$A$11:$M$196,11,FALSE)=0," ",VLOOKUP($D14,invullijst!$A$11:$M$196,11,FALSE)),"") ->  | C14: =IF(VLOOKUP(D14,invullijst!A$11:F$237,4,FALSE)="","",VLOOKUP(D14,invullijst!A$11:D$237,4,FALSE)) -> 0 | E14: =IF(VLOOKUP($D14,invullijst!$A$11:$M$196,2,FALSE)="","",VLOOKUP($D14,invullijst!$A$11:$M$196,2,FALSE)) -> 0 | G14: =IF(VLOOKUP($D14,invullijst!$A$11:$M$196,9,FALSE)=0,"",VLOOKUP($D14,invullijst!$A$11:$M$196,9,FALSE)) ->  | I14: 3 | J14: =IF($O$3="k",IF(VLOOKUP($L14,invullijst!$A$11:$M$196,11,FALSE)=0," ",VLOOKUP($L14,invullijst!$A$11:$M$196,11,FALSE)),"") ->  | K14: =IF(VLOOKUP($L14,invullijst!$A$11:$M$237,4,FALSE)="","",VLOOKUP($L14,invullijst!$A$11:$M$237,4,FALSE)) -> 0 | M14: =IF(VLOOKUP($L14,invullijst!$A$11:$M$196,2,FALSE)="","",VLOOKUP($L14,invullijst!$A$11:$M$196,2,FALSE)) -> 0 | O14: =IF(VLOOKUP($L14,invullijst!$A$11:$M$196,9,FALSE)=0,"",VLOOKUP($L14,invullijst!$A$11:$M$196,9,FALSE)) -> 
A15: 4 | B15: =IF($G$3="k",IF(VLOOKUP($D15,invullijst!$A$11:$M$196,11,FALSE)=0," ",VLOOKUP($D15,invullijst!$A$11:$M$196,11,FALSE)),"") ->  | C15: =IF(VLOOKUP(D15,invullijst!A$11:F$237,4,FALSE)="","",VLOOKUP(D15,invullijst!A$11:D$237,4,FALSE)) -> 0 | E15: =IF(VLOOKUP($D15,invullijst!$A$11:$M$196,2,FALSE)="","",VLOOKUP($D15,invullijst!$A$11:$M$196,2,FALSE)) -> 0 | G15: =IF(VLOOKUP($D15,invullijst!$A$11:$M$196,9,FALSE)=0,"",VLOOKUP($D15,invullijst!$A$11:$M$196,9,FALSE)) ->  | I15: 4 | J15: =IF($O$3="k",IF(VLOOKUP($L15,invullijst!$A$11:$M$196,11,FALSE)=0," ",VLOOKUP($L15,invullijst!$A$11:$M$196,11,FALSE)),"") ->  | K15: =IF(VLOOKUP($L15,invullijst!$A$11:$M$237,4,FALSE)="","",VLOOKUP($L15,invullijst!$A$11:$M$237,4,FALSE)) -> 0 | M15: =IF(VLOOKUP($L15,invullijst!$A$11:$M$196,2,FALSE)="","",VLOOKUP($L15,invullijst!$A$11:$M$196,2,FALSE)) -> 0 | O15: =IF(VLOOKUP($L15,invullijst!$A$11:$M$196,9,FALSE)=0,"",VLOOKUP($L15,invullijst!$A$11:$M$196,9,FALSE)) -> 
A16: Totaal B1 korps | G16: =SUM(G12:G15) -> 0 | I16: Totaal B1 korps | O16: =SUM(O12:O15) -> 0
A18: 1 | B18: =IF($G$3="k",IF(VLOOKUP($D18,invullijst!$A$11:$M$196,11,FALSE)=0," ",VLOOKUP($D18,invullijst!$A$11:$M$196,11,FALSE)),"") ->  | C18: =IF(VLOOKUP(D18,invullijst!A$11:F$237,4,FALSE)="","",VLOOKUP(D18,invullijst!A$11:D$237,4,FALSE)) -> 0 | E18: =IF(VLOOKUP($D18,invullijst!$A$11:$M$196,2,FALSE)="","",VLOOKUP($D18,invullijst!$A$11:$M$196,2,FALSE)) -> 0 | G18: =IF(VLOOKUP($D18,invullijst!$A$11:$M$196,9,FALSE)=0,"",VLOOKUP($D18,invullijst!$A$11:$M$196,9,FALSE)) ->  | I18: 1 | J18: =IF($O$3="k",IF(VLOOKUP($L18,invullijst!$A$11:$M$196,11,FALSE)=0," ",VLOOKUP($L18,invullijst!$A$11:$M$196,11,FALSE)),"") ->  | K18: =IF(VLOOKUP($L18,invullijst!$A$11:$M$237,4,FALSE)="","",VLOOKUP($L18,invullijst!$A$11:$M$237,4,FALSE)) -> 0 | M18: =IF(VLOOKUP($L18,invullijst!$A$11:$M$196,2,FALSE)="","",VLOOKUP($L18,invullijst!$A$11:$M$196,2,FALSE)) -> 0 | O18: =IF(VLOOKUP($L18,invullijst!$A$11:$M$196,9,FALSE)=0,"",VLOOKUP($L18,invullijst!$A$11:$M$196,9,FALSE)) -> 
A19: 2 | B19: =IF($G$3="k",IF(VLOOKUP($D19,invullijst!$A$11:$M$196,11,FALSE)=0," ",VLOOKUP($D19,invullijst!$A$11:$M$196,11,FALSE)),"") ->  | C19: =IF(VLOOKUP(D19,invullijst!A$11:F$237,4,FALSE)="","",VLOOKUP(D19,invullijst!A$11:D$237,4,FALSE)) -> 0 | E19: =IF(VLOOKUP($D19,invullijst!$A$11:$M$196,2,FALSE)="","",VLOOKUP($D19,invullijst!$A$11:$M$196,2,FALSE)) -> 0 | G19: =IF(VLOOKUP($D19,invullijst!$A$11:$M$196,9,FALSE)=0,"",VLOOKUP($D19,invullijst!$A$11:$M$196,9,FALSE)) ->  | I19: 2 | J19: =IF($O$3="k",IF(VLOOKUP($L19,invullijst!$A$11:$M$196,11,FALSE)=0," ",VLOOKUP($L19,invullijst!$A$11:$M$196,11,FALSE)),"") ->  | K19: =IF(VLOOKUP($L19,invullijst!$A$11:$M$237,4,FALSE)="","",VLOOKUP($L19,invullijst!$A$11:$M$237,4,FALSE)) -> 0 | M19: =IF(VLOOKUP($L19,invullijst!$A$11:$M$196,2,FALSE)="","",VLOOKUP($L19,invullijst!$A$11:$M$196,2,FALSE)) -> 0 | O19: =IF(VLOOKUP($L19,invullijst!$A$11:$M$196,9,FALSE)=0,"",VLOOKUP($L19,invullijst!$A$11:$M$196,9,FALSE)) -> 
A20: 3 | B20: =IF($G$3="k",IF(VLOOKUP($D20,invullijst!$A$11:$M$196,11,FALSE)=0," ",VLOOKUP($D20,invullijst!$A$11:$M$196,11,FALSE)),"") ->  | C20: =IF(VLOOKUP(D20,invullijst!A$11:F$237,4,FALSE)="","",VLOOKUP(D20,invullijst!A$11:D$237,4,FALSE)) -> 0 | E20: =IF(VLOOKUP($D20,invullijst!$A$11:$M$196,2,FALSE)="","",VLOOKUP($D20,invullijst!$A$11:$M$196,2,FALSE)) -> 0 | G20: =IF(VLOOKUP($D20,invullijst!$A$11:$M$196,9,FALSE)=0,"",VLOOKUP($D20,invullijst!$A$11:$M$196,9,FALSE)) ->  | I20: 3 | J20: =IF($O$3="k",IF(VLOOKUP($L20,invullijst!$A$11:$M$196,11,FALSE)=0," ",VLOOKUP($L20,invullijst!$A$11:$M$196,11,FALSE)),"") ->  | K20: =IF(VLOOKUP($L20,invullijst!$A$11:$M$237,4,FALSE)="","",VLOOKUP($L20,invullijst!$A$11:$M$237,4,FALSE)) -> 0 | M20: =IF(VLOOKUP($L20,invullijst!$A$11:$M$196,2,FALSE)="","",VLOOKUP($L20,invullijst!$A$11:$M$196,2,FALSE)) -> 0 | O20: =IF(VLOOKUP($L20,invullijst!$A$11:$M$196,9,FALSE)=0,"",VLOOKUP($L20,invullijst!$A$11:$M$196,9,FALSE)) -> 
A21: 4 | B21: =IF($G$3="k",IF(VLOOKUP($D21,invullijst!$A$11:$M$196,11,FALSE)=0," ",VLOOKUP($D21,invullijst!$A$11:$M$196,11,FALSE)),"") ->  | C21: =IF(VLOOKUP(D21,invullijst!A$11:F$237,4,FALSE)="","",VLOOKUP(D21,invullijst!A$11:D$237,4,FALSE)) -> 0 | E21: =IF(VLOOKUP($D21,invullijst!$A$11:$M$196,2,FALSE)="","",VLOOKUP($D21,invullijst!$A$11:$M$196,2,FALSE)) -> 0 | G21: =IF(VLOOKUP($D21,invullijst!$A$11:$M$196,9,FALSE)=0,"",VLOOKUP($D21,invullijst!$A$11:$M$196,9,FALSE)) ->  | I21: 4 | J21: =IF($O$3="k",IF(VLOOKUP($L21,invullijst!$A$11:$M$196,11,FALSE)=0," ",VLOOKUP($L21,invullijst!$A$11:$M$196,11,FALSE)),"") ->  | K21: =IF(VLOOKUP($L21,invullijst!$A$11:$M$237,4,FALSE)="","",VLOOKUP($L21,invullijst!$A$11:$M$237,4,FALSE)) -> 0 | M21: =IF(VLOOKUP($L21,invullijst!$A$11:$M$196,2,FALSE)="","",VLOOKUP($L21,invullijst!$A$11:$M$196,2,FALSE)) -> 0 | O21: =IF(VLOOKUP($L21,invullijst!$A$11:$M$196,9,FALSE)=0,"",VLOOKUP($L21,invullijst!$A$11:$M$196,9,FALSE)) -> 
A22: DIVERSEN / INHAAL | G22: =SUM(G18:G21) -> 0 | I22: DIVERSEN / INHAAL | O22: =SUM(O18:O21) -> 0
A24: OPGELEGD (Jeugd <16 en 65+)
A25: 1 | B25: =IF($G$3="k",IF(VLOOKUP($D25,invullijst!$A$11:$M$196,11,FALSE)=0," ",VLOOKUP($D25,invullijst!$A$11:$M$196,11,FALSE)),"") ->  | C25: =IF(VLOOKUP(D25,invullijst!A$11:F$237,4,FALSE)="","",VLOOKUP(D25,invullijst!A$11:D$237,4,FALSE)) -> 0 | E25: =IF(VLOOKUP($D25,invullijst!$A$11:$M$196,2,FALSE)="","",VLOOKUP($D25,invullijst!$A$11:$M$196,2,FALSE)) -> 0 | G25: =IF(VLOOKUP($D25,invullijst!$A$11:$M$196,9,FALSE)=0,"",VLOOKUP($D25,invullijst!$A$11:$M$196,9,FALSE)) ->  | I25: 1 | J25: =IF($O$3="k",IF(VLOOKUP($L25,invullijst!$A$11:$M$196,11,FALSE)=0," ",VLOOKUP($L25,invullijst!$A$11:$M$196,11,FALSE)),"") ->  | K25: =IF(VLOOKUP($L25,invullijst!$A$11:$M$237,4,FALSE)="","",VLOOKUP($L25,invullijst!$A$11:$M$237,4,FALSE)) -> 0 | M25: =IF(VLOOKUP($L25,invullijst!$A$11:$M$196,2,FALSE)="","",VLOOKUP($L25,invullijst!$A$11:$M$196,2,FALSE)) -> 0 | O25: =IF(VLOOKUP($L25,invullijst!$A$11:$M$196,9,FALSE)=0,"",VLOOKUP($L25,invullijst!$A$11:$M$196,9,FALSE)) -> 
A26: 2 | B26: =IF($G$3="k",IF(VLOOKUP($D26,invullijst!$A$11:$M$196,11,FALSE)=0," ",VLOOKUP($D26,invullijst!$A$11:$M$196,11,FALSE)),"") ->  | C26: =IF(VLOOKUP(D26,invullijst!A$11:F$237,4,FALSE)="","",VLOOKUP(D26,invullijst!A$11:D$237,4,FALSE)) -> 0 | E26: =IF(VLOOKUP($D26,invullijst!$A$11:$M$196,2,FALSE)="","",VLOOKUP($D26,invullijst!$A$11:$M$196,2,FALSE)) -> 0 | G26: =IF(VLOOKUP($D26,invullijst!$A$11:$M$196,9,FALSE)=0,"",VLOOKUP($D26,invullijst!$A$11:$M$196,9,FALSE)) ->  | I26: 2 | J26: =IF($O$3="k",IF(VLOOKUP($L26,invullijst!$A$11:$M$196,11,FALSE)=0," ",VLOOKUP($L26,invullijst!$A$11:$M$196,11,FALSE)),"") ->  | K26: =IF(VLOOKUP($L26,invullijst!$A$11:$M$237,4,FALSE)="","",VLOOKUP($L26,invullijst!$A$11:$M$237,4,FALSE)) -> 0 | M26: =IF(VLOOKUP($L26,invullijst!$A$11:$M$196,2,FALSE)="","",VLOOKUP($L26,invullijst!$A$11:$M$196,2,FALSE)) -> 0 | O26: =IF(VLOOKUP($L26,invullijst!$A$11:$M$196,9,FALSE)=0,"",VLOOKUP($L26,invullijst!$A$11:$M$196,9,FALSE)) -> 
A27: 3 | B27: =IF($G$3="k",IF(VLOOKUP($D27,invullijst!$A$11:$M$196,11,FALSE)=0," ",VLOOKUP($D27,invullijst!$A$11:$M$196,11,FALSE)),"") ->  | C27: =IF(VLOOKUP(D27,invullijst!A$11:F$237,4,FALSE)="","",VLOOKUP(D27,invullijst!A$11:D$237,4,FALSE)) -> 0 | E27: =IF(VLOOKUP($D27,invullijst!$A$11:$M$196,2,FALSE)="","",VLOOKUP($D27,invullijst!$A$11:$M$196,2,FALSE)) -> 0 | G27: =IF(VLOOKUP($D27,invullijst!$A$11:$M$196,9,FALSE)=0,"",VLOOKUP($D27,invullijst!$A$11:$M$196,9,FALSE)) ->  | I27: 3 | J27: =IF($O$3="k",IF(VLOOKUP($L27,invullijst!$A$11:$M$196,11,FALSE)=0," ",VLOOKUP($L27,invullijst!$A$11:$M$196,11,FALSE)),"") ->  | K27: =IF(VLOOKUP($L27,invullijst!$A$11:$M$237,4,FALSE)="","",VLOOKUP($L27,invullijst!$A$11:$M$237,4,FALSE)) -> 0 | M27: =IF(VLOOKUP($L27,invullijst!$A$11:$M$196,2,FALSE)="","",VLOOKUP($L27,invullijst!$A$11:$M$196,2,FALSE)) -> 0 | O27: =IF(VLOOKUP($L27,invullijst!$A$11:$M$196,9,FALSE)=0,"",VLOOKUP($L27,invullijst!$A$11:$M$196,9,FALSE)) -> 
A28: Totaal korps opgelegd A1 | G28: =SUM(G25:G27) -> 0 | I28: Totaal korps opgelegd A1 | O28: =SUM(O25:O27) -> 0
A30: 1 | B30: =IF($G$3="k",IF(VLOOKUP($D30,invullijst!$A$11:$M$196,11,FALSE)=0," ",VLOOKUP($D30,invullijst!$A$11:$M$196,11,FALSE)),"") ->  | C30: =IF(VLOOKUP(D30,invullijst!A$11:F$237,4,FALSE)="","",VLOOKUP(D30,invullijst!A$11:D$237,4,FALSE)) -> 0 | E30: =IF(VLOOKUP($D30,invullijst!$A$11:$M$196,2,FALSE)="","",VLOOKUP($D30,invullijst!$A$11:$M$196,2,FALSE)) -> 0 | G30: =IF(VLOOKUP($D30,invullijst!$A$11:$M$196,9,FALSE)=0,"",VLOOKUP($D30,invullijst!$A$11:$M$196,9,FALSE)) ->  | I30: 1 | J30: =IF($O$3="k",IF(VLOOKUP($L30,invullijst!$A$11:$M$196,11,FALSE)=0," ",VLOOKUP($L30,invullijst!$A$11:$M$196,11,FALSE)),"") ->  | K30: =IF(VLOOKUP($L30,invullijst!$A$11:$M$237,4,FALSE)="","",VLOOKUP($L30,invullijst!$A$11:$M$237,4,FALSE)) -> 0 | M30: =IF(VLOOKUP($L30,invullijst!$A$11:$M$196,2,FALSE)="","",VLOOKUP($L30,invullijst!$A$11:$M$196,2,FALSE)) -> 0 | O30: =IF(VLOOKUP($L30,invullijst!$A$11:$M$196,9,FALSE)=0,"",VLOOKUP($L30,invullijst!$A$11:$M$196,9,FALSE)) -> 
A31: 2 | B31: =IF($G$3="k",IF(VLOOKUP($D31,invullijst!$A$11:$M$196,11,FALSE)=0," ",VLOOKUP($D31,invullijst!$A$11:$M$196,11,FALSE)),"") ->  | C31: =IF(VLOOKUP(D31,invullijst!A$11:F$237,4,FALSE)="","",VLOOKUP(D31,invullijst!A$11:D$237,4,FALSE)) -> 0 | E31: =IF(VLOOKUP($D31,invullijst!$A$11:$M$196,2,FALSE)="","",VLOOKUP($D31,invullijst!$A$11:$M$196,2,FALSE)) -> 0 | G31: =IF(VLOOKUP($D31,invullijst!$A$11:$M$196,9,FALSE)=0,"",VLOOKUP($D31,invullijst!$A$11:$M$196,9,FALSE)) ->  | I31: 2 | J31: =IF($O$3="k",IF(VLOOKUP($L31,invullijst!$A$11:$M$196,11,FALSE)=0," ",VLOOKUP($L31,invullijst!$A$11:$M$196,11,FALSE)),"") ->  | K31: =IF(VLOOKUP($L31,invullijst!$A$11:$M$237,4,FALSE)="","",VLOOKUP($L31,invullijst!$A$11:$M$237,4,FALSE)) -> 0 | M31: =IF(VLOOKUP($L31,invullijst!$A$11:$M$196,2,FALSE)="","",VLOOKUP($L31,invullijst!$A$11:$M$196,2,FALSE)) -> 0 | O31: =IF(VLOOKUP($L31,invullijst!$A$11:$M$196,9,FALSE)=0,"",VLOOKUP($L31,invullijst!$A$11:$M$196,9,FALSE)) -> 
A32: 3 | B32: =IF($G$3="k",IF(VLOOKUP($D32,invullijst!$A$11:$M$196,11,FALSE)=0," ",VLOOKUP($D32,invullijst!$A$11:$M$196,11,FALSE)),"") ->  | C32: =IF(VLOOKUP(D32,invullijst!A$11:F$237,4,FALSE)="","",VLOOKUP(D32,invullijst!A$11:D$237,4,FALSE)) -> 0 | E32: =IF(VLOOKUP($D32,invullijst!$A$11:$M$196,2,FALSE)="","",VLOOKUP($D32,invullijst!$A$11:$M$196,2,FALSE)) -> 0 | G32: =IF(VLOOKUP($D32,invullijst!$A$11:$M$196,9,FALSE)=0,"",VLOOKUP($D32,invullijst!$A$11:$M$196,9,FALSE)) ->  | I32: 3 | J32: =IF($O$3="k",IF(VLOOKUP($L32,invullijst!$A$11:$M$196,11,FALSE)=0," ",VLOOKUP($L32,invullijst!$A$11:$M$196,11,FALSE)),"") ->  | K32: =IF(VLOOKUP($L32,invullijst!$A$11:$M$237,4,FALSE)="","",VLOOKUP($L32,invullijst!$A$11:$M$237,4,FALSE)) -> 0 | M32: =IF(VLOOKUP($L32,invullijst!$A$11:$M$196,2,FALSE)="","",VLOOKUP($L32,invullijst!$A$11:$M$196,2,FALSE)) -> 0 | O32: =IF(VLOOKUP($L32,invullijst!$A$11:$M$196,9,FALSE)=0,"",VLOOKUP($L32,invullijst!$A$11:$M$196,9,FALSE)) -> 
A33: Totaal korps opgelegd A2 | G33: =SUM(G30:G32) -> 0 | I33: Totaal korps opgelegd A2 | O33: =SUM(O30:O32) -> 0
A35: 1 | B35: =IF($G$3="k",IF(VLOOKUP($D35,invullijst!$A$11:$M$196,11,FALSE)=0," ",VLOOKUP($D35,invullijst!$A$11:$M$196,11,FALSE)),"") ->  | C35: =IF(VLOOKUP(D35,invullijst!A$11:F$237,4,FALSE)="","",VLOOKUP(D35,invullijst!A$11:D$237,4,FALSE)) -> 0 | E35: =IF(VLOOKUP($D35,invullijst!$A$11:$M$196,2,FALSE)="","",VLOOKUP($D35,invullijst!$A$11:$M$196,2,FALSE)) -> 0 | G35: =IF(VLOOKUP($D35,invullijst!$A$11:$M$196,9,FALSE)=0,"",VLOOKUP($D35,invullijst!$A$11:$M$196,9,FALSE)) ->  | I35: 1 | J35: =IF($O$3="k",IF(VLOOKUP($L35,invullijst!$A$11:$M$196,11,FALSE)=0," ",VLOOKUP($L35,invullijst!$A$11:$M$196,11,FALSE)),"") ->  | K35: =IF(VLOOKUP($L35,invullijst!$A$11:$M$237,4,FALSE)="","",VLOOKUP($L35,invullijst!$A$11:$M$237,4,FALSE)) -> 0 | M35: =IF(VLOOKUP($L35,invullijst!$A$11:$M$196,2,FALSE)="","",VLOOKUP($L35,invullijst!$A$11:$M$196,2,FALSE)) -> 0 | O35: =IF(VLOOKUP($L35,invullijst!$A$11:$M$196,9,FALSE)=0,"",VLOOKUP($L35,invullijst!$A$11:$M$196,9,FALSE)) -> 
A36: 2 | B36: =IF($G$3="k",IF(VLOOKUP($D36,invullijst!$A$11:$M$196,11,FALSE)=0," ",VLOOKUP($D36,invullijst!$A$11:$M$196,11,FALSE)),"") ->  | C36: =IF(VLOOKUP(D36,invullijst!A$11:F$237,4,FALSE)="","",VLOOKUP(D36,invullijst!A$11:D$237,4,FALSE)) -> 0 | E36: =IF(VLOOKUP($D36,invullijst!$A$11:$M$196,2,FALSE)="","",VLOOKUP($D36,invullijst!$A$11:$M$196,2,FALSE)) -> 0 | G36: =IF(VLOOKUP($D36,invullijst!$A$11:$M$196,9,FALSE)=0,"",VLOOKUP($D36,invullijst!$A$11:$M$196,9,FALSE)) ->  | I36: 2 | J36: =IF($O$3="k",IF(VLOOKUP($L36,invullijst!$A$11:$M$196,11,FALSE)=0," ",VLOOKUP($L36,invullijst!$A$11:$M$196,11,FALSE)),"") ->  | K36: =IF(VLOOKUP($L36,invullijst!$A$11:$M$237,4,FALSE)="","",VLOOKUP($L36,invullijst!$A$11:$M$237,4,FALSE)) -> 0 | M36: =IF(VLOOKUP($L36,invullijst!$A$11:$M$196,2,FALSE)="","",VLOOKUP($L36,invullijst!$A$11:$M$196,2,FALSE)) -> 0 | O36: =IF(VLOOKUP($L36,invullijst!$A$11:$M$196,9,FALSE)=0,"",VLOOKUP($L36,invullijst!$A$11:$M$196,9,FALSE)) -> 
A37: 3 | B37: =IF($G$3="k",IF(VLOOKUP($D37,invullijst!$A$11:$M$196,11,FALSE)=0," ",VLOOKUP($D37,invullijst!$A$11:$M$196,11,FALSE)),"") ->  | C37: =IF(VLOOKUP(D37,invullijst!A$11:F$237,4,FALSE)="","",VLOOKUP(D37,invullijst!A$11:D$237,4,FALSE)) -> 0 | E37: =IF(VLOOKUP($D37,invullijst!$A$11:$M$196,2,FALSE)="","",VLOOKUP($D37,invullijst!$A$11:$M$196,2,FALSE)) -> 0 | G37: =IF(VLOOKUP($D37,invullijst!$A$11:$M$196,9,FALSE)=0,"",VLOOKUP($D37,invullijst!$A$11:$M$196,9,FALSE)) ->  | I37: 3 | J37: =IF($O$3="k",IF(VLOOKUP($L37,invullijst!$A$11:$M$196,11,FALSE)=0," ",VLOOKUP($L37,invullijst!$A$11:$M$196,11,FALSE)),"") ->  | K37: =IF(VLOOKUP($L37,invullijst!$A$11:$M$237,4,FALSE)="","",VLOOKUP($L37,invullijst!$A$11:$M$237,4,FALSE)) -> 0 | M37: =IF(VLOOKUP($L37,invullijst!$A$11:$M$196,2,FALSE)="","",VLOOKUP($L37,invullijst!$A$11:$M$196,2,FALSE)) -> 0 | O37: =IF(VLOOKUP($L37,invullijst!$A$11:$M$196,9,FALSE)=0,"",VLOOKUP($L37,invullijst!$A$11:$M$196,9,FALSE)) -> 
A38: Totaal korps opgelegd A3 | G38: =SUM(G35:G37) -> 0 | I38: Totaal korps opgelegd A3 | O38: =SUM(O35:O37) -> 0

Sheet wedstrijd 4B
A1: =invullijst!F1 -> Organistatie | F1: =invullijst!H2 -> 2025 - 2026 | I1: =invullijst!F3 -> Sint Ambrosius Baardwijk
A2: Datum: | M2: 2026-02-22
A3: 3 | B3: =IF(VLOOKUP(A3,invullijst!A1:F5,2,FALSE)="","",VLOOKUP(A3,invullijst!A1:F5,2,FALSE)) -> O.L.V. Schuts Elshout | G3: k | I3: 5 | J3: =IF(VLOOKUP(I3,invullijst!A1:C5,2,FALSE)="","",VLOOKUP(I3,invullijst!A1:C5,2,FALSE)) -> Sint Jan Baptist Kaatsheuvel | O3: k
A5: vrijehand
A6: 1 | B6: =IF($G$3="k",IF(VLOOKUP($D6,invullijst!$A$11:$M$196,11,FALSE)=0," ",VLOOKUP($D6,invullijst!$A$11:$M$196,11,FALSE)),"") ->  | C6: =IF(VLOOKUP(D6,invullijst!A$11:F$237,4,FALSE)="","",VLOOKUP(D6,invullijst!A$11:D$237,4,FALSE)) -> 0 | E6: =IF(VLOOKUP($D6,invullijst!$A$11:$M$196,2,FALSE)="","",VLOOKUP($D6,invullijst!$A$11:$M$196,2,FALSE)) -> 0 | G6: =IF(VLOOKUP($D6,invullijst!$A$11:$M$196,9,FALSE)=0,"",VLOOKUP($D6,invullijst!$A$11:$M$196,9,FALSE)) ->  | I6: 1 | J6: =IF($O$3="k",IF(VLOOKUP($L6,invullijst!$A$11:$M$196,11,FALSE)=0," ",VLOOKUP($L6,invullijst!$A$11:$M$196,11,FALSE)),"") ->  | K6: =IF(VLOOKUP($L6,invullijst!$A$11:$M$237,4,FALSE)="","",VLOOKUP($L6,invullijst!$A$11:$M$237,4,FALSE)) -> 0 | M6: =IF(VLOOKUP($L6,invullijst!$A$11:$M$196,2,FALSE)="","",VLOOKUP($L6,invullijst!$A$11:$M$196,2,FALSE)) -> 0 | O6: =IF(VLOOKUP($L6,invullijst!$A$11:$M$196,9,FALSE)=0,"",VLOOKUP($L6,invullijst!$A$11:$M$196,9,FALSE)) -> 
A7: 2 | B7: =IF($G$3="k",IF(VLOOKUP($D7,invullijst!$A$11:$M$196,11,FALSE)=0," ",VLOOKUP($D7,invullijst!$A$11:$M$196,11,FALSE)),"") ->  | C7: =IF(VLOOKUP(D7,invullijst!A$11:F$237,4,FALSE)="","",VLOOKUP(D7,invullijst!A$11:D$237,4,FALSE)) -> 0 | E7: =IF(VLOOKUP($D7,invullijst!$A$11:$M$196,2,FALSE)="","",VLOOKUP($D7,invullijst!$A$11:$M$196,2,FALSE)) -> 0 | G7: =IF(VLOOKUP($D7,invullijst!$A$11:$M$196,9,FALSE)=0,"",VLOOKUP($D7,invullijst!$A$11:$M$196,9,FALSE)) ->  | I7: 2 | J7: =IF($O$3="k",IF(VLOOKUP($L7,invullijst!$A$11:$M$196,11,FALSE)=0," ",VLOOKUP($L7,invullijst!$A$11:$M$196,11,FALSE)),"") ->  | K7: =IF(VLOOKUP($L7,invullijst!$A$11:$M$237,4,FALSE)="","",VLOOKUP($L7,invullijst!$A$11:$M$237,4,FALSE)) -> 0 | M7: =IF(VLOOKUP($L7,invullijst!$A$11:$M$196,2,FALSE)="","",VLOOKUP($L7,invullijst!$A$11:$M$196,2,FALSE)) -> 0 | O7: =IF(VLOOKUP($L7,invullijst!$A$11:$M$196,9,FALSE)=0,"",VLOOKUP($L7,invullijst!$A$11:$M$196,9,FALSE)) -> 
A8: 3 | B8: =IF($G$3="k",IF(VLOOKUP($D8,invullijst!$A$11:$M$196,11,FALSE)=0," ",VLOOKUP($D8,invullijst!$A$11:$M$196,11,FALSE)),"") ->  | C8: =IF(VLOOKUP(D8,invullijst!A$11:F$237,4,FALSE)="","",VLOOKUP(D8,invullijst!A$11:D$237,4,FALSE)) -> 0 | E8: =IF(VLOOKUP($D8,invullijst!$A$11:$M$196,2,FALSE)="","",VLOOKUP($D8,invullijst!$A$11:$M$196,2,FALSE)) -> 0 | G8: =IF(VLOOKUP($D8,invullijst!$A$11:$M$196,9,FALSE)=0,"",VLOOKUP($D8,invullijst!$A$11:$M$196,9,FALSE)) ->  | I8: 3 | J8: =IF($O$3="k",IF(VLOOKUP($L8,invullijst!$A$11:$M$196,11,FALSE)=0," ",VLOOKUP($L8,invullijst!$A$11:$M$196,11,FALSE)),"") ->  | K8: =IF(VLOOKUP($L8,invullijst!$A$11:$M$237,4,FALSE)="","",VLOOKUP($L8,invullijst!$A$11:$M$237,4,FALSE)) -> 0 | M8: =IF(VLOOKUP($L8,invullijst!$A$11:$M$196,2,FALSE)="","",VLOOKUP($L8,invullijst!$A$11:$M$196,2,FALSE)) -> 0 | O8: =IF(VLOOKUP($L8,invullijst!$A$11:$M$196,9,FALSE)=0,"",VLOOKUP($L8,invullijst!$A$11:$M$196,9,FALSE)) -> 
A9: 4 | B9: =IF($G$3="k",IF(VLOOKUP($D9,invullijst!$A$11:$M$196,11,FALSE)=0," ",VLOOKUP($D9,invullijst!$A$11:$M$196,11,FALSE)),"") ->  | C9: =IF(VLOOKUP(D9,invullijst!A$11:F$237,4,FALSE)="","",VLOOKUP(D9,invullijst!A$11:D$237,4,FALSE)) -> 0 | E9: =IF(VLOOKUP($D9,invullijst!$A$11:$M$196,2,FALSE)="","",VLOOKUP($D9,invullijst!$A$11:$M$196,2,FALSE)) -> 0 | G9: =IF(VLOOKUP($D9,invullijst!$A$11:$M$196,9,FALSE)=0,"",VLOOKUP($D9,invullijst!$A$11:$M$196,9,FALSE)) ->  | I9: 4 | J9: =IF($O$3="k",IF(VLOOKUP($L9,invullijst!$A$11:$M$196,11,FALSE)=0," ",VLOOKUP($L9,invullijst!$A$11:$M$196,11,FALSE)),"") ->  | K9: =IF(VLOOKUP($L9,invullijst!$A$11:$M$237,4,FALSE)="","",VLOOKUP($L9,invullijst!$A$11:$M$237,4,FALSE)) -> 0 | M9: =IF(VLOOKUP($L9,invullijst!$A$11:$M$196,2,FALSE)="","",VLOOKUP($L9,invullijst!$A$11:$M$196,2,FALSE)) -> 0 | O9: =IF(VLOOKUP($L9,invullijst!$A$11:$M$196,9,FALSE)=0,"",VLOOKUP($L9,invullijst!$A$11:$M$196,9,FALSE)) -> 
A10: Totaal A korps | G10: =SUM(G6:G9) -> 0 | I10: Totaal A korps | O10: =SUM(O6:O9) -> 0
A12: 1 | B12: =IF($G$3="k",IF(VLOOKUP($D12,invullijst!$A$11:$M$196,11,FALSE)=0," ",VLOOKUP($D12,invullijst!$A$11:$M$196,11,FALSE)),"") ->  | C12: =IF(VLOOKUP(D12,invullijst!A$11:F$237,4,FALSE)="","",VLOOKUP(D12,invullijst!A$11:D$237,4,FALSE)) -> 0 | E12: =IF(VLOOKUP($D12,invullijst!$A$11:$M$196,2,FALSE)="","",VLOOKUP($D12,invullijst!$A$11:$M$196,2,FALSE)) -> 0 | G12: =IF(VLOOKUP($D12,invullijst!$A$11:$M$196,9,FALSE)=0,"",VLOOKUP($D12,invullijst!$A$11:$M$196,9,FALSE)) ->  | I12: 1 | J12: =IF($O$3="k",IF(VLOOKUP($L12,invullijst!$A$11:$M$196,11,FALSE)=0," ",VLOOKUP($L12,invullijst!$A$11:$M$196,11,FALSE)),"") ->  | K12: =IF(VLOOKUP($L12,invullijst!$A$11:$M$237,4,FALSE)="","",VLOOKUP($L12,invullijst!$A$11:$M$237,4,FALSE)) -> 0 | M12: =IF(VLOOKUP($L12,invullijst!$A$11:$M$196,2,FALSE)="","",VLOOKUP($L12,invullijst!$A$11:$M$196,2,FALSE)) -> 0 | O12: =IF(VLOOKUP($L12,invullijst!$A$11:$M$196,9,FALSE)=0,"",VLOOKUP($L12,invullijst!$A$11:$M$196,9,FALSE)) -> 
A13: 2 | B13: =IF($G$3="k",IF(VLOOKUP($D13,invullijst!$A$11:$M$196,11,FALSE)=0," ",VLOOKUP($D13,invullijst!$A$11:$M$196,11,FALSE)),"") ->  | C13: =IF(VLOOKUP(D13,invullijst!A$11:F$237,4,FALSE)="","",VLOOKUP(D13,invullijst!A$11:D$237,4,FALSE)) -> 0 | E13: =IF(VLOOKUP($D13,invullijst!$A$11:$M$196,2,FALSE)="","",VLOOKUP($D13,invullijst!$A$11:$M$196,2,FALSE)) -> 0 | G13: =IF(VLOOKUP($D13,invullijst!$A$11:$M$196,9,FALSE)=0,"",VLOOKUP($D13,invullijst!$A$11:$M$196,9,FALSE)) ->  | I13: 2 | J13: =IF($O$3="k",IF(VLOOKUP($L13,invullijst!$A$11:$M$196,11,FALSE)=0," ",VLOOKUP($L13,invullijst!$A$11:$M$196,11,FALSE)),"") ->  | K13: =IF(VLOOKUP($L13,invullijst!$A$11:$M$237,4,FALSE)="","",VLOOKUP($L13,invullijst!$A$11:$M$237,4,FALSE)) -> 0 | M13: =IF(VLOOKUP($L13,invullijst!$A$11:$M$196,2,FALSE)="","",VLOOKUP($L13,invullijst!$A$11:$M$196,2,FALSE)) -> 0 | O13: =IF(VLOOKUP($L13,invullijst!$A$11:$M$196,9,FALSE)=0,"",VLOOKUP($L13,invullijst!$A$11:$M$196,9,FALSE)) -> 
A14: 3 | B14: =IF($G$3="k",IF(VLOOKUP($D14,invullijst!$A$11:$M$196,11,FALSE)=0," ",VLOOKUP($D14,invullijst!$A$11:$M$196,11,FALSE)),"") ->  | C14: =IF(VLOOKUP(D14,invullijst!A$11:F$237,4,FALSE)="","",VLOOKUP(D14,invullijst!A$11:D$237,4,FALSE)) -> 0 | E14: =IF(VLOOKUP($D14,invullijst!$A$11:$M$196,2,FALSE)="","",VLOOKUP($D14,invullijst!$A$11:$M$196,2,FALSE)) -> 0 | G14: =IF(VLOOKUP($D14,invullijst!$A$11:$M$196,9,FALSE)=0,"",VLOOKUP($D14,invullijst!$A$11:$M$196,9,FALSE)) ->  | I14: 3 | J14: =IF($O$3="k",IF(VLOOKUP($L14,invullijst!$A$11:$M$196,11,FALSE)=0," ",VLOOKUP($L14,invullijst!$A$11:$M$196,11,FALSE)),"") ->  | K14: =IF(VLOOKUP($L14,invullijst!$A$11:$M$237,4,FALSE)="","",VLOOKUP($L14,invullijst!$A$11:$M$237,4,FALSE)) -> 0 | M14: =IF(VLOOKUP($L14,invullijst!$A$11:$M$196,2,FALSE)="","",VLOOKUP($L14,invullijst!$A$11:$M$196,2,FALSE)) -> 0 | O14: =IF(VLOOKUP($L14,invullijst!$A$11:$M$196,9,FALSE)=0,"",VLOOKUP($L14,invullijst!$A$11:$M$196,9,FALSE)) -> 
A15: 4 | B15: =IF($G$3="k",IF(VLOOKUP($D15,invullijst!$A$11:$M$196,11,FALSE)=0," ",VLOOKUP($D15,invullijst!$A$11:$M$196,11,FALSE)),"") ->  | C15: =IF(VLOOKUP(D15,invullijst!A$11:F$237,4,FALSE)="","",VLOOKUP(D15,invullijst!A$11:D$237,4,FALSE)) -> 0 | E15: =IF(VLOOKUP($D15,invullijst!$A$11:$M$196,2,FALSE)="","",VLOOKUP($D15,invullijst!$A$11:$M$196,2,FALSE)) -> 0 | G15: =IF(VLOOKUP($D15,invullijst!$A$11:$M$196,9,FALSE)=0,"",VLOOKUP($D15,invullijst!$A$11:$M$196,9,FALSE)) ->  | I15: 4 | J15: =IF($O$3="k",IF(VLOOKUP($L15,invullijst!$A$11:$M$196,11,FALSE)=0," ",VLOOKUP($L15,invullijst!$A$11:$M$196,11,FALSE)),"") ->  | K15: =IF(VLOOKUP($L15,invullijst!$A$11:$M$237,4,FALSE)="","",VLOOKUP($L15,invullijst!$A$11:$M$237,4,FALSE)) -> 0 | M15: =IF(VLOOKUP($L15,invullijst!$A$11:$M$196,2,FALSE)="","",VLOOKUP($L15,invullijst!$A$11:$M$196,2,FALSE)) -> 0 | O15: =IF(VLOOKUP($L15,invullijst!$A$11:$M$196,9,FALSE)=0,"",VLOOKUP($L15,invullijst!$A$11:$M$196,9,FALSE)) -> 
A16: Totaal B1 korps | G16: =SUM(G12:G15) -> 0 | I16: Totaal B1 korps | O16: =SUM(O12:O15) -> 0
A18: 1 | B18: =IF($G$3="k",IF(VLOOKUP($D18,invullijst!$A$11:$M$196,11,FALSE)=0," ",VLOOKUP($D18,invullijst!$A$11:$M$196,11,FALSE)),"") ->  | C18: =IF(VLOOKUP(D18,invullijst!A$11:F$237,4,FALSE)="","",VLOOKUP(D18,invullijst!A$11:D$237,4,FALSE)) -> 0 | E18: =IF(VLOOKUP($D18,invullijst!$A$11:$M$196,2,FALSE)="","",VLOOKUP($D18,invullijst!$A$11:$M$196,2,FALSE)) -> 0 | G18: =IF(VLOOKUP($D18,invullijst!$A$11:$M$196,9,FALSE)=0,"",VLOOKUP($D18,invullijst!$A$11:$M$196,9,FALSE)) ->  | I18: 1 | J18: =IF($O$3="k",IF(VLOOKUP($L18,invullijst!$A$11:$M$196,11,FALSE)=0," ",VLOOKUP($L18,invullijst!$A$11:$M$196,11,FALSE)),"") ->  | K18: =IF(VLOOKUP($L18,invullijst!$A$11:$M$237,4,FALSE)="","",VLOOKUP($L18,invullijst!$A$11:$M$237,4,FALSE)) -> 0 | M18: =IF(VLOOKUP($L18,invullijst!$A$11:$M$196,2,FALSE)="","",VLOOKUP($L18,invullijst!$A$11:$M$196,2,FALSE)) -> 0 | O18: =IF(VLOOKUP($L18,invullijst!$A$11:$M$196,9,FALSE)=0,"",VLOOKUP($L18,invullijst!$A$11:$M$196,9,FALSE)) -> 
A19: 2 | B19: =IF($G$3="k",IF(VLOOKUP($D19,invullijst!$A$11:$M$196,11,FALSE)=0," ",VLOOKUP($D19,invullijst!$A$11:$M$196,11,FALSE)),"") ->  | C19: =IF(VLOOKUP(D19,invullijst!A$11:F$237,4,FALSE)="","",VLOOKUP(D19,invullijst!A$11:D$237,4,FALSE)) -> 0 | E19: =IF(VLOOKUP($D19,invullijst!$A$11:$M$196,2,FALSE)="","",VLOOKUP($D19,invullijst!$A$11:$M$196,2,FALSE)) -> 0 | G19: =IF(VLOOKUP($D19,invullijst!$A$11:$M$196,9,FALSE)=0,"",VLOOKUP($D19,invullijst!$A$11:$M$196,9,FALSE)) ->  | I19: 2 | J19: =IF($O$3="k",IF(VLOOKUP($L19,invullijst!$A$11:$M$196,11,FALSE)=0," ",VLOOKUP($L19,invullijst!$A$11:$M$196,11,FALSE)),"") ->  | K19: =IF(VLOOKUP($L19,invullijst!$A$11:$M$237,4,FALSE)="","",VLOOKUP($L19,invullijst!$A$11:$M$237,4,FALSE)) -> 0 | M19: =IF(VLOOKUP($L19,invullijst!$A$11:$M$196,2,FALSE)="","",VLOOKUP($L19,invullijst!$A$11:$M$196,2,FALSE)) -> 0 | O19: =IF(VLOOKUP($L19,invullijst!$A$11:$M$196,9,FALSE)=0,"",VLOOKUP($L19,invullijst!$A$11:$M$196,9,FALSE)) -> 
A20: 3 | B20: =IF($G$3="k",IF(VLOOKUP($D20,invullijst!$A$11:$M$196,11,FALSE)=0," ",VLOOKUP($D20,invullijst!$A$11:$M$196,11,FALSE)),"") ->  | C20: =IF(VLOOKUP(D20,invullijst!A$11:F$237,4,FALSE)="","",VLOOKUP(D20,invullijst!A$11:D$237,4,FALSE)) -> 0 | E20: =IF(VLOOKUP($D20,invullijst!$A$11:$M$196,2,FALSE)="","",VLOOKUP($D20,invullijst!$A$11:$M$196,2,FALSE)) -> 0 | G20: =IF(VLOOKUP($D20,invullijst!$A$11:$M$196,9,FALSE)=0,"",VLOOKUP($D20,invullijst!$A$11:$M$196,9,FALSE)) ->  | I20: 3 | J20: =IF($O$3="k",IF(VLOOKUP($L20,invullijst!$A$11:$M$196,11,FALSE)=0," ",VLOOKUP($L20,invullijst!$A$11:$M$196,11,FALSE)),"") ->  | K20: =IF(VLOOKUP($L20,invullijst!$A$11:$M$237,4,FALSE)="","",VLOOKUP($L20,invullijst!$A$11:$M$237,4,FALSE)) -> 0 | M20: =IF(VLOOKUP($L20,invullijst!$A$11:$M$196,2,FALSE)="","",VLOOKUP($L20,invullijst!$A$11:$M$196,2,FALSE)) -> 0 | O20: =IF(VLOOKUP($L20,invullijst!$A$11:$M$196,9,FALSE)=0,"",VLOOKUP($L20,invullijst!$A$11:$M$196,9,FALSE)) -> 
A21: 4 | B21: =IF($G$3="k",IF(VLOOKUP($D21,invullijst!$A$11:$M$196,11,FALSE)=0," ",VLOOKUP($D21,invullijst!$A$11:$M$196,11,FALSE)),"") ->  | C21: =IF(VLOOKUP(D21,invullijst!A$11:F$237,4,FALSE)="","",VLOOKUP(D21,invullijst!A$11:D$237,4,FALSE)) -> 0 | E21: =IF(VLOOKUP($D21,invullijst!$A$11:$M$196,2,FALSE)="","",VLOOKUP($D21,invullijst!$A$11:$M$196,2,FALSE)) -> 0 | G21: =IF(VLOOKUP($D21,invullijst!$A$11:$M$196,9,FALSE)=0,"",VLOOKUP($D21,invullijst!$A$11:$M$196,9,FALSE)) ->  | I21: 4 | J21: =IF($O$3="k",IF(VLOOKUP($L21,invullijst!$A$11:$M$196,11,FALSE)=0," ",VLOOKUP($L21,invullijst!$A$11:$M$196,11,FALSE)),"") ->  | K21: =IF(VLOOKUP($L21,invullijst!$A$11:$M$237,4,FALSE)="","",VLOOKUP($L21,invullijst!$A$11:$M$237,4,FALSE)) -> 0 | M21: =IF(VLOOKUP($L21,invullijst!$A$11:$M$196,2,FALSE)="","",VLOOKUP($L21,invullijst!$A$11:$M$196,2,FALSE)) -> 0 | O21: =IF(VLOOKUP($L21,invullijst!$A$11:$M$196,9,FALSE)=0,"",VLOOKUP($L21,invullijst!$A$11:$M$196,9,FALSE)) -> 
A22: DIVERSEN / INHAAL | G22: =SUM(G18:G21) -> 0 | I22: DIVERSEN / INHAAL | O22: =SUM(O18:O21) -> 0
A24: OPGELEGD (Jeugd <16 en 65+)
A25: 1 | B25: =IF($G$3="k",IF(VLOOKUP($D25,invullijst!$A$11:$M$196,11,FALSE)=0," ",VLOOKUP($D25,invullijst!$A$11:$M$196,11,FALSE)),"") ->  | C25: =IF(VLOOKUP(D25,invullijst!A$11:F$237,4,FALSE)="","",VLOOKUP(D25,invullijst!A$11:D$237,4,FALSE)) -> 0 | E25: =IF(VLOOKUP($D25,invullijst!$A$11:$M$196,2,FALSE)="","",VLOOKUP($D25,invullijst!$A$11:$M$196,2,FALSE)) -> 0 | G25: =IF(VLOOKUP($D25,invullijst!$A$11:$M$196,9,FALSE)=0,"",VLOOKUP($D25,invullijst!$A$11:$M$196,9,FALSE)) ->  | I25: 1 | J25: =IF($O$3="k",IF(VLOOKUP($L25,invullijst!$A$11:$M$196,11,FALSE)=0," ",VLOOKUP($L25,invullijst!$A$11:$M$196,11,FALSE)),"") ->  | K25: =IF(VLOOKUP($L25,invullijst!$A$11:$M$237,4,FALSE)="","",VLOOKUP($L25,invullijst!$A$11:$M$237,4,FALSE)) -> 0 | M25: =IF(VLOOKUP($L25,invullijst!$A$11:$M$196,2,FALSE)="","",VLOOKUP($L25,invullijst!$A$11:$M$196,2,FALSE)) -> 0 | O25: =IF(VLOOKUP($L25,invullijst!$A$11:$M$196,9,FALSE)=0,"",VLOOKUP($L25,invullijst!$A$11:$M$196,9,FALSE)) -> 
A26: 2 | B26: =IF($G$3="k",IF(VLOOKUP($D26,invullijst!$A$11:$M$196,11,FALSE)=0," ",VLOOKUP($D26,invullijst!$A$11:$M$196,11,FALSE)),"") ->  | C26: =IF(VLOOKUP(D26,invullijst!A$11:F$237,4,FALSE)="","",VLOOKUP(D26,invullijst!A$11:D$237,4,FALSE)) -> 0 | E26: =IF(VLOOKUP($D26,invullijst!$A$11:$M$196,2,FALSE)="","",VLOOKUP($D26,invullijst!$A$11:$M$196,2,FALSE)) -> 0 | G26: =IF(VLOOKUP($D26,invullijst!$A$11:$M$196,9,FALSE)=0,"",VLOOKUP($D26,invullijst!$A$11:$M$196,9,FALSE)) ->  | I26: 2 | J26: =IF($O$3="k",IF(VLOOKUP($L26,invullijst!$A$11:$M$196,11,FALSE)=0," ",VLOOKUP($L26,invullijst!$A$11:$M$196,11,FALSE)),"") ->  | K26: =IF(VLOOKUP($L26,invullijst!$A$11:$M$237,4,FALSE)="","",VLOOKUP($L26,invullijst!$A$11:$M$237,4,FALSE)) -> 0 | M26: =IF(VLOOKUP($L26,invullijst!$A$11:$M$196,2,FALSE)="","",VLOOKUP($L26,invullijst!$A$11:$M$196,2,FALSE)) -> 0 | O26: =IF(VLOOKUP($L26,invullijst!$A$11:$M$196,9,FALSE)=0,"",VLOOKUP($L26,invullijst!$A$11:$M$196,9,FALSE)) -> 
A27: 3 | B27: =IF($G$3="k",IF(VLOOKUP($D27,invullijst!$A$11:$M$196,11,FALSE)=0," ",VLOOKUP($D27,invullijst!$A$11:$M$196,11,FALSE)),"") ->  | C27: =IF(VLOOKUP(D27,invullijst!A$11:F$237,4,FALSE)="","",VLOOKUP(D27,invullijst!A$11:D$237,4,FALSE)) -> 0 | E27: =IF(VLOOKUP($D27,invullijst!$A$11:$M$196,2,FALSE)="","",VLOOKUP($D27,invullijst!$A$11:$M$196,2,FALSE)) -> 0 | G27: =IF(VLOOKUP($D27,invullijst!$A$11:$M$196,9,FALSE)=0,"",VLOOKUP($D27,invullijst!$A$11:$M$196,9,FALSE)) ->  | I27: 3 | J27: =IF($O$3="k",IF(VLOOKUP($L27,invullijst!$A$11:$M$196,11,FALSE)=0," ",VLOOKUP($L27,invullijst!$A$11:$M$196,11,FALSE)),"") ->  | K27: =IF(VLOOKUP($L27,invullijst!$A$11:$M$237,4,FALSE)="","",VLOOKUP($L27,invullijst!$A$11:$M$237,4,FALSE)) -> 0 | M27: =IF(VLOOKUP($L27,invullijst!$A$11:$M$196,2,FALSE)="","",VLOOKUP($L27,invullijst!$A$11:$M$196,2,FALSE)) -> 0 | O27: =IF(VLOOKUP($L27,invullijst!$A$11:$M$196,9,FALSE)=0,"",VLOOKUP($L27,invullijst!$A$11:$M$196,9,FALSE)) -> 
A28: Totaal korps opgelegd A1 | G28: =SUM(G25:G27) -> 0 | I28: Totaal korps opgelegd A1 | O28: =SUM(O25:O27) -> 0
A30: 1 | B30: =IF($G$3="k",IF(VLOOKUP($D30,invullijst!$A$11:$M$196,11,FALSE)=0," ",VLOOKUP($D30,invullijst!$A$11:$M$196,11,FALSE)),"") ->  | C30: =IF(VLOOKUP(D30,invullijst!A$11:F$237,4,FALSE)="","",VLOOKUP(D30,invullijst!A$11:D$237,4,FALSE)) -> 0 | E30: =IF(VLOOKUP($D30,invullijst!$A$11:$M$196,2,FALSE)="","",VLOOKUP($D30,invullijst!$A$11:$M$196,2,FALSE)) -> 0 | G30: =IF(VLOOKUP($D30,invullijst!$A$11:$M$196,9,FALSE)=0,"",VLOOKUP($D30,invullijst!$A$11:$M$196,9,FALSE)) ->  | I30: 1 | J30: =IF($O$3="k",IF(VLOOKUP($L30,invullijst!$A$11:$M$196,11,FALSE)=0," ",VLOOKUP($L30,invullijst!$A$11:$M$196,11,FALSE)),"") ->  | K30: =IF(VLOOKUP($L30,invullijst!$A$11:$M$237,4,FALSE)="","",VLOOKUP($L30,invullijst!$A$11:$M$237,4,FALSE)) -> 0 | M30: =IF(VLOOKUP($L30,invullijst!$A$11:$M$196,2,FALSE)="","",VLOOKUP($L30,invullijst!$A$11:$M$196,2,FALSE)) -> 0 | O30: =IF(VLOOKUP($L30,invullijst!$A$11:$M$196,9,FALSE)=0,"",VLOOKUP($L30,invullijst!$A$11:$M$196,9,FALSE)) -> 
A31: 2 | B31: =IF($G$3="k",IF(VLOOKUP($D31,invullijst!$A$11:$M$196,11,FALSE)=0," ",VLOOKUP($D31,invullijst!$A$11:$M$196,11,FALSE)),"") ->  | C31: =IF(VLOOKUP(D31,invullijst!A$11:F$237,4,FALSE)="","",VLOOKUP(D31,invullijst!A$11:D$237,4,FALSE)) -> 0 | E31: =IF(VLOOKUP($D31,invullijst!$A$11:$M$196,2,FALSE)="","",VLOOKUP($D31,invullijst!$A$11:$M$196,2,FALSE)) -> 0 | G31: =IF(VLOOKUP($D31,invullijst!$A$11:$M$196,9,FALSE)=0,"",VLOOKUP($D31,invullijst!$A$11:$M$196,9,FALSE)) ->  | I31: 2 | J31: =IF($O$3="k",IF(VLOOKUP($L31,invullijst!$A$11:$M$196,11,FALSE)=0," ",VLOOKUP($L31,invullijst!$A$11:$M$196,11,FALSE)),"") ->  | K31: =IF(VLOOKUP($L31,invullijst!$A$11:$M$237,4,FALSE)="","",VLOOKUP($L31,invullijst!$A$11:$M$237,4,FALSE)) -> 0 | M31: =IF(VLOOKUP($L31,invullijst!$A$11:$M$196,2,FALSE)="","",VLOOKUP($L31,invullijst!$A$11:$M$196,2,FALSE)) -> 0 | O31: =IF(VLOOKUP($L31,invullijst!$A$11:$M$196,9,FALSE)=0,"",VLOOKUP($L31,invullijst!$A$11:$M$196,9,FALSE)) -> 
A32: 3 | B32: =IF($G$3="k",IF(VLOOKUP($D32,invullijst!$A$11:$M$196,11,FALSE)=0," ",VLOOKUP($D32,invullijst!$A$11:$M$196,11,FALSE)),"") ->  | C32: =IF(VLOOKUP(D32,invullijst!A$11:F$237,4,FALSE)="","",VLOOKUP(D32,invullijst!A$11:D$237,4,FALSE)) -> 0 | E32: =IF(VLOOKUP($D32,invullijst!$A$11:$M$196,2,FALSE)="","",VLOOKUP($D32,invullijst!$A$11:$M$196,2,FALSE)) -> 0 | G32: =IF(VLOOKUP($D32,invullijst!$A$11:$M$196,9,FALSE)=0,"",VLOOKUP($D32,invullijst!$A$11:$M$196,9,FALSE)) ->  | I32: 3 | J32: =IF($O$3="k",IF(VLOOKUP($L32,invullijst!$A$11:$M$196,11,FALSE)=0," ",VLOOKUP($L32,invullijst!$A$11:$M$196,11,FALSE)),"") ->  | K32: =IF(VLOOKUP($L32,invullijst!$A$11:$M$237,4,FALSE)="","",VLOOKUP($L32,invullijst!$A$11:$M$237,4,FALSE)) -> 0 | M32: =IF(VLOOKUP($L32,invullijst!$A$11:$M$196,2,FALSE)="","",VLOOKUP($L32,invullijst!$A$11:$M$196,2,FALSE)) -> 0 | O32: =IF(VLOOKUP($L32,invullijst!$A$11:$M$196,9,FALSE)=0,"",VLOOKUP($L32,invullijst!$A$11:$M$196,9,FALSE)) -> 
A33: Totaal korps opgelegd A2 | G33: =SUM(G30:G32) -> 0 | I33: Totaal korps opgelegd A2 | O33: =SUM(O30:O32) -> 0
A35: 1 | B35: =IF($G$3="k",IF(VLOOKUP($D35,invullijst!$A$11:$M$196,11,FALSE)=0," ",VLOOKUP($D35,invullijst!$A$11:$M$196,11,FALSE)),"") ->  | C35: =IF(VLOOKUP(D35,invullijst!A$11:F$237,4,FALSE)="","",VLOOKUP(D35,invullijst!A$11:D$237,4,FALSE)) -> 0 | E35: =IF(VLOOKUP($D35,invullijst!$A$11:$M$196,2,FALSE)="","",VLOOKUP($D35,invullijst!$A$11:$M$196,2,FALSE)) -> 0 | G35: =IF(VLOOKUP($D35,invullijst!$A$11:$M$196,9,FALSE)=0,"",VLOOKUP($D35,invullijst!$A$11:$M$196,9,FALSE)) ->  | I35: 1 | J35: =IF($O$3="k",IF(VLOOKUP($L35,invullijst!$A$11:$M$196,11,FALSE)=0," ",VLOOKUP($L35,invullijst!$A$11:$M$196,11,FALSE)),"") ->  | K35: =IF(VLOOKUP($L35,invullijst!$A$11:$M$237,4,FALSE)="","",VLOOKUP($L35,invullijst!$A$11:$M$237,4,FALSE)) -> 0 | M35: =IF(VLOOKUP($L35,invullijst!$A$11:$M$196,2,FALSE)="","",VLOOKUP($L35,invullijst!$A$11:$M$196,2,FALSE)) -> 0 | O35: =IF(VLOOKUP($L35,invullijst!$A$11:$M$196,9,FALSE)=0,"",VLOOKUP($L35,invullijst!$A$11:$M$196,9,FALSE)) -> 
A36: 2 | B36: =IF($G$3="k",IF(VLOOKUP($D36,invullijst!$A$11:$M$196,11,FALSE)=0," ",VLOOKUP($D36,invullijst!$A$11:$M$196,11,FALSE)),"") ->  | C36: =IF(VLOOKUP(D36,invullijst!A$11:F$237,4,FALSE)="","",VLOOKUP(D36,invullijst!A$11:D$237,4,FALSE)) -> 0 | E36: =IF(VLOOKUP($D36,invullijst!$A$11:$M$196,2,FALSE)="","",VLOOKUP($D36,invullijst!$A$11:$M$196,2,FALSE)) -> 0 | G36: =IF(VLOOKUP($D36,invullijst!$A$11:$M$196,9,FALSE)=0,"",VLOOKUP($D36,invullijst!$A$11:$M$196,9,FALSE)) ->  | I36: 2 | J36: =IF($O$3="k",IF(VLOOKUP($L36,invullijst!$A$11:$M$196,11,FALSE)=0," ",VLOOKUP($L36,invullijst!$A$11:$M$196,11,FALSE)),"") ->  | K36: =IF(VLOOKUP($L36,invullijst!$A$11:$M$237,4,FALSE)="","",VLOOKUP($L36,invullijst!$A$11:$M$237,4,FALSE)) -> 0 | M36: =IF(VLOOKUP($L36,invullijst!$A$11:$M$196,2,FALSE)="","",VLOOKUP($L36,invullijst!$A$11:$M$196,2,FALSE)) -> 0 | O36: =IF(VLOOKUP($L36,invullijst!$A$11:$M$196,9,FALSE)=0,"",VLOOKUP($L36,invullijst!$A$11:$M$196,9,FALSE)) -> 
A37: 3 | B37: =IF($G$3="k",IF(VLOOKUP($D37,invullijst!$A$11:$M$196,11,FALSE)=0," ",VLOOKUP($D37,invullijst!$A$11:$M$196,11,FALSE)),"") ->  | C37: =IF(VLOOKUP(D37,invullijst!A$11:F$237,4,FALSE)="","",VLOOKUP(D37,invullijst!A$11:D$237,4,FALSE)) -> 0 | E37: =IF(VLOOKUP($D37,invullijst!$A$11:$M$196,2,FALSE)="","",VLOOKUP($D37,invullijst!$A$11:$M$196,2,FALSE)) -> 0 | G37: =IF(VLOOKUP($D37,invullijst!$A$11:$M$196,9,FALSE)=0,"",VLOOKUP($D37,invullijst!$A$11:$M$196,9,FALSE)) ->  | I37: 3 | J37: =IF($O$3="k",IF(VLOOKUP($L37,invullijst!$A$11:$M$196,11,FALSE)=0," ",VLOOKUP($L37,invullijst!$A$11:$M$196,11,FALSE)),"") ->  | K37: =IF(VLOOKUP($L37,invullijst!$A$11:$M$237,4,FALSE)="","",VLOOKUP($L37,invullijst!$A$11:$M$237,4,FALSE)) -> 0 | M37: =IF(VLOOKUP($L37,invullijst!$A$11:$M$196,2,FALSE)="","",VLOOKUP($L37,invullijst!$A$11:$M$196,2,FALSE)) -> 0 | O37: =IF(VLOOKUP($L37,invullijst!$A$11:$M$196,9,FALSE)=0,"",VLOOKUP($L37,invullijst!$A$11:$M$196,9,FALSE)) -> 
A38: Totaal korps opgelegd A3 | G38: =SUM(G35:G37) -> 0 | I38: Totaal korps opgelegd A3 | O38: =SUM(O35:O37) -> 0

Sheet wedstrijd 5A
A1: =invullijst!F1 -> Organistatie | F1: =invullijst!H2 -> 2025 - 2026 | I1: =invullijst!F3 -> Sint Ambrosius Baardwijk
A2: Datum: | M2: 2026-03-15
A3: 3 | B3: =IF(VLOOKUP(A3,invullijst!A1:F5,2,FALSE)="","",VLOOKUP(A3,invullijst!A1:F5,2,FALSE)) -> O.L.V. Schuts Elshout | I3: 2 | J3: =IF(VLOOKUP(I3,invullijst!A1:C5,2,FALSE)="","",VLOOKUP(I3,invullijst!A1:C5,2,FALSE)) -> St. Crispinus & Crispinianus Besoijen
A5: vrijehand
A6: 1 | B6: =IF($G$3="k",IF(VLOOKUP($D6,invullijst!$A$11:$M$196,11,FALSE)=0," ",VLOOKUP($D6,invullijst!$A$11:$M$196,11,FALSE)),"") ->  | C6: =IF(VLOOKUP(D6,invullijst!A$11:F$237,4,FALSE)="","",VLOOKUP(D6,invullijst!A$11:D$237,4,FALSE)) -> 0 | E6: =IF(VLOOKUP($D6,invullijst!$A$11:$M$196,2,FALSE)="","",VLOOKUP($D6,invullijst!$A$11:$M$196,2,FALSE)) -> 0 | G6: =IF(VLOOKUP($D6,invullijst!$A$11:$M$196,10,FALSE)=0,"",VLOOKUP($D6,invullijst!$A$11:$M$196,10,FALSE)) ->  | I6: 1 | J6: =IF($O$3="k",IF(VLOOKUP($L6,invullijst!$A$11:$M$196,11,FALSE)=0," ",VLOOKUP($L6,invullijst!$A$11:$M$196,11,FALSE)),"") ->  | K6: =IF(VLOOKUP($L6,invullijst!$A$11:$M$237,4,FALSE)="","",VLOOKUP($L6,invullijst!$A$11:$M$237,4,FALSE)) -> 0 | M6: =IF(VLOOKUP($L6,invullijst!$A$11:$M$196,2,FALSE)="","",VLOOKUP($L6,invullijst!$A$11:$M$196,2,FALSE)) -> 0 | O6: =IF(VLOOKUP($L6,invullijst!$A$11:$M$196,10,FALSE)=0,"",VLOOKUP($L6,invullijst!$A$11:$M$196,10,FALSE)) -> 
A7: 2 | B7: =IF($G$3="k",IF(VLOOKUP($D7,invullijst!$A$11:$M$196,11,FALSE)=0," ",VLOOKUP($D7,invullijst!$A$11:$M$196,11,FALSE)),"") ->  | C7: =IF(VLOOKUP(D7,invullijst!A$11:F$237,4,FALSE)="","",VLOOKUP(D7,invullijst!A$11:D$237,4,FALSE)) -> 0 | E7: =IF(VLOOKUP($D7,invullijst!$A$11:$M$196,2,FALSE)="","",VLOOKUP($D7,invullijst!$A$11:$M$196,2,FALSE)) -> 0 | G7: =IF(VLOOKUP($D7,invullijst!$A$11:$M$196,10,FALSE)=0,"",VLOOKUP($D7,invullijst!$A$11:$M$196,10,FALSE)) ->  | I7: 2 | J7: =IF($O$3="k",IF(VLOOKUP($L7,invullijst!$A$11:$M$196,11,FALSE)=0," ",VLOOKUP($L7,invullijst!$A$11:$M$196,11,FALSE)),"") ->  | K7: =IF(VLOOKUP($L7,invullijst!$A$11:$M$237,4,FALSE)="","",VLOOKUP($L7,invullijst!$A$11:$M$237,4,FALSE)) -> 0 | M7: =IF(VLOOKUP($L7,invullijst!$A$11:$M$196,2,FALSE)="","",VLOOKUP($L7,invullijst!$A$11:$M$196,2,FALSE)) -> 0 | O7: =IF(VLOOKUP($L7,invullijst!$A$11:$M$196,10,FALSE)=0,"",VLOOKUP($L7,invullijst!$A$11:$M$196,10,FALSE)) -> 
A8: 3 | B8: =IF($G$3="k",IF(VLOOKUP($D8,invullijst!$A$11:$M$196,11,FALSE)=0," ",VLOOKUP($D8,invullijst!$A$11:$M$196,11,FALSE)),"") ->  | C8: =IF(VLOOKUP(D8,invullijst!A$11:F$237,4,FALSE)="","",VLOOKUP(D8,invullijst!A$11:D$237,4,FALSE)) -> 0 | E8: =IF(VLOOKUP($D8,invullijst!$A$11:$M$196,2,FALSE)="","",VLOOKUP($D8,invullijst!$A$11:$M$196,2,FALSE)) -> 0 | G8: =IF(VLOOKUP($D8,invullijst!$A$11:$M$196,10,FALSE)=0,"",VLOOKUP($D8,invullijst!$A$11:$M$196,10,FALSE)) ->  | I8: 3 | J8: =IF($O$3="k",IF(VLOOKUP($L8,invullijst!$A$11:$M$196,11,FALSE)=0," ",VLOOKUP($L8,invullijst!$A$11:$M$196,11,FALSE)),"") ->  | K8: =IF(VLOOKUP($L8,invullijst!$A$11:$M$237,4,FALSE)="","",VLOOKUP($L8,invullijst!$A$11:$M$237,4,FALSE)) -> 0 | M8: =IF(VLOOKUP($L8,invullijst!$A$11:$M$196,2,FALSE)="","",VLOOKUP($L8,invullijst!$A$11:$M$196,2,FALSE)) -> 0 | O8: =IF(VLOOKUP($L8,invullijst!$A$11:$M$196,10,FALSE)=0,"",VLOOKUP($L8,invullijst!$A$11:$M$196,10,FALSE)) -> 
A9: 4 | B9: =IF($G$3="k",IF(VLOOKUP($D9,invullijst!$A$11:$M$196,11,FALSE)=0," ",VLOOKUP($D9,invullijst!$A$11:$M$196,11,FALSE)),"") ->  | C9: =IF(VLOOKUP(D9,invullijst!A$11:F$237,4,FALSE)="","",VLOOKUP(D9,invullijst!A$11:D$237,4,FALSE)) -> 0 | E9: =IF(VLOOKUP($D9,invullijst!$A$11:$M$196,2,FALSE)="","",VLOOKUP($D9,invullijst!$A$11:$M$196,2,FALSE)) -> 0 | G9: =IF(VLOOKUP($D9,invullijst!$A$11:$M$196,10,FALSE)=0,"",VLOOKUP($D9,invullijst!$A$11:$M$196,10,FALSE)) ->  | I9: 4 | J9: =IF($O$3="k",IF(VLOOKUP($L9,invullijst!$A$11:$M$196,11,FALSE)=0," ",VLOOKUP($L9,invullijst!$A$11:$M$196,11,FALSE)),"") ->  | K9: =IF(VLOOKUP($L9,invullijst!$A$11:$M$237,4,FALSE)="","",VLOOKUP($L9,invullijst!$A$11:$M$237,4,FALSE)) -> 0 | M9: =IF(VLOOKUP($L9,invullijst!$A$11:$M$196,2,FALSE)="","",VLOOKUP($L9,invullijst!$A$11:$M$196,2,FALSE)) -> 0 | O9: =IF(VLOOKUP($L9,invullijst!$A$11:$M$196,10,FALSE)=0,"",VLOOKUP($L9,invullijst!$A$11:$M$196,10,FALSE)) -> 
A10: Totaal A korps | G10: =SUM(G6:G9) -> 0 | I10: Totaal A korps | O10: =SUM(O6:O9) -> 0
A12: 1 | B12: =IF($G$3="k",IF(VLOOKUP($D12,invullijst!$A$11:$M$196,11,FALSE)=0," ",VLOOKUP($D12,invullijst!$A$11:$M$196,11,FALSE)),"") ->  | C12: =IF(VLOOKUP(D12,invullijst!A$11:F$237,4,FALSE)="","",VLOOKUP(D12,invullijst!A$11:D$237,4,FALSE)) -> 0 | E12: =IF(VLOOKUP($D12,invullijst!$A$11:$M$196,2,FALSE)="","",VLOOKUP($D12,invullijst!$A$11:$M$196,2,FALSE)) -> 0 | G12: =IF(VLOOKUP($D12,invullijst!$A$11:$M$196,10,FALSE)=0,"",VLOOKUP($D12,invullijst!$A$11:$M$196,10,FALSE)) ->  | I12: 1 | J12: =IF($O$3="k",IF(VLOOKUP($L12,invullijst!$A$11:$M$196,11,FALSE)=0," ",VLOOKUP($L12,invullijst!$A$11:$M$196,11,FALSE)),"") ->  | K12: =IF(VLOOKUP($L12,invullijst!$A$11:$M$237,4,FALSE)="","",VLOOKUP($L12,invullijst!$A$11:$M$237,4,FALSE)) -> 0 | M12: =IF(VLOOKUP($L12,invullijst!$A$11:$M$196,2,FALSE)="","",VLOOKUP($L12,invullijst!$A$11:$M$196,2,FALSE)) -> 0 | O12: =IF(VLOOKUP($L12,invullijst!$A$11:$M$196,10,FALSE)=0,"",VLOOKUP($L12,invullijst!$A$11:$M$196,10,FALSE)) -> 
A13: 2 | B13: =IF($G$3="k",IF(VLOOKUP($D13,invullijst!$A$11:$M$196,11,FALSE)=0," ",VLOOKUP($D13,invullijst!$A$11:$M$196,11,FALSE)),"") ->  | C13: =IF(VLOOKUP(D13,invullijst!A$11:F$237,4,FALSE)="","",VLOOKUP(D13,invullijst!A$11:D$237,4,FALSE)) -> 0 | E13: =IF(VLOOKUP($D13,invullijst!$A$11:$M$196,2,FALSE)="","",VLOOKUP($D13,invullijst!$A$11:$M$196,2,FALSE)) -> 0 | G13: =IF(VLOOKUP($D13,invullijst!$A$11:$M$196,10,FALSE)=0,"",VLOOKUP($D13,invullijst!$A$11:$M$196,10,FALSE)) ->  | I13: 2 | J13: =IF($O$3="k",IF(VLOOKUP($L13,invullijst!$A$11:$M$196,11,FALSE)=0," ",VLOOKUP($L13,invullijst!$A$11:$M$196,11,FALSE)),"") ->  | K13: =IF(VLOOKUP($L13,invullijst!$A$11:$M$237,4,FALSE)="","",VLOOKUP($L13,invullijst!$A$11:$M$237,4,FALSE)) -> 0 | M13: =IF(VLOOKUP($L13,invullijst!$A$11:$M$196,2,FALSE)="","",VLOOKUP($L13,invullijst!$A$11:$M$196,2,FALSE)) -> 0 | O13: =IF(VLOOKUP($L13,invullijst!$A$11:$M$196,10,FALSE)=0,"",VLOOKUP($L13,invullijst!$A$11:$M$196,10,FALSE)) -> 
A14: 3 | B14: =IF($G$3="k",IF(VLOOKUP($D14,invullijst!$A$11:$M$196,11,FALSE)=0," ",VLOOKUP($D14,invullijst!$A$11:$M$196,11,FALSE)),"") ->  | C14: =IF(VLOOKUP(D14,invullijst!A$11:F$237,4,FALSE)="","",VLOOKUP(D14,invullijst!A$11:D$237,4,FALSE)) -> 0 | E14: =IF(VLOOKUP($D14,invullijst!$A$11:$M$196,2,FALSE)="","",VLOOKUP($D14,invullijst!$A$11:$M$196,2,FALSE)) -> 0 | G14: =IF(VLOOKUP($D14,invullijst!$A$11:$M$196,10,FALSE)=0,"",VLOOKUP($D14,invullijst!$A$11:$M$196,10,FALSE)) ->  | I14: 3 | J14: =IF($O$3="k",IF(VLOOKUP($L14,invullijst!$A$11:$M$196,11,FALSE)=0," ",VLOOKUP($L14,invullijst!$A$11:$M$196,11,FALSE)),"") ->  | K14: =IF(VLOOKUP($L14,invullijst!$A$11:$M$237,4,FALSE)="","",VLOOKUP($L14,invullijst!$A$11:$M$237,4,FALSE)) -> 0 | M14: =IF(VLOOKUP($L14,invullijst!$A$11:$M$196,2,FALSE)="","",VLOOKUP($L14,invullijst!$A$11:$M$196,2,FALSE)) -> 0 | O14: =IF(VLOOKUP($L14,invullijst!$A$11:$M$196,10,FALSE)=0,"",VLOOKUP($L14,invullijst!$A$11:$M$196,10,FALSE)) -> 
A15: 4 | B15: =IF($G$3="k",IF(VLOOKUP($D15,invullijst!$A$11:$M$196,11,FALSE)=0," ",VLOOKUP($D15,invullijst!$A$11:$M$196,11,FALSE)),"") ->  | C15: =IF(VLOOKUP(D15,invullijst!A$11:F$237,4,FALSE)="","",VLOOKUP(D15,invullijst!A$11:D$237,4,FALSE)) -> 0 | E15: =IF(VLOOKUP($D15,invullijst!$A$11:$M$196,2,FALSE)="","",VLOOKUP($D15,invullijst!$A$11:$M$196,2,FALSE)) -> 0 | G15: =IF(VLOOKUP($D15,invullijst!$A$11:$M$196,10,FALSE)=0,"",VLOOKUP($D15,invullijst!$A$11:$M$196,10,FALSE)) ->  | I15: 4 | J15: =IF($O$3="k",IF(VLOOKUP($L15,invullijst!$A$11:$M$196,11,FALSE)=0," ",VLOOKUP($L15,invullijst!$A$11:$M$196,11,FALSE)),"") ->  | K15: =IF(VLOOKUP($L15,invullijst!$A$11:$M$237,4,FALSE)="","",VLOOKUP($L15,invullijst!$A$11:$M$237,4,FALSE)) -> 0 | M15: =IF(VLOOKUP($L15,invullijst!$A$11:$M$196,2,FALSE)="","",VLOOKUP($L15,invullijst!$A$11:$M$196,2,FALSE)) -> 0 | O15: =IF(VLOOKUP($L15,invullijst!$A$11:$M$196,10,FALSE)=0,"",VLOOKUP($L15,invullijst!$A$11:$M$196,10,FALSE)) -> 
A16: Totaal B1 korps | G16: =SUM(G12:G15) -> 0 | I16: Totaal B1 korps | O16: =SUM(O12:O15) -> 0
A18: 1 | B18: =IF($G$3="k",IF(VLOOKUP($D18,invullijst!$A$11:$M$196,11,FALSE)=0," ",VLOOKUP($D18,invullijst!$A$11:$M$196,11,FALSE)),"") ->  | C18: =IF(VLOOKUP(D18,invullijst!A$11:F$237,4,FALSE)="","",VLOOKUP(D18,invullijst!A$11:D$237,4,FALSE)) -> 0 | E18: =IF(VLOOKUP($D18,invullijst!$A$11:$M$196,2,FALSE)="","",VLOOKUP($D18,invullijst!$A$11:$M$196,2,FALSE)) -> 0 | G18: =IF(VLOOKUP($D18,invullijst!$A$11:$M$196,10,FALSE)=0,"",VLOOKUP($D18,invullijst!$A$11:$M$196,10,FALSE)) ->  | I18: 1 | J18: =IF($O$3="k",IF(VLOOKUP($L18,invullijst!$A$11:$M$196,11,FALSE)=0," ",VLOOKUP($L18,invullijst!$A$11:$M$196,11,FALSE)),"") ->  | K18: =IF(VLOOKUP($L18,invullijst!$A$11:$M$237,4,FALSE)="","",VLOOKUP($L18,invullijst!$A$11:$M$237,4,FALSE)) -> 0 | M18: =IF(VLOOKUP($L18,invullijst!$A$11:$M$196,2,FALSE)="","",VLOOKUP($L18,invullijst!$A$11:$M$196,2,FALSE)) -> 0 | O18: =IF(VLOOKUP($L18,invullijst!$A$11:$M$196,10,FALSE)=0,"",VLOOKUP($L18,invullijst!$A$11:$M$196,10,FALSE)) -> 
A19: 2 | B19: =IF($G$3="k",IF(VLOOKUP($D19,invullijst!$A$11:$M$196,11,FALSE)=0," ",VLOOKUP($D19,invullijst!$A$11:$M$196,11,FALSE)),"") ->  | C19: =IF(VLOOKUP(D19,invullijst!A$11:F$237,4,FALSE)="","",VLOOKUP(D19,invullijst!A$11:D$237,4,FALSE)) -> 0 | E19: =IF(VLOOKUP($D19,invullijst!$A$11:$M$196,2,FALSE)="","",VLOOKUP($D19,invullijst!$A$11:$M$196,2,FALSE)) -> 0 | G19: =IF(VLOOKUP($D19,invullijst!$A$11:$M$196,10,FALSE)=0,"",VLOOKUP($D19,invullijst!$A$11:$M$196,10,FALSE)) ->  | I19: 2 | J19: =IF($O$3="k",IF(VLOOKUP($L19,invullijst!$A$11:$M$196,11,FALSE)=0," ",VLOOKUP($L19,invullijst!$A$11:$M$196,11,FALSE)),"") ->  | K19: =IF(VLOOKUP($L19,invullijst!$A$11:$M$237,4,FALSE)="","",VLOOKUP($L19,invullijst!$A$11:$M$237,4,FALSE)) -> 0 | M19: =IF(VLOOKUP($L19,invullijst!$A$11:$M$196,2,FALSE)="","",VLOOKUP($L19,invullijst!$A$11:$M$196,2,FALSE)) -> 0 | O19: =IF(VLOOKUP($L19,invullijst!$A$11:$M$196,10,FALSE)=0,"",VLOOKUP($L19,invullijst!$A$11:$M$196,10,FALSE)) -> 
A20: 3 | B20: =IF($G$3="k",IF(VLOOKUP($D20,invullijst!$A$11:$M$196,11,FALSE)=0," ",VLOOKUP($D20,invullijst!$A$11:$M$196,11,FALSE)),"") ->  | C20: =IF(VLOOKUP(D20,invullijst!A$11:F$237,4,FALSE)="","",VLOOKUP(D20,invullijst!A$11:D$237,4,FALSE)) -> 0 | E20: =IF(VLOOKUP($D20,invullijst!$A$11:$M$196,2,FALSE)="","",VLOOKUP($D20,invullijst!$A$11:$M$196,2,FALSE)) -> 0 | G20: =IF(VLOOKUP($D20,invullijst!$A$11:$M$196,10,FALSE)=0,"",VLOOKUP($D20,invullijst!$A$11:$M$196,10,FALSE)) ->  | I20: 3 | J20: =IF($O$3="k",IF(VLOOKUP($L20,invullijst!$A$11:$M$196,11,FALSE)=0," ",VLOOKUP($L20,invullijst!$A$11:$M$196,11,FALSE)),"") ->  | K20: =IF(VLOOKUP($L20,invullijst!$A$11:$M$237,4,FALSE)="","",VLOOKUP($L20,invullijst!$A$11:$M$237,4,FALSE)) -> 0 | M20: =IF(VLOOKUP($L20,invullijst!$A$11:$M$196,2,FALSE)="","",VLOOKUP($L20,invullijst!$A$11:$M$196,2,FALSE)) -> 0 | O20: =IF(VLOOKUP($L20,invullijst!$A$11:$M$196,10,FALSE)=0,"",VLOOKUP($L20,invullijst!$A$11:$M$196,10,FALSE)) -> 
A21: 4 | B21: =IF($G$3="k",IF(VLOOKUP($D21,invullijst!$A$11:$M$196,11,FALSE)=0," ",VLOOKUP($D21,invullijst!$A$11:$M$196,11,FALSE)),"") ->  | C21: =IF(VLOOKUP(D21,invullijst!A$11:F$237,4,FALSE)="","",VLOOKUP(D21,invullijst!A$11:D$237,4,FALSE)) -> 0 | E21: =IF(VLOOKUP($D21,invullijst!$A$11:$M$196,2,FALSE)="","",VLOOKUP($D21,invullijst!$A$11:$M$196,2,FALSE)) -> 0 | G21: =IF(VLOOKUP($D21,invullijst!$A$11:$M$196,10,FALSE)=0,"",VLOOKUP($D21,invullijst!$A$11:$M$196,10,FALSE)) ->  | I21: 4 | J21: =IF($O$3="k",IF(VLOOKUP($L21,invullijst!$A$11:$M$196,11,FALSE)=0," ",VLOOKUP($L21,invullijst!$A$11:$M$196,11,FALSE)),"") ->  | K21: =IF(VLOOKUP($L21,invullijst!$A$11:$M$237,4,FALSE)="","",VLOOKUP($L21,invullijst!$A$11:$M$237,4,FALSE)) -> 0 | M21: =IF(VLOOKUP($L21,invullijst!$A$11:$M$196,2,FALSE)="","",VLOOKUP($L21,invullijst!$A$11:$M$196,2,FALSE)) -> 0 | O21: =IF(VLOOKUP($L21,invullijst!$A$11:$M$196,10,FALSE)=0,"",VLOOKUP($L21,invullijst!$A$11:$M$196,10,FALSE)) -> 
A22: DIVERSEN / INHAAL | G22: =SUM(G18:G21) -> 0 | I22: DIVERSEN / INHAAL | O22: =SUM(O18:O21) -> 0
A24: OPGELEGD (Jeugd <16 en 65+)
